{"text_format":"1","workbook":"xlsx","n_sheets":5,"sheets":["Erläuterungen Finanzierungsplan","F-Plan","Prüfung","F-Plan geprüft","Hilfstabellen"],"not_rendered":{"charts":0,"images":3,"macros":1,"external_links":0,"defined_names":5,"comments":0,"pivot_tables":0},"unopened":[],"bounds":{"document_bytes":16777216,"sheet_cells":100000,"rows_first":2000,"rows_last":500,"rows_between":2000,"halvings":0,"cell_chars":16384,"cell_head_chars":4096},"cells_cut":0,"cells_raw":0,"read":"whole","date_system":"1900"}

{"sheet":"Erläuterungen Finanzierungsplan","index":0,"n_rows":639,"n_cols":40,"rows_kept":639,"cut":false,"hidden":false,"merged":[[118,34,118,38],[118,39,118,43],[110,44,110,48],[111,19,111,26],[111,44,111,48],[112,19,112,26],[112,44,112,48],[113,19,113,26],[113,44,113,48],[114,19,114,26],[114,44,114,48],[115,19,115,26],[115,44,115,48],[116,19,116,26],[116,44,116,48],[116,29,116,33],[115,39,115,43],[116,39,116,43],[117,39,117,43],[112,34,112,38],[113,34,113,38],[114,34,114,38],[115,34,115,38],[116,34,116,38],[117,34,117,38],[110,39,110,43],[111,39,111,43],[110,34,110,38],[111,34,111,38],[117,0,117,4],[117,5,117,6],[117,7,117,8],[117,9,117,10],[117,11,117,12],[117,13,117,14],[117,15,117,16],[117,17,117,18],[117,19,117,26],[117,27,117,28],[117,44,117,48],[101,44,101,48],[102,19,102,26],[102,44,102,48],[103,19,103,26],[103,44,103,48],[104,19,104,26],[104,44,104,48],[105,19,105,26],[105,44,105,48],[106,19,106,26],[106,44,106,48],[107,19,107,26],[107,44,107,48],[108,19,108,26],[108,44,108,48],[109,19,109,26],[109,44,109,48],[117,29,117,33],[115,27,115,28],[115,29,115,33],[116,27,116,28],[92,44,92,48],[93,19,93,26],[93,44,93,48],[94,19,94,26],[94,44,94,48],[95,19,95,26],[95,44,95,48],[96,19,96,26],[96,44,96,48],[97,19,97,26],[97,44,97,48],[98,19,98,26],[98,44,98,48],[99,19,99,26],[99,44,99,48],[100,19,100,26],[100,44,100,48],[92,34,92,38],[93,34,93,38],[97,34,97,38],[98,34,98,38],[99,34,99,38],[100,34,100,38],[87,44,87,48],[88,19,88,26],[88,44,88,48],[89,19,89,26],[89,44,89,48],[90,19,90,26],[90,44,90,48],[91,19,91,26],[91,44,91,48],[83,34,83,38],[84,34,84,38],[85,34,85,38],[86,34,86,38],[87,34,87,38],[88,34,88,38],[89,34,89,38],[90,34,90,38],[91,34,91,38],[83,44,83,48],[84,19,84,26],[84,44,84,48],[85,19,85,26],[85,44,85,48],[86,19,86,26],[86,44,86,48],[65,25,65,29],[66,25,66,29],[67,23,67,24],[64,23,64,24],[69,23,69,24],[76,23,76,24],[46,44,46,48],[47,44,47,48],[48,44,48,48],[49,44,49,48],[50,44,50,48],[51,44,51,48],[49,29,49,33],[50,29,50,33],[51,29,51,33],[46,27,46,28],[49,27,49,28],[46,29,46,33],[47,29,47,33],[50,34,50,38],[51,34,51,38],[52,34,52,38],[52,39,52,43],[53,39,53,43],[54,39,54,43],[47,34,47,38],[48,34,48,38],[49,34,49,38],[72,23,72,24],[50,39,50,43],[51,39,51,43],[27,39,27,43],[52,44,52,48],[53,44,53,48],[54,44,54,48],[79,0,79,16],[79,29,80,33],[81,0,82,4],[81,5,82,6],[81,7,82,8],[81,9,82,10],[81,11,82,12],[81,13,82,14],[81,15,82,16],[81,17,82,18],[81,19,82,26],[81,27,82,28],[81,29,82,33],[81,34,82,38],[81,39,82,43],[81,44,82,48],[35,44,35,48],[36,44,36,48],[37,44,37,48],[38,44,38,48],[39,44,39,48],[40,44,40,48],[41,44,41,48],[42,44,42,48],[43,44,43,48],[44,44,44,48],[45,44,45,48],[45,27,45,28],[16,29,17,33],[18,44,19,48],[20,44,20,48],[21,44,21,48],[22,44,22,48],[23,44,23,48],[24,44,24,48],[25,44,25,48],[26,44,26,48],[27,44,27,48],[28,44,28,48],[29,44,29,48],[30,44,30,48],[31,44,31,48],[32,44,32,48],[33,44,33,48],[34,44,34,48],[28,39,28,43],[29,39,29,43],[30,39,30,43],[31,39,31,43],[32,39,32,43],[33,39,33,43],[34,39,34,43],[18,39,19,43],[20,39,20,43],[21,39,21,43],[22,39,22,43],[23,39,23,43],[24,39,24,43],[25,39,25,43],[26,39,26,43],[25,19,25,26],[26,19,26,26],[27,19,27,26],[28,19,28,26],[29,19,29,26],[30,19,30,26],[31,19,31,26],[32,19,32,26],[33,19,33,26],[34,19,34,26],[35,19,35,26],[36,19,36,26],[67,25,67,29],[68,25,68,29],[69,25,69,29],[70,25,70,29],[71,25,71,29],[61,17,61,19],[61,20,61,22],[41,17,41,18],[38,17,38,18],[30,17,30,18],[67,17,67,19],[68,17,68,19],[69,17,69,19],[45,19,45,26],[46,19,46,26],[47,19,47,26],[48,19,48,26],[49,19,49,26],[50,19,50,26],[51,19,51,26],[197,0,197,4],[197,5,197,10],[197,11,197,12],[197,13,197,14],[197,15,197,16],[197,17,197,19],[197,20,197,22],[195,0,195,4],[195,5,195,10],[195,11,195,12],[195,13,195,14],[195,15,195,16],[195,17,195,19],[195,20,195,22],[115,0,115,4],[115,5,115,6],[115,7,115,8],[115,9,115,10],[115,11,115,12],[115,13,115,14],[115,15,115,16],[115,17,115,18],[116,15,116,16],[116,17,116,18],[191,13,191,14],[191,15,191,16],[191,17,191,19],[191,20,191,22],[192,0,192,4],[192,5,192,10],[192,11,192,12],[192,13,192,14],[113,0,113,4],[113,5,113,6],[113,7,113,8],[113,9,113,10],[113,11,113,12],[113,13,113,14],[113,15,113,16],[113,17,113,18],[113,27,113,28],[113,29,113,33],[114,0,114,4],[114,5,114,6],[114,7,114,8],[114,9,114,10],[114,11,114,12],[114,13,114,14],[114,15,114,16],[114,17,114,18],[114,27,114,28],[114,29,114,33],[111,0,111,4],[111,5,111,6],[111,7,111,8],[111,9,111,10],[111,11,111,12],[111,13,111,14],[111,15,111,16],[111,17,111,18],[111,27,111,28],[111,29,111,33],[112,0,112,4],[112,5,112,6],[112,7,112,8],[112,9,112,10],[112,11,112,12],[112,13,112,14],[112,15,112,16],[112,17,112,18],[112,27,112,28],[112,29,112,33],[109,0,109,4],[109,5,109,6],[109,7,109,8],[109,9,109,10],[109,11,109,12],[109,13,109,14],[109,15,109,16],[109,17,109,18],[109,27,109,28],[109,29,109,33],[110,0,110,4],[110,5,110,6],[110,7,110,8],[110,9,110,10],[110,11,110,12],[110,13,110,14],[110,15,110,16],[110,17,110,18],[110,27,110,28],[110,29,110,33],[110,19,110,26],[107,0,107,4],[107,5,107,6],[107,7,107,8],[107,9,107,10],[107,11,107,12],[107,13,107,14],[107,15,107,16],[107,17,107,18],[107,27,107,28],[107,29,107,33],[108,0,108,4],[108,5,108,6],[108,7,108,8],[108,9,108,10],[108,11,108,12],[108,13,108,14],[108,15,108,16],[108,17,108,18],[108,27,108,28],[108,29,108,33],[105,0,105,4],[105,5,105,6],[105,7,105,8],[105,9,105,10],[105,11,105,12],[105,13,105,14],[105,15,105,16],[105,17,105,18],[105,27,105,28],[105,29,105,33],[106,0,106,4],[106,5,106,6],[106,7,106,8],[106,9,106,10],[106,11,106,12],[106,13,106,14],[106,15,106,16],[106,17,106,18],[106,27,106,28],[106,29,106,33],[103,0,103,4],[103,5,103,6],[103,7,103,8],[103,9,103,10],[103,11,103,12],[103,13,103,14],[103,15,103,16],[103,17,103,18],[103,27,103,28],[103,29,103,33],[104,0,104,4],[104,5,104,6],[104,7,104,8],[104,9,104,10],[104,11,104,12],[104,13,104,14],[104,15,104,16],[104,17,104,18],[104,27,104,28],[104,29,104,33],[101,0,101,4],[101,5,101,6],[101,7,101,8],[101,9,101,10],[101,11,101,12],[101,13,101,14],[101,15,101,16],[101,17,101,18],[101,27,101,28],[101,29,101,33],[102,0,102,4],[102,5,102,6],[102,7,102,8],[102,9,102,10],[102,11,102,12],[102,13,102,14],[102,15,102,16],[102,17,102,18],[102,27,102,28],[102,29,102,33],[101,19,101,26],[99,0,99,4],[99,5,99,6],[99,7,99,8],[99,9,99,10],[99,11,99,12],[99,13,99,14],[99,15,99,16],[99,17,99,18],[99,27,99,28],[99,29,99,33],[100,0,100,4],[100,5,100,6],[100,7,100,8],[100,9,100,10],[100,11,100,12],[100,13,100,14],[100,15,100,16],[100,17,100,18],[100,27,100,28],[100,29,100,33],[97,0,97,4],[97,5,97,6],[97,7,97,8],[97,9,97,10],[97,11,97,12],[97,13,97,14],[97,15,97,16],[97,17,97,18],[97,27,97,28],[97,29,97,33],[98,0,98,4],[98,5,98,6],[98,7,98,8],[98,9,98,10],[98,11,98,12],[98,13,98,14],[98,15,98,16],[98,17,98,18],[98,27,98,28],[98,29,98,33],[95,0,95,4],[95,5,95,6],[95,7,95,8],[95,9,95,10],[95,11,95,12],[95,13,95,14],[95,15,95,16],[95,17,95,18],[95,27,95,28],[95,29,95,33],[96,0,96,4],[96,5,96,6],[96,7,96,8],[96,9,96,10],[96,11,96,12],[96,13,96,14],[96,15,96,16],[96,17,96,18],[96,27,96,28],[96,29,96,33],[93,0,93,4],[93,5,93,6],[93,7,93,8],[93,9,93,10],[93,11,93,12],[93,13,93,14],[93,15,93,16],[93,17,93,18],[93,27,93,28],[93,29,93,33],[94,0,94,4],[94,5,94,6],[94,7,94,8],[94,9,94,10],[94,11,94,12],[94,13,94,14],[94,15,94,16],[94,17,94,18],[94,27,94,28],[94,29,94,33],[91,0,91,4],[91,5,91,6],[91,7,91,8],[91,9,91,10],[91,11,91,12],[91,13,91,14],[91,15,91,16],[91,17,91,18],[91,27,91,28],[91,29,91,33],[92,0,92,4],[92,5,92,6],[92,7,92,8],[92,9,92,10],[92,11,92,12],[92,13,92,14],[92,15,92,16],[92,17,92,18],[92,27,92,28],[92,29,92,33],[92,19,92,26],[89,0,89,4],[89,5,89,6],[89,7,89,8],[89,9,89,10],[89,11,89,12],[89,13,89,14],[89,15,89,16],[89,17,89,18],[89,27,89,28],[89,29,89,33],[90,0,90,4],[90,5,90,6],[90,7,90,8],[90,9,90,10],[90,11,90,12],[90,13,90,14],[90,15,90,16],[90,17,90,18],[90,27,90,28],[90,29,90,33],[87,0,87,4],[87,5,87,6],[87,7,87,8],[87,9,87,10],[87,11,87,12],[87,13,87,14],[87,15,87,16],[87,17,87,18],[87,27,87,28],[87,29,87,33],[88,0,88,4],[88,5,88,6],[88,7,88,8],[88,9,88,10],[88,11,88,12],[88,13,88,14],[88,15,88,16],[88,17,88,18],[88,27,88,28],[88,29,88,33],[87,19,87,26],[85,7,85,8],[85,9,85,10],[85,11,85,12],[85,13,85,14],[85,15,85,16],[85,17,85,18],[85,27,85,28],[85,29,85,33],[86,0,86,4],[86,5,86,6],[86,7,86,8],[86,9,86,10],[86,11,86,12],[86,13,86,14],[86,15,86,16],[86,17,86,18],[86,27,86,28],[86,29,86,33],[83,5,83,6],[83,7,83,8],[83,9,83,10],[83,11,83,12],[83,13,83,14],[83,15,83,16],[83,17,83,18],[83,27,83,28],[83,29,83,33],[75,20,75,22],[73,20,73,22],[74,20,74,22],[75,17,75,19],[75,15,75,16],[74,15,74,16],[72,20,72,22],[74,0,74,4],[72,25,72,29],[73,25,73,29],[74,25,74,29],[75,25,75,29],[76,25,76,29],[73,0,73,4],[73,15,73,16],[73,17,73,19],[73,13,73,14],[73,23,73,24],[76,17,76,19],[75,0,75,4],[75,13,75,14],[75,5,75,12],[73,5,73,12],[39,11,39,12],[50,11,50,12],[35,5,35,6],[38,5,38,6],[44,5,44,6],[36,5,36,6],[37,5,37,6],[39,5,39,6],[194,15,194,16],[194,17,194,19],[194,20,194,22],[196,0,196,4],[196,5,196,10],[16,0,16,16],[78,0,78,16],[84,0,84,4],[84,5,84,6],[84,7,84,8],[84,9,84,10],[84,11,84,12],[84,13,84,14],[84,15,84,16],[84,17,84,18],[85,0,85,4],[85,5,85,6],[188,11,188,12],[189,11,189,12],[191,0,191,4],[191,5,191,10],[191,11,191,12],[74,13,74,14],[83,0,83,4],[192,15,192,16],[192,17,192,19],[192,20,192,22],[184,23,184,26],[190,5,190,10],[190,11,190,12],[190,13,190,14],[190,15,190,16],[190,17,190,19],[190,20,190,22],[186,0,186,4],[187,0,187,4],[188,0,188,4],[196,17,196,19],[196,20,196,22],[193,0,193,4],[193,5,193,10],[193,11,193,12],[193,13,193,14],[193,15,193,16],[193,17,193,19],[193,20,193,22],[194,0,194,4],[194,5,194,10],[194,11,194,12],[194,13,194,14],[191,23,191,26],[192,23,192,26],[193,23,193,26],[194,23,194,26],[195,23,195,26],[196,23,196,26],[196,11,196,12],[196,13,196,14],[196,15,196,16],[183,0,183,4],[183,5,183,10],[183,11,183,12],[183,20,183,22],[184,0,184,4],[184,5,184,10],[184,11,184,12],[184,13,184,14],[184,15,184,16],[184,17,184,19],[184,20,184,22],[185,0,185,4],[185,5,185,10],[185,11,185,12],[185,13,185,14],[185,15,185,16],[185,17,185,19],[185,20,185,22],[190,0,190,4],[188,5,188,10],[189,5,189,10],[186,11,186,12],[189,0,189,4],[186,5,186,10],[187,5,187,10],[186,17,186,19],[187,17,187,19],[188,17,188,19],[189,17,189,19],[180,13,180,14],[180,15,180,16],[180,17,180,19],[180,20,180,22],[181,5,181,10],[181,11,181,12],[181,13,181,14],[181,15,181,16],[181,17,181,19],[181,20,181,22],[182,0,182,4],[182,5,182,10],[182,11,182,12],[182,13,182,14],[182,15,182,16],[182,17,182,19],[182,20,182,22],[181,0,181,4],[180,0,180,4],[180,5,180,10],[180,11,180,12],[266,0,267,7],[252,8,252,10],[286,1,288,1],[286,2,288,10],[286,11,288,14],[281,2,281,10],[278,1,279,1],[278,11,279,14],[284,11,284,14],[280,17,290,24],[265,17,265,24],[266,17,266,23],[267,17,267,23],[268,17,268,23],[283,2,283,10],[272,17,272,23],[274,11,274,14],[271,1,272,1],[271,11,272,14],[264,8,265,10],[277,17,277,24],[278,17,278,23],[280,2,280,10],[281,11,281,14],[282,11,282,14],[275,17,276,23],[285,1,285,14],[277,11,277,14],[289,1,290,10],[273,17,273,23],[289,11,290,14],[269,4,269,14],[270,1,270,14],[271,2,272,10],[273,2,273,10],[274,2,274,10],[284,2,284,10],[283,11,283,14],[280,11,280,14],[272,25,272,26],[273,25,273,26],[274,25,274,26],[275,25,275,26],[276,25,276,26],[277,25,277,26],[278,25,278,26],[279,25,279,26],[280,25,280,26],[269,17,269,23],[271,17,271,23],[275,11,275,14],[275,2,275,10],[241,0,241,9],[241,10,241,14],[245,0,245,7],[276,11,276,14],[121,0,122,4],[121,5,122,10],[121,11,122,12],[121,13,122,14],[121,15,122,16],[121,17,122,19],[121,20,122,22],[276,2,276,10],[274,17,274,23],[260,0,262,27],[72,0,72,4],[204,0,236,41],[116,0,116,4],[116,5,116,6],[116,7,116,8],[116,9,116,10],[116,11,116,12],[116,13,116,14],[123,0,123,4],[123,5,123,10],[123,11,123,12],[123,13,123,14],[245,8,245,10],[246,11,246,12],[246,8,246,10],[248,8,250,35],[258,0,258,12],[264,0,265,7],[20,17,20,18],[28,17,28,18],[18,19,19,26],[26,15,26,16],[26,17,26,18],[36,17,36,18],[41,15,41,16],[44,13,44,14],[45,13,45,14],[43,15,43,16],[45,15,45,16],[44,15,44,16],[40,13,40,14],[35,17,35,18],[27,17,27,18],[34,13,34,14],[42,17,42,18],[32,17,32,18],[33,17,33,18],[45,17,45,18],[31,15,31,16],[23,17,23,18],[24,17,24,18],[25,17,25,18],[20,19,20,26],[21,19,21,26],[22,19,22,26],[23,19,23,26],[24,19,24,26],[21,13,21,14],[22,13,22,14],[23,13,23,14],[50,0,50,4],[34,0,34,4],[35,0,35,4],[36,0,36,4],[37,0,37,4],[34,5,34,6],[34,17,34,18],[47,11,47,12],[46,13,46,14],[47,13,47,14],[38,15,38,16],[27,15,27,16],[28,15,28,16],[29,15,29,16],[30,15,30,16],[29,17,29,18],[46,15,46,16],[43,17,43,18],[37,17,37,18],[42,15,42,16],[44,17,44,18],[48,11,48,12],[45,7,45,8],[36,7,36,8],[37,7,37,8],[43,7,43,8],[44,7,44,8],[40,7,40,8],[29,7,29,8],[30,7,30,8],[41,7,41,8],[42,7,42,8],[35,7,35,8],[31,9,31,10],[34,9,34,10],[29,9,29,10],[43,9,43,10],[44,9,44,10],[46,7,46,8],[47,7,47,8],[48,9,48,10],[49,9,49,10],[50,9,50,10],[42,9,42,10],[48,7,48,8],[37,9,37,10],[41,9,41,10],[35,9,35,10],[36,9,36,10],[45,9,45,10],[46,9,46,10],[47,9,47,10],[39,7,39,8],[38,7,38,8],[33,5,33,6],[33,7,33,8],[29,5,29,6],[32,7,32,8],[46,0,46,4],[47,0,47,4],[48,0,48,4],[49,0,49,4],[44,0,44,4],[45,0,45,4],[48,5,48,6],[49,5,49,6],[25,0,25,4],[27,0,27,4],[28,0,28,4],[27,5,27,6],[28,5,28,6],[25,5,25,6],[29,0,29,4],[30,0,30,4],[31,0,31,4],[32,0,32,4],[33,0,33,4],[30,5,30,6],[40,5,40,6],[41,5,41,6],[42,5,42,6],[43,5,43,6],[45,5,45,6],[28,7,28,8],[31,7,31,8],[34,7,34,8],[4,1,4,5],[4,6,4,24],[5,6,5,24],[6,6,6,24],[7,6,7,24],[10,1,10,5],[10,8,10,10],[10,13,10,16],[10,6,10,7],[10,11,10,12],[8,6,8,8],[20,5,20,6],[21,5,21,6],[22,5,22,6],[23,5,23,6],[24,5,24,6],[21,7,21,8],[22,7,22,8],[23,7,23,8],[18,7,19,8],[24,7,24,8],[18,9,19,10],[18,11,19,12],[18,13,19,14],[18,15,19,16],[18,17,19,18],[22,17,22,18],[12,1,12,4],[12,8,12,10],[12,12,12,13],[22,11,22,12],[23,11,23,12],[3,6,3,24],[20,0,20,4],[21,0,21,4],[22,0,22,4],[21,9,21,10],[22,9,22,10],[20,11,20,12],[7,1,7,5],[8,1,8,5],[3,1,3,5],[26,0,26,4],[5,1,5,5],[6,1,6,5],[23,0,23,4],[24,0,24,4],[26,5,26,6],[18,0,19,4],[18,5,19,6],[20,7,20,8],[20,9,20,10],[14,0,14,12],[8,9,8,10],[20,15,20,16],[21,15,21,16],[22,15,22,16],[23,15,23,16],[24,15,24,16],[25,15,25,16],[26,7,26,8],[24,9,24,10],[21,17,21,18],[21,11,21,12],[18,27,19,28],[20,27,20,28],[21,27,21,28],[22,27,22,28],[30,27,30,28],[41,27,41,28],[27,27,27,28],[28,27,28,28],[29,27,29,28],[35,27,35,28],[38,27,38,28],[39,27,39,28],[40,27,40,28],[31,27,31,28],[25,7,25,8]],"merged_total":2049,"flags":["merged_cut"]}
[]
[null,"Richtlinie über die Gewährung von Zuwendungen zur Förderung von \nMaßnahmen im Rahmen des Programms \"Soziale Innovation\" (Projekte)"]
[null,"Erläuterungen zum Finanzierungsplan"]
[null,null,null,null,null,null,null,null,null,null,null,null,null,null,null,null,null,null,null,null,null,null,null,null,null,null,null,null,"Information:"]
[null,"Programmgebiet"]
[null,"Antragsteller/in",null,null,null,null,null,null,null,null,null,null,null,null,null,null,null,null,null,null,null,null,null,null,null,null,null,null,"Gelbe Felder:",null,null,"Bitte ausfüllen"]
[null,"Projekttitel",null,null,null,null,null,null,null,null,null,null,null,null,null,null,null,null,null,null,null,null,null,null,null,null,null,null,"Grüne Felder:",null,null,"Bitte ausfüllen"]
[null,"Version",null,null,null,null,null,null,null,null,null,null,null,null,null,null,null,null,null,null,null,null,null,null,null,null,null,null,"Weiße Felder:",null,null,"Werden automatisch ausgefüllt"]
[null,"Antragsnummer"]
[]
[null,"Projektzeitraum",null,null,null,null,"Beginn:",null,null,null,null,"Ende:",null,null,null,null,null,null,{"$f":"IF(N11>DATE(2022,9,30),\"Mögl. Projektzeitraum überschritten!\",\"\")","v":""}]
[]
[null,"Projektlaufzeit",null,null,null,null,null,null,{"$f":"IF(I11=\"\",\"\",ROUND(((DATEDIF(I11,N11,\"d\")+1)*12/365),1))","v":""},null,null,null,{"$f":"IF(I13=\"\",\"\",\"Monate\")","v":""},null,null,null,null,null,{"$f":"IF(I13=\"\",\"\",IF(I13>33,\"Max. Projektlaufzeit von 33 Monaten überschritten!\",\"\"))","v":""}]
[]
["     1. Bildungs- und Beratungspersonal"]
[]
["Ausgabenposition 1.1 (Bezüge für eigenes und fremdes Personal inkl. Sozialabgaben)",null,null,null,null,null,null,null,null,null,null,null,null,null,null,null,null,null,null,null,null,null,null,null,null,null,null,null,null,"Für den Finanzierungsplan zum Antrag",null,null,null,null,"Zur Eingruppierung nach Standardeinheitskosten\ndurch die NBank"]
[]
["Name, Vorname",null,null,null,null,"Wöchentliche Arbeitszeit einer Vollzeitstelle beim AG",null,"Wöchentliche vertragl. Arbeitszeit des MA",null,"Wochen-stunden des MA im Projekt",null,"Im Projekt \neingesetzt\nvom",null,"Im Projekt \neingesetzt\nbis",null,"Monate im Projekt",null,"Produktiv-stunden gem. Tätigkeits-beschreibung",null,"Tätigkeit im Projekt",null,null,null,null,null,null,null,"beim Zuwen-dungs-\nempfänger beschäftigt",null,"Arbeitgeber-Brutto für den Gesamtzeitraum\n(für die Tätigkeit des MA im Projekt)",null,null,null,null,"Monatlicher Arbeitnehmer-Bruttoverdienst\n(Gesamtbetrag für alle Tätigkeiten des MA)",null,null,null,null,"Jährliche Sonderzahlungen\n(Arbeitnehmer-Brutto)"]
[]
[null,null,null,null,null,null,null,null,null,null,null,null,null,null,null,{"$f":"IF(A21=\"\",\"\",ROUND(((DATEDIF(L21,N21,\"d\")+1)*12/365),1))","v":""}]
[null,null,null,null,null,null,null,null,null,null,null,null,null,null,null,""]
[null,null,null,null,null,null,null,null,null,null,null,null,null,null,null,""]
[null,null,null,null,null,null,null,null,null,null,null,null,null,null,null,""]
[null,null,null,null,null,null,null,null,null,null,null,null,null,null,null,""]
[null,null,null,null,null,null,null,null,null,null,null,null,null,null,null,""]
[null,null,null,null,null,null,null,null,null,null,null,null,null,null,null,""]
[null,null,null,null,null,null,null,null,null,null,null,null,null,null,null,""]
[null,null,null,null,null,null,null,null,null,null,null,null,null,null,null,""]
[null,null,null,null,null,null,null,null,null,null,null,null,null,null,null,""]
[null,null,null,null,null,null,null,null,null,null,null,null,null,null,null,""]
[null,null,null,null,null,null,null,null,null,null,null,null,null,null,null,""]
[null,null,null,null,null,null,null,null,null,null,null,null,null,null,null,""]
[null,null,null,null,null,null,null,null,null,null,null,null,null,null,null,""]
[null,null,null,null,null,null,null,null,null,null,null,null,null,null,null,""]
[null,null,null,null,null,null,null,null,null,null,null,null,null,null,null,""]
[null,null,null,null,null,null,null,null,null,null,null,null,null,null,null,""]
[null,null,null,null,null,null,null,null,null,null,null,null,null,null,null,""]
[null,null,null,null,null,null,null,null,null,null,null,null,null,null,null,""]
[null,null,null,null,null,null,null,null,null,null,null,null,null,null,null,""]
[null,null,null,null,null,null,null,null,null,null,null,null,null,null,null,""]
[null,null,null,null,null,null,null,null,null,null,null,null,null,null,null,""]
[null,null,null,null,null,null,null,null,null,null,null,null,null,null,null,""]
[null,null,null,null,null,null,null,null,null,null,null,null,null,null,null,""]
[null,null,null,null,null,null,null,null,null,null,null,null,null,null,null,""]
[null,null,null,null,null,null,null,null,null,null,null,null,null,null,null,""]
[null,null,null,null,null,null,null,null,null,null,null,null,null,null,null,""]
[null,null,null,null,null,null,null,null,null,null,null,null,null,null,null,""]
[null,null,null,null,null,null,null,null,null,null,null,null,null,null,null,""]
[null,null,null,null,null,null,null,null,null,null,null,null,null,null,null,""]
[null,null,null,null,null,null,null,null,null,null,null,null,null,null,null,""]
[null,null,null,null,null,null,null,null,null,null,null,null,null,null,null,""]
[null,null,null,null,null,null,null,null,null,null,null,null,null,null,null,""]
[null,null,null,null,null,null,null,null,null,null,null,null,null,null,null,""]
[null,null,null,null,null,null,null,null,null,null,null,null,null,null,null,""]
[null,null,null,null,null,null,null,null,null,null,null,null,null,null,null,null,{"$f":"SUM(R21:S55)","v":0},null,null,null,null,null,null,null,null,null,null,null,"Summen:",{"$f":"SUM(AD21:AH55)","v":0}]
[]
["Ausgabenposition 1.2 (Ausgaben für Honorarkräfte)"]
[]
["Name, Vorname",null,null,null,null,"Tätigkeit im Projekt",null,null,null,null,null,null,null,"Im Projekt \neingesetzt\nvom",null,"Im Projekt \neingesetzt\nbis",null,"Monate im Projekt",null,null,"Stundensatz je Zeitstunde",null,null,"Std. im Projekt",null,"Gesamt"]
[]
[null,null,null,null,null,null,null,null,null,null,null,null,null,null,null,null,null,{"$f":"IF(A62=\"\",\"\",ROUND(((DATEDIF(N62,P62,\"d\")+1)*12/365),1))","v":""},null,null,null,null,null,null,null,{"$f":"IF(U62=\"\",\"\",U62*X62)","v":""}]
[null,null,null,null,null,null,null,null,null,null,null,null,null,null,null,null,null,{"$f":"IF(A63=\"\",\"\",ROUND(((DATEDIF(N63,P63,\"d\")+1)*12/365),1))","v":""},null,null,null,null,null,null,null,{"$f":"IF(U63=\"\",\"\",U63*X63)","v":""}]
[null,null,null,null,null,null,null,null,null,null,null,null,null,null,null,null,null,"",null,null,null,null,null,null,null,""]
[null,null,null,null,null,null,null,null,null,null,null,null,null,null,null,null,null,"",null,null,null,null,null,null,null,""]
[null,null,null,null,null,null,null,null,null,null,null,null,null,null,null,null,null,"",null,null,null,null,null,null,null,""]
[null,null,null,null,null,null,null,null,null,null,null,null,null,null,null,null,null,"",null,null,null,null,null,null,null,""]
[null,null,null,null,null,null,null,null,null,null,null,null,null,null,null,null,null,"",null,null,null,null,null,null,null,""]
[null,null,null,null,null,null,null,null,null,null,null,null,null,null,null,null,null,"",null,null,null,null,null,null,null,""]
[null,null,null,null,null,null,null,null,null,null,null,null,null,null,null,null,null,"",null,null,null,null,null,null,null,""]
[null,null,null,null,null,null,null,null,null,null,null,null,null,null,null,null,null,"",null,null,null,null,null,null,null,""]
[null,null,null,null,null,null,null,null,null,null,null,null,null,null,null,null,null,"",null,null,null,null,null,null,null,""]
[null,null,null,null,null,null,null,null,null,null,null,null,null,null,null,null,null,"",null,null,null,null,null,null,null,""]
[null,null,null,null,null,null,null,null,null,null,null,null,null,null,null,null,null,"",null,null,null,null,null,null,null,""]
[null,null,null,null,null,null,null,null,null,null,null,null,null,null,null,null,null,"",null,null,null,null,null,null,null,""]
[null,null,null,null,null,null,null,null,null,null,null,null,null,null,null,null,null,"",null,null,null,null,null,null,null,""]
[null,null,null,null,null,null,null,null,null,null,null,null,null,null,null,null,null,null,null,null,null,null,null,{"$f":"SUM(X62:Y76)","v":0},null,{"$f":"SUM(Z62:AD76)","v":0}]
[]
[]
["Ausgabenposition 1.3 (Arbeitsentgelt des Verwaltungspersonals inkl. Sozialabgaben)",null,null,null,null,null,null,null,null,null,null,null,null,null,null,null,null,null,null,null,null,null,null,null,null,null,null,null,null,"Für den Finanzierungsplan zum Antrag",null,null,null,null,"Zur Eingruppierung nach Standardeinheitskosten \ndurch die NBank"]
[]
["Name, Vorname",null,null,null,null,"Wöchentliche Arbeitszeit einer Vollzeitstelle beim AG",null,"Wöchentliche vertragl. Arbeitszeit des MA",null,"Wochen-stunden des MA im Projekt",null,"Im Projekt \neingesetzt\nvom",null,"Im Projekt \neingesetzt\nbis",null,"Monate im Projekt",null,"Produktiv-stunden gem. Tätigkeits-beschreibung",null,"Tätigkeit im Projekt",null,null,null,null,null,null,null,"beim Zuwen-dungs-\nempfänger beschäftigt",null,"Arbeitgeber-Brutto für den Gesamtzeitraum\n(für die Tätigkeit des MA im Projekt)",null,null,null,null,"Monatlicher Arbeitnehmer-Bruttoverdienst\n(Gesamtbetrag für alle Tätigkeiten des MA)",null,null,null,null,"Jährliche Sonderzahlungen\n(Arbeitnehmer-Brutto)"]
[]
[null,null,null,null,null,null,null,null,null,null,null,null,null,null,null,{"$f":"IF(A84=\"\",\"\",ROUND(((DATEDIF(L84,N84,\"d\")+1)*12/365),1))","v":""}]
[null,null,null,null,null,null,null,null,null,null,null,null,null,null,null,""]
[null,null,null,null,null,null,null,null,null,null,null,null,null,null,null,""]
[null,null,null,null,null,null,null,null,null,null,null,null,null,null,null,""]
[null,null,null,null,null,null,null,null,null,null,null,null,null,null,null,""]
[null,null,null,null,null,null,null,null,null,null,null,null,null,null,null,""]
[null,null,null,null,null,null,null,null,null,null,null,null,null,null,null,""]
[null,null,null,null,null,null,null,null,null,null,null,null,null,null,null,""]
[null,null,null,null,null,null,null,null,null,null,null,null,null,null,null,""]
[null,null,null,null,null,null,null,null,null,null,null,null,null,null,null,""]
[null,null,null,null,null,null,null,null,null,null,null,null,null,null,null,""]
[null,null,null,null,null,null,null,null,null,null,null,null,null,null,null,""]
[null,null,null,null,null,null,null,null,null,null,null,null,null,null,null,""]
[null,null,null,null,null,null,null,null,null,null,null,null,null,null,null,""]
[null,null,null,null,null,null,null,null,null,null,null,null,null,null,null,""]
[null,null,null,null,null,null,null,null,null,null,null,null,null,null,null,""]
[null,null,null,null,null,null,null,null,null,null,null,null,null,null,null,""]
[null,null,null,null,null,null,null,null,null,null,null,null,null,null,null,""]
[null,null,null,null,null,null,null,null,null,null,null,null,null,null,null,""]
[null,null,null,null,null,null,null,null,null,null,null,null,null,null,null,""]
[null,null,null,null,null,null,null,null,null,null,null,null,null,null,null,""]
[null,null,null,null,null,null,null,null,null,null,null,null,null,null,null,""]
[null,null,null,null,null,null,null,null,null,null,null,null,null,null,null,""]
[null,null,null,null,null,null,null,null,null,null,null,null,null,null,null,""]
[null,null,null,null,null,null,null,null,null,null,null,null,null,null,null,""]
[null,null,null,null,null,null,null,null,null,null,null,null,null,null,null,""]
[null,null,null,null,null,null,null,null,null,null,null,null,null,null,null,""]
[null,null,null,null,null,null,null,null,null,null,null,null,null,null,null,""]
[null,null,null,null,null,null,null,null,null,null,null,null,null,null,null,""]
[null,null,null,null,null,null,null,null,null,null,null,null,null,null,null,""]
[null,null,null,null,null,null,null,null,null,null,null,null,null,null,null,""]
[null,null,null,null,null,null,null,null,null,null,null,null,null,null,null,""]
[null,null,null,null,null,null,null,null,null,null,null,null,null,null,null,""]
[null,null,null,null,null,null,null,null,null,null,null,null,null,null,null,""]
[null,null,null,null,null,null,null,null,null,null,null,null,null,null,null,""]
[null,null,null,null,null,null,null,null,null,null,null,null,null,null,null,null,{"$f":"SUM(R84:S118)","v":0},null,null,null,null,null,null,null,null,null,null,null,"Summen:",{"$f":"SUM(AD84:AH118)","v":0}]
["Ausgabenposition 1.4 (Personalunterstützung durch Dritte)"]
[]
["Name, Vorname",null,null,null,null,"Beschäftigt bei  / \nBetriebsinhaber/in von",null,null,null,null,null,"Im Projekt \neingesetzt\nvom",null,"Im Projekt \neingesetzt\nbis",null,"Monate im Projekt",null,"Stundensatz je Zeitstunde",null,null,"Zeitstunden im Projekt",null,null,"Geplante Anzahl  der Netzwerktreffen \n(mind. 3)",null,null,null,"Anmerkungen / Erläuterungen\n(Projektaufgaben und Einsatz im Projekt):",null,null,null,null,null,null,null,null,null,null,null,"Gesamt"]
[]
[null,null,null,null,null,null,null,null,null,null,null,null,null,null,null,{"$f":"IF(A124=\"\",\"\",ROUND(((DATEDIF(L124,N124,\"d\")+1)*12/365),1))","v":""},null,24,null,null,null,null,null,null,null,null,null,null,null,null,null,null,null,null,null,null,null,null,null,{"$f":"IF(X124=\"\",\"\",IF(X124<3,\"nicht zuwendungsfähig\",R124*U124))","v":""}]
[null,null,null,null,null,null,null,null,null,null,null,null,null,null,null,{"$f":"IF(A125=\"\",\"\",ROUND(((DATEDIF(L125,N125,\"d\")+1)*12/365),1))","v":""},null,24,null,null,null,null,null,null,null,null,null,null,null,null,null,null,null,null,null,null,null,null,null,{"$f":"IF(X125=\"\",\"\",IF(X125<3,\"nicht zuwendungsfähig\",R125*U125))","v":""}]
[null,null,null,null,null,null,null,null,null,null,null,null,null,null,null,{"$f":"IF(A126=\"\",\"\",ROUND(((DATEDIF(L126,N126,\"d\")+1)*12/365),1))","v":""},null,24,null,null,null,null,null,null,null,null,null,null,null,null,null,null,null,null,null,null,null,null,null,""]
[null,null,null,null,null,null,null,null,null,null,null,null,null,null,null,"",null,24,null,null,null,null,null,null,null,null,null,null,null,null,null,null,null,null,null,null,null,null,null,""]
[null,null,null,null,null,null,null,null,null,null,null,null,null,null,null,"",null,24,null,null,null,null,null,null,null,null,null,null,null,null,null,null,null,null,null,null,null,null,null,""]
[null,null,null,null,null,null,null,null,null,null,null,null,null,null,null,"",null,24,null,null,null,null,null,null,null,null,null,null,null,null,null,null,null,null,null,null,null,null,null,""]
[null,null,null,null,null,null,null,null,null,null,null,null,null,null,null,"",null,24,null,null,null,null,null,null,null,null,null,null,null,null,null,null,null,null,null,null,null,null,null,""]
[null,null,null,null,null,null,null,null,null,null,null,null,null,null,null,"",null,24,null,null,null,null,null,null,null,null,null,null,null,null,null,null,null,null,null,null,null,null,null,""]
[null,null,null,null,null,null,null,null,null,null,null,null,null,null,null,"",null,24,null,null,null,null,null,null,null,null,null,null,null,null,null,null,null,null,null,null,null,null,null,""]
[null,null,null,null,null,null,null,null,null,null,null,null,null,null,null,"",null,24,null,null,null,null,null,null,null,null,null,null,null,null,null,null,null,null,null,null,null,null,null,""]
[null,null,null,null,null,null,null,null,null,null,null,null,null,null,null,"",null,24,null,null,null,null,null,null,null,null,null,null,null,null,null,null,null,null,null,null,null,null,null,""]
[null,null,null,null,null,null,null,null,null,null,null,null,null,null,null,"",null,24,null,null,null,null,null,null,null,null,null,null,null,null,null,null,null,null,null,null,null,null,null,""]
[null,null,null,null,null,null,null,null,null,null,null,null,null,null,null,"",null,24,null,null,null,null,null,null,null,null,null,null,null,null,null,null,null,null,null,null,null,null,null,""]
[null,null,null,null,null,null,null,null,null,null,null,null,null,null,null,"",null,24,null,null,null,null,null,null,null,null,null,null,null,null,null,null,null,null,null,null,null,null,null,""]
[null,null,null,null,null,null,null,null,null,null,null,null,null,null,null,"",null,24,null,null,null,null,null,null,null,null,null,null,null,null,null,null,null,null,null,null,null,null,null,""]
[null,null,null,null,null,null,null,null,null,null,null,null,null,null,null,"",null,24,null,null,null,null,null,null,null,null,null,null,null,null,null,null,null,null,null,null,null,null,null,""]
[null,null,null,null,null,null,null,null,null,null,null,null,null,null,null,"",null,24,null,null,null,null,null,null,null,null,null,null,null,null,null,null,null,null,null,null,null,null,null,""]
[null,null,null,null,null,null,null,null,null,null,null,null,null,null,null,"",null,24,null,null,null,null,null,null,null,null,null,null,null,null,null,null,null,null,null,null,null,null,null,""]
[null,null,null,null,null,null,null,null,null,null,null,null,null,null,null,"",null,24,null,null,null,null,null,null,null,null,null,null,null,null,null,null,null,null,null,null,null,null,null,""]
[null,null,null,null,null,null,null,null,null,null,null,null,null,null,null,"",null,24,null,null,null,null,null,null,null,null,null,null,null,null,null,null,null,null,null,null,null,null,null,""]
[null,null,null,null,null,null,null,null,null,null,null,null,null,null,null,"",null,24,null,null,null,null,null,null,null,null,null,null,null,null,null,null,null,null,null,null,null,null,null,""]
[null,null,null,null,null,null,null,null,null,null,null,null,null,null,null,"",null,24,null,null,null,null,null,null,null,null,null,null,null,null,null,null,null,null,null,null,null,null,null,""]
[null,null,null,null,null,null,null,null,null,null,null,null,null,null,null,"",null,24,null,null,null,null,null,null,null,null,null,null,null,null,null,null,null,null,null,null,null,null,null,""]
[null,null,null,null,null,null,null,null,null,null,null,null,null,null,null,"",null,24,null,null,null,null,null,null,null,null,null,null,null,null,null,null,null,null,null,null,null,null,null,""]
[null,null,null,null,null,null,null,null,null,null,null,null,null,null,null,"",null,24,null,null,null,null,null,null,null,null,null,null,null,null,null,null,null,null,null,null,null,null,null,""]
[null,null,null,null,null,null,null,null,null,null,null,null,null,null,null,"",null,24,null,null,null,null,null,null,null,null,null,null,null,null,null,null,null,null,null,null,null,null,null,""]
[null,null,null,null,null,null,null,null,null,null,null,null,null,null,null,"",null,24,null,null,null,null,null,null,null,null,null,null,null,null,null,null,null,null,null,null,null,null,null,""]
[null,null,null,null,null,null,null,null,null,null,null,null,null,null,null,"",null,24,null,null,null,null,null,null,null,null,null,null,null,null,null,null,null,null,null,null,null,null,null,""]
[null,null,null,null,null,null,null,null,null,null,null,null,null,null,null,"",null,24,null,null,null,null,null,null,null,null,null,null,null,null,null,null,null,null,null,null,null,null,null,""]
[null,null,null,null,null,null,null,null,null,null,null,null,null,null,null,"",null,24,null,null,null,null,null,null,null,null,null,null,null,null,null,null,null,null,null,null,null,null,null,""]
[null,null,null,null,null,null,null,null,null,null,null,null,null,null,null,{"$f":"IF(A154=\"\",\"\",ROUND(((DATEDIF(L154,N154,\"d\")+1)*12/365),1))","v":""},null,24,null,null,null,null,null,null,null,null,null,null,null,null,null,null,null,null,null,null,null,null,null,""]
[null,null,null,null,null,null,null,null,null,null,null,null,null,null,null,{"$f":"IF(A155=\"\",\"\",ROUND(((DATEDIF(L155,N155,\"d\")+1)*12/365),1))","v":""},null,24,null,null,null,null,null,null,null,null,null,null,null,null,null,null,null,null,null,null,null,null,null,""]
[null,null,null,null,null,null,null,null,null,null,null,null,null,null,null,{"$f":"IF(A156=\"\",\"\",ROUND(((DATEDIF(L156,N156,\"d\")+1)*12/365),1))","v":""},null,24,null,null,null,null,null,null,null,null,null,null,null,null,null,null,null,null,null,null,null,null,null,""]
[null,null,null,null,null,null,null,null,null,null,null,null,null,null,null,"",null,24,null,null,null,null,null,null,null,null,null,null,null,null,null,null,null,null,null,null,null,null,null,""]
[null,null,null,null,null,null,null,null,null,null,null,null,null,null,null,"",null,24,null,null,null,null,null,null,null,null,null,null,null,null,null,null,null,null,null,null,null,null,null,""]
[null,null,null,null,null,null,null,null,null,null,null,null,null,null,null,"",null,24,null,null,null,null,null,null,null,null,null,null,null,null,null,null,null,null,null,null,null,null,null,""]
[null,null,null,null,null,null,null,null,null,null,null,null,null,null,null,"",null,24,null,null,null,null,null,null,null,null,null,null,null,null,null,null,null,null,null,null,null,null,null,""]
[null,null,null,null,null,null,null,null,null,null,null,null,null,null,null,"",null,24,null,null,null,null,null,null,null,null,null,null,null,null,null,null,null,null,null,null,null,null,null,""]
[null,null,null,null,null,null,null,null,null,null,null,null,null,null,null,"",null,24,null,null,null,null,null,null,null,null,null,null,null,null,null,null,null,null,null,null,null,null,null,""]
[null,null,null,null,null,null,null,null,null,null,null,null,null,null,null,"",null,24,null,null,null,null,null,null,null,null,null,null,null,null,null,null,null,null,null,null,null,null,null,""]
[null,null,null,null,null,null,null,null,null,null,null,null,null,null,null,"",null,24,null,null,null,null,null,null,null,null,null,null,null,null,null,null,null,null,null,null,null,null,null,""]
[null,null,null,null,null,null,null,null,null,null,null,null,null,null,null,"",null,24,null,null,null,null,null,null,null,null,null,null,null,null,null,null,null,null,null,null,null,null,null,""]
[null,null,null,null,null,null,null,null,null,null,null,null,null,null,null,"",null,24,null,null,null,null,null,null,null,null,null,null,null,null,null,null,null,null,null,null,null,null,null,""]
[null,null,null,null,null,null,null,null,null,null,null,null,null,null,null,"",null,24,null,null,null,null,null,null,null,null,null,null,null,null,null,null,null,null,null,null,null,null,null,""]
[null,null,null,null,null,null,null,null,null,null,null,null,null,null,null,"",null,24,null,null,null,null,null,null,null,null,null,null,null,null,null,null,null,null,null,null,null,null,null,""]
[null,null,null,null,null,null,null,null,null,null,null,null,null,null,null,"",null,24,null,null,null,null,null,null,null,null,null,null,null,null,null,null,null,null,null,null,null,null,null,""]
[null,null,null,null,null,null,null,null,null,null,null,null,null,null,null,"",null,24,null,null,null,null,null,null,null,null,null,null,null,null,null,null,null,null,null,null,null,null,null,""]
[null,null,null,null,null,null,null,null,null,null,null,null,null,null,null,"",null,24,null,null,null,null,null,null,null,null,null,null,null,null,null,null,null,null,null,null,null,null,null,""]
[null,null,null,null,null,null,null,null,null,null,null,null,null,null,null,"",null,24,null,null,null,null,null,null,null,null,null,null,null,null,null,null,null,null,null,null,null,null,null,""]
[null,null,null,null,null,null,null,null,null,null,null,null,null,null,null,"",null,24,null,null,null,null,null,null,null,null,null,null,null,null,null,null,null,null,null,null,null,null,null,""]
[null,null,null,null,null,null,null,null,null,null,null,null,null,null,null,"",null,24,null,null,null,null,null,null,null,null,null,null,null,null,null,null,null,null,null,null,null,null,null,""]
[null,null,null,null,null,null,null,null,null,null,null,null,null,null,null,"",null,24,null,null,null,null,null,null,null,null,null,null,null,null,null,null,null,null,null,null,null,null,null,""]
[null,null,null,null,null,null,null,null,null,null,null,null,null,null,null,"",null,24,null,null,null,null,null,null,null,null,null,null,null,null,null,null,null,null,null,null,null,null,null,""]
[null,null,null,null,null,null,null,null,null,null,null,null,null,null,null,"",null,24,null,null,null,null,null,null,null,null,null,null,null,null,null,null,null,null,null,null,null,null,null,""]
[null,null,null,null,null,null,null,null,null,null,null,null,null,null,null,"",null,24,null,null,null,null,null,null,null,null,null,null,null,null,null,null,null,null,null,null,null,null,null,""]
[null,null,null,null,null,null,null,null,null,null,null,null,null,null,null,"",null,24,null,null,null,null,null,null,null,null,null,null,null,null,null,null,null,null,null,null,null,null,null,""]
[null,null,null,null,null,null,null,null,null,null,null,null,null,null,null,"",null,24,null,null,null,null,null,null,null,null,null,null,null,null,null,null,null,null,null,null,null,null,null,""]
[null,null,null,null,null,null,null,null,null,null,null,null,null,null,null,"",null,24,null,null,null,null,null,null,null,null,null,null,null,null,null,null,null,null,null,null,null,null,null,""]
[null,null,null,null,null,null,null,null,null,null,null,null,null,null,null,"",null,24,null,null,null,null,null,null,null,null,null,null,null,null,null,null,null,null,null,null,null,null,null,""]
[null,null,null,null,null,null,null,null,null,null,null,null,null,null,null,"",null,24,null,null,null,null,null,null,null,null,null,null,null,null,null,null,null,null,null,null,null,null,null,""]
[null,null,null,null,null,null,null,null,null,null,null,null,null,null,null,{"$f":"IF(A184=\"\",\"\",ROUND(((DATEDIF(L184,N184,\"d\")+1)*12/365),1))","v":""},null,24,null,null,null,null,null,null,null,null,null,null,null,null,null,null,null,null,null,null,null,null,null,""]
[null,null,null,null,null,null,null,null,null,null,null,null,null,null,null,"",null,24,null,null,null,null,null,null,null,null,null,null,null,null,null,null,null,null,null,null,null,null,null,""]
[null,null,null,null,null,null,null,null,null,null,null,null,null,null,null,"",null,24,null,null,null,null,null,null,null,null,null,null,null,null,null,null,null,null,null,null,null,null,null,""]
[null,null,null,null,null,null,null,null,null,null,null,null,null,null,null,"",null,24,null,null,null,null,null,null,null,null,null,null,null,null,null,null,null,null,null,null,null,null,null,""]
[null,null,null,null,null,null,null,null,null,null,null,null,null,null,null,"",null,24,null,null,null,null,null,null,null,null,null,null,null,null,null,null,null,null,null,null,null,null,null,""]
[null,null,null,null,null,null,null,null,null,null,null,null,null,null,null,"",null,24,null,null,null,null,null,null,null,null,null,null,null,null,null,null,null,null,null,null,null,null,null,{"$f":"IF(X189=\"\",\"\",IF(X189<3,\"nicht zuwendungsfähig\",R189*U189))","v":""}]
[null,null,null,null,null,null,null,null,null,null,null,null,null,null,null,{"$f":"IF(A190=\"\",\"\",ROUND(((DATEDIF(L190,N190,\"d\")+1)*12/365),1))","v":""},null,24,null,null,null,null,null,null,null,null,null,null,null,null,null,null,null,null,null,null,null,null,null,""]
[null,null,null,null,null,null,null,null,null,null,null,null,null,null,null,"",null,24,null,null,null,null,null,null,null,null,null,null,null,null,null,null,null,null,null,null,null,null,null,""]
[null,null,null,null,null,null,null,null,null,null,null,null,null,null,null,"",null,24,null,null,null,null,null,null,null,null,null,null,null,null,null,null,null,null,null,null,null,null,null,""]
[null,null,null,null,null,null,null,null,null,null,null,null,null,null,null,"",null,24,null,null,null,null,null,null,null,null,null,null,null,null,null,null,null,null,null,null,null,null,null,""]
[null,null,null,null,null,null,null,null,null,null,null,null,null,null,null,"",null,24,null,null,null,null,null,null,null,null,null,null,null,null,null,null,null,null,null,null,null,null,null,""]
[null,null,null,null,null,null,null,null,null,null,null,null,null,null,null,"",null,24,null,null,null,null,null,null,null,null,null,null,null,null,null,null,null,null,null,null,null,null,null,""]
[null,null,null,null,null,null,null,null,null,null,null,null,null,null,null,"",null,24,null,null,null,null,null,null,null,null,null,null,null,null,null,null,null,null,null,null,null,null,null,""]
[null,null,null,null,null,null,null,null,null,null,null,null,null,null,null,"",null,24,null,null,null,null,null,null,null,null,null,null,null,null,null,null,null,null,null,null,null,null,null,""]
[null,null,null,null,null,null,null,null,null,null,null,null,null,null,null,"",null,24,null,null,null,null,null,null,null,null,null,null,null,null,null,null,null,null,null,null,null,null,null,""]
[null,null,null,null,null,null,null,null,null,null,null,null,null,null,null,null,null,null,null,null,{"$f":"SUM(U124:W153)","v":0},null,null,null,null,null,null,null,null,null,null,null,null,null,null,null,"Summe:",null,null,{"$f":"SUM(AN124:AR198)","v":0}]
[]
[]
[]
[]
["  Begründung:"]
[]
[]
[]
[]
[]
[]
[]
[]
[]
[]
[]
[]
[]
[]
[]
[]
[]
[]
[]
[]
[]
[]
[]
[]
[]
[]
[]
[]
[]
[]
[]
[]
[]
[]
[]
[]
[]
["     2. Restkostenpauschale in Höhe von 25%"]
[]
[]
[]
["Summe Ausgabenpositionen 1.1 - 1.4",null,null,null,null,null,null,null,{"$f":"AD56+Z77+AD119+AN199","v":0}]
["Restkostenpauschale",null,null,null,null,null,null,null,{"$f":"ROUND(I246*0.25,2)","v":0}]
[]
[null,null,null,null,null,null,null,null,"Mit der Restkostenpauschale werden folgende Ausgaben abgedeckt: Reise- und Dienstreisekosten des Bildungspersonals, Ausgaben für Lehrgänge externer Einrichtungen, Verbrauchsgüter und Ausstattungsgegenstände, Bezüge der Vorstandsmitglieder/Geschäftsführer und Gesellschafter, ausbildungsgebundene Reise- und Dienstreiskosten des Verwaltungspersonals sowie der Vorstandsmitglieder, Geschäftsführer und Gesellschafter, Werbung für Lehrgänge, Büromaterial, allg. Dokumentationsmaterial, Post- und Fernsprechgebühren, Wasser, Gas und Strom, Steuern, Versicherungen, Ausgaben für Kinderbetreuungseinrichtungen, sonstige Verwaltungsausgaben, Mieten und Leasing für Gebäude"]
[]
[]
[]
["Gesamtausgaben",null,null,null,null,null,null,null,{"$f":"ROUND(I246+I247,2)","v":0},null,null,null,null,null,null,null,null,{"$f":"IF(I267>750000,(\"Max. Gesamtausgaben i.H.v. 750.000€ überschritten!\"),(\"\"))","v":""}]
[]
[]
[]
[]
[]
["     Einnahmen"]
[]
["Die zuwendungsfähigen Gesamtausgaben eines Projektes sind grundsätzlich um aus dem Projekt erzielte Verkaufserlöse und Erlöse zu mindern und können nicht auf die Kofinanzierung angerechnet werden. D.h. sofern in einem Projekt aus dem Verkauf im Projekt hergestellter Produkte oder aus der Erbringung entgeltlicher Dienst- oder Werkleistungen der Projektteilnehmer Erlöse erzielt werden, sind die zuwendungsfähigen Gesamtausgaben eines Projektes um eben diesen Betrag zu bereinigen."]
[]
[]
[]
["abzgl. Verkaufserlöse und Erlöse aus entgeltlichen Dienst- oder Werkleistungen"]
[null,null,null,null,null,null,null,null,null,null,null,null,null,null,null,null,null,"II. Finanzierungsquoten",null,null,null,null,null,null,null,null,null,"Erläuterungen zu der Zusammensetzung der Einnahmen (ggf. auf einem separaten Blatt weiter auszuführen):\n(Angaben zur Zusammensetzung und Herkunft der Beträge sind zwingend zu machen. Insbesondere sind hier Zweckbindung, prozentuale Ansätze, Festbeträge, etc. anzugeben (vgl. Nachrangigkeitsprinzip).)"]
["um o.g. Erlöse bereinigte zuwendungsfähige Gesamtausgaben ",null,null,null,null,null,null,null,{"$f":"I253-I265","v":0},null,null,null,null,null,null,null,null,"a) private Kofinanzierung",null,null,null,null,null,null,{"$f":"IF(L290=0,0,L272/$I$267)","v":0}]
[null,null,null,null,null,null,null,null,null,null,null,null,null,null,null,null,null," - Eigenmittel",null,null,null,null,null,null,{"$f":"IF(L290=0,0,L274/$I$267)","v":0}]
[null,null,null,null,null,null,null,null,null,null,null,null,null,null,null,null,null," - Direktbeiträge",null,null,null,null,null,null,{"$f":"IF(L290=0,0,L275/$I$267)","v":0}]
[null,"Einnahmen:",null,null,null,null,null,null,null,null,null,null,null,null,null,null,null," - Teilnehmerbeiträge",null,null,null,null,null,null,{"$f":"IF(L290=0,0,L276/$I$267)","v":0}]
[null,"A - Kofinanzierung",null,null,null,null,null,null,null,null,null,null,null,null,null,null,null," - sonstige private Mittel",null,null,null,null,null,null,{"$f":"IF(L290=0,0,L277/$I$267)","v":0}]
[null,"1.","Summe der privaten Kofinanzierung",null,null,null,null,null,null,null,null,{"$f":"SUM(L274:O277)","v":0},null,null,null,null,null,"b) öffentliche Kofinanzierung",null,null,null,null,null,null,{"$f":"IF(L290=0,0,L279/$I$267)","v":0}]
[null,null,null,null,null,null,null,null,null,null,null,null,null,null,null,null,null," - Bundesmittel, einschließlich BA",null,null,null,null,null,null,{"$f":"IF($L$290=0,0,L281/$I$267)","v":0}]
[null,"1.1","Freistellungsausgaben / Personalunterstützung durch Dritte",null,null,null,null,null,null,null,null,null,null,null,null,null,null," - Landesmittel",null,null,null,null,null,null,{"$f":"IF($L$290=0,0,L282/$I$267)","v":0}]
[null,"1.2","Direktbeiträge",null,null,null,null,null,null,null,null,null,null,null,null,null,null," - Kommunale Mittel",null,null,null,null,null,null,{"$f":"IF($L$290=0,0,L283/$I$267)","v":0}]
[null,"1.3","Teilnehmerbeiträge",null,null,null,null,null,null,null,null,null,null,null,null,null,null," - sonstige öffentliche Mittel / Einnahmen u Erlöse",null,null,null,null,null,null,{"$f":"IF($L$290=0,0,L284/$I$267)","v":0}]
[null,"1.4","sonstige private Mittel"]
[null,null,null,null,null,null,null,null,null,null,null,null,null,null,null,null,null,"c) beantragte Zuschüsse"]
[null,"2.","Summe der öffentlichen Kofinanzierung",null,null,null,null,null,null,null,null,{"$f":"SUM(L281:O284)","v":0},null,null,null,null,null," - ESF-Mittel",null,null,null,null,null,null,{"$f":"IF($L$290=0,0,L287/$I$267)","v":0}]
[]
[null,"2.1","Bundesmittel, einschließlich BA",null,null,null,null,null,null,null,null,null,null,null,null,null,null,{"$f":"IF(Y279>60%,\"Max. Förderquote von 60% überschritten! Nur im ÜR-Gebiet 70%möglich!\",\"\")","v":""}]
[null,"2.2","Landesmittel"]
[null,"2.3","Kommunale Mittel"]
[null,"2.4","sonstige öffentl. Mittel (z. B. Kammern)"]
[]
[null,"B - Möglicher Zuwendungsbetrag"]
[null,"3.","ESF-Mittel",null,null,null,null,null,null,null,null,{"$f":"I267-L272-L279","v":0}]
[]
[]
[null,"Summe der Einnahmen",null,null,null,null,null,null,null,null,null,{"$f":"L287+L279+L272","v":0}]
[]
[]
[]
[]
[]
[]
[]
[]
[]
[]
[]
[]
[]
[]
[]
[]
[]
[]
[]
[]
[]
[]
[]
[]
[]
[]
[]
[]
[]
[]
[]
[]
[]
[]
[]
[]
[]
[]
[]
[]
[]
[]
[]
[]
[]
[]
[]
[]
[]
[]
[]
[]
[]
[]
[]
[]
[]
[]
[]
[]
[]
[]
[]
[]
[]
[]
[]
[]
[]
[]
[]
[]
[]
[]
[]
[]
[]
[]
[]
[]
[]
[]
[]
[]
[]
[]
[]
[]
[]
[]
[]
[]
[]
[]
[]
[]
[]
[]
[]
[]
[]
[]
[]
[]
[]
[]
[]
[]
[]
[]
[]
[]
[]
[]
[]
[]
[]
[]
[]
[]
[]
[]
[]
[]
[]
[]
[]
[]
[]
[]
[]
[]
[]
[]
[]
[]
[]
[]
[]
[]
[]
[]
[]
[]
[]
[]
[]
[]
[]
[]
[]
[]
[]
[]
[]
[]
[]
[]
[]
[]
[]
[]
[]
[]
[]
[]
[]
[]
[]
[]
[]
[]
[]
[]
[]
[]
[]
[]
[]
[]
[]
[]
[]
[]
[]
[]
[]
[]
[]
[]
[]
[]
[]
[]
[]
[]
[]
[]
[]
[]
[]
[]
[]
[]
[]
[]
[]
[]
[]
[]
[]
[]
[]
[]
[]
[]
[]
[]
[]
[]
[]
[]
[]
[]
[]
[]
[]
[]
[]
[]
[]
[]
[]
[]
[]
[]
[]
[]
[]
[]
[]
[]
[]
[]
[]
[]
[]
[]
[]
[]
[]
[]
[]
[]
[]
[]
[]
[]
[]
[]
[]
[]
[]
[]
[]
[]
[]
[]
[]
[]
[]
[]
["Hilfstabelle"]
[]
[]
[]
[]
[]
[]
[]
["SER (Stärker entwickelte Region)"]
["ÜR (Übergangsregion)"]
[]
[]
[]
["Projektantrag"]
["1. Änderungsantrag"]
["2. Änderungsantrag"]
["3. Änderungsantrag"]
["4. Änderungsantrag"]
["5. Änderungsantrag"]
["6. Änderungsantrag"]
["7. Änderungsantrag"]
["8. Änderungsantrag"]
["9. Änderungsantrag"]
["10. Änderungsantrag"]
[]
[]
[]
["ja"]
["nein"]
["entfällt"]
[]
[]
["Erhöhung der Mobilität"]
["Wohnraum, Miete und Verpflegung"]
["Stabilisierung und Motivation im sozialen Umfeld"]
["Arbeits- und Ausbildungsaufnahme"]
["Berufliche Orientierung"]
["Personal- und Personalnebenkosten"]
["Sonstige Sachkosten"]
["Fortbildungs- und Reisekosten"]
[]
[]
[]
[{"$f":"COUNTA(L274,L275,L276,L277,L278,L281,L282,L283,L284,L285,L289,#REF!)","v":1}]
[]
["Kaufmännische- /Verwaltungstätigkeit"]
["Anleitung/Ausbildung"]
["Beratungstätigkeit"]
["Hilfstätigkeit"]
["Nicht projektbezogen"]
["Pädagogische Mitarbeit"]
["Pädagogische Leistung"]
["Projektleitung"]
["Projektmitarbeit"]
["Sozialpädagogische Betreuung"]
["Sozialpädagogische Leitung"]
["Wissenschaftliche Tätigkeit"]
["Nachbetreuung"]
[]
[]
[]
[]
[]
[]
[]
[]
["Bewilligung"]
["1. Änderungsantrag"]
["2. Änderungsantrag"]
["3. Änderungsantrag"]
["4. Änderungsantrag"]
["5. Änderungsantrag"]
["6. Änderungsantrag"]
["7. Änderungsantrag"]
["8. Änderungsantrag"]
["9. Änderungsantrag"]
["10. Änderungsantrag"]

{"sheet":"F-Plan","index":1,"n_rows":58,"n_cols":4,"rows_kept":58,"cut":false,"hidden":false,"merged":[[23,1,23,3],[18,1,18,3],[2,2,2,3],[3,2,3,3],[4,2,4,3],[5,2,5,3],[6,2,6,3],[9,1,9,3]]}
[null,"Finanzierungsplan Soziale Innovation"]
[]
[null,"Programmgebiet",{"$f":"IF('Erläuterungen Finanzierungsplan'!G5=\"\",\"\",'Erläuterungen Finanzierungsplan'!G5)","v":""}]
[null,"Antragsteller/in",{"$f":"IF('Erläuterungen Finanzierungsplan'!G6=\"\",\"\",'Erläuterungen Finanzierungsplan'!G6)","v":""}]
[null,"Projekttitel",{"$f":"IF('Erläuterungen Finanzierungsplan'!G7=\"\",\"\",'Erläuterungen Finanzierungsplan'!G7)","v":""}]
[null,"Version",{"$f":"IF('Erläuterungen Finanzierungsplan'!G8=\"\",\"\",'Erläuterungen Finanzierungsplan'!G8)","v":""}]
[null,"Antragsnummer",{"$f":"IF('Erläuterungen Finanzierungsplan'!G9=\"\",\"\",'Erläuterungen Finanzierungsplan'!G9)","v":""}]
[]
[]
[null,"Ausgaben"]
[null,"1.","Bildungs- und Beratungspersonal"]
[null,"1.1","Bezüge für eigenes und Fremdpersonal einschließlich Sozialabgaben",{"$f":"'Erläuterungen Finanzierungsplan'!AD56","v":0}]
[null,"1.2","Ausgaben für Honorarkräfte",{"$f":"'Erläuterungen Finanzierungsplan'!Z77","v":0}]
[null,"1.3","Arbeitsentgelt des Verwaltungspersonals inkl. Sozialabgaben",{"$f":"'Erläuterungen Finanzierungsplan'!AD119","v":0}]
[null,"1.4","Personalunterstützung durch Dritte",{"$f":"'Erläuterungen Finanzierungsplan'!AN199","v":0}]
[null,null,"Summe 1.1 bis 1.4",{"$f":"'Erläuterungen Finanzierungsplan'!I246","v":0}]
[null,"2.","Restkostenpauschale"]
[null,null,"Pauschal 25 % der direkten Ausgaben \n(Ziffern 1.1 + 1.2 + 1.3 + 1.4)",{"$f":"'Erläuterungen Finanzierungsplan'!I247","v":0}]
[null,"Mit der Restkostenpauschale werden folgende Ausgaben abgedeckt:  Reise- und Dienstreisekosten des Bildungspersonals, Ausgaben für Lehrgänge externer Einrichtungen, Verbrauchsgüter und Ausstattungsgegenstände, Bezüge der Vorstandsmitglieder/Geschäftsführer und Gesellschafter, ausbildungsgebundene Reise- und Dienstreisekosten des Verwaltunsgpersonals sowie der Vorstandsmitglieder, Geschäftsführer und Gesellschafter, Werbung für Lehrgänge, Büromaterial, allg. Dokumentationsmaterial, Post- und Fernsprechgebühren, Wasser, Gas und Strom, Steuern, Versicherungen, Ausgaben für Kinderbetreuungseinrichtungen, sonstige Verwaltungsausgaben, Mieten und Leasing für Gebäude"]
[null,"Summe der Ausgaben",null,{"$f":"'Erläuterungen Finanzierungsplan'!I253","v":0}]
[null,null,"Erlöse",{"$f":"'Erläuterungen Finanzierungsplan'!I265","v":0}]
[null,"Summe der reduzierten Ausgaben",null,{"$f":"'Erläuterungen Finanzierungsplan'!I267","v":0}]
[]
[null,"Einnahmen"]
[null,"A) Kofinanzierung"]
[null,"1.","Summe der privaten Kofinanzierung",{"$f":"'Erläuterungen Finanzierungsplan'!L272","v":0}]
[null,"1.1","Freistellungsausgaben / Personalunterstützung durch Dritte",{"$f":"'Erläuterungen Finanzierungsplan'!L274","v":0}]
[null,"1.2","Direktbeiträge (z.B. von Unternehmen)",{"$f":"'Erläuterungen Finanzierungsplan'!L275","v":0}]
[null,"1.3","Teilnehmerbeiträge",{"$f":"'Erläuterungen Finanzierungsplan'!L276","v":0}]
[null,"1.4","sonstige private Mittel (z.B. Eigenmittel privater Träger)",{"$f":"'Erläuterungen Finanzierungsplan'!L277","v":0}]
[null,"2.","Summe der öffentlichen Kofinanzierung",{"$f":"'Erläuterungen Finanzierungsplan'!L279","v":0}]
[null,"2.1","Bundesmittel, einschließlich BA",{"$f":"'Erläuterungen Finanzierungsplan'!L281","v":0}]
[null,"2.2","Landesmittel",{"$f":"'Erläuterungen Finanzierungsplan'!L282","v":0}]
[null,"2.3","Kommunale Mittel",{"$f":"'Erläuterungen Finanzierungsplan'!L283","v":0}]
[null,"2.4","sonstige öffentliche Mittel (z. B. Kammern, Kirchen oder Eigenmittel öffentl. Träger )",{"$f":"'Erläuterungen Finanzierungsplan'!L284","v":0}]
[null,"Gesamt",null,{"$f":"'F-Plan'!D26+'F-Plan'!D31","v":0}]
[]
[null,"B) Möglicher Zuwendungsbetrag"]
[null,"3.","ESF-Mittel",{"$f":"'Erläuterungen Finanzierungsplan'!L287","v":0}]
[]
[null,"Summe der Einnahmen",null,{"$f":"'Erläuterungen Finanzierungsplan'!L290","v":0}]
[]
[null,null,"II. Finanzierungsquoten"]
[null,null,"a) private Kofinanzierung ",{"$f":"'Erläuterungen Finanzierungsplan'!Y267","v":0}]
[null,null," - Eigenmittel",0]
[null,null," - Direktbeiträge",{"$f":"'Erläuterungen Finanzierungsplan'!Y269","v":0}]
[null,null," - Teilnehmerbeiträge",{"$f":"'Erläuterungen Finanzierungsplan'!Y270","v":0}]
[null,null," - sonstige private Mittel",{"$f":"'Erläuterungen Finanzierungsplan'!Y271+'Erläuterungen Finanzierungsplan'!Y268","v":0}]
[null,null,"b) öffentliche Kofinanzierung",{"$f":"'Erläuterungen Finanzierungsplan'!Y272","v":0}]
[null,null," - Bundesmittel, einschließlich BA",{"$f":"'Erläuterungen Finanzierungsplan'!Y273","v":0}]
[null,null," - Landesmittel",{"$f":"'Erläuterungen Finanzierungsplan'!Y274","v":0}]
[null,null," - Kommunale Mittel",{"$f":"'Erläuterungen Finanzierungsplan'!Y275","v":0}]
[null,null," - sonstige öffentliche Mittel inkl. Einnahmen",{"$f":"'Erläuterungen Finanzierungsplan'!Y276","v":0}]
[null,null,"III. Bemessungsgrenzen"]
[null,null,"Förderquote ESF (max. 60% SER / 70 % ÜR)",{"$f":"'Erläuterungen Finanzierungsplan'!Y279","v":0}]
[]
[null,null,{"$f":"IF(D41=D22, \"\",\"Fehler! Finanzierungsplan nicht ausgeglichen\")","v":""}]
[null,null,{"$f":"IF(D55>60%, (\"Max. Förderquote von 60% überschritten\"),(\"\"))","v":""}]

{"sheet":"Prüfung","index":2,"n_rows":577,"n_cols":49,"rows_kept":577,"cut":false,"hidden":true,"merged":[[41,53,42,73],[80,31,80,35],[80,68,80,73],[61,48,61,52],[62,48,62,52],[63,48,63,52],[64,48,64,52],[65,48,65,52],[66,48,66,52],[67,48,67,52],[68,48,68,52],[69,48,69,52],[70,48,70,52],[71,48,71,52],[72,48,72,52],[73,48,73,52],[74,48,74,52],[75,48,75,52],[64,42,64,47],[65,42,65,47],[66,42,66,47],[67,42,67,47],[68,42,68,47],[69,42,69,47],[70,42,70,47],[71,42,71,47],[72,42,72,47],[73,42,73,47],[57,42,57,47],[58,42,58,47],[59,42,59,47],[60,42,60,47],[61,42,61,47],[62,42,62,47],[63,42,63,47],[48,48,48,52],[49,48,49,52],[50,48,50,52],[51,48,51,52],[52,48,52,52],[53,48,53,52],[54,48,54,52],[55,48,55,52],[56,48,56,52],[57,48,57,52],[58,48,58,52],[59,48,59,52],[60,48,60,52],[78,48,78,52],[78,42,78,47],[75,42,75,47],[76,42,76,47],[77,42,77,47],[79,48,79,52],[76,48,76,52],[77,48,77,52],[71,68,71,73],[72,68,72,73],[73,68,73,73],[74,68,74,73],[75,68,75,73],[76,68,76,73],[77,68,77,73],[78,68,78,73],[79,68,79,73],[45,36,45,41],[46,36,46,41],[47,36,47,41],[48,36,48,41],[49,36,49,41],[50,36,50,41],[51,36,51,41],[52,36,52,41],[53,36,53,41],[54,36,54,41],[55,36,55,41],[56,36,56,41],[57,36,57,41],[58,36,58,41],[59,36,59,41],[60,36,60,41],[61,36,61,41],[62,36,62,41],[63,36,63,41],[64,36,64,41],[67,36,67,41],[68,36,68,41],[69,36,69,41],[74,63,74,67],[75,63,75,67],[76,63,76,67],[77,63,77,67],[78,63,78,67],[79,63,79,67],[45,68,45,73],[46,68,46,73],[47,68,47,73],[48,68,48,73],[49,68,49,73],[50,68,50,73],[51,68,51,73],[52,68,52,73],[53,68,53,73],[54,68,54,73],[55,68,55,73],[56,68,56,73],[57,68,57,73],[58,68,58,73],[59,68,59,73],[60,68,60,73],[61,68,61,73],[62,68,62,73],[63,68,63,73],[64,68,64,73],[65,68,65,73],[66,68,66,73],[67,68,67,73],[68,68,68,73],[69,68,69,73],[70,68,70,73],[77,59,77,62],[78,59,78,62],[79,59,79,62],[45,63,45,67],[46,63,46,67],[47,63,47,67],[48,63,48,67],[49,63,49,67],[50,63,50,67],[51,63,51,67],[52,63,52,67],[53,63,53,67],[54,63,54,67],[55,63,55,67],[56,63,56,67],[57,63,57,67],[58,63,58,67],[59,63,59,67],[60,63,60,67],[61,63,61,67],[62,63,62,67],[63,63,63,67],[64,63,64,67],[65,63,65,67],[66,63,66,67],[67,63,67,67],[68,63,68,67],[69,63,69,67],[70,63,70,67],[71,63,71,67],[72,63,72,67],[73,63,73,67],[59,59,59,62],[60,59,60,62],[61,59,61,62],[62,59,62,62],[63,59,63,62],[64,59,64,62],[65,59,65,62],[66,59,66,62],[67,59,67,62],[68,59,68,62],[69,59,69,62],[70,59,70,62],[71,59,71,62],[72,59,72,62],[73,59,73,62],[74,59,74,62],[75,59,75,62],[59,55,59,58],[60,55,60,58],[61,55,61,58],[62,55,62,58],[63,55,63,58],[64,55,64,58],[65,55,65,58],[66,55,66,58],[67,55,67,58],[68,55,68,58],[69,55,69,58],[70,55,70,58],[71,55,71,58],[72,55,72,58],[73,55,73,58],[74,55,74,58],[75,55,75,58],[43,59,44,62],[43,63,44,67],[43,68,44,73],[45,55,45,58],[46,55,46,58],[47,55,47,58],[48,55,48,58],[49,55,49,58],[50,55,50,58],[51,55,51,58],[52,55,52,58],[53,55,53,58],[54,55,54,58],[55,55,55,58],[56,55,56,58],[57,55,57,58],[58,55,58,58],[45,59,45,62],[46,59,46,62],[47,59,47,62],[48,59,48,62],[49,59,49,62],[50,59,50,62],[51,59,51,62],[52,59,52,62],[53,59,53,62],[54,59,54,62],[55,59,55,62],[56,59,56,62],[57,59,57,62],[58,59,58,62],[53,53,53,54],[54,53,54,54],[48,20,48,21],[49,18,49,19],[55,53,55,54],[56,53,56,54],[45,42,45,47],[46,42,46,47],[47,42,47,47],[48,42,48,47],[49,42,49,47],[50,42,50,47],[51,42,51,47],[52,42,52,47],[53,42,53,47],[54,42,54,47],[55,42,55,47],[56,42,56,47],[45,48,45,52],[46,48,46,52],[47,48,47,52],[48,24,48,29],[49,24,49,29],[50,24,50,29],[51,24,51,29],[52,24,52,29],[46,18,46,19],[46,20,46,21],[43,36,44,41],[43,42,44,47],[43,48,44,52],[43,53,44,54],[43,55,44,58],[45,53,45,54],[46,53,46,54],[47,53,47,54],[48,53,48,54],[49,53,49,54],[50,53,50,54],[51,53,51,54],[52,53,52,54],[228,20,229,22],[228,23,229,25],[228,26,229,29],[294,30,294,33],[294,20,294,22],[57,53,57,54],[58,53,58,54],[59,53,59,54],[60,53,60,54],[61,53,61,54],[62,53,62,54],[63,53,63,54],[176,53,176,54],[176,55,176,58],[174,22,174,23],[174,24,174,29],[182,42,182,47],[182,48,182,52],[182,53,182,54],[13,15,13,16],[13,18,13,20],[13,22,13,24],[43,30,44,30],[43,31,44,35],[45,31,45,35],[46,31,46,35],[47,31,47,35],[48,31,48,35],[49,31,49,35],[50,31,50,35],[51,31,51,35],[52,31,52,35],[53,31,53,35],[63,16,63,17],[54,31,54,35],[43,24,44,29],[45,24,45,29],[46,24,46,29],[47,24,47,29],[63,20,63,21],[24,1,27,31],[45,22,45,23],[46,7,46,8],[46,9,46,10],[47,22,47,23],[43,7,44,8],[43,9,44,10],[60,22,60,23],[59,24,59,29],[60,24,60,29],[57,20,57,21],[176,59,176,62],[308,1,323,31],[365,0,366,8],[365,9,366,13],[220,1,220,7],[220,8,220,11],[228,30,229,33],[230,0,230,4],[55,31,55,35],[56,31,56,35],[57,31,57,35],[58,31,58,35],[59,31,59,35],[60,31,60,35],[61,31,61,35],[62,31,62,35],[63,31,63,35],[64,31,64,35],[65,31,65,35],[66,31,66,35],[67,31,67,35],[68,31,68,35],[69,31,69,35],[70,31,70,35],[79,31,79,35],[77,31,77,35],[78,31,78,35],[55,24,55,29],[228,16,229,17],[228,18,229,19],[291,20,291,22],[182,36,182,41],[182,55,182,58],[182,59,182,62],[183,36,183,41],[183,42,183,47],[183,48,183,52],[183,53,183,54],[183,55,183,58],[183,59,183,62],[176,24,176,29],[176,22,176,23],[177,31,177,35],[287,16,287,17],[288,16,288,17],[289,16,289,17],[290,16,290,17],[274,16,274,17],[275,16,275,17],[276,16,276,17],[277,16,277,17],[278,16,278,17],[279,16,279,17],[280,16,280,17],[189,20,189,21],[193,22,193,23],[193,24,193,29],[194,22,194,23],[194,24,194,29],[190,22,190,23],[190,24,190,29],[191,22,191,23],[191,24,191,29],[196,20,196,21],[305,30,305,33],[294,23,294,25],[295,23,295,25],[300,16,300,17],[283,0,283,4],[284,0,284,4],[285,0,285,4],[286,0,286,4],[287,0,287,4],[288,0,288,4],[289,0,289,4],[290,0,290,4],[283,5,283,10],[284,5,284,10],[285,5,285,10],[284,16,284,17],[285,16,285,17],[286,16,286,17],[295,20,295,22],[296,20,296,22],[297,20,297,22],[301,26,301,29],[300,20,300,22],[301,20,301,22],[302,20,302,22],[303,20,303,22],[304,20,304,22],[296,23,296,25],[303,26,303,29],[303,18,303,19],[302,16,302,17],[303,16,303,17],[194,20,194,21],[189,31,189,35],[197,24,197,29],[195,9,195,10],[291,23,291,25],[291,30,291,33],[189,22,189,23],[304,26,304,29],[296,26,296,29],[294,16,294,17],[294,5,294,10],[295,0,295,4],[302,0,302,4],[300,30,300,33],[301,30,301,33],[302,30,302,33],[303,30,303,33],[304,30,304,33],[292,18,292,19],[292,20,292,22],[298,20,298,22],[299,20,299,22],[292,0,292,4],[292,5,292,10],[302,23,302,25],[303,23,303,25],[304,23,304,25],[295,30,295,33],[296,30,296,33],[297,30,297,33],[298,30,298,33],[299,30,299,33],[183,68,183,73],[184,53,184,54],[184,55,184,58],[184,59,184,62],[184,63,184,67],[184,68,184,73],[184,36,184,41],[281,0,281,4],[258,5,258,10],[259,5,259,10],[279,5,279,10],[267,16,267,17],[268,16,268,17],[269,16,269,17],[270,16,270,17],[271,16,271,17],[272,16,272,17],[255,0,255,4],[256,0,256,4],[274,0,274,4],[275,0,275,4],[276,0,276,4],[277,0,277,4],[278,0,278,4],[279,0,279,4],[280,0,280,4],[189,0,189,4],[189,5,189,6],[198,12,198,17],[198,18,198,23],[198,24,198,29],[198,30,198,35],[198,36,198,41],[197,22,197,23],[197,18,197,19],[197,20,197,21],[197,11,197,13],[196,18,196,19],[389,44,389,57],[390,44,390,57],[391,24,391,57],[369,18,370,37],[291,5,291,10],[291,11,291,15],[291,18,291,19],[303,0,303,4],[304,0,304,4],[305,26,305,29],[296,0,296,4],[297,0,297,4],[297,26,297,29],[298,0,298,4],[298,26,298,29],[299,0,299,4],[299,26,299,29],[300,0,300,4],[300,26,300,29],[301,0,301,4],[304,16,304,17],[297,23,297,25],[298,23,298,25],[299,23,299,25],[300,23,300,25],[301,23,301,25],[192,24,192,29],[192,22,192,23],[196,31,196,35],[196,36,196,41],[216,1,216,7],[216,8,216,11],[217,1,217,7],[194,0,194,4],[299,11,299,15],[300,11,300,15],[301,11,301,15],[302,11,302,15],[303,11,303,15],[300,42,300,51],[301,38,301,41],[302,38,302,41],[303,38,303,41],[193,31,193,35],[193,36,193,41],[193,42,193,47],[193,48,193,52],[221,1,221,7],[221,8,221,11],[222,1,222,7],[222,8,222,11],[269,0,269,4],[270,0,270,4],[271,0,271,4],[272,0,272,4],[273,0,273,4],[195,11,195,13],[202,1,212,42],[196,22,196,23],[196,24,196,29],[198,0,198,6],[198,7,198,11],[195,14,195,15],[195,16,195,17],[195,18,195,19],[195,20,195,21],[195,22,195,23],[195,24,195,29],[342,20,342,28],[341,29,341,35],[217,8,217,11],[218,1,218,7],[218,8,218,11],[219,1,219,7],[219,8,219,11],[199,13,199,15],[199,19,199,21],[199,22,199,24],[199,25,199,27],[199,28,199,30],[199,31,199,33],[329,1,329,7],[329,8,329,11],[330,1,330,7],[330,8,330,11],[331,1,331,7],[331,8,331,11],[337,0,337,15],[341,14,341,15],[302,18,302,19],[199,46,199,48],[304,11,304,15],[295,5,295,10],[296,5,296,10],[297,5,297,10],[298,5,298,10],[299,5,299,10],[300,5,300,10],[301,5,301,10],[302,5,302,10],[282,0,282,4],[303,5,303,10],[304,5,304,10],[294,0,294,4],[228,0,229,4],[228,5,229,10],[228,11,229,15],[304,42,304,51],[226,0,226,12],[291,0,291,4],[291,16,291,17],[292,23,292,25],[292,30,292,33],[294,18,294,19],[295,18,295,19],[296,18,296,19],[297,18,297,19],[298,18,298,19],[299,18,299,19],[300,18,300,19],[301,18,301,19],[214,1,214,7],[340,0,340,8],[340,10,340,12],[341,10,341,12],[341,0,341,8],[341,20,341,28],[296,11,296,15],[297,11,297,15],[292,11,292,15],[292,16,292,17],[342,29,342,35],[339,18,340,37],[341,18,344,19],[343,20,344,37],[293,0,293,4],[293,5,293,10],[293,11,293,15],[293,16,293,17],[293,18,293,19],[293,20,293,22],[293,23,293,25],[293,30,293,33],[294,11,294,15],[295,11,295,15],[303,34,303,37],[304,34,304,37],[304,18,304,19],[295,16,295,17],[296,16,296,17],[297,16,297,17],[298,16,298,17],[299,16,299,17],[301,16,301,17],[293,26,293,29],[294,26,294,29],[295,26,295,29],[302,26,302,29],[305,34,305,37],[298,11,298,15],[341,36,342,37],[194,5,194,6],[194,7,194,8],[194,9,194,10],[194,11,194,13],[194,14,194,15],[164,0,164,4],[164,5,164,6],[164,7,164,8],[164,9,164,10],[164,11,164,13],[164,14,164,15],[164,16,164,17],[164,18,164,19],[164,20,164,21],[180,22,180,23],[180,24,180,29],[177,22,177,23],[177,24,177,29],[178,22,178,23],[178,24,178,29],[186,22,186,23],[186,24,186,29],[188,20,188,21],[187,7,187,8],[187,9,187,10],[185,24,185,29],[181,22,181,23],[181,24,181,29],[182,22,182,23],[182,24,182,29],[188,22,188,23],[188,24,188,29],[189,24,189,29],[187,22,187,23],[187,24,187,29],[185,22,185,23],[188,16,188,17],[188,18,188,19],[184,14,184,15],[184,16,184,17],[184,18,184,19],[184,20,184,21],[183,22,183,23],[183,24,183,29],[189,16,189,17],[189,18,189,19],[189,14,189,15],[182,16,182,17],[182,18,182,19],[182,20,182,21],[184,22,184,23],[184,24,184,29],[187,16,187,17],[187,18,187,19],[187,20,187,21],[192,20,192,21],[193,5,193,6],[193,7,193,8],[193,9,193,10],[190,0,190,4],[190,5,190,6],[163,0,163,4],[163,5,163,6],[163,7,163,8],[163,9,163,10],[188,14,188,15],[190,7,190,8],[190,9,190,10],[190,11,190,13],[190,14,190,15],[190,16,190,17],[190,18,190,19],[190,20,190,21],[188,0,188,4],[188,5,188,6],[188,7,188,8],[188,9,188,10],[188,11,188,13],[189,7,189,8],[189,9,189,10],[189,11,189,13],[186,16,186,17],[186,18,186,19],[186,20,186,21],[187,5,187,6],[187,11,187,13],[187,14,187,15],[194,16,194,17],[194,18,194,19],[195,7,195,8],[163,16,163,17],[163,18,163,19],[195,0,195,4],[195,5,195,6],[193,11,193,13],[193,14,193,15],[193,16,193,17],[193,18,193,19],[193,20,193,21],[193,0,193,4],[192,0,192,4],[192,5,192,6],[192,7,192,8],[192,9,192,10],[192,11,192,13],[192,14,192,15],[192,16,192,17],[192,18,192,19],[182,0,182,4],[182,5,182,6],[182,7,182,8],[182,9,182,10],[182,11,182,13],[182,14,182,15],[175,9,175,10],[175,11,175,13],[175,14,175,15],[175,16,175,17],[178,0,178,4],[172,22,172,23],[172,24,172,29],[169,24,169,29],[184,0,184,4],[184,5,184,6],[184,7,184,8],[184,9,184,10],[184,11,184,13],[181,0,181,4],[181,5,181,6],[181,7,181,8],[181,9,181,10],[181,11,181,13],[181,14,181,15],[181,16,181,17],[181,18,181,19],[181,20,181,21],[180,0,180,4],[180,5,180,6],[180,7,180,8],[180,9,180,10],[180,11,180,13],[180,14,180,15],[180,16,180,17],[175,5,175,6],[175,7,175,8],[180,18,180,19],[180,20,180,21],[173,22,173,23],[173,24,173,29],[179,22,179,23],[179,24,179,29],[178,5,178,6],[178,7,178,8],[178,9,178,10],[178,11,178,13],[178,14,178,15],[178,16,178,17],[178,18,178,19],[178,20,178,21],[177,0,177,4],[176,5,176,6],[162,0,162,4],[162,5,162,6],[162,7,162,8],[162,20,162,21],[173,0,173,4],[173,5,173,6],[173,7,173,8],[172,16,172,17],[172,18,172,19],[172,20,172,21],[162,22,162,23],[162,24,162,29],[169,0,169,4],[169,5,169,6],[169,7,169,8],[171,5,171,6],[163,24,163,29],[164,22,164,23],[164,24,164,29],[165,22,165,23],[165,24,165,29],[170,22,170,23],[170,24,170,29],[171,22,171,23],[171,24,171,29],[166,24,166,29],[169,22,169,23],[121,20,121,22],[126,18,126,19],[172,7,172,8],[172,9,172,10],[172,11,172,13],[172,14,172,15],[124,20,124,22],[170,14,170,15],[167,9,167,10],[167,11,167,13],[167,14,167,15],[167,16,167,17],[167,18,167,19],[167,20,167,21],[166,22,166,23],[128,5,128,10],[126,5,126,10],[160,16,161,17],[160,18,161,19],[160,20,161,21],[168,22,168,23],[154,8,154,11],[160,5,161,6],[169,20,169,21],[170,18,170,19],[162,9,162,10],[162,11,162,13],[172,5,172,6],[167,5,167,6],[171,9,171,10],[171,11,171,13],[163,22,163,23],[577,0,577,5],[183,0,183,4],[183,5,183,6],[183,7,183,8],[183,9,183,10],[183,11,183,13],[183,14,183,15],[183,16,183,17],[183,18,183,19],[183,20,183,21],[124,23,124,25],[125,23,125,25],[128,23,128,25],[128,20,128,22],[125,20,125,22],[396,24,396,31],[400,14,400,17],[396,2,396,13],[398,14,398,17],[403,2,403,13],[403,14,403,17],[177,18,177,19],[177,20,177,21],[170,20,170,21],[168,20,168,21],[163,20,163,21],[177,7,177,8],[177,9,177,10],[177,11,177,13],[177,14,177,15],[177,16,177,17],[448,2,448,8],[122,16,122,17],[123,16,123,17],[124,16,124,17],[125,16,125,17],[123,18,123,19],[408,19,408,22],[441,21,442,24],[446,0,446,2],[448,21,448,27],[426,0,438,27],[235,0,235,4],[236,0,236,4],[239,0,239,4],[240,0,240,4],[241,0,241,4],[242,0,242,4],[243,0,243,4],[124,14,124,15],[125,14,125,15],[126,14,126,15],[127,16,127,17],[129,23,129,25],[129,5,129,10],[125,11,125,13],[126,11,126,13],[127,11,127,13],[128,11,128,13],[169,9,169,10],[170,9,170,10],[170,11,170,13],[163,11,163,13],[163,14,163,15],[441,0,442,20],[127,23,127,25],[127,26,127,29],[128,18,128,19],[179,0,179,4],[179,5,179,6],[179,7,179,8],[179,9,179,10],[128,26,128,29],[129,26,129,29],[191,0,191,4],[191,5,191,6],[409,19,409,22],[168,24,168,29],[175,0,175,4],[160,0,161,4],[175,18,175,19],[175,20,175,21],[174,18,174,19],[174,20,174,21],[175,22,175,23],[174,14,174,15],[176,16,176,17],[176,18,176,19],[176,20,176,21],[160,24,161,29],[167,22,167,23],[167,24,167,29],[170,0,170,4],[170,5,170,6],[170,7,170,8],[403,18,403,21],[392,44,392,57],[393,44,393,57],[394,32,394,35],[395,32,395,35],[396,32,396,35],[392,32,392,35],[125,26,125,29],[409,15,409,18],[165,20,165,21],[175,24,175,29],[259,11,259,15],[260,11,260,15],[261,11,261,15],[262,11,262,15],[263,11,263,15],[264,11,264,15],[265,11,265,15],[266,11,266,15],[267,11,267,15],[125,30,125,33],[162,14,162,15],[162,16,162,17],[162,18,162,19],[397,18,397,21],[392,24,392,31],[384,24,386,31],[384,32,386,35],[367,9,368,13],[369,9,370,13],[126,26,126,29],[234,34,234,37],[231,30,231,33],[400,18,400,21],[394,14,394,17],[396,18,396,21],[397,2,397,13],[395,24,395,31],[393,24,393,31],[401,18,402,21],[404,14,405,17],[404,18,405,21],[393,40,393,43],[397,36,398,39],[396,40,396,43],[404,1,405,13],[395,14,395,17],[392,18,393,21],[401,2,402,13]],"merged_total":3008,"flags":["merged_cut"]}
[]
[]
[null,null,null,null,null,null,null,null,null,null,"Version:",null,"2019.01",null,null,"(Stand: ","02.09.2019)"]
[]
[]
[]
[null,null,null,null,null,null,null,null,null,null,null,null,null,null,null,null,null,null,null,null,null,null,null,null,null,null,null,null,null,null,null,null,null,null,"Hinweise zur Nutzung:"]
[null,"Programmgebiet",null,null,null,null,{"$f":"IF('Erläuterungen Finanzierungsplan'!G5=\"\",\"\",'Erläuterungen Finanzierungsplan'!G5)","v":""},null,null,null,null,null,null,null,null,null,null,null,null,null,null,null,null,null,null,null,null,null,null,null,null,null,null,null,"diese Felder sind grds. auf Plausibilität zu prüfen"]
[null,"Antragsteller/in",null,null,null,null,{"$f":"IF('Erläuterungen Finanzierungsplan'!G6=\"\",\"\",'Erläuterungen Finanzierungsplan'!G6)","v":""},null,null,null,null,null,null,null,null,null,null,null,null,null,null,null,null,null,null,null,null,null,null,null,null,null,null,null,"diese Felder erfordern eine Prüfentscheidung des SB"]
[null,"Projekttitel",null,null,null,null,{"$f":"IF('Erläuterungen Finanzierungsplan'!G7=\"\",\"\",'Erläuterungen Finanzierungsplan'!G7)","v":""}]
[null,"Version"]
[null,"Antragsnummer",null,null,null,null,{"$f":"'Erläuterungen Finanzierungsplan'!G9:I9","v":0}]
[]
[null,"Projektzeitraum",null,null,null,null,"Beginn:",null,{"$f":"'Erläuterungen Finanzierungsplan'!I11","v":"00:00:00"},null,null,null,"Ende:",null,null,{"$f":"'Erläuterungen Finanzierungsplan'!N11","v":"00:00:00"},null,null,"Laufzeit:",null,null,{"$f":"'Erläuterungen Finanzierungsplan'!I13","v":""},"Monate",null,null,null,null,"Aufschlag:"]
[null,null,null,null,null,null,null,null,null,null,null,null,null,null,null,{"$f":"'Erläuterungen Finanzierungsplan'!S11","v":""}]
[null,"Bearbeitungsgrund:"]
[]
[]
[]
[]
[null,null,null,null,null,null,null,null,null,null,null,null,null,null,null,null,null,null,null,null,null,{"$f":"'Erläuterungen Finanzierungsplan'!S13","v":""}]
["Prüfung Zuwendungsfähigkeit Erläuterungen zum Finanzierungsplan"]
[]
[null,"Vorabhinweise / Besonderheiten"]
[]
[]
[]
[]
[]
[]
[]
["     1. Bildungs- und Beratungspersonal"]
[]
[null,"Umfang der Prüfung Personalausgaben"]
[]
[]
[]
[]
[]
["Ausgabenposition 1.1 (Bezüge für eigenes und fremdes Personal einschließlich Sozialabgaben)"]
[]
[]
[]
["Name, Vorname",null,null,null,null,"Wöchentliche Arbeitszeit einer Vollzeitstelle beim AG",null,"Wöchentliche vertragl. Arbeitszeit des MA",null,"Wochen-stunden des MA im Projekt",null,"Im Projekt \neingesetzt vom",null,null,"Im Projekt \neingesetzt bis",null,"Monate im Projekt",null,"Produktiv-stunden \nbeantragt",null,"Produktiv-stunden \nanerkannt",null,"bei Zuwen-dungs-\nempfänger beschäftigt",null,"Tätigkeit im Projekt",null,null,null,null,null,"Quali.nachweis liegt vor","Beantragtes AG-Brutto (Gesamt)",null,null,null,null,"Monatsarbeitnehmer-bruttoverdienst",null,null,null,null,null,"jährliche Sonderzahlung",null,null,null,null,null,"Bewilligte Gesamtausgaben ohne Ausfschlag\n\nÜbertragung aus Personaltabelle"]
[]
[{"$f":"IF('Erläuterungen Finanzierungsplan'!A21=\"\",\"\",'Erläuterungen Finanzierungsplan'!A21)","v":""},null,null,null,null,{"$f":"IF('Erläuterungen Finanzierungsplan'!F21=\"\",\"\",'Erläuterungen Finanzierungsplan'!F21)","v":""},null,{"$f":"IF('Erläuterungen Finanzierungsplan'!H21=\"\",\"\",'Erläuterungen Finanzierungsplan'!H21)","v":""},null,{"$f":"IF('Erläuterungen Finanzierungsplan'!J21=\"\",\"\",'Erläuterungen Finanzierungsplan'!J21)","v":""},null,{"$f":"IF('Erläuterungen Finanzierungsplan'!L21=\"\",\"\",'Erläuterungen Finanzierungsplan'!L21)","v":""},null,null,{"$f":"IF('Erläuterungen Finanzierungsplan'!N21=\"\",\"\",'Erläuterungen Finanzierungsplan'!N21)","v":""},null,{"$f":"'Erläuterungen Finanzierungsplan'!P21","v":""},null,{"$f":"IF('Erläuterungen Finanzierungsplan'!R21=\"\",\"\",'Erläuterungen Finanzierungsplan'!R21)","v":""},null,null,null,{"$f":"IF('Erläuterungen Finanzierungsplan'!AB21=\"\",\"\",'Erläuterungen Finanzierungsplan'!AB21)","v":""},null,{"$f":"IF('Erläuterungen Finanzierungsplan'!T21=\"\",\"\",'Erläuterungen Finanzierungsplan'!T21)","v":""},null,null,null,null,null,null,{"$f":"IF('Erläuterungen Finanzierungsplan'!A21=\"\",\"\",'Erläuterungen Finanzierungsplan'!AD21)","v":""},null,null,null,null,{"$f":"IF('Erläuterungen Finanzierungsplan'!A21=\"\",\"\",'Erläuterungen Finanzierungsplan'!AI21)","v":""},null,null,null,null,null,{"$f":"IF('Erläuterungen Finanzierungsplan'!A21=\"\",\"\",'Erläuterungen Finanzierungsplan'!AN21)","v":""}]
[{"$f":"IF('Erläuterungen Finanzierungsplan'!A22=\"\",\"\",'Erläuterungen Finanzierungsplan'!A22)","v":""},null,null,null,null,{"$f":"IF('Erläuterungen Finanzierungsplan'!F22=\"\",\"\",'Erläuterungen Finanzierungsplan'!F22)","v":""},null,{"$f":"IF('Erläuterungen Finanzierungsplan'!H22=\"\",\"\",'Erläuterungen Finanzierungsplan'!H22)","v":""},null,{"$f":"IF('Erläuterungen Finanzierungsplan'!J22=\"\",\"\",'Erläuterungen Finanzierungsplan'!J22)","v":""},null,{"$f":"IF('Erläuterungen Finanzierungsplan'!L22=\"\",\"\",'Erläuterungen Finanzierungsplan'!L22)","v":""},null,null,{"$f":"IF('Erläuterungen Finanzierungsplan'!N22=\"\",\"\",'Erläuterungen Finanzierungsplan'!N22)","v":""},null,{"$f":"'Erläuterungen Finanzierungsplan'!P22","v":""},null,{"$f":"IF('Erläuterungen Finanzierungsplan'!R22=\"\",\"\",'Erläuterungen Finanzierungsplan'!R22)","v":""},null,null,null,{"$f":"IF('Erläuterungen Finanzierungsplan'!AB22=\"\",\"\",'Erläuterungen Finanzierungsplan'!AB22)","v":""},null,{"$f":"IF('Erläuterungen Finanzierungsplan'!T22=\"\",\"\",'Erläuterungen Finanzierungsplan'!T22)","v":""},null,null,null,null,null,null,{"$f":"IF('Erläuterungen Finanzierungsplan'!A22=\"\",\"\",'Erläuterungen Finanzierungsplan'!AD22)","v":""},null,null,null,null,{"$f":"IF('Erläuterungen Finanzierungsplan'!A22=\"\",\"\",'Erläuterungen Finanzierungsplan'!AI22)","v":""},null,null,null,null,null,{"$f":"IF('Erläuterungen Finanzierungsplan'!A22=\"\",\"\",'Erläuterungen Finanzierungsplan'!AN22)","v":""}]
[{"$f":"IF('Erläuterungen Finanzierungsplan'!A23=\"\",\"\",'Erläuterungen Finanzierungsplan'!A23)","v":""},null,null,null,null,{"$f":"IF('Erläuterungen Finanzierungsplan'!F23=\"\",\"\",'Erläuterungen Finanzierungsplan'!F23)","v":""},null,{"$f":"IF('Erläuterungen Finanzierungsplan'!H23=\"\",\"\",'Erläuterungen Finanzierungsplan'!H23)","v":""},null,{"$f":"IF('Erläuterungen Finanzierungsplan'!J23=\"\",\"\",'Erläuterungen Finanzierungsplan'!J23)","v":""},null,{"$f":"IF('Erläuterungen Finanzierungsplan'!L23=\"\",\"\",'Erläuterungen Finanzierungsplan'!L23)","v":""},null,null,{"$f":"IF('Erläuterungen Finanzierungsplan'!N23=\"\",\"\",'Erläuterungen Finanzierungsplan'!N23)","v":""},null,{"$f":"'Erläuterungen Finanzierungsplan'!P23","v":""},null,{"$f":"IF('Erläuterungen Finanzierungsplan'!R23=\"\",\"\",'Erläuterungen Finanzierungsplan'!R23)","v":""},null,null,null,{"$f":"IF('Erläuterungen Finanzierungsplan'!AB23=\"\",\"\",'Erläuterungen Finanzierungsplan'!AB23)","v":""},null,{"$f":"IF('Erläuterungen Finanzierungsplan'!T23=\"\",\"\",'Erläuterungen Finanzierungsplan'!T23)","v":""},null,null,null,null,null,null,{"$f":"IF('Erläuterungen Finanzierungsplan'!A23=\"\",\"\",'Erläuterungen Finanzierungsplan'!AD23)","v":""},null,null,null,null,{"$f":"IF('Erläuterungen Finanzierungsplan'!A23=\"\",\"\",'Erläuterungen Finanzierungsplan'!AI23)","v":""},null,null,null,null,null,{"$f":"IF('Erläuterungen Finanzierungsplan'!A23=\"\",\"\",'Erläuterungen Finanzierungsplan'!AN23)","v":""}]
[{"$f":"IF('Erläuterungen Finanzierungsplan'!A24=\"\",\"\",'Erläuterungen Finanzierungsplan'!A24)","v":""},null,null,null,null,{"$f":"IF('Erläuterungen Finanzierungsplan'!F24=\"\",\"\",'Erläuterungen Finanzierungsplan'!F24)","v":""},null,{"$f":"IF('Erläuterungen Finanzierungsplan'!H24=\"\",\"\",'Erläuterungen Finanzierungsplan'!H24)","v":""},null,{"$f":"IF('Erläuterungen Finanzierungsplan'!J24=\"\",\"\",'Erläuterungen Finanzierungsplan'!J24)","v":""},null,{"$f":"IF('Erläuterungen Finanzierungsplan'!L24=\"\",\"\",'Erläuterungen Finanzierungsplan'!L24)","v":""},null,null,{"$f":"IF('Erläuterungen Finanzierungsplan'!N24=\"\",\"\",'Erläuterungen Finanzierungsplan'!N24)","v":""},null,{"$f":"'Erläuterungen Finanzierungsplan'!P24","v":""},null,{"$f":"IF('Erläuterungen Finanzierungsplan'!R24=\"\",\"\",'Erläuterungen Finanzierungsplan'!R24)","v":""},null,null,null,{"$f":"IF('Erläuterungen Finanzierungsplan'!AB24=\"\",\"\",'Erläuterungen Finanzierungsplan'!AB24)","v":""},null,{"$f":"IF('Erläuterungen Finanzierungsplan'!T24=\"\",\"\",'Erläuterungen Finanzierungsplan'!T24)","v":""},null,null,null,null,null,null,{"$f":"IF('Erläuterungen Finanzierungsplan'!A24=\"\",\"\",'Erläuterungen Finanzierungsplan'!AD24)","v":""},null,null,null,null,{"$f":"IF('Erläuterungen Finanzierungsplan'!A24=\"\",\"\",'Erläuterungen Finanzierungsplan'!AI24)","v":""},null,null,null,null,null,{"$f":"IF('Erläuterungen Finanzierungsplan'!A24=\"\",\"\",'Erläuterungen Finanzierungsplan'!AN24)","v":""}]
[{"$f":"IF('Erläuterungen Finanzierungsplan'!A25=\"\",\"\",'Erläuterungen Finanzierungsplan'!A25)","v":""},null,null,null,null,{"$f":"IF('Erläuterungen Finanzierungsplan'!F25=\"\",\"\",'Erläuterungen Finanzierungsplan'!F25)","v":""},null,{"$f":"IF('Erläuterungen Finanzierungsplan'!H25=\"\",\"\",'Erläuterungen Finanzierungsplan'!H25)","v":""},null,{"$f":"IF('Erläuterungen Finanzierungsplan'!J25=\"\",\"\",'Erläuterungen Finanzierungsplan'!J25)","v":""},null,{"$f":"IF('Erläuterungen Finanzierungsplan'!L25=\"\",\"\",'Erläuterungen Finanzierungsplan'!L25)","v":""},null,null,{"$f":"IF('Erläuterungen Finanzierungsplan'!N25=\"\",\"\",'Erläuterungen Finanzierungsplan'!N25)","v":""},null,{"$f":"'Erläuterungen Finanzierungsplan'!P25","v":""},null,{"$f":"IF('Erläuterungen Finanzierungsplan'!R25=\"\",\"\",'Erläuterungen Finanzierungsplan'!R25)","v":""},null,null,null,{"$f":"IF('Erläuterungen Finanzierungsplan'!AB25=\"\",\"\",'Erläuterungen Finanzierungsplan'!AB25)","v":""},null,{"$f":"IF('Erläuterungen Finanzierungsplan'!T25=\"\",\"\",'Erläuterungen Finanzierungsplan'!T25)","v":""},null,null,null,null,null,null,{"$f":"IF('Erläuterungen Finanzierungsplan'!A25=\"\",\"\",'Erläuterungen Finanzierungsplan'!AD25)","v":""},null,null,null,null,{"$f":"IF('Erläuterungen Finanzierungsplan'!A25=\"\",\"\",'Erläuterungen Finanzierungsplan'!AI25)","v":""},null,null,null,null,null,{"$f":"IF('Erläuterungen Finanzierungsplan'!A25=\"\",\"\",'Erläuterungen Finanzierungsplan'!AN25)","v":""}]
[{"$f":"IF('Erläuterungen Finanzierungsplan'!A26=\"\",\"\",'Erläuterungen Finanzierungsplan'!A26)","v":""},null,null,null,null,{"$f":"IF('Erläuterungen Finanzierungsplan'!F26=\"\",\"\",'Erläuterungen Finanzierungsplan'!F26)","v":""},null,{"$f":"IF('Erläuterungen Finanzierungsplan'!H26=\"\",\"\",'Erläuterungen Finanzierungsplan'!H26)","v":""},null,{"$f":"IF('Erläuterungen Finanzierungsplan'!J26=\"\",\"\",'Erläuterungen Finanzierungsplan'!J26)","v":""},null,{"$f":"IF('Erläuterungen Finanzierungsplan'!L26=\"\",\"\",'Erläuterungen Finanzierungsplan'!L26)","v":""},null,null,{"$f":"IF('Erläuterungen Finanzierungsplan'!N26=\"\",\"\",'Erläuterungen Finanzierungsplan'!N26)","v":""},null,{"$f":"'Erläuterungen Finanzierungsplan'!P26","v":""},null,{"$f":"IF('Erläuterungen Finanzierungsplan'!R26=\"\",\"\",'Erläuterungen Finanzierungsplan'!R26)","v":""},null,null,null,{"$f":"IF('Erläuterungen Finanzierungsplan'!AB26=\"\",\"\",'Erläuterungen Finanzierungsplan'!AB26)","v":""},null,{"$f":"IF('Erläuterungen Finanzierungsplan'!T26=\"\",\"\",'Erläuterungen Finanzierungsplan'!T26)","v":""},null,null,null,null,null,null,{"$f":"IF('Erläuterungen Finanzierungsplan'!A26=\"\",\"\",'Erläuterungen Finanzierungsplan'!AD26)","v":""},null,null,null,null,{"$f":"IF('Erläuterungen Finanzierungsplan'!A26=\"\",\"\",'Erläuterungen Finanzierungsplan'!AI26)","v":""},null,null,null,null,null,{"$f":"IF('Erläuterungen Finanzierungsplan'!A26=\"\",\"\",'Erläuterungen Finanzierungsplan'!AN26)","v":""}]
[{"$f":"IF('Erläuterungen Finanzierungsplan'!A27=\"\",\"\",'Erläuterungen Finanzierungsplan'!A27)","v":""},null,null,null,null,{"$f":"IF('Erläuterungen Finanzierungsplan'!F27=\"\",\"\",'Erläuterungen Finanzierungsplan'!F27)","v":""},null,{"$f":"IF('Erläuterungen Finanzierungsplan'!H27=\"\",\"\",'Erläuterungen Finanzierungsplan'!H27)","v":""},null,{"$f":"IF('Erläuterungen Finanzierungsplan'!J27=\"\",\"\",'Erläuterungen Finanzierungsplan'!J27)","v":""},null,{"$f":"IF('Erläuterungen Finanzierungsplan'!L27=\"\",\"\",'Erläuterungen Finanzierungsplan'!L27)","v":""},null,null,{"$f":"IF('Erläuterungen Finanzierungsplan'!N27=\"\",\"\",'Erläuterungen Finanzierungsplan'!N27)","v":""},null,{"$f":"'Erläuterungen Finanzierungsplan'!P27","v":""},null,{"$f":"IF('Erläuterungen Finanzierungsplan'!R27=\"\",\"\",'Erläuterungen Finanzierungsplan'!R27)","v":""},null,null,null,{"$f":"IF('Erläuterungen Finanzierungsplan'!AB27=\"\",\"\",'Erläuterungen Finanzierungsplan'!AB27)","v":""},null,{"$f":"IF('Erläuterungen Finanzierungsplan'!T27=\"\",\"\",'Erläuterungen Finanzierungsplan'!T27)","v":""},null,null,null,null,null,null,{"$f":"IF('Erläuterungen Finanzierungsplan'!A27=\"\",\"\",'Erläuterungen Finanzierungsplan'!AD27)","v":""},null,null,null,null,{"$f":"IF('Erläuterungen Finanzierungsplan'!A27=\"\",\"\",'Erläuterungen Finanzierungsplan'!AI27)","v":""},null,null,null,null,null,{"$f":"IF('Erläuterungen Finanzierungsplan'!A27=\"\",\"\",'Erläuterungen Finanzierungsplan'!AN27)","v":""}]
[{"$f":"IF('Erläuterungen Finanzierungsplan'!A28=\"\",\"\",'Erläuterungen Finanzierungsplan'!A28)","v":""},null,null,null,null,{"$f":"IF('Erläuterungen Finanzierungsplan'!F28=\"\",\"\",'Erläuterungen Finanzierungsplan'!F28)","v":""},null,{"$f":"IF('Erläuterungen Finanzierungsplan'!H28=\"\",\"\",'Erläuterungen Finanzierungsplan'!H28)","v":""},null,{"$f":"IF('Erläuterungen Finanzierungsplan'!J28=\"\",\"\",'Erläuterungen Finanzierungsplan'!J28)","v":""},null,{"$f":"IF('Erläuterungen Finanzierungsplan'!L28=\"\",\"\",'Erläuterungen Finanzierungsplan'!L28)","v":""},null,null,{"$f":"IF('Erläuterungen Finanzierungsplan'!N28=\"\",\"\",'Erläuterungen Finanzierungsplan'!N28)","v":""},null,{"$f":"'Erläuterungen Finanzierungsplan'!P28","v":""},null,{"$f":"IF('Erläuterungen Finanzierungsplan'!R28=\"\",\"\",'Erläuterungen Finanzierungsplan'!R28)","v":""},null,null,null,{"$f":"IF('Erläuterungen Finanzierungsplan'!AB28=\"\",\"\",'Erläuterungen Finanzierungsplan'!AB28)","v":""},null,{"$f":"IF('Erläuterungen Finanzierungsplan'!T28=\"\",\"\",'Erläuterungen Finanzierungsplan'!T28)","v":""},null,null,null,null,null,null,{"$f":"IF('Erläuterungen Finanzierungsplan'!A28=\"\",\"\",'Erläuterungen Finanzierungsplan'!AD28)","v":""},null,null,null,null,{"$f":"IF('Erläuterungen Finanzierungsplan'!A28=\"\",\"\",'Erläuterungen Finanzierungsplan'!AI28)","v":""},null,null,null,null,null,{"$f":"IF('Erläuterungen Finanzierungsplan'!A28=\"\",\"\",'Erläuterungen Finanzierungsplan'!AN28)","v":""}]
[{"$f":"IF('Erläuterungen Finanzierungsplan'!A29=\"\",\"\",'Erläuterungen Finanzierungsplan'!A29)","v":""},null,null,null,null,{"$f":"IF('Erläuterungen Finanzierungsplan'!F29=\"\",\"\",'Erläuterungen Finanzierungsplan'!F29)","v":""},null,{"$f":"IF('Erläuterungen Finanzierungsplan'!H29=\"\",\"\",'Erläuterungen Finanzierungsplan'!H29)","v":""},null,{"$f":"IF('Erläuterungen Finanzierungsplan'!J29=\"\",\"\",'Erläuterungen Finanzierungsplan'!J29)","v":""},null,{"$f":"IF('Erläuterungen Finanzierungsplan'!L29=\"\",\"\",'Erläuterungen Finanzierungsplan'!L29)","v":""},null,null,{"$f":"IF('Erläuterungen Finanzierungsplan'!N29=\"\",\"\",'Erläuterungen Finanzierungsplan'!N29)","v":""},null,{"$f":"'Erläuterungen Finanzierungsplan'!P29","v":""},null,{"$f":"IF('Erläuterungen Finanzierungsplan'!R29=\"\",\"\",'Erläuterungen Finanzierungsplan'!R29)","v":""},null,null,null,{"$f":"IF('Erläuterungen Finanzierungsplan'!AB29=\"\",\"\",'Erläuterungen Finanzierungsplan'!AB29)","v":""},null,{"$f":"IF('Erläuterungen Finanzierungsplan'!T29=\"\",\"\",'Erläuterungen Finanzierungsplan'!T29)","v":""},null,null,null,null,null,null,{"$f":"IF('Erläuterungen Finanzierungsplan'!A29=\"\",\"\",'Erläuterungen Finanzierungsplan'!AD29)","v":""},null,null,null,null,{"$f":"IF('Erläuterungen Finanzierungsplan'!A29=\"\",\"\",'Erläuterungen Finanzierungsplan'!AI29)","v":""},null,null,null,null,null,{"$f":"IF('Erläuterungen Finanzierungsplan'!A29=\"\",\"\",'Erläuterungen Finanzierungsplan'!AN29)","v":""}]
[{"$f":"IF('Erläuterungen Finanzierungsplan'!A30=\"\",\"\",'Erläuterungen Finanzierungsplan'!A30)","v":""},null,null,null,null,{"$f":"IF('Erläuterungen Finanzierungsplan'!F30=\"\",\"\",'Erläuterungen Finanzierungsplan'!F30)","v":""},null,{"$f":"IF('Erläuterungen Finanzierungsplan'!H30=\"\",\"\",'Erläuterungen Finanzierungsplan'!H30)","v":""},null,{"$f":"IF('Erläuterungen Finanzierungsplan'!J30=\"\",\"\",'Erläuterungen Finanzierungsplan'!J30)","v":""},null,{"$f":"IF('Erläuterungen Finanzierungsplan'!L30=\"\",\"\",'Erläuterungen Finanzierungsplan'!L30)","v":""},null,null,{"$f":"IF('Erläuterungen Finanzierungsplan'!N30=\"\",\"\",'Erläuterungen Finanzierungsplan'!N30)","v":""},null,{"$f":"'Erläuterungen Finanzierungsplan'!P30","v":""},null,{"$f":"IF('Erläuterungen Finanzierungsplan'!R30=\"\",\"\",'Erläuterungen Finanzierungsplan'!R30)","v":""},null,null,null,{"$f":"IF('Erläuterungen Finanzierungsplan'!AB30=\"\",\"\",'Erläuterungen Finanzierungsplan'!AB30)","v":""},null,{"$f":"IF('Erläuterungen Finanzierungsplan'!T30=\"\",\"\",'Erläuterungen Finanzierungsplan'!T30)","v":""},null,null,null,null,null,null,{"$f":"IF('Erläuterungen Finanzierungsplan'!A30=\"\",\"\",'Erläuterungen Finanzierungsplan'!AD30)","v":""},null,null,null,null,{"$f":"IF('Erläuterungen Finanzierungsplan'!A30=\"\",\"\",'Erläuterungen Finanzierungsplan'!AI30)","v":""},null,null,null,null,null,{"$f":"IF('Erläuterungen Finanzierungsplan'!A30=\"\",\"\",'Erläuterungen Finanzierungsplan'!AN30)","v":""}]
[{"$f":"IF('Erläuterungen Finanzierungsplan'!A31=\"\",\"\",'Erläuterungen Finanzierungsplan'!A31)","v":""},null,null,null,null,{"$f":"IF('Erläuterungen Finanzierungsplan'!F31=\"\",\"\",'Erläuterungen Finanzierungsplan'!F31)","v":""},null,{"$f":"IF('Erläuterungen Finanzierungsplan'!H31=\"\",\"\",'Erläuterungen Finanzierungsplan'!H31)","v":""},null,{"$f":"IF('Erläuterungen Finanzierungsplan'!J31=\"\",\"\",'Erläuterungen Finanzierungsplan'!J31)","v":""},null,{"$f":"IF('Erläuterungen Finanzierungsplan'!L31=\"\",\"\",'Erläuterungen Finanzierungsplan'!L31)","v":""},null,null,{"$f":"IF('Erläuterungen Finanzierungsplan'!N31=\"\",\"\",'Erläuterungen Finanzierungsplan'!N31)","v":""},null,{"$f":"'Erläuterungen Finanzierungsplan'!P31","v":""},null,{"$f":"IF('Erläuterungen Finanzierungsplan'!R31=\"\",\"\",'Erläuterungen Finanzierungsplan'!R31)","v":""},null,null,null,{"$f":"IF('Erläuterungen Finanzierungsplan'!AB31=\"\",\"\",'Erläuterungen Finanzierungsplan'!AB31)","v":""},null,{"$f":"IF('Erläuterungen Finanzierungsplan'!T31=\"\",\"\",'Erläuterungen Finanzierungsplan'!T31)","v":""},null,null,null,null,null,null,{"$f":"IF('Erläuterungen Finanzierungsplan'!A31=\"\",\"\",'Erläuterungen Finanzierungsplan'!AD31)","v":""},null,null,null,null,{"$f":"IF('Erläuterungen Finanzierungsplan'!A31=\"\",\"\",'Erläuterungen Finanzierungsplan'!AI31)","v":""},null,null,null,null,null,{"$f":"IF('Erläuterungen Finanzierungsplan'!A31=\"\",\"\",'Erläuterungen Finanzierungsplan'!AN31)","v":""}]
[{"$f":"IF('Erläuterungen Finanzierungsplan'!A32=\"\",\"\",'Erläuterungen Finanzierungsplan'!A32)","v":""},null,null,null,null,{"$f":"IF('Erläuterungen Finanzierungsplan'!F32=\"\",\"\",'Erläuterungen Finanzierungsplan'!F32)","v":""},null,{"$f":"IF('Erläuterungen Finanzierungsplan'!H32=\"\",\"\",'Erläuterungen Finanzierungsplan'!H32)","v":""},null,{"$f":"IF('Erläuterungen Finanzierungsplan'!J32=\"\",\"\",'Erläuterungen Finanzierungsplan'!J32)","v":""},null,{"$f":"IF('Erläuterungen Finanzierungsplan'!L32=\"\",\"\",'Erläuterungen Finanzierungsplan'!L32)","v":""},null,null,{"$f":"IF('Erläuterungen Finanzierungsplan'!N32=\"\",\"\",'Erläuterungen Finanzierungsplan'!N32)","v":""},null,{"$f":"'Erläuterungen Finanzierungsplan'!P32","v":""},null,{"$f":"IF('Erläuterungen Finanzierungsplan'!R32=\"\",\"\",'Erläuterungen Finanzierungsplan'!R32)","v":""},null,null,null,{"$f":"IF('Erläuterungen Finanzierungsplan'!AB32=\"\",\"\",'Erläuterungen Finanzierungsplan'!AB32)","v":""},null,{"$f":"IF('Erläuterungen Finanzierungsplan'!T32=\"\",\"\",'Erläuterungen Finanzierungsplan'!T32)","v":""},null,null,null,null,null,null,{"$f":"IF('Erläuterungen Finanzierungsplan'!A32=\"\",\"\",'Erläuterungen Finanzierungsplan'!AD32)","v":""},null,null,null,null,{"$f":"IF('Erläuterungen Finanzierungsplan'!A32=\"\",\"\",'Erläuterungen Finanzierungsplan'!AI32)","v":""},null,null,null,null,null,{"$f":"IF('Erläuterungen Finanzierungsplan'!A32=\"\",\"\",'Erläuterungen Finanzierungsplan'!AN32)","v":""}]
[{"$f":"IF('Erläuterungen Finanzierungsplan'!A33=\"\",\"\",'Erläuterungen Finanzierungsplan'!A33)","v":""},null,null,null,null,{"$f":"IF('Erläuterungen Finanzierungsplan'!F33=\"\",\"\",'Erläuterungen Finanzierungsplan'!F33)","v":""},null,{"$f":"IF('Erläuterungen Finanzierungsplan'!H33=\"\",\"\",'Erläuterungen Finanzierungsplan'!H33)","v":""},null,{"$f":"IF('Erläuterungen Finanzierungsplan'!J33=\"\",\"\",'Erläuterungen Finanzierungsplan'!J33)","v":""},null,{"$f":"IF('Erläuterungen Finanzierungsplan'!L33=\"\",\"\",'Erläuterungen Finanzierungsplan'!L33)","v":""},null,null,{"$f":"IF('Erläuterungen Finanzierungsplan'!N33=\"\",\"\",'Erläuterungen Finanzierungsplan'!N33)","v":""},null,{"$f":"'Erläuterungen Finanzierungsplan'!P33","v":""},null,{"$f":"IF('Erläuterungen Finanzierungsplan'!R33=\"\",\"\",'Erläuterungen Finanzierungsplan'!R33)","v":""},null,null,null,{"$f":"IF('Erläuterungen Finanzierungsplan'!AB33=\"\",\"\",'Erläuterungen Finanzierungsplan'!AB33)","v":""},null,{"$f":"IF('Erläuterungen Finanzierungsplan'!T33=\"\",\"\",'Erläuterungen Finanzierungsplan'!T33)","v":""},null,null,null,null,null,null,{"$f":"IF('Erläuterungen Finanzierungsplan'!A33=\"\",\"\",'Erläuterungen Finanzierungsplan'!AD33)","v":""},null,null,null,null,{"$f":"IF('Erläuterungen Finanzierungsplan'!A33=\"\",\"\",'Erläuterungen Finanzierungsplan'!AI33)","v":""},null,null,null,null,null,{"$f":"IF('Erläuterungen Finanzierungsplan'!A33=\"\",\"\",'Erläuterungen Finanzierungsplan'!AN33)","v":""}]
[{"$f":"IF('Erläuterungen Finanzierungsplan'!A34=\"\",\"\",'Erläuterungen Finanzierungsplan'!A34)","v":""},null,null,null,null,{"$f":"IF('Erläuterungen Finanzierungsplan'!F34=\"\",\"\",'Erläuterungen Finanzierungsplan'!F34)","v":""},null,{"$f":"IF('Erläuterungen Finanzierungsplan'!H34=\"\",\"\",'Erläuterungen Finanzierungsplan'!H34)","v":""},null,{"$f":"IF('Erläuterungen Finanzierungsplan'!J34=\"\",\"\",'Erläuterungen Finanzierungsplan'!J34)","v":""},null,{"$f":"IF('Erläuterungen Finanzierungsplan'!L34=\"\",\"\",'Erläuterungen Finanzierungsplan'!L34)","v":""},null,null,{"$f":"IF('Erläuterungen Finanzierungsplan'!N34=\"\",\"\",'Erläuterungen Finanzierungsplan'!N34)","v":""},null,{"$f":"'Erläuterungen Finanzierungsplan'!P34","v":""},null,{"$f":"IF('Erläuterungen Finanzierungsplan'!R34=\"\",\"\",'Erläuterungen Finanzierungsplan'!R34)","v":""},null,null,null,{"$f":"IF('Erläuterungen Finanzierungsplan'!AB34=\"\",\"\",'Erläuterungen Finanzierungsplan'!AB34)","v":""},null,{"$f":"IF('Erläuterungen Finanzierungsplan'!T34=\"\",\"\",'Erläuterungen Finanzierungsplan'!T34)","v":""},null,null,null,null,null,null,{"$f":"IF('Erläuterungen Finanzierungsplan'!A34=\"\",\"\",'Erläuterungen Finanzierungsplan'!AD34)","v":""},null,null,null,null,{"$f":"IF('Erläuterungen Finanzierungsplan'!A34=\"\",\"\",'Erläuterungen Finanzierungsplan'!AI34)","v":""},null,null,null,null,null,{"$f":"IF('Erläuterungen Finanzierungsplan'!A34=\"\",\"\",'Erläuterungen Finanzierungsplan'!AN34)","v":""}]
[{"$f":"IF('Erläuterungen Finanzierungsplan'!A35=\"\",\"\",'Erläuterungen Finanzierungsplan'!A35)","v":""},null,null,null,null,{"$f":"IF('Erläuterungen Finanzierungsplan'!F35=\"\",\"\",'Erläuterungen Finanzierungsplan'!F35)","v":""},null,{"$f":"IF('Erläuterungen Finanzierungsplan'!H35=\"\",\"\",'Erläuterungen Finanzierungsplan'!H35)","v":""},null,{"$f":"IF('Erläuterungen Finanzierungsplan'!J35=\"\",\"\",'Erläuterungen Finanzierungsplan'!J35)","v":""},null,{"$f":"IF('Erläuterungen Finanzierungsplan'!L35=\"\",\"\",'Erläuterungen Finanzierungsplan'!L35)","v":""},null,null,{"$f":"IF('Erläuterungen Finanzierungsplan'!N35=\"\",\"\",'Erläuterungen Finanzierungsplan'!N35)","v":""},null,{"$f":"'Erläuterungen Finanzierungsplan'!P35","v":""},null,{"$f":"IF('Erläuterungen Finanzierungsplan'!R35=\"\",\"\",'Erläuterungen Finanzierungsplan'!R35)","v":""},null,null,null,{"$f":"IF('Erläuterungen Finanzierungsplan'!AB35=\"\",\"\",'Erläuterungen Finanzierungsplan'!AB35)","v":""},null,{"$f":"IF('Erläuterungen Finanzierungsplan'!T35=\"\",\"\",'Erläuterungen Finanzierungsplan'!T35)","v":""},null,null,null,null,null,null,{"$f":"IF('Erläuterungen Finanzierungsplan'!A35=\"\",\"\",'Erläuterungen Finanzierungsplan'!AD35)","v":""},null,null,null,null,{"$f":"IF('Erläuterungen Finanzierungsplan'!A35=\"\",\"\",'Erläuterungen Finanzierungsplan'!AI35)","v":""},null,null,null,null,null,{"$f":"IF('Erläuterungen Finanzierungsplan'!A35=\"\",\"\",'Erläuterungen Finanzierungsplan'!AN35)","v":""}]
[{"$f":"IF('Erläuterungen Finanzierungsplan'!A36=\"\",\"\",'Erläuterungen Finanzierungsplan'!A36)","v":""},null,null,null,null,{"$f":"IF('Erläuterungen Finanzierungsplan'!F36=\"\",\"\",'Erläuterungen Finanzierungsplan'!F36)","v":""},null,{"$f":"IF('Erläuterungen Finanzierungsplan'!H36=\"\",\"\",'Erläuterungen Finanzierungsplan'!H36)","v":""},null,{"$f":"IF('Erläuterungen Finanzierungsplan'!J36=\"\",\"\",'Erläuterungen Finanzierungsplan'!J36)","v":""},null,{"$f":"IF('Erläuterungen Finanzierungsplan'!L36=\"\",\"\",'Erläuterungen Finanzierungsplan'!L36)","v":""},null,null,{"$f":"IF('Erläuterungen Finanzierungsplan'!N36=\"\",\"\",'Erläuterungen Finanzierungsplan'!N36)","v":""},null,{"$f":"'Erläuterungen Finanzierungsplan'!P36","v":""},null,{"$f":"IF('Erläuterungen Finanzierungsplan'!R36=\"\",\"\",'Erläuterungen Finanzierungsplan'!R36)","v":""},null,null,null,{"$f":"IF('Erläuterungen Finanzierungsplan'!AB36=\"\",\"\",'Erläuterungen Finanzierungsplan'!AB36)","v":""},null,{"$f":"IF('Erläuterungen Finanzierungsplan'!T36=\"\",\"\",'Erläuterungen Finanzierungsplan'!T36)","v":""},null,null,null,null,null,null,{"$f":"IF('Erläuterungen Finanzierungsplan'!A36=\"\",\"\",'Erläuterungen Finanzierungsplan'!AD36)","v":""},null,null,null,null,{"$f":"IF('Erläuterungen Finanzierungsplan'!A36=\"\",\"\",'Erläuterungen Finanzierungsplan'!AI36)","v":""},null,null,null,null,null,{"$f":"IF('Erläuterungen Finanzierungsplan'!A36=\"\",\"\",'Erläuterungen Finanzierungsplan'!AN36)","v":""}]
[{"$f":"IF('Erläuterungen Finanzierungsplan'!A37=\"\",\"\",'Erläuterungen Finanzierungsplan'!A37)","v":""},null,null,null,null,{"$f":"IF('Erläuterungen Finanzierungsplan'!F37=\"\",\"\",'Erläuterungen Finanzierungsplan'!F37)","v":""},null,{"$f":"IF('Erläuterungen Finanzierungsplan'!H37=\"\",\"\",'Erläuterungen Finanzierungsplan'!H37)","v":""},null,{"$f":"IF('Erläuterungen Finanzierungsplan'!J37=\"\",\"\",'Erläuterungen Finanzierungsplan'!J37)","v":""},null,{"$f":"IF('Erläuterungen Finanzierungsplan'!L37=\"\",\"\",'Erläuterungen Finanzierungsplan'!L37)","v":""},null,null,{"$f":"IF('Erläuterungen Finanzierungsplan'!N37=\"\",\"\",'Erläuterungen Finanzierungsplan'!N37)","v":""},null,{"$f":"'Erläuterungen Finanzierungsplan'!P37","v":""},null,{"$f":"IF('Erläuterungen Finanzierungsplan'!R37=\"\",\"\",'Erläuterungen Finanzierungsplan'!R37)","v":""},null,null,null,{"$f":"IF('Erläuterungen Finanzierungsplan'!AB37=\"\",\"\",'Erläuterungen Finanzierungsplan'!AB37)","v":""},null,{"$f":"IF('Erläuterungen Finanzierungsplan'!T37=\"\",\"\",'Erläuterungen Finanzierungsplan'!T37)","v":""},null,null,null,null,null,null,{"$f":"IF('Erläuterungen Finanzierungsplan'!A37=\"\",\"\",'Erläuterungen Finanzierungsplan'!AD37)","v":""},null,null,null,null,{"$f":"IF('Erläuterungen Finanzierungsplan'!A37=\"\",\"\",'Erläuterungen Finanzierungsplan'!AI37)","v":""},null,null,null,null,null,{"$f":"IF('Erläuterungen Finanzierungsplan'!A37=\"\",\"\",'Erläuterungen Finanzierungsplan'!AN37)","v":""}]
[{"$f":"IF('Erläuterungen Finanzierungsplan'!A38=\"\",\"\",'Erläuterungen Finanzierungsplan'!A38)","v":""},null,null,null,null,{"$f":"IF('Erläuterungen Finanzierungsplan'!F38=\"\",\"\",'Erläuterungen Finanzierungsplan'!F38)","v":""},null,{"$f":"IF('Erläuterungen Finanzierungsplan'!H38=\"\",\"\",'Erläuterungen Finanzierungsplan'!H38)","v":""},null,{"$f":"IF('Erläuterungen Finanzierungsplan'!J38=\"\",\"\",'Erläuterungen Finanzierungsplan'!J38)","v":""},null,{"$f":"IF('Erläuterungen Finanzierungsplan'!L38=\"\",\"\",'Erläuterungen Finanzierungsplan'!L38)","v":""},null,null,{"$f":"IF('Erläuterungen Finanzierungsplan'!N38=\"\",\"\",'Erläuterungen Finanzierungsplan'!N38)","v":""},null,{"$f":"'Erläuterungen Finanzierungsplan'!P38","v":""},null,{"$f":"IF('Erläuterungen Finanzierungsplan'!R38=\"\",\"\",'Erläuterungen Finanzierungsplan'!R38)","v":""},null,null,null,{"$f":"IF('Erläuterungen Finanzierungsplan'!AB38=\"\",\"\",'Erläuterungen Finanzierungsplan'!AB38)","v":""},null,{"$f":"IF('Erläuterungen Finanzierungsplan'!T38=\"\",\"\",'Erläuterungen Finanzierungsplan'!T38)","v":""},null,null,null,null,null,null,{"$f":"IF('Erläuterungen Finanzierungsplan'!A38=\"\",\"\",'Erläuterungen Finanzierungsplan'!AD38)","v":""},null,null,null,null,{"$f":"IF('Erläuterungen Finanzierungsplan'!A38=\"\",\"\",'Erläuterungen Finanzierungsplan'!AI38)","v":""},null,null,null,null,null,{"$f":"IF('Erläuterungen Finanzierungsplan'!A38=\"\",\"\",'Erläuterungen Finanzierungsplan'!AN38)","v":""}]
[{"$f":"IF('Erläuterungen Finanzierungsplan'!A39=\"\",\"\",'Erläuterungen Finanzierungsplan'!A39)","v":""},null,null,null,null,{"$f":"IF('Erläuterungen Finanzierungsplan'!F39=\"\",\"\",'Erläuterungen Finanzierungsplan'!F39)","v":""},null,{"$f":"IF('Erläuterungen Finanzierungsplan'!H39=\"\",\"\",'Erläuterungen Finanzierungsplan'!H39)","v":""},null,{"$f":"IF('Erläuterungen Finanzierungsplan'!J39=\"\",\"\",'Erläuterungen Finanzierungsplan'!J39)","v":""},null,{"$f":"IF('Erläuterungen Finanzierungsplan'!L39=\"\",\"\",'Erläuterungen Finanzierungsplan'!L39)","v":""},null,null,{"$f":"IF('Erläuterungen Finanzierungsplan'!N39=\"\",\"\",'Erläuterungen Finanzierungsplan'!N39)","v":""},null,{"$f":"'Erläuterungen Finanzierungsplan'!P39","v":""},null,{"$f":"IF('Erläuterungen Finanzierungsplan'!R39=\"\",\"\",'Erläuterungen Finanzierungsplan'!R39)","v":""},null,null,null,{"$f":"IF('Erläuterungen Finanzierungsplan'!AB39=\"\",\"\",'Erläuterungen Finanzierungsplan'!AB39)","v":""},null,{"$f":"IF('Erläuterungen Finanzierungsplan'!T39=\"\",\"\",'Erläuterungen Finanzierungsplan'!T39)","v":""},null,null,null,null,null,null,{"$f":"IF('Erläuterungen Finanzierungsplan'!A39=\"\",\"\",'Erläuterungen Finanzierungsplan'!AD39)","v":""},null,null,null,null,{"$f":"IF('Erläuterungen Finanzierungsplan'!A39=\"\",\"\",'Erläuterungen Finanzierungsplan'!AI39)","v":""},null,null,null,null,null,{"$f":"IF('Erläuterungen Finanzierungsplan'!A39=\"\",\"\",'Erläuterungen Finanzierungsplan'!AN39)","v":""}]
[{"$f":"IF('Erläuterungen Finanzierungsplan'!A40=\"\",\"\",'Erläuterungen Finanzierungsplan'!A40)","v":""},null,null,null,null,{"$f":"IF('Erläuterungen Finanzierungsplan'!F40=\"\",\"\",'Erläuterungen Finanzierungsplan'!F40)","v":""},null,{"$f":"IF('Erläuterungen Finanzierungsplan'!H40=\"\",\"\",'Erläuterungen Finanzierungsplan'!H40)","v":""},null,{"$f":"IF('Erläuterungen Finanzierungsplan'!J40=\"\",\"\",'Erläuterungen Finanzierungsplan'!J40)","v":""},null,{"$f":"IF('Erläuterungen Finanzierungsplan'!L40=\"\",\"\",'Erläuterungen Finanzierungsplan'!L40)","v":""},null,null,{"$f":"IF('Erläuterungen Finanzierungsplan'!N40=\"\",\"\",'Erläuterungen Finanzierungsplan'!N40)","v":""},null,{"$f":"'Erläuterungen Finanzierungsplan'!P40","v":""},null,{"$f":"IF('Erläuterungen Finanzierungsplan'!R40=\"\",\"\",'Erläuterungen Finanzierungsplan'!R40)","v":""},null,null,null,{"$f":"IF('Erläuterungen Finanzierungsplan'!AB40=\"\",\"\",'Erläuterungen Finanzierungsplan'!AB40)","v":""},null,{"$f":"IF('Erläuterungen Finanzierungsplan'!T40=\"\",\"\",'Erläuterungen Finanzierungsplan'!T40)","v":""},null,null,null,null,null,null,{"$f":"IF('Erläuterungen Finanzierungsplan'!A40=\"\",\"\",'Erläuterungen Finanzierungsplan'!AD40)","v":""},null,null,null,null,{"$f":"IF('Erläuterungen Finanzierungsplan'!A40=\"\",\"\",'Erläuterungen Finanzierungsplan'!AI40)","v":""},null,null,null,null,null,{"$f":"IF('Erläuterungen Finanzierungsplan'!A40=\"\",\"\",'Erläuterungen Finanzierungsplan'!AN40)","v":""}]
[{"$f":"IF('Erläuterungen Finanzierungsplan'!A41=\"\",\"\",'Erläuterungen Finanzierungsplan'!A41)","v":""},null,null,null,null,{"$f":"IF('Erläuterungen Finanzierungsplan'!F41=\"\",\"\",'Erläuterungen Finanzierungsplan'!F41)","v":""},null,{"$f":"IF('Erläuterungen Finanzierungsplan'!H41=\"\",\"\",'Erläuterungen Finanzierungsplan'!H41)","v":""},null,{"$f":"IF('Erläuterungen Finanzierungsplan'!J41=\"\",\"\",'Erläuterungen Finanzierungsplan'!J41)","v":""},null,{"$f":"IF('Erläuterungen Finanzierungsplan'!L41=\"\",\"\",'Erläuterungen Finanzierungsplan'!L41)","v":""},null,null,{"$f":"IF('Erläuterungen Finanzierungsplan'!N41=\"\",\"\",'Erläuterungen Finanzierungsplan'!N41)","v":""},null,{"$f":"'Erläuterungen Finanzierungsplan'!P41","v":""},null,{"$f":"IF('Erläuterungen Finanzierungsplan'!R41=\"\",\"\",'Erläuterungen Finanzierungsplan'!R41)","v":""},null,null,null,{"$f":"IF('Erläuterungen Finanzierungsplan'!AB41=\"\",\"\",'Erläuterungen Finanzierungsplan'!AB41)","v":""},null,{"$f":"IF('Erläuterungen Finanzierungsplan'!T41=\"\",\"\",'Erläuterungen Finanzierungsplan'!T41)","v":""},null,null,null,null,null,null,{"$f":"IF('Erläuterungen Finanzierungsplan'!A41=\"\",\"\",'Erläuterungen Finanzierungsplan'!AD41)","v":""},null,null,null,null,{"$f":"IF('Erläuterungen Finanzierungsplan'!A41=\"\",\"\",'Erläuterungen Finanzierungsplan'!AI41)","v":""},null,null,null,null,null,{"$f":"IF('Erläuterungen Finanzierungsplan'!A41=\"\",\"\",'Erläuterungen Finanzierungsplan'!AN41)","v":""}]
[{"$f":"IF('Erläuterungen Finanzierungsplan'!A42=\"\",\"\",'Erläuterungen Finanzierungsplan'!A42)","v":""},null,null,null,null,{"$f":"IF('Erläuterungen Finanzierungsplan'!F42=\"\",\"\",'Erläuterungen Finanzierungsplan'!F42)","v":""},null,{"$f":"IF('Erläuterungen Finanzierungsplan'!H42=\"\",\"\",'Erläuterungen Finanzierungsplan'!H42)","v":""},null,{"$f":"IF('Erläuterungen Finanzierungsplan'!J42=\"\",\"\",'Erläuterungen Finanzierungsplan'!J42)","v":""},null,{"$f":"IF('Erläuterungen Finanzierungsplan'!L42=\"\",\"\",'Erläuterungen Finanzierungsplan'!L42)","v":""},null,null,{"$f":"IF('Erläuterungen Finanzierungsplan'!N42=\"\",\"\",'Erläuterungen Finanzierungsplan'!N42)","v":""},null,{"$f":"'Erläuterungen Finanzierungsplan'!P42","v":""},null,{"$f":"IF('Erläuterungen Finanzierungsplan'!R42=\"\",\"\",'Erläuterungen Finanzierungsplan'!R42)","v":""},null,null,null,{"$f":"IF('Erläuterungen Finanzierungsplan'!AB42=\"\",\"\",'Erläuterungen Finanzierungsplan'!AB42)","v":""},null,{"$f":"IF('Erläuterungen Finanzierungsplan'!T42=\"\",\"\",'Erläuterungen Finanzierungsplan'!T42)","v":""},null,null,null,null,null,null,{"$f":"IF('Erläuterungen Finanzierungsplan'!A42=\"\",\"\",'Erläuterungen Finanzierungsplan'!AD42)","v":""},null,null,null,null,{"$f":"IF('Erläuterungen Finanzierungsplan'!A42=\"\",\"\",'Erläuterungen Finanzierungsplan'!AI42)","v":""},null,null,null,null,null,{"$f":"IF('Erläuterungen Finanzierungsplan'!A42=\"\",\"\",'Erläuterungen Finanzierungsplan'!AN42)","v":""}]
[{"$f":"IF('Erläuterungen Finanzierungsplan'!A43=\"\",\"\",'Erläuterungen Finanzierungsplan'!A43)","v":""},null,null,null,null,{"$f":"IF('Erläuterungen Finanzierungsplan'!F43=\"\",\"\",'Erläuterungen Finanzierungsplan'!F43)","v":""},null,{"$f":"IF('Erläuterungen Finanzierungsplan'!H43=\"\",\"\",'Erläuterungen Finanzierungsplan'!H43)","v":""},null,{"$f":"IF('Erläuterungen Finanzierungsplan'!J43=\"\",\"\",'Erläuterungen Finanzierungsplan'!J43)","v":""},null,{"$f":"IF('Erläuterungen Finanzierungsplan'!L43=\"\",\"\",'Erläuterungen Finanzierungsplan'!L43)","v":""},null,null,{"$f":"IF('Erläuterungen Finanzierungsplan'!N43=\"\",\"\",'Erläuterungen Finanzierungsplan'!N43)","v":""},null,{"$f":"'Erläuterungen Finanzierungsplan'!P43","v":""},null,{"$f":"IF('Erläuterungen Finanzierungsplan'!R43=\"\",\"\",'Erläuterungen Finanzierungsplan'!R43)","v":""},null,null,null,{"$f":"IF('Erläuterungen Finanzierungsplan'!AB43=\"\",\"\",'Erläuterungen Finanzierungsplan'!AB43)","v":""},null,{"$f":"IF('Erläuterungen Finanzierungsplan'!T43=\"\",\"\",'Erläuterungen Finanzierungsplan'!T43)","v":""},null,null,null,null,null,null,{"$f":"IF('Erläuterungen Finanzierungsplan'!A43=\"\",\"\",'Erläuterungen Finanzierungsplan'!AD43)","v":""},null,null,null,null,{"$f":"IF('Erläuterungen Finanzierungsplan'!A43=\"\",\"\",'Erläuterungen Finanzierungsplan'!AI43)","v":""},null,null,null,null,null,{"$f":"IF('Erläuterungen Finanzierungsplan'!A43=\"\",\"\",'Erläuterungen Finanzierungsplan'!AN43)","v":""}]
[{"$f":"IF('Erläuterungen Finanzierungsplan'!A44=\"\",\"\",'Erläuterungen Finanzierungsplan'!A44)","v":""},null,null,null,null,{"$f":"IF('Erläuterungen Finanzierungsplan'!F44=\"\",\"\",'Erläuterungen Finanzierungsplan'!F44)","v":""},null,{"$f":"IF('Erläuterungen Finanzierungsplan'!H44=\"\",\"\",'Erläuterungen Finanzierungsplan'!H44)","v":""},null,{"$f":"IF('Erläuterungen Finanzierungsplan'!J44=\"\",\"\",'Erläuterungen Finanzierungsplan'!J44)","v":""},null,{"$f":"IF('Erläuterungen Finanzierungsplan'!L44=\"\",\"\",'Erläuterungen Finanzierungsplan'!L44)","v":""},null,null,{"$f":"IF('Erläuterungen Finanzierungsplan'!N44=\"\",\"\",'Erläuterungen Finanzierungsplan'!N44)","v":""},null,{"$f":"'Erläuterungen Finanzierungsplan'!P44","v":""},null,{"$f":"IF('Erläuterungen Finanzierungsplan'!R44=\"\",\"\",'Erläuterungen Finanzierungsplan'!R44)","v":""},null,null,null,{"$f":"IF('Erläuterungen Finanzierungsplan'!AB44=\"\",\"\",'Erläuterungen Finanzierungsplan'!AB44)","v":""},null,{"$f":"IF('Erläuterungen Finanzierungsplan'!T44=\"\",\"\",'Erläuterungen Finanzierungsplan'!T44)","v":""},null,null,null,null,null,null,{"$f":"IF('Erläuterungen Finanzierungsplan'!A44=\"\",\"\",'Erläuterungen Finanzierungsplan'!AD44)","v":""},null,null,null,null,{"$f":"IF('Erläuterungen Finanzierungsplan'!A44=\"\",\"\",'Erläuterungen Finanzierungsplan'!AI44)","v":""},null,null,null,null,null,{"$f":"IF('Erläuterungen Finanzierungsplan'!A44=\"\",\"\",'Erläuterungen Finanzierungsplan'!AN44)","v":""}]
[{"$f":"IF('Erläuterungen Finanzierungsplan'!A45=\"\",\"\",'Erläuterungen Finanzierungsplan'!A45)","v":""},null,null,null,null,{"$f":"IF('Erläuterungen Finanzierungsplan'!F45=\"\",\"\",'Erläuterungen Finanzierungsplan'!F45)","v":""},null,{"$f":"IF('Erläuterungen Finanzierungsplan'!H45=\"\",\"\",'Erläuterungen Finanzierungsplan'!H45)","v":""},null,{"$f":"IF('Erläuterungen Finanzierungsplan'!J45=\"\",\"\",'Erläuterungen Finanzierungsplan'!J45)","v":""},null,{"$f":"IF('Erläuterungen Finanzierungsplan'!L45=\"\",\"\",'Erläuterungen Finanzierungsplan'!L45)","v":""},null,null,{"$f":"IF('Erläuterungen Finanzierungsplan'!N45=\"\",\"\",'Erläuterungen Finanzierungsplan'!N45)","v":""},null,{"$f":"'Erläuterungen Finanzierungsplan'!P45","v":""},null,{"$f":"IF('Erläuterungen Finanzierungsplan'!R45=\"\",\"\",'Erläuterungen Finanzierungsplan'!R45)","v":""},null,null,null,{"$f":"IF('Erläuterungen Finanzierungsplan'!AB45=\"\",\"\",'Erläuterungen Finanzierungsplan'!AB45)","v":""},null,{"$f":"IF('Erläuterungen Finanzierungsplan'!T45=\"\",\"\",'Erläuterungen Finanzierungsplan'!T45)","v":""},null,null,null,null,null,null,{"$f":"IF('Erläuterungen Finanzierungsplan'!A45=\"\",\"\",'Erläuterungen Finanzierungsplan'!AD45)","v":""},null,null,null,null,{"$f":"IF('Erläuterungen Finanzierungsplan'!A45=\"\",\"\",'Erläuterungen Finanzierungsplan'!AI45)","v":""},null,null,null,null,null,{"$f":"IF('Erläuterungen Finanzierungsplan'!A45=\"\",\"\",'Erläuterungen Finanzierungsplan'!AN45)","v":""}]
[{"$f":"IF('Erläuterungen Finanzierungsplan'!A46=\"\",\"\",'Erläuterungen Finanzierungsplan'!A46)","v":""},null,null,null,null,{"$f":"IF('Erläuterungen Finanzierungsplan'!F46=\"\",\"\",'Erläuterungen Finanzierungsplan'!F46)","v":""},null,{"$f":"IF('Erläuterungen Finanzierungsplan'!H46=\"\",\"\",'Erläuterungen Finanzierungsplan'!H46)","v":""},null,{"$f":"IF('Erläuterungen Finanzierungsplan'!J46=\"\",\"\",'Erläuterungen Finanzierungsplan'!J46)","v":""},null,{"$f":"IF('Erläuterungen Finanzierungsplan'!L46=\"\",\"\",'Erläuterungen Finanzierungsplan'!L46)","v":""},null,null,{"$f":"IF('Erläuterungen Finanzierungsplan'!N46=\"\",\"\",'Erläuterungen Finanzierungsplan'!N46)","v":""},null,{"$f":"'Erläuterungen Finanzierungsplan'!P46","v":""},null,{"$f":"IF('Erläuterungen Finanzierungsplan'!R46=\"\",\"\",'Erläuterungen Finanzierungsplan'!R46)","v":""},null,null,null,{"$f":"IF('Erläuterungen Finanzierungsplan'!AB46=\"\",\"\",'Erläuterungen Finanzierungsplan'!AB46)","v":""},null,{"$f":"IF('Erläuterungen Finanzierungsplan'!T46=\"\",\"\",'Erläuterungen Finanzierungsplan'!T46)","v":""},null,null,null,null,null,null,{"$f":"IF('Erläuterungen Finanzierungsplan'!A46=\"\",\"\",'Erläuterungen Finanzierungsplan'!AD46)","v":""},null,null,null,null,{"$f":"IF('Erläuterungen Finanzierungsplan'!A46=\"\",\"\",'Erläuterungen Finanzierungsplan'!AI46)","v":""},null,null,null,null,null,{"$f":"IF('Erläuterungen Finanzierungsplan'!A46=\"\",\"\",'Erläuterungen Finanzierungsplan'!AN46)","v":""}]
[{"$f":"IF('Erläuterungen Finanzierungsplan'!A47=\"\",\"\",'Erläuterungen Finanzierungsplan'!A47)","v":""},null,null,null,null,{"$f":"IF('Erläuterungen Finanzierungsplan'!F47=\"\",\"\",'Erläuterungen Finanzierungsplan'!F47)","v":""},null,{"$f":"IF('Erläuterungen Finanzierungsplan'!H47=\"\",\"\",'Erläuterungen Finanzierungsplan'!H47)","v":""},null,{"$f":"IF('Erläuterungen Finanzierungsplan'!J47=\"\",\"\",'Erläuterungen Finanzierungsplan'!J47)","v":""},null,{"$f":"IF('Erläuterungen Finanzierungsplan'!L47=\"\",\"\",'Erläuterungen Finanzierungsplan'!L47)","v":""},null,null,{"$f":"IF('Erläuterungen Finanzierungsplan'!N47=\"\",\"\",'Erläuterungen Finanzierungsplan'!N47)","v":""},null,{"$f":"'Erläuterungen Finanzierungsplan'!P47","v":""},null,{"$f":"IF('Erläuterungen Finanzierungsplan'!R47=\"\",\"\",'Erläuterungen Finanzierungsplan'!R47)","v":""},null,null,null,{"$f":"IF('Erläuterungen Finanzierungsplan'!AB47=\"\",\"\",'Erläuterungen Finanzierungsplan'!AB47)","v":""},null,{"$f":"IF('Erläuterungen Finanzierungsplan'!T47=\"\",\"\",'Erläuterungen Finanzierungsplan'!T47)","v":""},null,null,null,null,null,null,{"$f":"IF('Erläuterungen Finanzierungsplan'!A47=\"\",\"\",'Erläuterungen Finanzierungsplan'!AD47)","v":""},null,null,null,null,{"$f":"IF('Erläuterungen Finanzierungsplan'!A47=\"\",\"\",'Erläuterungen Finanzierungsplan'!AI47)","v":""},null,null,null,null,null,{"$f":"IF('Erläuterungen Finanzierungsplan'!A47=\"\",\"\",'Erläuterungen Finanzierungsplan'!AN47)","v":""}]
[{"$f":"IF('Erläuterungen Finanzierungsplan'!A48=\"\",\"\",'Erläuterungen Finanzierungsplan'!A48)","v":""},null,null,null,null,{"$f":"IF('Erläuterungen Finanzierungsplan'!F48=\"\",\"\",'Erläuterungen Finanzierungsplan'!F48)","v":""},null,{"$f":"IF('Erläuterungen Finanzierungsplan'!H48=\"\",\"\",'Erläuterungen Finanzierungsplan'!H48)","v":""},null,{"$f":"IF('Erläuterungen Finanzierungsplan'!J48=\"\",\"\",'Erläuterungen Finanzierungsplan'!J48)","v":""},null,{"$f":"IF('Erläuterungen Finanzierungsplan'!L48=\"\",\"\",'Erläuterungen Finanzierungsplan'!L48)","v":""},null,null,{"$f":"IF('Erläuterungen Finanzierungsplan'!N48=\"\",\"\",'Erläuterungen Finanzierungsplan'!N48)","v":""},null,{"$f":"'Erläuterungen Finanzierungsplan'!P48","v":""},null,{"$f":"IF('Erläuterungen Finanzierungsplan'!R48=\"\",\"\",'Erläuterungen Finanzierungsplan'!R48)","v":""},null,null,null,{"$f":"IF('Erläuterungen Finanzierungsplan'!AB48=\"\",\"\",'Erläuterungen Finanzierungsplan'!AB48)","v":""},null,{"$f":"IF('Erläuterungen Finanzierungsplan'!T48=\"\",\"\",'Erläuterungen Finanzierungsplan'!T48)","v":""},null,null,null,null,null,null,{"$f":"IF('Erläuterungen Finanzierungsplan'!A48=\"\",\"\",'Erläuterungen Finanzierungsplan'!AD48)","v":""},null,null,null,null,{"$f":"IF('Erläuterungen Finanzierungsplan'!A48=\"\",\"\",'Erläuterungen Finanzierungsplan'!AI48)","v":""},null,null,null,null,null,{"$f":"IF('Erläuterungen Finanzierungsplan'!A48=\"\",\"\",'Erläuterungen Finanzierungsplan'!AN48)","v":""}]
[{"$f":"IF('Erläuterungen Finanzierungsplan'!A49=\"\",\"\",'Erläuterungen Finanzierungsplan'!A49)","v":""},null,null,null,null,{"$f":"IF('Erläuterungen Finanzierungsplan'!F49=\"\",\"\",'Erläuterungen Finanzierungsplan'!F49)","v":""},null,{"$f":"IF('Erläuterungen Finanzierungsplan'!H49=\"\",\"\",'Erläuterungen Finanzierungsplan'!H49)","v":""},null,{"$f":"IF('Erläuterungen Finanzierungsplan'!J49=\"\",\"\",'Erläuterungen Finanzierungsplan'!J49)","v":""},null,{"$f":"IF('Erläuterungen Finanzierungsplan'!L49=\"\",\"\",'Erläuterungen Finanzierungsplan'!L49)","v":""},null,null,{"$f":"IF('Erläuterungen Finanzierungsplan'!N49=\"\",\"\",'Erläuterungen Finanzierungsplan'!N49)","v":""},null,{"$f":"'Erläuterungen Finanzierungsplan'!P49","v":""},null,{"$f":"IF('Erläuterungen Finanzierungsplan'!R49=\"\",\"\",'Erläuterungen Finanzierungsplan'!R49)","v":""},null,null,null,{"$f":"IF('Erläuterungen Finanzierungsplan'!AB49=\"\",\"\",'Erläuterungen Finanzierungsplan'!AB49)","v":""},null,{"$f":"IF('Erläuterungen Finanzierungsplan'!T49=\"\",\"\",'Erläuterungen Finanzierungsplan'!T49)","v":""},null,null,null,null,null,null,{"$f":"IF('Erläuterungen Finanzierungsplan'!A49=\"\",\"\",'Erläuterungen Finanzierungsplan'!AD49)","v":""},null,null,null,null,{"$f":"IF('Erläuterungen Finanzierungsplan'!A49=\"\",\"\",'Erläuterungen Finanzierungsplan'!AI49)","v":""},null,null,null,null,null,{"$f":"IF('Erläuterungen Finanzierungsplan'!A49=\"\",\"\",'Erläuterungen Finanzierungsplan'!AN49)","v":""}]
[{"$f":"IF('Erläuterungen Finanzierungsplan'!A50=\"\",\"\",'Erläuterungen Finanzierungsplan'!A50)","v":""},null,null,null,null,{"$f":"IF('Erläuterungen Finanzierungsplan'!F50=\"\",\"\",'Erläuterungen Finanzierungsplan'!F50)","v":""},null,{"$f":"IF('Erläuterungen Finanzierungsplan'!H50=\"\",\"\",'Erläuterungen Finanzierungsplan'!H50)","v":""},null,{"$f":"IF('Erläuterungen Finanzierungsplan'!J50=\"\",\"\",'Erläuterungen Finanzierungsplan'!J50)","v":""},null,{"$f":"IF('Erläuterungen Finanzierungsplan'!L50=\"\",\"\",'Erläuterungen Finanzierungsplan'!L50)","v":""},null,null,{"$f":"IF('Erläuterungen Finanzierungsplan'!N50=\"\",\"\",'Erläuterungen Finanzierungsplan'!N50)","v":""},null,{"$f":"'Erläuterungen Finanzierungsplan'!P50","v":""},null,{"$f":"IF('Erläuterungen Finanzierungsplan'!R50=\"\",\"\",'Erläuterungen Finanzierungsplan'!R50)","v":""},null,null,null,{"$f":"IF('Erläuterungen Finanzierungsplan'!AB50=\"\",\"\",'Erläuterungen Finanzierungsplan'!AB50)","v":""},null,{"$f":"IF('Erläuterungen Finanzierungsplan'!T50=\"\",\"\",'Erläuterungen Finanzierungsplan'!T50)","v":""},null,null,null,null,null,null,{"$f":"IF('Erläuterungen Finanzierungsplan'!A50=\"\",\"\",'Erläuterungen Finanzierungsplan'!AD50)","v":""},null,null,null,null,{"$f":"IF('Erläuterungen Finanzierungsplan'!A50=\"\",\"\",'Erläuterungen Finanzierungsplan'!AI50)","v":""},null,null,null,null,null,{"$f":"IF('Erläuterungen Finanzierungsplan'!A50=\"\",\"\",'Erläuterungen Finanzierungsplan'!AN50)","v":""}]
[{"$f":"IF('Erläuterungen Finanzierungsplan'!A51=\"\",\"\",'Erläuterungen Finanzierungsplan'!A51)","v":""},null,null,null,null,{"$f":"IF('Erläuterungen Finanzierungsplan'!F51=\"\",\"\",'Erläuterungen Finanzierungsplan'!F51)","v":""},null,{"$f":"IF('Erläuterungen Finanzierungsplan'!H51=\"\",\"\",'Erläuterungen Finanzierungsplan'!H51)","v":""},null,{"$f":"IF('Erläuterungen Finanzierungsplan'!J51=\"\",\"\",'Erläuterungen Finanzierungsplan'!J51)","v":""},null,{"$f":"IF('Erläuterungen Finanzierungsplan'!L51=\"\",\"\",'Erläuterungen Finanzierungsplan'!L51)","v":""},null,null,{"$f":"IF('Erläuterungen Finanzierungsplan'!N51=\"\",\"\",'Erläuterungen Finanzierungsplan'!N51)","v":""},null,{"$f":"'Erläuterungen Finanzierungsplan'!P51","v":""},null,{"$f":"IF('Erläuterungen Finanzierungsplan'!R51=\"\",\"\",'Erläuterungen Finanzierungsplan'!R51)","v":""},null,null,null,{"$f":"IF('Erläuterungen Finanzierungsplan'!AB51=\"\",\"\",'Erläuterungen Finanzierungsplan'!AB51)","v":""},null,{"$f":"IF('Erläuterungen Finanzierungsplan'!T51=\"\",\"\",'Erläuterungen Finanzierungsplan'!T51)","v":""},null,null,null,null,null,null,{"$f":"IF('Erläuterungen Finanzierungsplan'!A51=\"\",\"\",'Erläuterungen Finanzierungsplan'!AD51)","v":""},null,null,null,null,{"$f":"IF('Erläuterungen Finanzierungsplan'!A51=\"\",\"\",'Erläuterungen Finanzierungsplan'!AI51)","v":""},null,null,null,null,null,{"$f":"IF('Erläuterungen Finanzierungsplan'!A51=\"\",\"\",'Erläuterungen Finanzierungsplan'!AN51)","v":""}]
[{"$f":"IF('Erläuterungen Finanzierungsplan'!A52=\"\",\"\",'Erläuterungen Finanzierungsplan'!A52)","v":""},null,null,null,null,{"$f":"IF('Erläuterungen Finanzierungsplan'!F52=\"\",\"\",'Erläuterungen Finanzierungsplan'!F52)","v":""},null,{"$f":"IF('Erläuterungen Finanzierungsplan'!H52=\"\",\"\",'Erläuterungen Finanzierungsplan'!H52)","v":""},null,{"$f":"IF('Erläuterungen Finanzierungsplan'!J52=\"\",\"\",'Erläuterungen Finanzierungsplan'!J52)","v":""},null,{"$f":"IF('Erläuterungen Finanzierungsplan'!L52=\"\",\"\",'Erläuterungen Finanzierungsplan'!L52)","v":""},null,null,{"$f":"IF('Erläuterungen Finanzierungsplan'!N52=\"\",\"\",'Erläuterungen Finanzierungsplan'!N52)","v":""},null,{"$f":"'Erläuterungen Finanzierungsplan'!P52","v":""},null,{"$f":"IF('Erläuterungen Finanzierungsplan'!R52=\"\",\"\",'Erläuterungen Finanzierungsplan'!R52)","v":""},null,null,null,{"$f":"IF('Erläuterungen Finanzierungsplan'!AB52=\"\",\"\",'Erläuterungen Finanzierungsplan'!AB52)","v":""},null,{"$f":"IF('Erläuterungen Finanzierungsplan'!T52=\"\",\"\",'Erläuterungen Finanzierungsplan'!T52)","v":""},null,null,null,null,null,null,{"$f":"IF('Erläuterungen Finanzierungsplan'!A52=\"\",\"\",'Erläuterungen Finanzierungsplan'!AD52)","v":""},null,null,null,null,{"$f":"IF('Erläuterungen Finanzierungsplan'!A52=\"\",\"\",'Erläuterungen Finanzierungsplan'!AI52)","v":""},null,null,null,null,null,{"$f":"IF('Erläuterungen Finanzierungsplan'!A52=\"\",\"\",'Erläuterungen Finanzierungsplan'!AN52)","v":""}]
[{"$f":"IF('Erläuterungen Finanzierungsplan'!A53=\"\",\"\",'Erläuterungen Finanzierungsplan'!A53)","v":""},null,null,null,null,{"$f":"IF('Erläuterungen Finanzierungsplan'!F53=\"\",\"\",'Erläuterungen Finanzierungsplan'!F53)","v":""},null,{"$f":"IF('Erläuterungen Finanzierungsplan'!H53=\"\",\"\",'Erläuterungen Finanzierungsplan'!H53)","v":""},null,{"$f":"IF('Erläuterungen Finanzierungsplan'!J53=\"\",\"\",'Erläuterungen Finanzierungsplan'!J53)","v":""},null,{"$f":"IF('Erläuterungen Finanzierungsplan'!L53=\"\",\"\",'Erläuterungen Finanzierungsplan'!L53)","v":""},null,null,{"$f":"IF('Erläuterungen Finanzierungsplan'!N53=\"\",\"\",'Erläuterungen Finanzierungsplan'!N53)","v":""},null,{"$f":"'Erläuterungen Finanzierungsplan'!P53","v":""},null,{"$f":"IF('Erläuterungen Finanzierungsplan'!R53=\"\",\"\",'Erläuterungen Finanzierungsplan'!R53)","v":""},null,null,null,{"$f":"IF('Erläuterungen Finanzierungsplan'!AB53=\"\",\"\",'Erläuterungen Finanzierungsplan'!AB53)","v":""},null,{"$f":"IF('Erläuterungen Finanzierungsplan'!T53=\"\",\"\",'Erläuterungen Finanzierungsplan'!T53)","v":""},null,null,null,null,null,null,{"$f":"IF('Erläuterungen Finanzierungsplan'!A53=\"\",\"\",'Erläuterungen Finanzierungsplan'!AD53)","v":""},null,null,null,null,{"$f":"IF('Erläuterungen Finanzierungsplan'!A53=\"\",\"\",'Erläuterungen Finanzierungsplan'!AI53)","v":""},null,null,null,null,null,{"$f":"IF('Erläuterungen Finanzierungsplan'!A53=\"\",\"\",'Erläuterungen Finanzierungsplan'!AN53)","v":""}]
[{"$f":"IF('Erläuterungen Finanzierungsplan'!A54=\"\",\"\",'Erläuterungen Finanzierungsplan'!A54)","v":""},null,null,null,null,{"$f":"IF('Erläuterungen Finanzierungsplan'!F54=\"\",\"\",'Erläuterungen Finanzierungsplan'!F54)","v":""},null,{"$f":"IF('Erläuterungen Finanzierungsplan'!H54=\"\",\"\",'Erläuterungen Finanzierungsplan'!H54)","v":""},null,{"$f":"IF('Erläuterungen Finanzierungsplan'!J54=\"\",\"\",'Erläuterungen Finanzierungsplan'!J54)","v":""},null,{"$f":"IF('Erläuterungen Finanzierungsplan'!L54=\"\",\"\",'Erläuterungen Finanzierungsplan'!L54)","v":""},null,null,{"$f":"IF('Erläuterungen Finanzierungsplan'!N54=\"\",\"\",'Erläuterungen Finanzierungsplan'!N54)","v":""},null,{"$f":"'Erläuterungen Finanzierungsplan'!P54","v":""},null,{"$f":"IF('Erläuterungen Finanzierungsplan'!R54=\"\",\"\",'Erläuterungen Finanzierungsplan'!R54)","v":""},null,null,null,{"$f":"IF('Erläuterungen Finanzierungsplan'!AB54=\"\",\"\",'Erläuterungen Finanzierungsplan'!AB54)","v":""},null,{"$f":"IF('Erläuterungen Finanzierungsplan'!T54=\"\",\"\",'Erläuterungen Finanzierungsplan'!T54)","v":""},null,null,null,null,null,null,{"$f":"IF('Erläuterungen Finanzierungsplan'!A54=\"\",\"\",'Erläuterungen Finanzierungsplan'!AD54)","v":""},null,null,null,null,{"$f":"IF('Erläuterungen Finanzierungsplan'!A54=\"\",\"\",'Erläuterungen Finanzierungsplan'!AI54)","v":""},null,null,null,null,null,{"$f":"IF('Erläuterungen Finanzierungsplan'!A54=\"\",\"\",'Erläuterungen Finanzierungsplan'!AN54)","v":""}]
[{"$f":"IF('Erläuterungen Finanzierungsplan'!A55=\"\",\"\",'Erläuterungen Finanzierungsplan'!A55)","v":""},null,null,null,null,{"$f":"IF('Erläuterungen Finanzierungsplan'!F55=\"\",\"\",'Erläuterungen Finanzierungsplan'!F55)","v":""},null,{"$f":"IF('Erläuterungen Finanzierungsplan'!H55=\"\",\"\",'Erläuterungen Finanzierungsplan'!H55)","v":""},null,{"$f":"IF('Erläuterungen Finanzierungsplan'!J55=\"\",\"\",'Erläuterungen Finanzierungsplan'!J55)","v":""},null,{"$f":"IF('Erläuterungen Finanzierungsplan'!L55=\"\",\"\",'Erläuterungen Finanzierungsplan'!L55)","v":""},null,null,{"$f":"IF('Erläuterungen Finanzierungsplan'!N55=\"\",\"\",'Erläuterungen Finanzierungsplan'!N55)","v":""},null,{"$f":"'Erläuterungen Finanzierungsplan'!P55","v":""},null,{"$f":"IF('Erläuterungen Finanzierungsplan'!R55=\"\",\"\",'Erläuterungen Finanzierungsplan'!R55)","v":""},null,null,null,{"$f":"IF('Erläuterungen Finanzierungsplan'!AB55=\"\",\"\",'Erläuterungen Finanzierungsplan'!AB55)","v":""},null,{"$f":"IF('Erläuterungen Finanzierungsplan'!T55=\"\",\"\",'Erläuterungen Finanzierungsplan'!T55)","v":""},null,null,null,null,null,null,{"$f":"IF('Erläuterungen Finanzierungsplan'!A55=\"\",\"\",'Erläuterungen Finanzierungsplan'!AD55)","v":""},null,null,null,null,{"$f":"IF('Erläuterungen Finanzierungsplan'!A55=\"\",\"\",'Erläuterungen Finanzierungsplan'!AI55)","v":""},null,null,null,null,null,{"$f":"IF('Erläuterungen Finanzierungsplan'!A55=\"\",\"\",'Erläuterungen Finanzierungsplan'!AN55)","v":""}]
[null,null,null,null,null,null,null,null,null,null,null,null,null,null,null,null,null,null,{"$f":"SUM(S46:T80)","v":0},null,{"$f":"SUM(U46:V80)","v":0},null,null,null,null,null,null,null,null,null,null,{"$f":"SUM(AF46:AJ80)","v":0},null,null,null,null,null,null,null,null,null,null,null,null,null,null,null,null,{"$f":"SUM(AW46:BA80)","v":0}]
[null,null,null,null,null,null,null,"Stellenanteil"]
[]
[]
[null,"weitere Anmerkungen / Begründungen / Hinweise"]
[null,"Hilfstext (wenn zutreffend den Antragsinhalten anpassen/ansonsten löschen):\nDie Eingruppierung der beantragten Tätigkeiten ist dem Vermerk vom ? zu entnehmen."]
[]
[]
[]
[]
[]
[]
[]
[]
[]
[]
[]
[null,"Ergebnis Ausgabenposition 1.1"]
[]
[null,"beantragte Beträge",null,null,null,null,null,null,{"$f":"AF81","v":0}]
[null,"Bewilligte Ausgaben ohne Aufschlag",null,null,null,null,null,null,{"$f":"AW81","v":0}]
[null,"Bewilligte Ausgaben mit Aufschlag",null,null,null,null,null,null,0]
[null,"Aufschlag",null,null,null,null,null,null,{"$f":"IF(I102=\"\",\"\",I102-I101)","v":0}]
[null,"Kürzung",null,null,null,null,null,null,{"$f":"IF(I102=\"\",\"\",IF(I100-I102>0,I100-I102,0))","v":0}]
[null,"Erhöhung",null,null,null,null,null,null,{"$f":"IF(I102=\"\",\"\",IF(I100-I102<0,I102-I100,0))","v":0}]
[null,"anerkannte Beträge",null,null,null,null,null,null,{"$f":"I102","v":0}]
[]
["Ausgabenposition 1.2 (Ausgaben für Honorarkräfte)"]
[]
[null,"Bei einem Einsatz von Fremdpersonal auf Honorarbasis wird zur Sicherstellung der Wirtschaftlichkeit und Sparsamkeit der Ausgaben im Sinne der LHO eine Vergleichsberechnung hilfsweise unter Anwendung der Durchschnittssätze des TV-L durchgeführt."]
[]
[]
[]
["Name, Vorname",null,null,null,null,"Tätigkeit im Projekt",null,null,null,null,null,"Im Projekt ein-\ngesetzt vom",null,null,"Im Projekt ein-\ngesetzt bis",null,"Monate im Projekt",null,"Stundensatz je \nZeitstunde",null,"Stundensatz \nje Zeitstunde\n(anerkannt)",null,null,"Std. im Projekt",null,null,"Std. im Projekt\n(anerkannt)",null,null,null,"beantragte Beträge",null,null,null,"anerkannte Beträge",null,null,null,"Kürzung",null,null,null,"Ggf. Hinweise an den Kunden"]
[]
[{"$f":"IF('Erläuterungen Finanzierungsplan'!A62=\"\",\"\",'Erläuterungen Finanzierungsplan'!A62)","v":""},null,null,null,null,{"$f":"IF('Erläuterungen Finanzierungsplan'!F62=\"\",\"\",'Erläuterungen Finanzierungsplan'!F62)","v":""},null,null,null,null,null,{"$f":"IF('Erläuterungen Finanzierungsplan'!N62=\"\",\"\",'Erläuterungen Finanzierungsplan'!N62)","v":""},null,null,{"$f":"IF('Erläuterungen Finanzierungsplan'!P62=\"\",\"\",'Erläuterungen Finanzierungsplan'!P62)","v":""},null,{"$f":"IF('Erläuterungen Finanzierungsplan'!R62=\"\",\"\",'Erläuterungen Finanzierungsplan'!R62)","v":""},null,{"$f":"IF('Erläuterungen Finanzierungsplan'!U62=\"\",\"\",'Erläuterungen Finanzierungsplan'!U62)","v":""},null,null,null,null,{"$f":"IF('Erläuterungen Finanzierungsplan'!X62=\"\",\"\",'Erläuterungen Finanzierungsplan'!X62)","v":""},null,null,null,null,null,null,{"$f":"IF('Erläuterungen Finanzierungsplan'!Z62=\"\",\"\",'Erläuterungen Finanzierungsplan'!Z62)","v":""},null,null,null,{"$f":"IF(U116=\"\",\"\",U116*AA116)","v":""},null,null,null,{"$f":"IF(AI116=\"\",\"\",IF(AI116<AE116,AE116-AI116,0))","v":""}]
[{"$f":"IF('Erläuterungen Finanzierungsplan'!A63=\"\",\"\",'Erläuterungen Finanzierungsplan'!A63)","v":""},null,null,null,null,{"$f":"IF('Erläuterungen Finanzierungsplan'!F63=\"\",\"\",'Erläuterungen Finanzierungsplan'!F63)","v":""},null,null,null,null,null,{"$f":"IF('Erläuterungen Finanzierungsplan'!N63=\"\",\"\",'Erläuterungen Finanzierungsplan'!N63)","v":""},null,null,{"$f":"IF('Erläuterungen Finanzierungsplan'!P63=\"\",\"\",'Erläuterungen Finanzierungsplan'!P63)","v":""},null,{"$f":"IF('Erläuterungen Finanzierungsplan'!R63=\"\",\"\",'Erläuterungen Finanzierungsplan'!R63)","v":""},null,{"$f":"IF('Erläuterungen Finanzierungsplan'!U63=\"\",\"\",'Erläuterungen Finanzierungsplan'!U63)","v":""},null,null,null,null,{"$f":"IF('Erläuterungen Finanzierungsplan'!X63=\"\",\"\",'Erläuterungen Finanzierungsplan'!X63)","v":""},null,null,null,null,null,null,{"$f":"IF('Erläuterungen Finanzierungsplan'!Z63=\"\",\"\",'Erläuterungen Finanzierungsplan'!Z63)","v":""},null,null,null,{"$f":"IF(U117=\"\",\"\",U117*AA117)","v":""},null,null,null,{"$f":"IF(AI117=\"\",\"\",IF(AI117<AE117,AE117-AI117,0))","v":""}]
[{"$f":"IF('Erläuterungen Finanzierungsplan'!A64=\"\",\"\",'Erläuterungen Finanzierungsplan'!A64)","v":""},null,null,null,null,{"$f":"IF('Erläuterungen Finanzierungsplan'!F64=\"\",\"\",'Erläuterungen Finanzierungsplan'!F64)","v":""},null,null,null,null,null,{"$f":"IF('Erläuterungen Finanzierungsplan'!N64=\"\",\"\",'Erläuterungen Finanzierungsplan'!N64)","v":""},null,null,{"$f":"IF('Erläuterungen Finanzierungsplan'!P64=\"\",\"\",'Erläuterungen Finanzierungsplan'!P64)","v":""},null,{"$f":"IF('Erläuterungen Finanzierungsplan'!R64=\"\",\"\",'Erläuterungen Finanzierungsplan'!R64)","v":""},null,{"$f":"IF('Erläuterungen Finanzierungsplan'!U64=\"\",\"\",'Erläuterungen Finanzierungsplan'!U64)","v":""},null,null,null,null,{"$f":"IF('Erläuterungen Finanzierungsplan'!X64=\"\",\"\",'Erläuterungen Finanzierungsplan'!X64)","v":""},null,null,null,null,null,null,{"$f":"IF('Erläuterungen Finanzierungsplan'!Z64=\"\",\"\",'Erläuterungen Finanzierungsplan'!Z64)","v":""},null,null,null,"",null,null,null,""]
[{"$f":"IF('Erläuterungen Finanzierungsplan'!A65=\"\",\"\",'Erläuterungen Finanzierungsplan'!A65)","v":""},null,null,null,null,{"$f":"IF('Erläuterungen Finanzierungsplan'!F65=\"\",\"\",'Erläuterungen Finanzierungsplan'!F65)","v":""},null,null,null,null,null,{"$f":"IF('Erläuterungen Finanzierungsplan'!N65=\"\",\"\",'Erläuterungen Finanzierungsplan'!N65)","v":""},null,null,{"$f":"IF('Erläuterungen Finanzierungsplan'!P65=\"\",\"\",'Erläuterungen Finanzierungsplan'!P65)","v":""},null,{"$f":"IF('Erläuterungen Finanzierungsplan'!R65=\"\",\"\",'Erläuterungen Finanzierungsplan'!R65)","v":""},null,{"$f":"IF('Erläuterungen Finanzierungsplan'!U65=\"\",\"\",'Erläuterungen Finanzierungsplan'!U65)","v":""},null,null,null,null,{"$f":"IF('Erläuterungen Finanzierungsplan'!X65=\"\",\"\",'Erläuterungen Finanzierungsplan'!X65)","v":""},null,null,null,null,null,null,{"$f":"IF('Erläuterungen Finanzierungsplan'!Z65=\"\",\"\",'Erläuterungen Finanzierungsplan'!Z65)","v":""},null,null,null,"",null,null,null,""]
[{"$f":"IF('Erläuterungen Finanzierungsplan'!A66=\"\",\"\",'Erläuterungen Finanzierungsplan'!A66)","v":""},null,null,null,null,{"$f":"IF('Erläuterungen Finanzierungsplan'!F66=\"\",\"\",'Erläuterungen Finanzierungsplan'!F66)","v":""},null,null,null,null,null,{"$f":"IF('Erläuterungen Finanzierungsplan'!N66=\"\",\"\",'Erläuterungen Finanzierungsplan'!N66)","v":""},null,null,{"$f":"IF('Erläuterungen Finanzierungsplan'!P66=\"\",\"\",'Erläuterungen Finanzierungsplan'!P66)","v":""},null,{"$f":"IF('Erläuterungen Finanzierungsplan'!R66=\"\",\"\",'Erläuterungen Finanzierungsplan'!R66)","v":""},null,{"$f":"IF('Erläuterungen Finanzierungsplan'!U66=\"\",\"\",'Erläuterungen Finanzierungsplan'!U66)","v":""},null,null,null,null,{"$f":"IF('Erläuterungen Finanzierungsplan'!X66=\"\",\"\",'Erläuterungen Finanzierungsplan'!X66)","v":""},null,null,null,null,null,null,{"$f":"IF('Erläuterungen Finanzierungsplan'!Z66=\"\",\"\",'Erläuterungen Finanzierungsplan'!Z66)","v":""},null,null,null,"",null,null,null,""]
[{"$f":"IF('Erläuterungen Finanzierungsplan'!A67=\"\",\"\",'Erläuterungen Finanzierungsplan'!A67)","v":""},null,null,null,null,{"$f":"IF('Erläuterungen Finanzierungsplan'!F67=\"\",\"\",'Erläuterungen Finanzierungsplan'!F67)","v":""},null,null,null,null,null,{"$f":"IF('Erläuterungen Finanzierungsplan'!N67=\"\",\"\",'Erläuterungen Finanzierungsplan'!N67)","v":""},null,null,{"$f":"IF('Erläuterungen Finanzierungsplan'!P67=\"\",\"\",'Erläuterungen Finanzierungsplan'!P67)","v":""},null,{"$f":"IF('Erläuterungen Finanzierungsplan'!R67=\"\",\"\",'Erläuterungen Finanzierungsplan'!R67)","v":""},null,{"$f":"IF('Erläuterungen Finanzierungsplan'!U67=\"\",\"\",'Erläuterungen Finanzierungsplan'!U67)","v":""},null,null,null,null,{"$f":"IF('Erläuterungen Finanzierungsplan'!X67=\"\",\"\",'Erläuterungen Finanzierungsplan'!X67)","v":""},null,null,null,null,null,null,{"$f":"IF('Erläuterungen Finanzierungsplan'!Z67=\"\",\"\",'Erläuterungen Finanzierungsplan'!Z67)","v":""},null,null,null,"",null,null,null,""]
[{"$f":"IF('Erläuterungen Finanzierungsplan'!A68=\"\",\"\",'Erläuterungen Finanzierungsplan'!A68)","v":""},null,null,null,null,{"$f":"IF('Erläuterungen Finanzierungsplan'!F68=\"\",\"\",'Erläuterungen Finanzierungsplan'!F68)","v":""},null,null,null,null,null,{"$f":"IF('Erläuterungen Finanzierungsplan'!N68=\"\",\"\",'Erläuterungen Finanzierungsplan'!N68)","v":""},null,null,{"$f":"IF('Erläuterungen Finanzierungsplan'!P68=\"\",\"\",'Erläuterungen Finanzierungsplan'!P68)","v":""},null,{"$f":"IF('Erläuterungen Finanzierungsplan'!R68=\"\",\"\",'Erläuterungen Finanzierungsplan'!R68)","v":""},null,{"$f":"IF('Erläuterungen Finanzierungsplan'!U68=\"\",\"\",'Erläuterungen Finanzierungsplan'!U68)","v":""},null,null,null,null,{"$f":"IF('Erläuterungen Finanzierungsplan'!X68=\"\",\"\",'Erläuterungen Finanzierungsplan'!X68)","v":""},null,null,null,null,null,null,{"$f":"IF('Erläuterungen Finanzierungsplan'!Z68=\"\",\"\",'Erläuterungen Finanzierungsplan'!Z68)","v":""},null,null,null,"",null,null,null,""]
[{"$f":"IF('Erläuterungen Finanzierungsplan'!A69=\"\",\"\",'Erläuterungen Finanzierungsplan'!A69)","v":""},null,null,null,null,{"$f":"IF('Erläuterungen Finanzierungsplan'!F69=\"\",\"\",'Erläuterungen Finanzierungsplan'!F69)","v":""},null,null,null,null,null,{"$f":"IF('Erläuterungen Finanzierungsplan'!N69=\"\",\"\",'Erläuterungen Finanzierungsplan'!N69)","v":""},null,null,{"$f":"IF('Erläuterungen Finanzierungsplan'!P69=\"\",\"\",'Erläuterungen Finanzierungsplan'!P69)","v":""},null,{"$f":"IF('Erläuterungen Finanzierungsplan'!R69=\"\",\"\",'Erläuterungen Finanzierungsplan'!R69)","v":""},null,{"$f":"IF('Erläuterungen Finanzierungsplan'!U69=\"\",\"\",'Erläuterungen Finanzierungsplan'!U69)","v":""},null,null,null,null,{"$f":"IF('Erläuterungen Finanzierungsplan'!X69=\"\",\"\",'Erläuterungen Finanzierungsplan'!X69)","v":""},null,null,null,null,null,null,{"$f":"IF('Erläuterungen Finanzierungsplan'!Z69=\"\",\"\",'Erläuterungen Finanzierungsplan'!Z69)","v":""},null,null,null,"",null,null,null,""]
[{"$f":"IF('Erläuterungen Finanzierungsplan'!A70=\"\",\"\",'Erläuterungen Finanzierungsplan'!A70)","v":""},null,null,null,null,{"$f":"IF('Erläuterungen Finanzierungsplan'!F70=\"\",\"\",'Erläuterungen Finanzierungsplan'!F70)","v":""},null,null,null,null,null,{"$f":"IF('Erläuterungen Finanzierungsplan'!N70=\"\",\"\",'Erläuterungen Finanzierungsplan'!N70)","v":""},null,null,{"$f":"IF('Erläuterungen Finanzierungsplan'!P70=\"\",\"\",'Erläuterungen Finanzierungsplan'!P70)","v":""},null,{"$f":"IF('Erläuterungen Finanzierungsplan'!R70=\"\",\"\",'Erläuterungen Finanzierungsplan'!R70)","v":""},null,{"$f":"IF('Erläuterungen Finanzierungsplan'!U70=\"\",\"\",'Erläuterungen Finanzierungsplan'!U70)","v":""},null,null,null,null,{"$f":"IF('Erläuterungen Finanzierungsplan'!X70=\"\",\"\",'Erläuterungen Finanzierungsplan'!X70)","v":""},null,null,null,null,null,null,{"$f":"IF('Erläuterungen Finanzierungsplan'!Z70=\"\",\"\",'Erläuterungen Finanzierungsplan'!Z70)","v":""},null,null,null,"",null,null,null,""]
[{"$f":"IF('Erläuterungen Finanzierungsplan'!A71=\"\",\"\",'Erläuterungen Finanzierungsplan'!A71)","v":""},null,null,null,null,{"$f":"IF('Erläuterungen Finanzierungsplan'!F71=\"\",\"\",'Erläuterungen Finanzierungsplan'!F71)","v":""},null,null,null,null,null,{"$f":"IF('Erläuterungen Finanzierungsplan'!N71=\"\",\"\",'Erläuterungen Finanzierungsplan'!N71)","v":""},null,null,{"$f":"IF('Erläuterungen Finanzierungsplan'!P71=\"\",\"\",'Erläuterungen Finanzierungsplan'!P71)","v":""},null,{"$f":"IF('Erläuterungen Finanzierungsplan'!R71=\"\",\"\",'Erläuterungen Finanzierungsplan'!R71)","v":""},null,{"$f":"IF('Erläuterungen Finanzierungsplan'!U71=\"\",\"\",'Erläuterungen Finanzierungsplan'!U71)","v":""},null,null,null,null,{"$f":"IF('Erläuterungen Finanzierungsplan'!X71=\"\",\"\",'Erläuterungen Finanzierungsplan'!X71)","v":""},null,null,null,null,null,null,{"$f":"IF('Erläuterungen Finanzierungsplan'!Z71=\"\",\"\",'Erläuterungen Finanzierungsplan'!Z71)","v":""},null,null,null,"",null,null,null,""]
[{"$f":"IF('Erläuterungen Finanzierungsplan'!A72=\"\",\"\",'Erläuterungen Finanzierungsplan'!A72)","v":""},null,null,null,null,{"$f":"IF('Erläuterungen Finanzierungsplan'!F72=\"\",\"\",'Erläuterungen Finanzierungsplan'!F72)","v":""},null,null,null,null,null,{"$f":"IF('Erläuterungen Finanzierungsplan'!N72=\"\",\"\",'Erläuterungen Finanzierungsplan'!N72)","v":""},null,null,{"$f":"IF('Erläuterungen Finanzierungsplan'!P72=\"\",\"\",'Erläuterungen Finanzierungsplan'!P72)","v":""},null,{"$f":"IF('Erläuterungen Finanzierungsplan'!R72=\"\",\"\",'Erläuterungen Finanzierungsplan'!R72)","v":""},null,{"$f":"IF('Erläuterungen Finanzierungsplan'!U72=\"\",\"\",'Erläuterungen Finanzierungsplan'!U72)","v":""},null,null,null,null,{"$f":"IF('Erläuterungen Finanzierungsplan'!X72=\"\",\"\",'Erläuterungen Finanzierungsplan'!X72)","v":""},null,null,null,null,null,null,{"$f":"IF('Erläuterungen Finanzierungsplan'!Z72=\"\",\"\",'Erläuterungen Finanzierungsplan'!Z72)","v":""},null,null,null,"",null,null,null,""]
[{"$f":"IF('Erläuterungen Finanzierungsplan'!A73=\"\",\"\",'Erläuterungen Finanzierungsplan'!A73)","v":""},null,null,null,null,{"$f":"IF('Erläuterungen Finanzierungsplan'!F73=\"\",\"\",'Erläuterungen Finanzierungsplan'!F73)","v":""},null,null,null,null,null,{"$f":"IF('Erläuterungen Finanzierungsplan'!N73=\"\",\"\",'Erläuterungen Finanzierungsplan'!N73)","v":""},null,null,{"$f":"IF('Erläuterungen Finanzierungsplan'!P73=\"\",\"\",'Erläuterungen Finanzierungsplan'!P73)","v":""},null,{"$f":"IF('Erläuterungen Finanzierungsplan'!R73=\"\",\"\",'Erläuterungen Finanzierungsplan'!R73)","v":""},null,{"$f":"IF('Erläuterungen Finanzierungsplan'!U73=\"\",\"\",'Erläuterungen Finanzierungsplan'!U73)","v":""},null,null,null,null,{"$f":"IF('Erläuterungen Finanzierungsplan'!X73=\"\",\"\",'Erläuterungen Finanzierungsplan'!X73)","v":""},null,null,null,null,null,null,{"$f":"IF('Erläuterungen Finanzierungsplan'!Z73=\"\",\"\",'Erläuterungen Finanzierungsplan'!Z73)","v":""},null,null,null,"",null,null,null,""]
[{"$f":"IF('Erläuterungen Finanzierungsplan'!A74=\"\",\"\",'Erläuterungen Finanzierungsplan'!A74)","v":""},null,null,null,null,{"$f":"IF('Erläuterungen Finanzierungsplan'!F74=\"\",\"\",'Erläuterungen Finanzierungsplan'!F74)","v":""},null,null,null,null,null,{"$f":"IF('Erläuterungen Finanzierungsplan'!N74=\"\",\"\",'Erläuterungen Finanzierungsplan'!N74)","v":""},null,null,{"$f":"IF('Erläuterungen Finanzierungsplan'!P74=\"\",\"\",'Erläuterungen Finanzierungsplan'!P74)","v":""},null,{"$f":"IF('Erläuterungen Finanzierungsplan'!R74=\"\",\"\",'Erläuterungen Finanzierungsplan'!R74)","v":""},null,{"$f":"IF('Erläuterungen Finanzierungsplan'!U74=\"\",\"\",'Erläuterungen Finanzierungsplan'!U74)","v":""},null,null,null,null,{"$f":"IF('Erläuterungen Finanzierungsplan'!X74=\"\",\"\",'Erläuterungen Finanzierungsplan'!X74)","v":""},null,null,null,null,null,null,{"$f":"IF('Erläuterungen Finanzierungsplan'!Z74=\"\",\"\",'Erläuterungen Finanzierungsplan'!Z74)","v":""},null,null,null,"",null,null,null,""]
[{"$f":"IF('Erläuterungen Finanzierungsplan'!A75=\"\",\"\",'Erläuterungen Finanzierungsplan'!A75)","v":""},null,null,null,null,{"$f":"IF('Erläuterungen Finanzierungsplan'!F75=\"\",\"\",'Erläuterungen Finanzierungsplan'!F75)","v":""},null,null,null,null,null,{"$f":"IF('Erläuterungen Finanzierungsplan'!N75=\"\",\"\",'Erläuterungen Finanzierungsplan'!N75)","v":""},null,null,{"$f":"IF('Erläuterungen Finanzierungsplan'!P75=\"\",\"\",'Erläuterungen Finanzierungsplan'!P75)","v":""},null,{"$f":"IF('Erläuterungen Finanzierungsplan'!R75=\"\",\"\",'Erläuterungen Finanzierungsplan'!R75)","v":""},null,{"$f":"IF('Erläuterungen Finanzierungsplan'!U75=\"\",\"\",'Erläuterungen Finanzierungsplan'!U75)","v":""},null,null,null,null,{"$f":"IF('Erläuterungen Finanzierungsplan'!X75=\"\",\"\",'Erläuterungen Finanzierungsplan'!X75)","v":""},null,null,null,null,null,null,{"$f":"IF('Erläuterungen Finanzierungsplan'!Z75=\"\",\"\",'Erläuterungen Finanzierungsplan'!Z75)","v":""},null,null,null,"",null,null,null,""]
[{"$f":"IF('Erläuterungen Finanzierungsplan'!A76=\"\",\"\",'Erläuterungen Finanzierungsplan'!A76)","v":""},null,null,null,null,{"$f":"IF('Erläuterungen Finanzierungsplan'!F76=\"\",\"\",'Erläuterungen Finanzierungsplan'!F76)","v":""},null,null,null,null,null,{"$f":"IF('Erläuterungen Finanzierungsplan'!N76=\"\",\"\",'Erläuterungen Finanzierungsplan'!N76)","v":""},null,null,{"$f":"IF('Erläuterungen Finanzierungsplan'!P76=\"\",\"\",'Erläuterungen Finanzierungsplan'!P76)","v":""},null,{"$f":"IF('Erläuterungen Finanzierungsplan'!R76=\"\",\"\",'Erläuterungen Finanzierungsplan'!R76)","v":""},null,{"$f":"IF('Erläuterungen Finanzierungsplan'!U76=\"\",\"\",'Erläuterungen Finanzierungsplan'!U76)","v":""},null,null,null,null,{"$f":"IF('Erläuterungen Finanzierungsplan'!X76=\"\",\"\",'Erläuterungen Finanzierungsplan'!X76)","v":""},null,null,null,null,null,null,{"$f":"IF('Erläuterungen Finanzierungsplan'!Z76=\"\",\"\",'Erläuterungen Finanzierungsplan'!Z76)","v":""},null,null,null,"",null,null,null,""]
[null,null,null,null,null,null,null,null,null,null,null,null,null,null,null,null,null,null,null,null,null,null,null,null,null,null,null,null,null,null,{"$f":"SUM(AE116:AH130)","v":0},null,null,null,{"$f":"SUM(AI116:AL130)","v":0},null,null,null,{"$f":"SUM(AM116:AP130)","v":0}]
[]
[null,"weitere Anmerkungen / Begründungen / Hinweise",null,null,null,null,null,null,null,null,null,null,{"$f":"IF(AN131=0,\"\",A561)","v":""}]
[null,"Unterhalb des EG-Schwellenwertes (siehe Tabelle im Intranet) besteht nach § 1 VOL/A sowie § 1 VOF bei freiberuflichen Tätigkeiten keine Verpflichtung, die VOL/A oder die VOF anzuwenden. Zu der freiberuflichen Tätigkeit gehören die selbständig ausgeübte wissenschaftliche, künstlerische, schriftstellerische, unterrichtende oder erzieherische Tätigkeit, [...] und ähnlicher Berufe. Es erfolgt keine vergaberechtliche Prüfung.\n\nHier die Prüfung der Ausgaben auf Angemessenheit und Notwendigkeit. \n\nHilfstext (wenn zutreffend den Antragsinhalten anpassen/ansonsten löschen):\nöffentlicher Antragsteller: Gemäß Zuwendungsbescheid ist als Auflage standardmäßig die Vorlage der Vergabeunterlagen geregelt. Diese sind bei Geltendmachung der Ausgaben vorzulegen und durch die NBank zu prüfen.\nprivater Antragsteller: Bei nicht-öffentlichen Auftraggebern gem. Ziffern 3.2/3.3 ANBest-EFRE/ESF kann bei allen Aufträgen mit einem geschätzten Auftragswert bis max. 15.000 Euro netto eine Direktvergabe erfolgen, siehe Ziffer 3.2.3 ANBest-EFRE/ESF. Somit ist seitens des Trägers die Marküblichkeit der Honorarausgaben nachzuweisen, hierzu erfolgt eine Auflage.\n"]
[]
[]
[]
[]
[]
[]
[]
[]
[]
[]
[]
[]
[]
[]
[]
[]
[null,"Ergebnis Ausgabenpositionen 1.2"]
[]
[null,"beantragte Beträge",null,null,null,null,null,null,{"$f":"AE131","v":0}]
[null,"Kürzungen",null,null,null,null,null,null,{"$f":"AM131","v":0}]
[null,"anerkannte Beträge",null,null,null,null,null,null,{"$f":"AI131","v":0}]
[]
[]
[]
["Ausgabenposition 1.3 (Arbeitsentgelt des Verwaltungspersonals inkl. Sozialabgaben)"]
[]
["Name, Vorname",null,null,null,null,"Wöchentliche Arbeitszeit einer Vollzeitstelle beim AG",null,"Wöchentliche vertragl. Arbeitszeit des MA",null,"Wochen-stunden des MA im Projekt",null,"Im Projekt \neingesetzt vom",null,null,"Im Projekt \neingesetzt bis",null,"Monate im Projekt",null,"Produktiv-stunden \nbeantragt",null,"Produktiv-stunden \nanerkannt",null,"bei Zuwen-dungs-\nempfänger beschäftigt",null,"Tätigkeit im Projekt",null,null,null,null,null,"Quali.nachweis liegt vor","Beantragtes AG-Brutto (Gesamt)",null,null,null,null,"Monatsarbeitnehmerbruttoverdienst",null,null,null,null,null,"jährliche Sonderzahlung",null,null,null,null,null,"Bewilligte Gesamtausgaben ohne Ausfschlag\n\nÜbertragung aus Personaltabelle"]
[]
[{"$f":"IF('Erläuterungen Finanzierungsplan'!A84=\"\",\"\",'Erläuterungen Finanzierungsplan'!A84)","v":""},null,null,null,null,{"$f":"IF('Erläuterungen Finanzierungsplan'!F84=\"\",\"\",'Erläuterungen Finanzierungsplan'!F84)","v":""},null,{"$f":"IF('Erläuterungen Finanzierungsplan'!H84=\"\",\"\",'Erläuterungen Finanzierungsplan'!H84)","v":""},null,{"$f":"IF('Erläuterungen Finanzierungsplan'!J84=\"\",\"\",'Erläuterungen Finanzierungsplan'!J84)","v":""},null,{"$f":"IF('Erläuterungen Finanzierungsplan'!L84=\"\",\"\",'Erläuterungen Finanzierungsplan'!L84)","v":""},null,null,{"$f":"IF('Erläuterungen Finanzierungsplan'!N84=\"\",\"\",'Erläuterungen Finanzierungsplan'!N84)","v":""},null,{"$f":"IF('Erläuterungen Finanzierungsplan'!P84=\"\",\"\",'Erläuterungen Finanzierungsplan'!P84)","v":""},null,{"$f":"IF('Erläuterungen Finanzierungsplan'!R84=\"\",\"\",'Erläuterungen Finanzierungsplan'!R84)","v":""},null,null,null,{"$f":"IF('Erläuterungen Finanzierungsplan'!AB84=\"\",\"\",'Erläuterungen Finanzierungsplan'!AB84)","v":""},null,{"$f":"IF('Erläuterungen Finanzierungsplan'!T84=\"\",\"\",'Erläuterungen Finanzierungsplan'!T84)","v":""},null,null,null,null,null,null,null,null,null,null,null,{"$f":"IF('Erläuterungen Finanzierungsplan'!AI84=\"\",\"\",'Erläuterungen Finanzierungsplan'!AI84)","v":""},null,null,null,null,null,{"$f":"IF('Erläuterungen Finanzierungsplan'!AN84=\"\",\"\",'Erläuterungen Finanzierungsplan'!AN84)","v":""},null,null,null,null,null,{"$f":"IF('Erläuterungen Finanzierungsplan'!AS84=\"\",\"\",'Erläuterungen Finanzierungsplan'!AS84)","v":""}]
[{"$f":"IF('Erläuterungen Finanzierungsplan'!A85=\"\",\"\",'Erläuterungen Finanzierungsplan'!A85)","v":""},null,null,null,null,{"$f":"IF('Erläuterungen Finanzierungsplan'!F85=\"\",\"\",'Erläuterungen Finanzierungsplan'!F85)","v":""},null,{"$f":"IF('Erläuterungen Finanzierungsplan'!H85=\"\",\"\",'Erläuterungen Finanzierungsplan'!H85)","v":""},null,{"$f":"IF('Erläuterungen Finanzierungsplan'!J85=\"\",\"\",'Erläuterungen Finanzierungsplan'!J85)","v":""},null,{"$f":"IF('Erläuterungen Finanzierungsplan'!L85=\"\",\"\",'Erläuterungen Finanzierungsplan'!L85)","v":""},null,null,{"$f":"IF('Erläuterungen Finanzierungsplan'!N85=\"\",\"\",'Erläuterungen Finanzierungsplan'!N85)","v":""},null,{"$f":"IF('Erläuterungen Finanzierungsplan'!P85=\"\",\"\",'Erläuterungen Finanzierungsplan'!P85)","v":""},null,{"$f":"IF('Erläuterungen Finanzierungsplan'!R85=\"\",\"\",'Erläuterungen Finanzierungsplan'!R85)","v":""},null,null,null,{"$f":"IF('Erläuterungen Finanzierungsplan'!AB85=\"\",\"\",'Erläuterungen Finanzierungsplan'!AB85)","v":""},null,{"$f":"IF('Erläuterungen Finanzierungsplan'!T85=\"\",\"\",'Erläuterungen Finanzierungsplan'!T85)","v":""},null,null,null,null,null,null,{"$f":"IF('Erläuterungen Finanzierungsplan'!AD85=\"\",\"\",'Erläuterungen Finanzierungsplan'!AD85)","v":""},null,null,null,null,{"$f":"IF('Erläuterungen Finanzierungsplan'!AI85=\"\",\"\",'Erläuterungen Finanzierungsplan'!AI85)","v":""},null,null,null,null,null,{"$f":"IF('Erläuterungen Finanzierungsplan'!AN85=\"\",\"\",'Erläuterungen Finanzierungsplan'!AN85)","v":""},null,null,null,null,null,{"$f":"IF('Erläuterungen Finanzierungsplan'!AS85=\"\",\"\",'Erläuterungen Finanzierungsplan'!AS85)","v":""}]
[{"$f":"IF('Erläuterungen Finanzierungsplan'!A86=\"\",\"\",'Erläuterungen Finanzierungsplan'!A86)","v":""},null,null,null,null,{"$f":"IF('Erläuterungen Finanzierungsplan'!F86=\"\",\"\",'Erläuterungen Finanzierungsplan'!F86)","v":""},null,{"$f":"IF('Erläuterungen Finanzierungsplan'!H86=\"\",\"\",'Erläuterungen Finanzierungsplan'!H86)","v":""},null,{"$f":"IF('Erläuterungen Finanzierungsplan'!J86=\"\",\"\",'Erläuterungen Finanzierungsplan'!J86)","v":""},null,{"$f":"IF('Erläuterungen Finanzierungsplan'!L86=\"\",\"\",'Erläuterungen Finanzierungsplan'!L86)","v":""},null,null,{"$f":"IF('Erläuterungen Finanzierungsplan'!N86=\"\",\"\",'Erläuterungen Finanzierungsplan'!N86)","v":""},null,{"$f":"IF('Erläuterungen Finanzierungsplan'!P86=\"\",\"\",'Erläuterungen Finanzierungsplan'!P86)","v":""},null,{"$f":"IF('Erläuterungen Finanzierungsplan'!R86=\"\",\"\",'Erläuterungen Finanzierungsplan'!R86)","v":""},null,null,null,{"$f":"IF('Erläuterungen Finanzierungsplan'!AB86=\"\",\"\",'Erläuterungen Finanzierungsplan'!AB86)","v":""},null,{"$f":"IF('Erläuterungen Finanzierungsplan'!T86=\"\",\"\",'Erläuterungen Finanzierungsplan'!T86)","v":""},null,null,null,null,null,null,{"$f":"IF('Erläuterungen Finanzierungsplan'!AD86=\"\",\"\",'Erläuterungen Finanzierungsplan'!AD86)","v":""},null,null,null,null,{"$f":"IF('Erläuterungen Finanzierungsplan'!AI86=\"\",\"\",'Erläuterungen Finanzierungsplan'!AI86)","v":""},null,null,null,null,null,{"$f":"IF('Erläuterungen Finanzierungsplan'!AN86=\"\",\"\",'Erläuterungen Finanzierungsplan'!AN86)","v":""},null,null,null,null,null,{"$f":"IF('Erläuterungen Finanzierungsplan'!AS86=\"\",\"\",'Erläuterungen Finanzierungsplan'!AS86)","v":""}]
[{"$f":"IF('Erläuterungen Finanzierungsplan'!A87=\"\",\"\",'Erläuterungen Finanzierungsplan'!A87)","v":""},null,null,null,null,{"$f":"IF('Erläuterungen Finanzierungsplan'!F87=\"\",\"\",'Erläuterungen Finanzierungsplan'!F87)","v":""},null,{"$f":"IF('Erläuterungen Finanzierungsplan'!H87=\"\",\"\",'Erläuterungen Finanzierungsplan'!H87)","v":""},null,{"$f":"IF('Erläuterungen Finanzierungsplan'!J87=\"\",\"\",'Erläuterungen Finanzierungsplan'!J87)","v":""},null,{"$f":"IF('Erläuterungen Finanzierungsplan'!L87=\"\",\"\",'Erläuterungen Finanzierungsplan'!L87)","v":""},null,null,{"$f":"IF('Erläuterungen Finanzierungsplan'!N87=\"\",\"\",'Erläuterungen Finanzierungsplan'!N87)","v":""},null,{"$f":"IF('Erläuterungen Finanzierungsplan'!P87=\"\",\"\",'Erläuterungen Finanzierungsplan'!P87)","v":""},null,{"$f":"IF('Erläuterungen Finanzierungsplan'!R87=\"\",\"\",'Erläuterungen Finanzierungsplan'!R87)","v":""},null,null,null,{"$f":"IF('Erläuterungen Finanzierungsplan'!AB87=\"\",\"\",'Erläuterungen Finanzierungsplan'!AB87)","v":""},null,{"$f":"IF('Erläuterungen Finanzierungsplan'!T87=\"\",\"\",'Erläuterungen Finanzierungsplan'!T87)","v":""},null,null,null,null,null,null,{"$f":"IF('Erläuterungen Finanzierungsplan'!AD87=\"\",\"\",'Erläuterungen Finanzierungsplan'!AD87)","v":""},null,null,null,null,{"$f":"IF('Erläuterungen Finanzierungsplan'!AI87=\"\",\"\",'Erläuterungen Finanzierungsplan'!AI87)","v":""},null,null,null,null,null,{"$f":"IF('Erläuterungen Finanzierungsplan'!AN87=\"\",\"\",'Erläuterungen Finanzierungsplan'!AN87)","v":""},null,null,null,null,null,{"$f":"IF('Erläuterungen Finanzierungsplan'!AS87=\"\",\"\",'Erläuterungen Finanzierungsplan'!AS87)","v":""}]
[{"$f":"IF('Erläuterungen Finanzierungsplan'!A88=\"\",\"\",'Erläuterungen Finanzierungsplan'!A88)","v":""},null,null,null,null,{"$f":"IF('Erläuterungen Finanzierungsplan'!F88=\"\",\"\",'Erläuterungen Finanzierungsplan'!F88)","v":""},null,{"$f":"IF('Erläuterungen Finanzierungsplan'!H88=\"\",\"\",'Erläuterungen Finanzierungsplan'!H88)","v":""},null,{"$f":"IF('Erläuterungen Finanzierungsplan'!J88=\"\",\"\",'Erläuterungen Finanzierungsplan'!J88)","v":""},null,{"$f":"IF('Erläuterungen Finanzierungsplan'!L88=\"\",\"\",'Erläuterungen Finanzierungsplan'!L88)","v":""},null,null,{"$f":"IF('Erläuterungen Finanzierungsplan'!N88=\"\",\"\",'Erläuterungen Finanzierungsplan'!N88)","v":""},null,{"$f":"IF('Erläuterungen Finanzierungsplan'!P88=\"\",\"\",'Erläuterungen Finanzierungsplan'!P88)","v":""},null,{"$f":"IF('Erläuterungen Finanzierungsplan'!R88=\"\",\"\",'Erläuterungen Finanzierungsplan'!R88)","v":""},null,null,null,{"$f":"IF('Erläuterungen Finanzierungsplan'!AB88=\"\",\"\",'Erläuterungen Finanzierungsplan'!AB88)","v":""},null,{"$f":"IF('Erläuterungen Finanzierungsplan'!T88=\"\",\"\",'Erläuterungen Finanzierungsplan'!T88)","v":""},null,null,null,null,null,null,{"$f":"IF('Erläuterungen Finanzierungsplan'!AD88=\"\",\"\",'Erläuterungen Finanzierungsplan'!AD88)","v":""},null,null,null,null,{"$f":"IF('Erläuterungen Finanzierungsplan'!AI88=\"\",\"\",'Erläuterungen Finanzierungsplan'!AI88)","v":""},null,null,null,null,null,{"$f":"IF('Erläuterungen Finanzierungsplan'!AN88=\"\",\"\",'Erläuterungen Finanzierungsplan'!AN88)","v":""},null,null,null,null,null,{"$f":"IF('Erläuterungen Finanzierungsplan'!AS88=\"\",\"\",'Erläuterungen Finanzierungsplan'!AS88)","v":""}]
[{"$f":"IF('Erläuterungen Finanzierungsplan'!A89=\"\",\"\",'Erläuterungen Finanzierungsplan'!A89)","v":""},null,null,null,null,{"$f":"IF('Erläuterungen Finanzierungsplan'!F89=\"\",\"\",'Erläuterungen Finanzierungsplan'!F89)","v":""},null,{"$f":"IF('Erläuterungen Finanzierungsplan'!H89=\"\",\"\",'Erläuterungen Finanzierungsplan'!H89)","v":""},null,{"$f":"IF('Erläuterungen Finanzierungsplan'!J89=\"\",\"\",'Erläuterungen Finanzierungsplan'!J89)","v":""},null,{"$f":"IF('Erläuterungen Finanzierungsplan'!L89=\"\",\"\",'Erläuterungen Finanzierungsplan'!L89)","v":""},null,null,{"$f":"IF('Erläuterungen Finanzierungsplan'!N89=\"\",\"\",'Erläuterungen Finanzierungsplan'!N89)","v":""},null,{"$f":"IF('Erläuterungen Finanzierungsplan'!P89=\"\",\"\",'Erläuterungen Finanzierungsplan'!P89)","v":""},null,{"$f":"IF('Erläuterungen Finanzierungsplan'!R89=\"\",\"\",'Erläuterungen Finanzierungsplan'!R89)","v":""},null,null,null,{"$f":"IF('Erläuterungen Finanzierungsplan'!AB89=\"\",\"\",'Erläuterungen Finanzierungsplan'!AB89)","v":""},null,{"$f":"IF('Erläuterungen Finanzierungsplan'!T89=\"\",\"\",'Erläuterungen Finanzierungsplan'!T89)","v":""},null,null,null,null,null,null,{"$f":"IF('Erläuterungen Finanzierungsplan'!AD89=\"\",\"\",'Erläuterungen Finanzierungsplan'!AD89)","v":""},null,null,null,null,{"$f":"IF('Erläuterungen Finanzierungsplan'!AI89=\"\",\"\",'Erläuterungen Finanzierungsplan'!AI89)","v":""},null,null,null,null,null,{"$f":"IF('Erläuterungen Finanzierungsplan'!AN89=\"\",\"\",'Erläuterungen Finanzierungsplan'!AN89)","v":""},null,null,null,null,null,{"$f":"IF('Erläuterungen Finanzierungsplan'!AS89=\"\",\"\",'Erläuterungen Finanzierungsplan'!AS89)","v":""}]
[{"$f":"IF('Erläuterungen Finanzierungsplan'!A90=\"\",\"\",'Erläuterungen Finanzierungsplan'!A90)","v":""},null,null,null,null,{"$f":"IF('Erläuterungen Finanzierungsplan'!F90=\"\",\"\",'Erläuterungen Finanzierungsplan'!F90)","v":""},null,{"$f":"IF('Erläuterungen Finanzierungsplan'!H90=\"\",\"\",'Erläuterungen Finanzierungsplan'!H90)","v":""},null,{"$f":"IF('Erläuterungen Finanzierungsplan'!J90=\"\",\"\",'Erläuterungen Finanzierungsplan'!J90)","v":""},null,{"$f":"IF('Erläuterungen Finanzierungsplan'!L90=\"\",\"\",'Erläuterungen Finanzierungsplan'!L90)","v":""},null,null,{"$f":"IF('Erläuterungen Finanzierungsplan'!N90=\"\",\"\",'Erläuterungen Finanzierungsplan'!N90)","v":""},null,{"$f":"IF('Erläuterungen Finanzierungsplan'!P90=\"\",\"\",'Erläuterungen Finanzierungsplan'!P90)","v":""},null,{"$f":"IF('Erläuterungen Finanzierungsplan'!R90=\"\",\"\",'Erläuterungen Finanzierungsplan'!R90)","v":""},null,null,null,{"$f":"IF('Erläuterungen Finanzierungsplan'!AB90=\"\",\"\",'Erläuterungen Finanzierungsplan'!AB90)","v":""},null,{"$f":"IF('Erläuterungen Finanzierungsplan'!T90=\"\",\"\",'Erläuterungen Finanzierungsplan'!T90)","v":""},null,null,null,null,null,null,{"$f":"IF('Erläuterungen Finanzierungsplan'!AD90=\"\",\"\",'Erläuterungen Finanzierungsplan'!AD90)","v":""},null,null,null,null,{"$f":"IF('Erläuterungen Finanzierungsplan'!AI90=\"\",\"\",'Erläuterungen Finanzierungsplan'!AI90)","v":""},null,null,null,null,null,{"$f":"IF('Erläuterungen Finanzierungsplan'!AN90=\"\",\"\",'Erläuterungen Finanzierungsplan'!AN90)","v":""},null,null,null,null,null,{"$f":"IF('Erläuterungen Finanzierungsplan'!AS90=\"\",\"\",'Erläuterungen Finanzierungsplan'!AS90)","v":""}]
[{"$f":"IF('Erläuterungen Finanzierungsplan'!A91=\"\",\"\",'Erläuterungen Finanzierungsplan'!A91)","v":""},null,null,null,null,{"$f":"IF('Erläuterungen Finanzierungsplan'!F91=\"\",\"\",'Erläuterungen Finanzierungsplan'!F91)","v":""},null,{"$f":"IF('Erläuterungen Finanzierungsplan'!H91=\"\",\"\",'Erläuterungen Finanzierungsplan'!H91)","v":""},null,{"$f":"IF('Erläuterungen Finanzierungsplan'!J91=\"\",\"\",'Erläuterungen Finanzierungsplan'!J91)","v":""},null,{"$f":"IF('Erläuterungen Finanzierungsplan'!L91=\"\",\"\",'Erläuterungen Finanzierungsplan'!L91)","v":""},null,null,{"$f":"IF('Erläuterungen Finanzierungsplan'!N91=\"\",\"\",'Erläuterungen Finanzierungsplan'!N91)","v":""},null,{"$f":"IF('Erläuterungen Finanzierungsplan'!P91=\"\",\"\",'Erläuterungen Finanzierungsplan'!P91)","v":""},null,{"$f":"IF('Erläuterungen Finanzierungsplan'!R91=\"\",\"\",'Erläuterungen Finanzierungsplan'!R91)","v":""},null,null,null,{"$f":"IF('Erläuterungen Finanzierungsplan'!AB91=\"\",\"\",'Erläuterungen Finanzierungsplan'!AB91)","v":""},null,{"$f":"IF('Erläuterungen Finanzierungsplan'!T91=\"\",\"\",'Erläuterungen Finanzierungsplan'!T91)","v":""},null,null,null,null,null,null,{"$f":"IF('Erläuterungen Finanzierungsplan'!AD91=\"\",\"\",'Erläuterungen Finanzierungsplan'!AD91)","v":""},null,null,null,null,{"$f":"IF('Erläuterungen Finanzierungsplan'!AI91=\"\",\"\",'Erläuterungen Finanzierungsplan'!AI91)","v":""},null,null,null,null,null,{"$f":"IF('Erläuterungen Finanzierungsplan'!AN91=\"\",\"\",'Erläuterungen Finanzierungsplan'!AN91)","v":""},null,null,null,null,null,{"$f":"IF('Erläuterungen Finanzierungsplan'!AS91=\"\",\"\",'Erläuterungen Finanzierungsplan'!AS91)","v":""}]
[{"$f":"IF('Erläuterungen Finanzierungsplan'!A92=\"\",\"\",'Erläuterungen Finanzierungsplan'!A92)","v":""},null,null,null,null,{"$f":"IF('Erläuterungen Finanzierungsplan'!F92=\"\",\"\",'Erläuterungen Finanzierungsplan'!F92)","v":""},null,{"$f":"IF('Erläuterungen Finanzierungsplan'!H92=\"\",\"\",'Erläuterungen Finanzierungsplan'!H92)","v":""},null,{"$f":"IF('Erläuterungen Finanzierungsplan'!J92=\"\",\"\",'Erläuterungen Finanzierungsplan'!J92)","v":""},null,{"$f":"IF('Erläuterungen Finanzierungsplan'!L92=\"\",\"\",'Erläuterungen Finanzierungsplan'!L92)","v":""},null,null,{"$f":"IF('Erläuterungen Finanzierungsplan'!N92=\"\",\"\",'Erläuterungen Finanzierungsplan'!N92)","v":""},null,{"$f":"IF('Erläuterungen Finanzierungsplan'!P92=\"\",\"\",'Erläuterungen Finanzierungsplan'!P92)","v":""},null,{"$f":"IF('Erläuterungen Finanzierungsplan'!R92=\"\",\"\",'Erläuterungen Finanzierungsplan'!R92)","v":""},null,null,null,{"$f":"IF('Erläuterungen Finanzierungsplan'!AB92=\"\",\"\",'Erläuterungen Finanzierungsplan'!AB92)","v":""},null,{"$f":"IF('Erläuterungen Finanzierungsplan'!T92=\"\",\"\",'Erläuterungen Finanzierungsplan'!T92)","v":""},null,null,null,null,null,null,{"$f":"IF('Erläuterungen Finanzierungsplan'!AD92=\"\",\"\",'Erläuterungen Finanzierungsplan'!AD92)","v":""},null,null,null,null,{"$f":"IF('Erläuterungen Finanzierungsplan'!AI92=\"\",\"\",'Erläuterungen Finanzierungsplan'!AI92)","v":""},null,null,null,null,null,{"$f":"IF('Erläuterungen Finanzierungsplan'!AN92=\"\",\"\",'Erläuterungen Finanzierungsplan'!AN92)","v":""},null,null,null,null,null,{"$f":"IF('Erläuterungen Finanzierungsplan'!AS92=\"\",\"\",'Erläuterungen Finanzierungsplan'!AS92)","v":""}]
[{"$f":"IF('Erläuterungen Finanzierungsplan'!A93=\"\",\"\",'Erläuterungen Finanzierungsplan'!A93)","v":""},null,null,null,null,{"$f":"IF('Erläuterungen Finanzierungsplan'!F93=\"\",\"\",'Erläuterungen Finanzierungsplan'!F93)","v":""},null,{"$f":"IF('Erläuterungen Finanzierungsplan'!H93=\"\",\"\",'Erläuterungen Finanzierungsplan'!H93)","v":""},null,{"$f":"IF('Erläuterungen Finanzierungsplan'!J93=\"\",\"\",'Erläuterungen Finanzierungsplan'!J93)","v":""},null,{"$f":"IF('Erläuterungen Finanzierungsplan'!L93=\"\",\"\",'Erläuterungen Finanzierungsplan'!L93)","v":""},null,null,{"$f":"IF('Erläuterungen Finanzierungsplan'!N93=\"\",\"\",'Erläuterungen Finanzierungsplan'!N93)","v":""},null,{"$f":"IF('Erläuterungen Finanzierungsplan'!P93=\"\",\"\",'Erläuterungen Finanzierungsplan'!P93)","v":""},null,{"$f":"IF('Erläuterungen Finanzierungsplan'!R93=\"\",\"\",'Erläuterungen Finanzierungsplan'!R93)","v":""},null,null,null,{"$f":"IF('Erläuterungen Finanzierungsplan'!AB93=\"\",\"\",'Erläuterungen Finanzierungsplan'!AB93)","v":""},null,{"$f":"IF('Erläuterungen Finanzierungsplan'!T93=\"\",\"\",'Erläuterungen Finanzierungsplan'!T93)","v":""},null,null,null,null,null,null,{"$f":"IF('Erläuterungen Finanzierungsplan'!AD93=\"\",\"\",'Erläuterungen Finanzierungsplan'!AD93)","v":""},null,null,null,null,{"$f":"IF('Erläuterungen Finanzierungsplan'!AI93=\"\",\"\",'Erläuterungen Finanzierungsplan'!AI93)","v":""},null,null,null,null,null,{"$f":"IF('Erläuterungen Finanzierungsplan'!AN93=\"\",\"\",'Erläuterungen Finanzierungsplan'!AN93)","v":""},null,null,null,null,null,{"$f":"IF('Erläuterungen Finanzierungsplan'!AS93=\"\",\"\",'Erläuterungen Finanzierungsplan'!AS93)","v":""}]
[{"$f":"IF('Erläuterungen Finanzierungsplan'!A94=\"\",\"\",'Erläuterungen Finanzierungsplan'!A94)","v":""},null,null,null,null,{"$f":"IF('Erläuterungen Finanzierungsplan'!F94=\"\",\"\",'Erläuterungen Finanzierungsplan'!F94)","v":""},null,{"$f":"IF('Erläuterungen Finanzierungsplan'!H94=\"\",\"\",'Erläuterungen Finanzierungsplan'!H94)","v":""},null,{"$f":"IF('Erläuterungen Finanzierungsplan'!J94=\"\",\"\",'Erläuterungen Finanzierungsplan'!J94)","v":""},null,{"$f":"IF('Erläuterungen Finanzierungsplan'!L94=\"\",\"\",'Erläuterungen Finanzierungsplan'!L94)","v":""},null,null,{"$f":"IF('Erläuterungen Finanzierungsplan'!N94=\"\",\"\",'Erläuterungen Finanzierungsplan'!N94)","v":""},null,{"$f":"IF('Erläuterungen Finanzierungsplan'!P94=\"\",\"\",'Erläuterungen Finanzierungsplan'!P94)","v":""},null,{"$f":"IF('Erläuterungen Finanzierungsplan'!R94=\"\",\"\",'Erläuterungen Finanzierungsplan'!R94)","v":""},null,null,null,{"$f":"IF('Erläuterungen Finanzierungsplan'!AB94=\"\",\"\",'Erläuterungen Finanzierungsplan'!AB94)","v":""},null,{"$f":"IF('Erläuterungen Finanzierungsplan'!T94=\"\",\"\",'Erläuterungen Finanzierungsplan'!T94)","v":""},null,null,null,null,null,null,{"$f":"IF('Erläuterungen Finanzierungsplan'!AD94=\"\",\"\",'Erläuterungen Finanzierungsplan'!AD94)","v":""},null,null,null,null,{"$f":"IF('Erläuterungen Finanzierungsplan'!AI94=\"\",\"\",'Erläuterungen Finanzierungsplan'!AI94)","v":""},null,null,null,null,null,{"$f":"IF('Erläuterungen Finanzierungsplan'!AN94=\"\",\"\",'Erläuterungen Finanzierungsplan'!AN94)","v":""},null,null,null,null,null,{"$f":"IF('Erläuterungen Finanzierungsplan'!AS94=\"\",\"\",'Erläuterungen Finanzierungsplan'!AS94)","v":""}]
[{"$f":"IF('Erläuterungen Finanzierungsplan'!A95=\"\",\"\",'Erläuterungen Finanzierungsplan'!A95)","v":""},null,null,null,null,{"$f":"IF('Erläuterungen Finanzierungsplan'!F95=\"\",\"\",'Erläuterungen Finanzierungsplan'!F95)","v":""},null,{"$f":"IF('Erläuterungen Finanzierungsplan'!H95=\"\",\"\",'Erläuterungen Finanzierungsplan'!H95)","v":""},null,{"$f":"IF('Erläuterungen Finanzierungsplan'!J95=\"\",\"\",'Erläuterungen Finanzierungsplan'!J95)","v":""},null,{"$f":"IF('Erläuterungen Finanzierungsplan'!L95=\"\",\"\",'Erläuterungen Finanzierungsplan'!L95)","v":""},null,null,{"$f":"IF('Erläuterungen Finanzierungsplan'!N95=\"\",\"\",'Erläuterungen Finanzierungsplan'!N95)","v":""},null,{"$f":"IF('Erläuterungen Finanzierungsplan'!P95=\"\",\"\",'Erläuterungen Finanzierungsplan'!P95)","v":""},null,{"$f":"IF('Erläuterungen Finanzierungsplan'!R95=\"\",\"\",'Erläuterungen Finanzierungsplan'!R95)","v":""},null,null,null,{"$f":"IF('Erläuterungen Finanzierungsplan'!AB95=\"\",\"\",'Erläuterungen Finanzierungsplan'!AB95)","v":""},null,{"$f":"IF('Erläuterungen Finanzierungsplan'!T95=\"\",\"\",'Erläuterungen Finanzierungsplan'!T95)","v":""},null,null,null,null,null,null,{"$f":"IF('Erläuterungen Finanzierungsplan'!AD95=\"\",\"\",'Erläuterungen Finanzierungsplan'!AD95)","v":""},null,null,null,null,{"$f":"IF('Erläuterungen Finanzierungsplan'!AI95=\"\",\"\",'Erläuterungen Finanzierungsplan'!AI95)","v":""},null,null,null,null,null,{"$f":"IF('Erläuterungen Finanzierungsplan'!AN95=\"\",\"\",'Erläuterungen Finanzierungsplan'!AN95)","v":""},null,null,null,null,null,{"$f":"IF('Erläuterungen Finanzierungsplan'!AS95=\"\",\"\",'Erläuterungen Finanzierungsplan'!AS95)","v":""}]
[{"$f":"IF('Erläuterungen Finanzierungsplan'!A96=\"\",\"\",'Erläuterungen Finanzierungsplan'!A96)","v":""},null,null,null,null,{"$f":"IF('Erläuterungen Finanzierungsplan'!F96=\"\",\"\",'Erläuterungen Finanzierungsplan'!F96)","v":""},null,{"$f":"IF('Erläuterungen Finanzierungsplan'!H96=\"\",\"\",'Erläuterungen Finanzierungsplan'!H96)","v":""},null,{"$f":"IF('Erläuterungen Finanzierungsplan'!J96=\"\",\"\",'Erläuterungen Finanzierungsplan'!J96)","v":""},null,{"$f":"IF('Erläuterungen Finanzierungsplan'!L96=\"\",\"\",'Erläuterungen Finanzierungsplan'!L96)","v":""},null,null,{"$f":"IF('Erläuterungen Finanzierungsplan'!N96=\"\",\"\",'Erläuterungen Finanzierungsplan'!N96)","v":""},null,{"$f":"IF('Erläuterungen Finanzierungsplan'!P96=\"\",\"\",'Erläuterungen Finanzierungsplan'!P96)","v":""},null,{"$f":"IF('Erläuterungen Finanzierungsplan'!R96=\"\",\"\",'Erläuterungen Finanzierungsplan'!R96)","v":""},null,null,null,{"$f":"IF('Erläuterungen Finanzierungsplan'!AB96=\"\",\"\",'Erläuterungen Finanzierungsplan'!AB96)","v":""},null,{"$f":"IF('Erläuterungen Finanzierungsplan'!T96=\"\",\"\",'Erläuterungen Finanzierungsplan'!T96)","v":""},null,null,null,null,null,null,{"$f":"IF('Erläuterungen Finanzierungsplan'!AD96=\"\",\"\",'Erläuterungen Finanzierungsplan'!AD96)","v":""},null,null,null,null,{"$f":"IF('Erläuterungen Finanzierungsplan'!AI96=\"\",\"\",'Erläuterungen Finanzierungsplan'!AI96)","v":""},null,null,null,null,null,{"$f":"IF('Erläuterungen Finanzierungsplan'!AN96=\"\",\"\",'Erläuterungen Finanzierungsplan'!AN96)","v":""},null,null,null,null,null,{"$f":"IF('Erläuterungen Finanzierungsplan'!AS96=\"\",\"\",'Erläuterungen Finanzierungsplan'!AS96)","v":""}]
[{"$f":"IF('Erläuterungen Finanzierungsplan'!A97=\"\",\"\",'Erläuterungen Finanzierungsplan'!A97)","v":""},null,null,null,null,{"$f":"IF('Erläuterungen Finanzierungsplan'!F97=\"\",\"\",'Erläuterungen Finanzierungsplan'!F97)","v":""},null,{"$f":"IF('Erläuterungen Finanzierungsplan'!H97=\"\",\"\",'Erläuterungen Finanzierungsplan'!H97)","v":""},null,{"$f":"IF('Erläuterungen Finanzierungsplan'!J97=\"\",\"\",'Erläuterungen Finanzierungsplan'!J97)","v":""},null,{"$f":"IF('Erläuterungen Finanzierungsplan'!L97=\"\",\"\",'Erläuterungen Finanzierungsplan'!L97)","v":""},null,null,{"$f":"IF('Erläuterungen Finanzierungsplan'!N97=\"\",\"\",'Erläuterungen Finanzierungsplan'!N97)","v":""},null,{"$f":"IF('Erläuterungen Finanzierungsplan'!P97=\"\",\"\",'Erläuterungen Finanzierungsplan'!P97)","v":""},null,{"$f":"IF('Erläuterungen Finanzierungsplan'!R97=\"\",\"\",'Erläuterungen Finanzierungsplan'!R97)","v":""},null,null,null,{"$f":"IF('Erläuterungen Finanzierungsplan'!AB97=\"\",\"\",'Erläuterungen Finanzierungsplan'!AB97)","v":""},null,{"$f":"IF('Erläuterungen Finanzierungsplan'!T97=\"\",\"\",'Erläuterungen Finanzierungsplan'!T97)","v":""},null,null,null,null,null,null,{"$f":"IF('Erläuterungen Finanzierungsplan'!AD97=\"\",\"\",'Erläuterungen Finanzierungsplan'!AD97)","v":""},null,null,null,null,{"$f":"IF('Erläuterungen Finanzierungsplan'!AI97=\"\",\"\",'Erläuterungen Finanzierungsplan'!AI97)","v":""},null,null,null,null,null,{"$f":"IF('Erläuterungen Finanzierungsplan'!AN97=\"\",\"\",'Erläuterungen Finanzierungsplan'!AN97)","v":""},null,null,null,null,null,{"$f":"IF('Erläuterungen Finanzierungsplan'!AS97=\"\",\"\",'Erläuterungen Finanzierungsplan'!AS97)","v":""}]
[{"$f":"IF('Erläuterungen Finanzierungsplan'!A98=\"\",\"\",'Erläuterungen Finanzierungsplan'!A98)","v":""},null,null,null,null,{"$f":"IF('Erläuterungen Finanzierungsplan'!F98=\"\",\"\",'Erläuterungen Finanzierungsplan'!F98)","v":""},null,{"$f":"IF('Erläuterungen Finanzierungsplan'!H98=\"\",\"\",'Erläuterungen Finanzierungsplan'!H98)","v":""},null,{"$f":"IF('Erläuterungen Finanzierungsplan'!J98=\"\",\"\",'Erläuterungen Finanzierungsplan'!J98)","v":""},null,{"$f":"IF('Erläuterungen Finanzierungsplan'!L98=\"\",\"\",'Erläuterungen Finanzierungsplan'!L98)","v":""},null,null,{"$f":"IF('Erläuterungen Finanzierungsplan'!N98=\"\",\"\",'Erläuterungen Finanzierungsplan'!N98)","v":""},null,{"$f":"IF('Erläuterungen Finanzierungsplan'!P98=\"\",\"\",'Erläuterungen Finanzierungsplan'!P98)","v":""},null,{"$f":"IF('Erläuterungen Finanzierungsplan'!R98=\"\",\"\",'Erläuterungen Finanzierungsplan'!R98)","v":""},null,null,null,{"$f":"IF('Erläuterungen Finanzierungsplan'!AB98=\"\",\"\",'Erläuterungen Finanzierungsplan'!AB98)","v":""},null,{"$f":"IF('Erläuterungen Finanzierungsplan'!T98=\"\",\"\",'Erläuterungen Finanzierungsplan'!T98)","v":""},null,null,null,null,null,null,{"$f":"IF('Erläuterungen Finanzierungsplan'!AD98=\"\",\"\",'Erläuterungen Finanzierungsplan'!AD98)","v":""},null,null,null,null,{"$f":"IF('Erläuterungen Finanzierungsplan'!AI98=\"\",\"\",'Erläuterungen Finanzierungsplan'!AI98)","v":""},null,null,null,null,null,{"$f":"IF('Erläuterungen Finanzierungsplan'!AN98=\"\",\"\",'Erläuterungen Finanzierungsplan'!AN98)","v":""},null,null,null,null,null,{"$f":"IF('Erläuterungen Finanzierungsplan'!AS98=\"\",\"\",'Erläuterungen Finanzierungsplan'!AS98)","v":""}]
[{"$f":"IF('Erläuterungen Finanzierungsplan'!A99=\"\",\"\",'Erläuterungen Finanzierungsplan'!A99)","v":""},null,null,null,null,{"$f":"IF('Erläuterungen Finanzierungsplan'!F99=\"\",\"\",'Erläuterungen Finanzierungsplan'!F99)","v":""},null,{"$f":"IF('Erläuterungen Finanzierungsplan'!H99=\"\",\"\",'Erläuterungen Finanzierungsplan'!H99)","v":""},null,{"$f":"IF('Erläuterungen Finanzierungsplan'!J99=\"\",\"\",'Erläuterungen Finanzierungsplan'!J99)","v":""},null,{"$f":"IF('Erläuterungen Finanzierungsplan'!L99=\"\",\"\",'Erläuterungen Finanzierungsplan'!L99)","v":""},null,null,{"$f":"IF('Erläuterungen Finanzierungsplan'!N99=\"\",\"\",'Erläuterungen Finanzierungsplan'!N99)","v":""},null,{"$f":"IF('Erläuterungen Finanzierungsplan'!P99=\"\",\"\",'Erläuterungen Finanzierungsplan'!P99)","v":""},null,{"$f":"IF('Erläuterungen Finanzierungsplan'!R99=\"\",\"\",'Erläuterungen Finanzierungsplan'!R99)","v":""},null,null,null,{"$f":"IF('Erläuterungen Finanzierungsplan'!AB99=\"\",\"\",'Erläuterungen Finanzierungsplan'!AB99)","v":""},null,{"$f":"IF('Erläuterungen Finanzierungsplan'!T99=\"\",\"\",'Erläuterungen Finanzierungsplan'!T99)","v":""},null,null,null,null,null,null,{"$f":"IF('Erläuterungen Finanzierungsplan'!AD99=\"\",\"\",'Erläuterungen Finanzierungsplan'!AD99)","v":""},null,null,null,null,{"$f":"IF('Erläuterungen Finanzierungsplan'!AI99=\"\",\"\",'Erläuterungen Finanzierungsplan'!AI99)","v":""},null,null,null,null,null,{"$f":"IF('Erläuterungen Finanzierungsplan'!AN99=\"\",\"\",'Erläuterungen Finanzierungsplan'!AN99)","v":""},null,null,null,null,null,{"$f":"IF('Erläuterungen Finanzierungsplan'!AS99=\"\",\"\",'Erläuterungen Finanzierungsplan'!AS99)","v":""}]
[{"$f":"IF('Erläuterungen Finanzierungsplan'!A100=\"\",\"\",'Erläuterungen Finanzierungsplan'!A100)","v":""},null,null,null,null,{"$f":"IF('Erläuterungen Finanzierungsplan'!F100=\"\",\"\",'Erläuterungen Finanzierungsplan'!F100)","v":""},null,{"$f":"IF('Erläuterungen Finanzierungsplan'!H100=\"\",\"\",'Erläuterungen Finanzierungsplan'!H100)","v":""},null,{"$f":"IF('Erläuterungen Finanzierungsplan'!J100=\"\",\"\",'Erläuterungen Finanzierungsplan'!J100)","v":""},null,{"$f":"IF('Erläuterungen Finanzierungsplan'!L100=\"\",\"\",'Erläuterungen Finanzierungsplan'!L100)","v":""},null,null,{"$f":"IF('Erläuterungen Finanzierungsplan'!N100=\"\",\"\",'Erläuterungen Finanzierungsplan'!N100)","v":""},null,{"$f":"IF('Erläuterungen Finanzierungsplan'!P100=\"\",\"\",'Erläuterungen Finanzierungsplan'!P100)","v":""},null,{"$f":"IF('Erläuterungen Finanzierungsplan'!R100=\"\",\"\",'Erläuterungen Finanzierungsplan'!R100)","v":""},null,null,null,{"$f":"IF('Erläuterungen Finanzierungsplan'!AB100=\"\",\"\",'Erläuterungen Finanzierungsplan'!AB100)","v":""},null,{"$f":"IF('Erläuterungen Finanzierungsplan'!T100=\"\",\"\",'Erläuterungen Finanzierungsplan'!T100)","v":""},null,null,null,null,null,null,{"$f":"IF('Erläuterungen Finanzierungsplan'!AD100=\"\",\"\",'Erläuterungen Finanzierungsplan'!AD100)","v":""},null,null,null,null,{"$f":"IF('Erläuterungen Finanzierungsplan'!AI100=\"\",\"\",'Erläuterungen Finanzierungsplan'!AI100)","v":""},null,null,null,null,null,{"$f":"IF('Erläuterungen Finanzierungsplan'!AN100=\"\",\"\",'Erläuterungen Finanzierungsplan'!AN100)","v":""},null,null,null,null,null,{"$f":"IF('Erläuterungen Finanzierungsplan'!AS100=\"\",\"\",'Erläuterungen Finanzierungsplan'!AS100)","v":""}]
[{"$f":"IF('Erläuterungen Finanzierungsplan'!A101=\"\",\"\",'Erläuterungen Finanzierungsplan'!A101)","v":""},null,null,null,null,{"$f":"IF('Erläuterungen Finanzierungsplan'!F101=\"\",\"\",'Erläuterungen Finanzierungsplan'!F101)","v":""},null,{"$f":"IF('Erläuterungen Finanzierungsplan'!H101=\"\",\"\",'Erläuterungen Finanzierungsplan'!H101)","v":""},null,{"$f":"IF('Erläuterungen Finanzierungsplan'!J101=\"\",\"\",'Erläuterungen Finanzierungsplan'!J101)","v":""},null,{"$f":"IF('Erläuterungen Finanzierungsplan'!L101=\"\",\"\",'Erläuterungen Finanzierungsplan'!L101)","v":""},null,null,{"$f":"IF('Erläuterungen Finanzierungsplan'!N101=\"\",\"\",'Erläuterungen Finanzierungsplan'!N101)","v":""},null,{"$f":"IF('Erläuterungen Finanzierungsplan'!P101=\"\",\"\",'Erläuterungen Finanzierungsplan'!P101)","v":""},null,{"$f":"IF('Erläuterungen Finanzierungsplan'!R101=\"\",\"\",'Erläuterungen Finanzierungsplan'!R101)","v":""},null,null,null,{"$f":"IF('Erläuterungen Finanzierungsplan'!AB101=\"\",\"\",'Erläuterungen Finanzierungsplan'!AB101)","v":""},null,{"$f":"IF('Erläuterungen Finanzierungsplan'!T101=\"\",\"\",'Erläuterungen Finanzierungsplan'!T101)","v":""},null,null,null,null,null,null,{"$f":"IF('Erläuterungen Finanzierungsplan'!AD101=\"\",\"\",'Erläuterungen Finanzierungsplan'!AD101)","v":""},null,null,null,null,{"$f":"IF('Erläuterungen Finanzierungsplan'!AI101=\"\",\"\",'Erläuterungen Finanzierungsplan'!AI101)","v":""},null,null,null,null,null,{"$f":"IF('Erläuterungen Finanzierungsplan'!AN101=\"\",\"\",'Erläuterungen Finanzierungsplan'!AN101)","v":""},null,null,null,null,null,{"$f":"IF('Erläuterungen Finanzierungsplan'!AS101=\"\",\"\",'Erläuterungen Finanzierungsplan'!AS101)","v":""}]
[{"$f":"IF('Erläuterungen Finanzierungsplan'!A102=\"\",\"\",'Erläuterungen Finanzierungsplan'!A102)","v":""},null,null,null,null,{"$f":"IF('Erläuterungen Finanzierungsplan'!F102=\"\",\"\",'Erläuterungen Finanzierungsplan'!F102)","v":""},null,{"$f":"IF('Erläuterungen Finanzierungsplan'!H102=\"\",\"\",'Erläuterungen Finanzierungsplan'!H102)","v":""},null,{"$f":"IF('Erläuterungen Finanzierungsplan'!J102=\"\",\"\",'Erläuterungen Finanzierungsplan'!J102)","v":""},null,{"$f":"IF('Erläuterungen Finanzierungsplan'!L102=\"\",\"\",'Erläuterungen Finanzierungsplan'!L102)","v":""},null,null,{"$f":"IF('Erläuterungen Finanzierungsplan'!N102=\"\",\"\",'Erläuterungen Finanzierungsplan'!N102)","v":""},null,{"$f":"IF('Erläuterungen Finanzierungsplan'!P102=\"\",\"\",'Erläuterungen Finanzierungsplan'!P102)","v":""},null,{"$f":"IF('Erläuterungen Finanzierungsplan'!R102=\"\",\"\",'Erläuterungen Finanzierungsplan'!R102)","v":""},null,null,null,{"$f":"IF('Erläuterungen Finanzierungsplan'!AB102=\"\",\"\",'Erläuterungen Finanzierungsplan'!AB102)","v":""},null,{"$f":"IF('Erläuterungen Finanzierungsplan'!T102=\"\",\"\",'Erläuterungen Finanzierungsplan'!T102)","v":""},null,null,null,null,null,null,{"$f":"IF('Erläuterungen Finanzierungsplan'!AD102=\"\",\"\",'Erläuterungen Finanzierungsplan'!AD102)","v":""},null,null,null,null,{"$f":"IF('Erläuterungen Finanzierungsplan'!AI102=\"\",\"\",'Erläuterungen Finanzierungsplan'!AI102)","v":""},null,null,null,null,null,{"$f":"IF('Erläuterungen Finanzierungsplan'!AN102=\"\",\"\",'Erläuterungen Finanzierungsplan'!AN102)","v":""},null,null,null,null,null,{"$f":"IF('Erläuterungen Finanzierungsplan'!AS102=\"\",\"\",'Erläuterungen Finanzierungsplan'!AS102)","v":""}]
[{"$f":"IF('Erläuterungen Finanzierungsplan'!A103=\"\",\"\",'Erläuterungen Finanzierungsplan'!A103)","v":""},null,null,null,null,{"$f":"IF('Erläuterungen Finanzierungsplan'!F103=\"\",\"\",'Erläuterungen Finanzierungsplan'!F103)","v":""},null,{"$f":"IF('Erläuterungen Finanzierungsplan'!H103=\"\",\"\",'Erläuterungen Finanzierungsplan'!H103)","v":""},null,{"$f":"IF('Erläuterungen Finanzierungsplan'!J103=\"\",\"\",'Erläuterungen Finanzierungsplan'!J103)","v":""},null,{"$f":"IF('Erläuterungen Finanzierungsplan'!L103=\"\",\"\",'Erläuterungen Finanzierungsplan'!L103)","v":""},null,null,{"$f":"IF('Erläuterungen Finanzierungsplan'!N103=\"\",\"\",'Erläuterungen Finanzierungsplan'!N103)","v":""},null,{"$f":"IF('Erläuterungen Finanzierungsplan'!P103=\"\",\"\",'Erläuterungen Finanzierungsplan'!P103)","v":""},null,{"$f":"IF('Erläuterungen Finanzierungsplan'!R103=\"\",\"\",'Erläuterungen Finanzierungsplan'!R103)","v":""},null,null,null,{"$f":"IF('Erläuterungen Finanzierungsplan'!AB103=\"\",\"\",'Erläuterungen Finanzierungsplan'!AB103)","v":""},null,{"$f":"IF('Erläuterungen Finanzierungsplan'!T103=\"\",\"\",'Erläuterungen Finanzierungsplan'!T103)","v":""},null,null,null,null,null,null,{"$f":"IF('Erläuterungen Finanzierungsplan'!AD103=\"\",\"\",'Erläuterungen Finanzierungsplan'!AD103)","v":""},null,null,null,null,{"$f":"IF('Erläuterungen Finanzierungsplan'!AI103=\"\",\"\",'Erläuterungen Finanzierungsplan'!AI103)","v":""},null,null,null,null,null,{"$f":"IF('Erläuterungen Finanzierungsplan'!AN103=\"\",\"\",'Erläuterungen Finanzierungsplan'!AN103)","v":""},null,null,null,null,null,{"$f":"IF('Erläuterungen Finanzierungsplan'!AS103=\"\",\"\",'Erläuterungen Finanzierungsplan'!AS103)","v":""}]
[{"$f":"IF('Erläuterungen Finanzierungsplan'!A104=\"\",\"\",'Erläuterungen Finanzierungsplan'!A104)","v":""},null,null,null,null,{"$f":"IF('Erläuterungen Finanzierungsplan'!F104=\"\",\"\",'Erläuterungen Finanzierungsplan'!F104)","v":""},null,{"$f":"IF('Erläuterungen Finanzierungsplan'!H104=\"\",\"\",'Erläuterungen Finanzierungsplan'!H104)","v":""},null,{"$f":"IF('Erläuterungen Finanzierungsplan'!J104=\"\",\"\",'Erläuterungen Finanzierungsplan'!J104)","v":""},null,{"$f":"IF('Erläuterungen Finanzierungsplan'!L104=\"\",\"\",'Erläuterungen Finanzierungsplan'!L104)","v":""},null,null,{"$f":"IF('Erläuterungen Finanzierungsplan'!N104=\"\",\"\",'Erläuterungen Finanzierungsplan'!N104)","v":""},null,{"$f":"IF('Erläuterungen Finanzierungsplan'!P104=\"\",\"\",'Erläuterungen Finanzierungsplan'!P104)","v":""},null,{"$f":"IF('Erläuterungen Finanzierungsplan'!R104=\"\",\"\",'Erläuterungen Finanzierungsplan'!R104)","v":""},null,null,null,{"$f":"IF('Erläuterungen Finanzierungsplan'!AB104=\"\",\"\",'Erläuterungen Finanzierungsplan'!AB104)","v":""},null,{"$f":"IF('Erläuterungen Finanzierungsplan'!T104=\"\",\"\",'Erläuterungen Finanzierungsplan'!T104)","v":""},null,null,null,null,null,null,{"$f":"IF('Erläuterungen Finanzierungsplan'!AD104=\"\",\"\",'Erläuterungen Finanzierungsplan'!AD104)","v":""},null,null,null,null,{"$f":"IF('Erläuterungen Finanzierungsplan'!AI104=\"\",\"\",'Erläuterungen Finanzierungsplan'!AI104)","v":""},null,null,null,null,null,{"$f":"IF('Erläuterungen Finanzierungsplan'!AN104=\"\",\"\",'Erläuterungen Finanzierungsplan'!AN104)","v":""},null,null,null,null,null,{"$f":"IF('Erläuterungen Finanzierungsplan'!AS104=\"\",\"\",'Erläuterungen Finanzierungsplan'!AS104)","v":""}]
[{"$f":"IF('Erläuterungen Finanzierungsplan'!A105=\"\",\"\",'Erläuterungen Finanzierungsplan'!A105)","v":""},null,null,null,null,{"$f":"IF('Erläuterungen Finanzierungsplan'!F105=\"\",\"\",'Erläuterungen Finanzierungsplan'!F105)","v":""},null,{"$f":"IF('Erläuterungen Finanzierungsplan'!H105=\"\",\"\",'Erläuterungen Finanzierungsplan'!H105)","v":""},null,{"$f":"IF('Erläuterungen Finanzierungsplan'!J105=\"\",\"\",'Erläuterungen Finanzierungsplan'!J105)","v":""},null,{"$f":"IF('Erläuterungen Finanzierungsplan'!L105=\"\",\"\",'Erläuterungen Finanzierungsplan'!L105)","v":""},null,null,{"$f":"IF('Erläuterungen Finanzierungsplan'!N105=\"\",\"\",'Erläuterungen Finanzierungsplan'!N105)","v":""},null,{"$f":"IF('Erläuterungen Finanzierungsplan'!P105=\"\",\"\",'Erläuterungen Finanzierungsplan'!P105)","v":""},null,{"$f":"IF('Erläuterungen Finanzierungsplan'!R105=\"\",\"\",'Erläuterungen Finanzierungsplan'!R105)","v":""},null,null,null,{"$f":"IF('Erläuterungen Finanzierungsplan'!AB105=\"\",\"\",'Erläuterungen Finanzierungsplan'!AB105)","v":""},null,{"$f":"IF('Erläuterungen Finanzierungsplan'!T105=\"\",\"\",'Erläuterungen Finanzierungsplan'!T105)","v":""},null,null,null,null,null,null,{"$f":"IF('Erläuterungen Finanzierungsplan'!AD105=\"\",\"\",'Erläuterungen Finanzierungsplan'!AD105)","v":""},null,null,null,null,{"$f":"IF('Erläuterungen Finanzierungsplan'!AI105=\"\",\"\",'Erläuterungen Finanzierungsplan'!AI105)","v":""},null,null,null,null,null,{"$f":"IF('Erläuterungen Finanzierungsplan'!AN105=\"\",\"\",'Erläuterungen Finanzierungsplan'!AN105)","v":""},null,null,null,null,null,{"$f":"IF('Erläuterungen Finanzierungsplan'!AS105=\"\",\"\",'Erläuterungen Finanzierungsplan'!AS105)","v":""}]
[{"$f":"IF('Erläuterungen Finanzierungsplan'!A106=\"\",\"\",'Erläuterungen Finanzierungsplan'!A106)","v":""},null,null,null,null,{"$f":"IF('Erläuterungen Finanzierungsplan'!F106=\"\",\"\",'Erläuterungen Finanzierungsplan'!F106)","v":""},null,{"$f":"IF('Erläuterungen Finanzierungsplan'!H106=\"\",\"\",'Erläuterungen Finanzierungsplan'!H106)","v":""},null,{"$f":"IF('Erläuterungen Finanzierungsplan'!J106=\"\",\"\",'Erläuterungen Finanzierungsplan'!J106)","v":""},null,{"$f":"IF('Erläuterungen Finanzierungsplan'!L106=\"\",\"\",'Erläuterungen Finanzierungsplan'!L106)","v":""},null,null,{"$f":"IF('Erläuterungen Finanzierungsplan'!N106=\"\",\"\",'Erläuterungen Finanzierungsplan'!N106)","v":""},null,{"$f":"IF('Erläuterungen Finanzierungsplan'!P106=\"\",\"\",'Erläuterungen Finanzierungsplan'!P106)","v":""},null,{"$f":"IF('Erläuterungen Finanzierungsplan'!R106=\"\",\"\",'Erläuterungen Finanzierungsplan'!R106)","v":""},null,null,null,{"$f":"IF('Erläuterungen Finanzierungsplan'!AB106=\"\",\"\",'Erläuterungen Finanzierungsplan'!AB106)","v":""},null,{"$f":"IF('Erläuterungen Finanzierungsplan'!T106=\"\",\"\",'Erläuterungen Finanzierungsplan'!T106)","v":""},null,null,null,null,null,null,{"$f":"IF('Erläuterungen Finanzierungsplan'!AD106=\"\",\"\",'Erläuterungen Finanzierungsplan'!AD106)","v":""},null,null,null,null,{"$f":"IF('Erläuterungen Finanzierungsplan'!AI106=\"\",\"\",'Erläuterungen Finanzierungsplan'!AI106)","v":""},null,null,null,null,null,{"$f":"IF('Erläuterungen Finanzierungsplan'!AN106=\"\",\"\",'Erläuterungen Finanzierungsplan'!AN106)","v":""},null,null,null,null,null,{"$f":"IF('Erläuterungen Finanzierungsplan'!AS106=\"\",\"\",'Erläuterungen Finanzierungsplan'!AS106)","v":""}]
[{"$f":"IF('Erläuterungen Finanzierungsplan'!A107=\"\",\"\",'Erläuterungen Finanzierungsplan'!A107)","v":""},null,null,null,null,{"$f":"IF('Erläuterungen Finanzierungsplan'!F107=\"\",\"\",'Erläuterungen Finanzierungsplan'!F107)","v":""},null,{"$f":"IF('Erläuterungen Finanzierungsplan'!H107=\"\",\"\",'Erläuterungen Finanzierungsplan'!H107)","v":""},null,{"$f":"IF('Erläuterungen Finanzierungsplan'!J107=\"\",\"\",'Erläuterungen Finanzierungsplan'!J107)","v":""},null,{"$f":"IF('Erläuterungen Finanzierungsplan'!L107=\"\",\"\",'Erläuterungen Finanzierungsplan'!L107)","v":""},null,null,{"$f":"IF('Erläuterungen Finanzierungsplan'!N107=\"\",\"\",'Erläuterungen Finanzierungsplan'!N107)","v":""},null,{"$f":"IF('Erläuterungen Finanzierungsplan'!P107=\"\",\"\",'Erläuterungen Finanzierungsplan'!P107)","v":""},null,{"$f":"IF('Erläuterungen Finanzierungsplan'!R107=\"\",\"\",'Erläuterungen Finanzierungsplan'!R107)","v":""},null,null,null,{"$f":"IF('Erläuterungen Finanzierungsplan'!AB107=\"\",\"\",'Erläuterungen Finanzierungsplan'!AB107)","v":""},null,{"$f":"IF('Erläuterungen Finanzierungsplan'!T107=\"\",\"\",'Erläuterungen Finanzierungsplan'!T107)","v":""},null,null,null,null,null,null,{"$f":"IF('Erläuterungen Finanzierungsplan'!AD107=\"\",\"\",'Erläuterungen Finanzierungsplan'!AD107)","v":""},null,null,null,null,{"$f":"IF('Erläuterungen Finanzierungsplan'!AI107=\"\",\"\",'Erläuterungen Finanzierungsplan'!AI107)","v":""},null,null,null,null,null,{"$f":"IF('Erläuterungen Finanzierungsplan'!AN107=\"\",\"\",'Erläuterungen Finanzierungsplan'!AN107)","v":""},null,null,null,null,null,{"$f":"IF('Erläuterungen Finanzierungsplan'!AS107=\"\",\"\",'Erläuterungen Finanzierungsplan'!AS107)","v":""}]
[{"$f":"IF('Erläuterungen Finanzierungsplan'!A108=\"\",\"\",'Erläuterungen Finanzierungsplan'!A108)","v":""},null,null,null,null,{"$f":"IF('Erläuterungen Finanzierungsplan'!F108=\"\",\"\",'Erläuterungen Finanzierungsplan'!F108)","v":""},null,{"$f":"IF('Erläuterungen Finanzierungsplan'!H108=\"\",\"\",'Erläuterungen Finanzierungsplan'!H108)","v":""},null,{"$f":"IF('Erläuterungen Finanzierungsplan'!J108=\"\",\"\",'Erläuterungen Finanzierungsplan'!J108)","v":""},null,{"$f":"IF('Erläuterungen Finanzierungsplan'!L108=\"\",\"\",'Erläuterungen Finanzierungsplan'!L108)","v":""},null,null,{"$f":"IF('Erläuterungen Finanzierungsplan'!N108=\"\",\"\",'Erläuterungen Finanzierungsplan'!N108)","v":""},null,{"$f":"IF('Erläuterungen Finanzierungsplan'!P108=\"\",\"\",'Erläuterungen Finanzierungsplan'!P108)","v":""},null,{"$f":"IF('Erläuterungen Finanzierungsplan'!R108=\"\",\"\",'Erläuterungen Finanzierungsplan'!R108)","v":""},null,null,null,{"$f":"IF('Erläuterungen Finanzierungsplan'!AB108=\"\",\"\",'Erläuterungen Finanzierungsplan'!AB108)","v":""},null,{"$f":"IF('Erläuterungen Finanzierungsplan'!T108=\"\",\"\",'Erläuterungen Finanzierungsplan'!T108)","v":""},null,null,null,null,null,null,{"$f":"IF('Erläuterungen Finanzierungsplan'!AD108=\"\",\"\",'Erläuterungen Finanzierungsplan'!AD108)","v":""},null,null,null,null,{"$f":"IF('Erläuterungen Finanzierungsplan'!AI108=\"\",\"\",'Erläuterungen Finanzierungsplan'!AI108)","v":""},null,null,null,null,null,{"$f":"IF('Erläuterungen Finanzierungsplan'!AN108=\"\",\"\",'Erläuterungen Finanzierungsplan'!AN108)","v":""},null,null,null,null,null,{"$f":"IF('Erläuterungen Finanzierungsplan'!AS108=\"\",\"\",'Erläuterungen Finanzierungsplan'!AS108)","v":""}]
[{"$f":"IF('Erläuterungen Finanzierungsplan'!A109=\"\",\"\",'Erläuterungen Finanzierungsplan'!A109)","v":""},null,null,null,null,{"$f":"IF('Erläuterungen Finanzierungsplan'!F109=\"\",\"\",'Erläuterungen Finanzierungsplan'!F109)","v":""},null,{"$f":"IF('Erläuterungen Finanzierungsplan'!H109=\"\",\"\",'Erläuterungen Finanzierungsplan'!H109)","v":""},null,{"$f":"IF('Erläuterungen Finanzierungsplan'!J109=\"\",\"\",'Erläuterungen Finanzierungsplan'!J109)","v":""},null,{"$f":"IF('Erläuterungen Finanzierungsplan'!L109=\"\",\"\",'Erläuterungen Finanzierungsplan'!L109)","v":""},null,null,{"$f":"IF('Erläuterungen Finanzierungsplan'!N109=\"\",\"\",'Erläuterungen Finanzierungsplan'!N109)","v":""},null,{"$f":"IF('Erläuterungen Finanzierungsplan'!P109=\"\",\"\",'Erläuterungen Finanzierungsplan'!P109)","v":""},null,{"$f":"IF('Erläuterungen Finanzierungsplan'!R109=\"\",\"\",'Erläuterungen Finanzierungsplan'!R109)","v":""},null,null,null,{"$f":"IF('Erläuterungen Finanzierungsplan'!AB109=\"\",\"\",'Erläuterungen Finanzierungsplan'!AB109)","v":""},null,{"$f":"IF('Erläuterungen Finanzierungsplan'!T109=\"\",\"\",'Erläuterungen Finanzierungsplan'!T109)","v":""},null,null,null,null,null,null,{"$f":"IF('Erläuterungen Finanzierungsplan'!AD109=\"\",\"\",'Erläuterungen Finanzierungsplan'!AD109)","v":""},null,null,null,null,{"$f":"IF('Erläuterungen Finanzierungsplan'!AI109=\"\",\"\",'Erläuterungen Finanzierungsplan'!AI109)","v":""},null,null,null,null,null,{"$f":"IF('Erläuterungen Finanzierungsplan'!AN109=\"\",\"\",'Erläuterungen Finanzierungsplan'!AN109)","v":""},null,null,null,null,null,{"$f":"IF('Erläuterungen Finanzierungsplan'!AS109=\"\",\"\",'Erläuterungen Finanzierungsplan'!AS109)","v":""}]
[{"$f":"IF('Erläuterungen Finanzierungsplan'!A110=\"\",\"\",'Erläuterungen Finanzierungsplan'!A110)","v":""},null,null,null,null,{"$f":"IF('Erläuterungen Finanzierungsplan'!F110=\"\",\"\",'Erläuterungen Finanzierungsplan'!F110)","v":""},null,{"$f":"IF('Erläuterungen Finanzierungsplan'!H110=\"\",\"\",'Erläuterungen Finanzierungsplan'!H110)","v":""},null,{"$f":"IF('Erläuterungen Finanzierungsplan'!J110=\"\",\"\",'Erläuterungen Finanzierungsplan'!J110)","v":""},null,{"$f":"IF('Erläuterungen Finanzierungsplan'!L110=\"\",\"\",'Erläuterungen Finanzierungsplan'!L110)","v":""},null,null,{"$f":"IF('Erläuterungen Finanzierungsplan'!N110=\"\",\"\",'Erläuterungen Finanzierungsplan'!N110)","v":""},null,{"$f":"IF('Erläuterungen Finanzierungsplan'!P110=\"\",\"\",'Erläuterungen Finanzierungsplan'!P110)","v":""},null,{"$f":"IF('Erläuterungen Finanzierungsplan'!R110=\"\",\"\",'Erläuterungen Finanzierungsplan'!R110)","v":""},null,null,null,{"$f":"IF('Erläuterungen Finanzierungsplan'!AB110=\"\",\"\",'Erläuterungen Finanzierungsplan'!AB110)","v":""},null,{"$f":"IF('Erläuterungen Finanzierungsplan'!T110=\"\",\"\",'Erläuterungen Finanzierungsplan'!T110)","v":""},null,null,null,null,null,null,{"$f":"IF('Erläuterungen Finanzierungsplan'!AD110=\"\",\"\",'Erläuterungen Finanzierungsplan'!AD110)","v":""},null,null,null,null,{"$f":"IF('Erläuterungen Finanzierungsplan'!AI110=\"\",\"\",'Erläuterungen Finanzierungsplan'!AI110)","v":""},null,null,null,null,null,{"$f":"IF('Erläuterungen Finanzierungsplan'!AN110=\"\",\"\",'Erläuterungen Finanzierungsplan'!AN110)","v":""},null,null,null,null,null,{"$f":"IF('Erläuterungen Finanzierungsplan'!AS110=\"\",\"\",'Erläuterungen Finanzierungsplan'!AS110)","v":""}]
[{"$f":"IF('Erläuterungen Finanzierungsplan'!A111=\"\",\"\",'Erläuterungen Finanzierungsplan'!A111)","v":""},null,null,null,null,{"$f":"IF('Erläuterungen Finanzierungsplan'!F111=\"\",\"\",'Erläuterungen Finanzierungsplan'!F111)","v":""},null,{"$f":"IF('Erläuterungen Finanzierungsplan'!H111=\"\",\"\",'Erläuterungen Finanzierungsplan'!H111)","v":""},null,{"$f":"IF('Erläuterungen Finanzierungsplan'!J111=\"\",\"\",'Erläuterungen Finanzierungsplan'!J111)","v":""},null,{"$f":"IF('Erläuterungen Finanzierungsplan'!L111=\"\",\"\",'Erläuterungen Finanzierungsplan'!L111)","v":""},null,null,{"$f":"IF('Erläuterungen Finanzierungsplan'!N111=\"\",\"\",'Erläuterungen Finanzierungsplan'!N111)","v":""},null,{"$f":"IF('Erläuterungen Finanzierungsplan'!P111=\"\",\"\",'Erläuterungen Finanzierungsplan'!P111)","v":""},null,{"$f":"IF('Erläuterungen Finanzierungsplan'!R111=\"\",\"\",'Erläuterungen Finanzierungsplan'!R111)","v":""},null,null,null,{"$f":"IF('Erläuterungen Finanzierungsplan'!AB111=\"\",\"\",'Erläuterungen Finanzierungsplan'!AB111)","v":""},null,{"$f":"IF('Erläuterungen Finanzierungsplan'!T111=\"\",\"\",'Erläuterungen Finanzierungsplan'!T111)","v":""},null,null,null,null,null,null,{"$f":"IF('Erläuterungen Finanzierungsplan'!AD111=\"\",\"\",'Erläuterungen Finanzierungsplan'!AD111)","v":""},null,null,null,null,{"$f":"IF('Erläuterungen Finanzierungsplan'!AI111=\"\",\"\",'Erläuterungen Finanzierungsplan'!AI111)","v":""},null,null,null,null,null,{"$f":"IF('Erläuterungen Finanzierungsplan'!AN111=\"\",\"\",'Erläuterungen Finanzierungsplan'!AN111)","v":""},null,null,null,null,null,{"$f":"IF('Erläuterungen Finanzierungsplan'!AS111=\"\",\"\",'Erläuterungen Finanzierungsplan'!AS111)","v":""}]
[{"$f":"IF('Erläuterungen Finanzierungsplan'!A112=\"\",\"\",'Erläuterungen Finanzierungsplan'!A112)","v":""},null,null,null,null,{"$f":"IF('Erläuterungen Finanzierungsplan'!F112=\"\",\"\",'Erläuterungen Finanzierungsplan'!F112)","v":""},null,{"$f":"IF('Erläuterungen Finanzierungsplan'!H112=\"\",\"\",'Erläuterungen Finanzierungsplan'!H112)","v":""},null,{"$f":"IF('Erläuterungen Finanzierungsplan'!J112=\"\",\"\",'Erläuterungen Finanzierungsplan'!J112)","v":""},null,{"$f":"IF('Erläuterungen Finanzierungsplan'!L112=\"\",\"\",'Erläuterungen Finanzierungsplan'!L112)","v":""},null,null,{"$f":"IF('Erläuterungen Finanzierungsplan'!N112=\"\",\"\",'Erläuterungen Finanzierungsplan'!N112)","v":""},null,{"$f":"IF('Erläuterungen Finanzierungsplan'!P112=\"\",\"\",'Erläuterungen Finanzierungsplan'!P112)","v":""},null,{"$f":"IF('Erläuterungen Finanzierungsplan'!R112=\"\",\"\",'Erläuterungen Finanzierungsplan'!R112)","v":""},null,null,null,{"$f":"IF('Erläuterungen Finanzierungsplan'!AB112=\"\",\"\",'Erläuterungen Finanzierungsplan'!AB112)","v":""},null,{"$f":"IF('Erläuterungen Finanzierungsplan'!T112=\"\",\"\",'Erläuterungen Finanzierungsplan'!T112)","v":""},null,null,null,null,null,null,{"$f":"IF('Erläuterungen Finanzierungsplan'!AD112=\"\",\"\",'Erläuterungen Finanzierungsplan'!AD112)","v":""},null,null,null,null,{"$f":"IF('Erläuterungen Finanzierungsplan'!AI112=\"\",\"\",'Erläuterungen Finanzierungsplan'!AI112)","v":""},null,null,null,null,null,{"$f":"IF('Erläuterungen Finanzierungsplan'!AN112=\"\",\"\",'Erläuterungen Finanzierungsplan'!AN112)","v":""},null,null,null,null,null,{"$f":"IF('Erläuterungen Finanzierungsplan'!AS112=\"\",\"\",'Erläuterungen Finanzierungsplan'!AS112)","v":""}]
[{"$f":"IF('Erläuterungen Finanzierungsplan'!A113=\"\",\"\",'Erläuterungen Finanzierungsplan'!A113)","v":""},null,null,null,null,{"$f":"IF('Erläuterungen Finanzierungsplan'!F113=\"\",\"\",'Erläuterungen Finanzierungsplan'!F113)","v":""},null,{"$f":"IF('Erläuterungen Finanzierungsplan'!H113=\"\",\"\",'Erläuterungen Finanzierungsplan'!H113)","v":""},null,{"$f":"IF('Erläuterungen Finanzierungsplan'!J113=\"\",\"\",'Erläuterungen Finanzierungsplan'!J113)","v":""},null,{"$f":"IF('Erläuterungen Finanzierungsplan'!L113=\"\",\"\",'Erläuterungen Finanzierungsplan'!L113)","v":""},null,null,{"$f":"IF('Erläuterungen Finanzierungsplan'!N113=\"\",\"\",'Erläuterungen Finanzierungsplan'!N113)","v":""},null,{"$f":"IF('Erläuterungen Finanzierungsplan'!P113=\"\",\"\",'Erläuterungen Finanzierungsplan'!P113)","v":""},null,{"$f":"IF('Erläuterungen Finanzierungsplan'!R113=\"\",\"\",'Erläuterungen Finanzierungsplan'!R113)","v":""},null,null,null,{"$f":"IF('Erläuterungen Finanzierungsplan'!AB113=\"\",\"\",'Erläuterungen Finanzierungsplan'!AB113)","v":""},null,{"$f":"IF('Erläuterungen Finanzierungsplan'!T113=\"\",\"\",'Erläuterungen Finanzierungsplan'!T113)","v":""},null,null,null,null,null,null,{"$f":"IF('Erläuterungen Finanzierungsplan'!AD113=\"\",\"\",'Erläuterungen Finanzierungsplan'!AD113)","v":""},null,null,null,null,{"$f":"IF('Erläuterungen Finanzierungsplan'!AI113=\"\",\"\",'Erläuterungen Finanzierungsplan'!AI113)","v":""},null,null,null,null,null,{"$f":"IF('Erläuterungen Finanzierungsplan'!AN113=\"\",\"\",'Erläuterungen Finanzierungsplan'!AN113)","v":""},null,null,null,null,null,{"$f":"IF('Erläuterungen Finanzierungsplan'!AS113=\"\",\"\",'Erläuterungen Finanzierungsplan'!AS113)","v":""}]
[{"$f":"IF('Erläuterungen Finanzierungsplan'!A114=\"\",\"\",'Erläuterungen Finanzierungsplan'!A114)","v":""},null,null,null,null,{"$f":"IF('Erläuterungen Finanzierungsplan'!F114=\"\",\"\",'Erläuterungen Finanzierungsplan'!F114)","v":""},null,{"$f":"IF('Erläuterungen Finanzierungsplan'!H114=\"\",\"\",'Erläuterungen Finanzierungsplan'!H114)","v":""},null,{"$f":"IF('Erläuterungen Finanzierungsplan'!J114=\"\",\"\",'Erläuterungen Finanzierungsplan'!J114)","v":""},null,{"$f":"IF('Erläuterungen Finanzierungsplan'!L114=\"\",\"\",'Erläuterungen Finanzierungsplan'!L114)","v":""},null,null,{"$f":"IF('Erläuterungen Finanzierungsplan'!N114=\"\",\"\",'Erläuterungen Finanzierungsplan'!N114)","v":""},null,{"$f":"IF('Erläuterungen Finanzierungsplan'!P114=\"\",\"\",'Erläuterungen Finanzierungsplan'!P114)","v":""},null,{"$f":"IF('Erläuterungen Finanzierungsplan'!R114=\"\",\"\",'Erläuterungen Finanzierungsplan'!R114)","v":""},null,null,null,{"$f":"IF('Erläuterungen Finanzierungsplan'!AB114=\"\",\"\",'Erläuterungen Finanzierungsplan'!AB114)","v":""},null,{"$f":"IF('Erläuterungen Finanzierungsplan'!T114=\"\",\"\",'Erläuterungen Finanzierungsplan'!T114)","v":""},null,null,null,null,null,null,{"$f":"IF('Erläuterungen Finanzierungsplan'!AD114=\"\",\"\",'Erläuterungen Finanzierungsplan'!AD114)","v":""},null,null,null,null,{"$f":"IF('Erläuterungen Finanzierungsplan'!AI114=\"\",\"\",'Erläuterungen Finanzierungsplan'!AI114)","v":""},null,null,null,null,null,{"$f":"IF('Erläuterungen Finanzierungsplan'!AN114=\"\",\"\",'Erläuterungen Finanzierungsplan'!AN114)","v":""},null,null,null,null,null,{"$f":"IF('Erläuterungen Finanzierungsplan'!AS114=\"\",\"\",'Erläuterungen Finanzierungsplan'!AS114)","v":""}]
[{"$f":"IF('Erläuterungen Finanzierungsplan'!A115=\"\",\"\",'Erläuterungen Finanzierungsplan'!A115)","v":""},null,null,null,null,{"$f":"IF('Erläuterungen Finanzierungsplan'!F115=\"\",\"\",'Erläuterungen Finanzierungsplan'!F115)","v":""},null,{"$f":"IF('Erläuterungen Finanzierungsplan'!H115=\"\",\"\",'Erläuterungen Finanzierungsplan'!H115)","v":""},null,{"$f":"IF('Erläuterungen Finanzierungsplan'!J115=\"\",\"\",'Erläuterungen Finanzierungsplan'!J115)","v":""},null,{"$f":"IF('Erläuterungen Finanzierungsplan'!L115=\"\",\"\",'Erläuterungen Finanzierungsplan'!L115)","v":""},null,null,{"$f":"IF('Erläuterungen Finanzierungsplan'!N115=\"\",\"\",'Erläuterungen Finanzierungsplan'!N115)","v":""},null,{"$f":"IF('Erläuterungen Finanzierungsplan'!P115=\"\",\"\",'Erläuterungen Finanzierungsplan'!P115)","v":""},null,{"$f":"IF('Erläuterungen Finanzierungsplan'!R115=\"\",\"\",'Erläuterungen Finanzierungsplan'!R115)","v":""},null,null,null,{"$f":"IF('Erläuterungen Finanzierungsplan'!AB115=\"\",\"\",'Erläuterungen Finanzierungsplan'!AB115)","v":""},null,{"$f":"IF('Erläuterungen Finanzierungsplan'!T115=\"\",\"\",'Erläuterungen Finanzierungsplan'!T115)","v":""},null,null,null,null,null,null,{"$f":"IF('Erläuterungen Finanzierungsplan'!AD115=\"\",\"\",'Erläuterungen Finanzierungsplan'!AD115)","v":""},null,null,null,null,{"$f":"IF('Erläuterungen Finanzierungsplan'!AI115=\"\",\"\",'Erläuterungen Finanzierungsplan'!AI115)","v":""},null,null,null,null,null,{"$f":"IF('Erläuterungen Finanzierungsplan'!AN115=\"\",\"\",'Erläuterungen Finanzierungsplan'!AN115)","v":""},null,null,null,null,null,{"$f":"IF('Erläuterungen Finanzierungsplan'!AS115=\"\",\"\",'Erläuterungen Finanzierungsplan'!AS115)","v":""}]
[{"$f":"IF('Erläuterungen Finanzierungsplan'!A116=\"\",\"\",'Erläuterungen Finanzierungsplan'!A116)","v":""},null,null,null,null,{"$f":"IF('Erläuterungen Finanzierungsplan'!F116=\"\",\"\",'Erläuterungen Finanzierungsplan'!F116)","v":""},null,{"$f":"IF('Erläuterungen Finanzierungsplan'!H116=\"\",\"\",'Erläuterungen Finanzierungsplan'!H116)","v":""},null,{"$f":"IF('Erläuterungen Finanzierungsplan'!J116=\"\",\"\",'Erläuterungen Finanzierungsplan'!J116)","v":""},null,{"$f":"IF('Erläuterungen Finanzierungsplan'!L116=\"\",\"\",'Erläuterungen Finanzierungsplan'!L116)","v":""},null,null,{"$f":"IF('Erläuterungen Finanzierungsplan'!N116=\"\",\"\",'Erläuterungen Finanzierungsplan'!N116)","v":""},null,{"$f":"IF('Erläuterungen Finanzierungsplan'!P116=\"\",\"\",'Erläuterungen Finanzierungsplan'!P116)","v":""},null,{"$f":"IF('Erläuterungen Finanzierungsplan'!R116=\"\",\"\",'Erläuterungen Finanzierungsplan'!R116)","v":""},null,null,null,{"$f":"IF('Erläuterungen Finanzierungsplan'!AB116=\"\",\"\",'Erläuterungen Finanzierungsplan'!AB116)","v":""},null,{"$f":"IF('Erläuterungen Finanzierungsplan'!T116=\"\",\"\",'Erläuterungen Finanzierungsplan'!T116)","v":""},null,null,null,null,null,null,{"$f":"IF('Erläuterungen Finanzierungsplan'!AD116=\"\",\"\",'Erläuterungen Finanzierungsplan'!AD116)","v":""},null,null,null,null,{"$f":"IF('Erläuterungen Finanzierungsplan'!AI116=\"\",\"\",'Erläuterungen Finanzierungsplan'!AI116)","v":""},null,null,null,null,null,{"$f":"IF('Erläuterungen Finanzierungsplan'!AN116=\"\",\"\",'Erläuterungen Finanzierungsplan'!AN116)","v":""},null,null,null,null,null,{"$f":"IF('Erläuterungen Finanzierungsplan'!AS116=\"\",\"\",'Erläuterungen Finanzierungsplan'!AS116)","v":""}]
[{"$f":"IF('Erläuterungen Finanzierungsplan'!A117=\"\",\"\",'Erläuterungen Finanzierungsplan'!A117)","v":""},null,null,null,null,{"$f":"IF('Erläuterungen Finanzierungsplan'!F117=\"\",\"\",'Erläuterungen Finanzierungsplan'!F117)","v":""},null,{"$f":"IF('Erläuterungen Finanzierungsplan'!H117=\"\",\"\",'Erläuterungen Finanzierungsplan'!H117)","v":""},null,{"$f":"IF('Erläuterungen Finanzierungsplan'!J117=\"\",\"\",'Erläuterungen Finanzierungsplan'!J117)","v":""},null,{"$f":"IF('Erläuterungen Finanzierungsplan'!L117=\"\",\"\",'Erläuterungen Finanzierungsplan'!L117)","v":""},null,null,{"$f":"IF('Erläuterungen Finanzierungsplan'!N117=\"\",\"\",'Erläuterungen Finanzierungsplan'!N117)","v":""},null,{"$f":"IF('Erläuterungen Finanzierungsplan'!P117=\"\",\"\",'Erläuterungen Finanzierungsplan'!P117)","v":""},null,{"$f":"IF('Erläuterungen Finanzierungsplan'!R117=\"\",\"\",'Erläuterungen Finanzierungsplan'!R117)","v":""},null,null,null,{"$f":"IF('Erläuterungen Finanzierungsplan'!AB117=\"\",\"\",'Erläuterungen Finanzierungsplan'!AB117)","v":""},null,{"$f":"IF('Erläuterungen Finanzierungsplan'!T117=\"\",\"\",'Erläuterungen Finanzierungsplan'!T117)","v":""},null,null,null,null,null,null,{"$f":"IF('Erläuterungen Finanzierungsplan'!AD117=\"\",\"\",'Erläuterungen Finanzierungsplan'!AD117)","v":""},null,null,null,null,{"$f":"IF('Erläuterungen Finanzierungsplan'!AI117=\"\",\"\",'Erläuterungen Finanzierungsplan'!AI117)","v":""},null,null,null,null,null,{"$f":"IF('Erläuterungen Finanzierungsplan'!AN117=\"\",\"\",'Erläuterungen Finanzierungsplan'!AN117)","v":""},null,null,null,null,null,{"$f":"IF('Erläuterungen Finanzierungsplan'!AS117=\"\",\"\",'Erläuterungen Finanzierungsplan'!AS117)","v":""}]
[{"$f":"IF('Erläuterungen Finanzierungsplan'!A118=\"\",\"\",'Erläuterungen Finanzierungsplan'!A118)","v":""},null,null,null,null,{"$f":"IF('Erläuterungen Finanzierungsplan'!F118=\"\",\"\",'Erläuterungen Finanzierungsplan'!F118)","v":""},null,{"$f":"IF('Erläuterungen Finanzierungsplan'!H118=\"\",\"\",'Erläuterungen Finanzierungsplan'!H118)","v":""},null,{"$f":"IF('Erläuterungen Finanzierungsplan'!J118=\"\",\"\",'Erläuterungen Finanzierungsplan'!J118)","v":""},null,{"$f":"IF('Erläuterungen Finanzierungsplan'!L118=\"\",\"\",'Erläuterungen Finanzierungsplan'!L118)","v":""},null,null,{"$f":"IF('Erläuterungen Finanzierungsplan'!N118=\"\",\"\",'Erläuterungen Finanzierungsplan'!N118)","v":""},null,{"$f":"IF('Erläuterungen Finanzierungsplan'!P118=\"\",\"\",'Erläuterungen Finanzierungsplan'!P118)","v":""},null,{"$f":"IF('Erläuterungen Finanzierungsplan'!R118=\"\",\"\",'Erläuterungen Finanzierungsplan'!R118)","v":""},null,null,null,{"$f":"IF('Erläuterungen Finanzierungsplan'!AB118=\"\",\"\",'Erläuterungen Finanzierungsplan'!AB118)","v":""},null,{"$f":"IF('Erläuterungen Finanzierungsplan'!T118=\"\",\"\",'Erläuterungen Finanzierungsplan'!T118)","v":""},null,null,null,null,null,null,{"$f":"IF('Erläuterungen Finanzierungsplan'!AD118=\"\",\"\",'Erläuterungen Finanzierungsplan'!AD118)","v":""},null,null,null,null,{"$f":"IF('Erläuterungen Finanzierungsplan'!AI118=\"\",\"\",'Erläuterungen Finanzierungsplan'!AI118)","v":""},null,null,null,null,null,{"$f":"IF('Erläuterungen Finanzierungsplan'!AN118=\"\",\"\",'Erläuterungen Finanzierungsplan'!AN118)","v":""},null,null,null,null,null,{"$f":"IF('Erläuterungen Finanzierungsplan'!AS118=\"\",\"\",'Erläuterungen Finanzierungsplan'!AS118)","v":""}]
[null,null,null,null,null,null,null,null,null,null,null,null,null,null,null,null,null,null,{"$f":"SUM(S163:T197)","v":0},null,{"$f":"SUM(U163:V197)","v":0},null,null,null,null,null,null,null,null,null,null,{"$f":"SUM(AF163:AJ197)","v":0},null,null,null,null,null,null,null,null,null,null,null,null,null,null,null,null,{"$f":"SUM(AW163:BA197)","v":0}]
[null,null,null,null,null,null,null,"Stellenanteil"]
[]
[]
[null,"weitere Anmerkungen / Begründungen / Hinweise"]
[null,"Hilfstext (wenn zutreffend den Antragsinhalten anpassen/ansonsten löschen):\nDie Eingruppierung der beantragten Tätigkeiten ist dem Vermerk vom ? zu entnehmen."]
[]
[]
[]
[]
[]
[]
[]
[]
[]
[]
[]
[null,"Ergebnis Ausgabenposition 1.3"]
[]
[null,"beantragte Beträge",null,null,null,null,null,null,{"$f":"AF198","v":0}]
[null,"Bewilligte Ausgaben ohne Aufschlag",null,null,null,null,null,null,{"$f":"AW198","v":0}]
[null,"Bewilligte Ausgaben mit Aufschlag",null,null,null,null,null,null,0]
[null,"Aufschlag",null,null,null,null,null,null,{"$f":"IF(I219=\"\",\"\",I219-I218)","v":0}]
[null,"Kürzung",null,null,null,null,null,null,{"$f":"IF(I219=\"\",\"\",IF(I217-I219>0,I217-I219,0))","v":0}]
[null,"Erhöhung",null,null,null,null,null,null,{"$f":"IF(I219=\"\",\"\",IF(I217-I219<0,I219-I217,0))","v":0}]
[null,"anerkannte Beträge",null,null,null,null,null,null,{"$f":"I219","v":0}]
[]
[]
[]
["Ausgabenposition 1.4 (Personalunterstützung durch Dritte)"]
[]
["Name, Vorname",null,null,null,null,"Tätigkeit im Projekt",null,null,null,null,null,"Anmerkungen / Erläuterungen\n(Projektaufgaben und Einsatz im Projekt):",null,null,null,null,"Im Projekt ein-\ngesetzt vom",null,"Im Projekt ein-\ngesetzt bis",null,"Stundensatz je Zeitstunde (24,00€)",null,null,"Std. im Projekt",null,null,"Geplante Anzahl  der Netzwerk-treffen \n(mind. 3)",null,null,null,"beantragte Ausgaben",null,null,null,"Kürzungen",null,null,null,"Ausgaben\n(anerkannt)"]
[]
[{"$f":"IF('Erläuterungen Finanzierungsplan'!A124=\"\",\"\",'Erläuterungen Finanzierungsplan'!A124)","v":""},null,null,null,null,{"$f":"IF('Erläuterungen Finanzierungsplan'!F124=\"\",\"\",'Erläuterungen Finanzierungsplan'!F124)","v":""},null,null,null,null,null,{"$f":"IF('Erläuterungen Finanzierungsplan'!AB124=\"\",\"\",'Erläuterungen Finanzierungsplan'!AB124)","v":""},null,null,null,null,{"$f":"IF('Erläuterungen Finanzierungsplan'!L124=\"\",\"\",'Erläuterungen Finanzierungsplan'!L124)","v":""},null,{"$f":"IF('Erläuterungen Finanzierungsplan'!N124=\"\",\"\",'Erläuterungen Finanzierungsplan'!N124)","v":""},null,{"$f":"IF('Erläuterungen Finanzierungsplan'!R124=\"\",\"\",'Erläuterungen Finanzierungsplan'!R124)","v":24},null,null,{"$f":"IF('Erläuterungen Finanzierungsplan'!U124=\"\",\"\",'Erläuterungen Finanzierungsplan'!U124)","v":""},null,null,{"$f":"IF('Erläuterungen Finanzierungsplan'!X124=\"\",\"\",'Erläuterungen Finanzierungsplan'!X124)","v":""},null,null,null,{"$f":"IF('Erläuterungen Finanzierungsplan'!AN124=\"\",\"\",'Erläuterungen Finanzierungsplan'!AN124)","v":""},null,null,null,null,null,null,null,{"$f":"IF(AE231=\"nicht zuwendungsfähig\",0,IF(AE231=\"\",\"\",AE231-AI231))","v":""}]
[{"$f":"IF('Erläuterungen Finanzierungsplan'!A125=\"\",\"\",'Erläuterungen Finanzierungsplan'!A125)","v":""},null,null,null,null,{"$f":"IF('Erläuterungen Finanzierungsplan'!F125=\"\",\"\",'Erläuterungen Finanzierungsplan'!F125)","v":""},null,null,null,null,null,{"$f":"IF('Erläuterungen Finanzierungsplan'!AB125=\"\",\"\",'Erläuterungen Finanzierungsplan'!AB125)","v":""},null,null,null,null,{"$f":"IF('Erläuterungen Finanzierungsplan'!L125=\"\",\"\",'Erläuterungen Finanzierungsplan'!L125)","v":""},null,{"$f":"IF('Erläuterungen Finanzierungsplan'!N125=\"\",\"\",'Erläuterungen Finanzierungsplan'!N125)","v":""},null,{"$f":"IF('Erläuterungen Finanzierungsplan'!R125=\"\",\"\",'Erläuterungen Finanzierungsplan'!R125)","v":24},null,null,{"$f":"IF('Erläuterungen Finanzierungsplan'!U125=\"\",\"\",'Erläuterungen Finanzierungsplan'!U125)","v":""},null,null,{"$f":"IF('Erläuterungen Finanzierungsplan'!X125=\"\",\"\",'Erläuterungen Finanzierungsplan'!X125)","v":""},null,null,null,{"$f":"IF('Erläuterungen Finanzierungsplan'!AN125=\"\",\"\",'Erläuterungen Finanzierungsplan'!AN125)","v":""},null,null,null,null,null,null,null,{"$f":"IF(AE232=\"nicht zuwendungsfähig\",0,IF(AE232=\"\",\"\",AE232-AI232))","v":""}]
[{"$f":"IF('Erläuterungen Finanzierungsplan'!A126=\"\",\"\",'Erläuterungen Finanzierungsplan'!A126)","v":""},null,null,null,null,{"$f":"IF('Erläuterungen Finanzierungsplan'!F126=\"\",\"\",'Erläuterungen Finanzierungsplan'!F126)","v":""},null,null,null,null,null,{"$f":"IF('Erläuterungen Finanzierungsplan'!AB126=\"\",\"\",'Erläuterungen Finanzierungsplan'!AB126)","v":""},null,null,null,null,{"$f":"IF('Erläuterungen Finanzierungsplan'!L126=\"\",\"\",'Erläuterungen Finanzierungsplan'!L126)","v":""},null,{"$f":"IF('Erläuterungen Finanzierungsplan'!N126=\"\",\"\",'Erläuterungen Finanzierungsplan'!N126)","v":""},null,{"$f":"IF('Erläuterungen Finanzierungsplan'!R126=\"\",\"\",'Erläuterungen Finanzierungsplan'!R126)","v":24},null,null,{"$f":"IF('Erläuterungen Finanzierungsplan'!U126=\"\",\"\",'Erläuterungen Finanzierungsplan'!U126)","v":""},null,null,{"$f":"IF('Erläuterungen Finanzierungsplan'!X126=\"\",\"\",'Erläuterungen Finanzierungsplan'!X126)","v":""},null,null,null,{"$f":"IF('Erläuterungen Finanzierungsplan'!AN126=\"\",\"\",'Erläuterungen Finanzierungsplan'!AN126)","v":""},null,null,null,null,null,null,null,{"$f":"IF(AE233=\"nicht zuwendungsfähig\",0,IF(AE233=\"\",\"\",AE233-AI233))","v":""}]
[{"$f":"IF('Erläuterungen Finanzierungsplan'!A127=\"\",\"\",'Erläuterungen Finanzierungsplan'!A127)","v":""},null,null,null,null,{"$f":"IF('Erläuterungen Finanzierungsplan'!F127=\"\",\"\",'Erläuterungen Finanzierungsplan'!F127)","v":""},null,null,null,null,null,{"$f":"IF('Erläuterungen Finanzierungsplan'!AB127=\"\",\"\",'Erläuterungen Finanzierungsplan'!AB127)","v":""},null,null,null,null,{"$f":"IF('Erläuterungen Finanzierungsplan'!L127=\"\",\"\",'Erläuterungen Finanzierungsplan'!L127)","v":""},null,{"$f":"IF('Erläuterungen Finanzierungsplan'!N127=\"\",\"\",'Erläuterungen Finanzierungsplan'!N127)","v":""},null,{"$f":"IF('Erläuterungen Finanzierungsplan'!R127=\"\",\"\",'Erläuterungen Finanzierungsplan'!R127)","v":24},null,null,{"$f":"IF('Erläuterungen Finanzierungsplan'!U127=\"\",\"\",'Erläuterungen Finanzierungsplan'!U127)","v":""},null,null,{"$f":"IF('Erläuterungen Finanzierungsplan'!X127=\"\",\"\",'Erläuterungen Finanzierungsplan'!X127)","v":""},null,null,null,{"$f":"IF('Erläuterungen Finanzierungsplan'!AN127=\"\",\"\",'Erläuterungen Finanzierungsplan'!AN127)","v":""},null,null,null,null,null,null,null,""]
[{"$f":"IF('Erläuterungen Finanzierungsplan'!A128=\"\",\"\",'Erläuterungen Finanzierungsplan'!A128)","v":""},null,null,null,null,{"$f":"IF('Erläuterungen Finanzierungsplan'!F128=\"\",\"\",'Erläuterungen Finanzierungsplan'!F128)","v":""},null,null,null,null,null,{"$f":"IF('Erläuterungen Finanzierungsplan'!AB128=\"\",\"\",'Erläuterungen Finanzierungsplan'!AB128)","v":""},null,null,null,null,{"$f":"IF('Erläuterungen Finanzierungsplan'!L128=\"\",\"\",'Erläuterungen Finanzierungsplan'!L128)","v":""},null,{"$f":"IF('Erläuterungen Finanzierungsplan'!N128=\"\",\"\",'Erläuterungen Finanzierungsplan'!N128)","v":""},null,{"$f":"IF('Erläuterungen Finanzierungsplan'!R128=\"\",\"\",'Erläuterungen Finanzierungsplan'!R128)","v":24},null,null,{"$f":"IF('Erläuterungen Finanzierungsplan'!U128=\"\",\"\",'Erläuterungen Finanzierungsplan'!U128)","v":""},null,null,{"$f":"IF('Erläuterungen Finanzierungsplan'!X128=\"\",\"\",'Erläuterungen Finanzierungsplan'!X128)","v":""},null,null,null,{"$f":"IF('Erläuterungen Finanzierungsplan'!AN128=\"\",\"\",'Erläuterungen Finanzierungsplan'!AN128)","v":""},null,null,null,null,null,null,null,""]
[{"$f":"IF('Erläuterungen Finanzierungsplan'!A129=\"\",\"\",'Erläuterungen Finanzierungsplan'!A129)","v":""},null,null,null,null,{"$f":"IF('Erläuterungen Finanzierungsplan'!F129=\"\",\"\",'Erläuterungen Finanzierungsplan'!F129)","v":""},null,null,null,null,null,{"$f":"IF('Erläuterungen Finanzierungsplan'!AB129=\"\",\"\",'Erläuterungen Finanzierungsplan'!AB129)","v":""},null,null,null,null,{"$f":"IF('Erläuterungen Finanzierungsplan'!L129=\"\",\"\",'Erläuterungen Finanzierungsplan'!L129)","v":""},null,{"$f":"IF('Erläuterungen Finanzierungsplan'!N129=\"\",\"\",'Erläuterungen Finanzierungsplan'!N129)","v":""},null,{"$f":"IF('Erläuterungen Finanzierungsplan'!R129=\"\",\"\",'Erläuterungen Finanzierungsplan'!R129)","v":24},null,null,{"$f":"IF('Erläuterungen Finanzierungsplan'!U129=\"\",\"\",'Erläuterungen Finanzierungsplan'!U129)","v":""},null,null,{"$f":"IF('Erläuterungen Finanzierungsplan'!X129=\"\",\"\",'Erläuterungen Finanzierungsplan'!X129)","v":""},null,null,null,{"$f":"IF('Erläuterungen Finanzierungsplan'!AN129=\"\",\"\",'Erläuterungen Finanzierungsplan'!AN129)","v":""},null,null,null,null,null,null,null,""]
[{"$f":"IF('Erläuterungen Finanzierungsplan'!A130=\"\",\"\",'Erläuterungen Finanzierungsplan'!A130)","v":""},null,null,null,null,{"$f":"IF('Erläuterungen Finanzierungsplan'!F130=\"\",\"\",'Erläuterungen Finanzierungsplan'!F130)","v":""},null,null,null,null,null,{"$f":"IF('Erläuterungen Finanzierungsplan'!AB130=\"\",\"\",'Erläuterungen Finanzierungsplan'!AB130)","v":""},null,null,null,null,{"$f":"IF('Erläuterungen Finanzierungsplan'!L130=\"\",\"\",'Erläuterungen Finanzierungsplan'!L130)","v":""},null,{"$f":"IF('Erläuterungen Finanzierungsplan'!N130=\"\",\"\",'Erläuterungen Finanzierungsplan'!N130)","v":""},null,{"$f":"IF('Erläuterungen Finanzierungsplan'!R130=\"\",\"\",'Erläuterungen Finanzierungsplan'!R130)","v":24},null,null,{"$f":"IF('Erläuterungen Finanzierungsplan'!U130=\"\",\"\",'Erläuterungen Finanzierungsplan'!U130)","v":""},null,null,{"$f":"IF('Erläuterungen Finanzierungsplan'!X130=\"\",\"\",'Erläuterungen Finanzierungsplan'!X130)","v":""},null,null,null,{"$f":"IF('Erläuterungen Finanzierungsplan'!AN130=\"\",\"\",'Erläuterungen Finanzierungsplan'!AN130)","v":""},null,null,null,null,null,null,null,""]
[{"$f":"IF('Erläuterungen Finanzierungsplan'!A131=\"\",\"\",'Erläuterungen Finanzierungsplan'!A131)","v":""},null,null,null,null,{"$f":"IF('Erläuterungen Finanzierungsplan'!F131=\"\",\"\",'Erläuterungen Finanzierungsplan'!F131)","v":""},null,null,null,null,null,{"$f":"IF('Erläuterungen Finanzierungsplan'!AB131=\"\",\"\",'Erläuterungen Finanzierungsplan'!AB131)","v":""},null,null,null,null,{"$f":"IF('Erläuterungen Finanzierungsplan'!L131=\"\",\"\",'Erläuterungen Finanzierungsplan'!L131)","v":""},null,{"$f":"IF('Erläuterungen Finanzierungsplan'!N131=\"\",\"\",'Erläuterungen Finanzierungsplan'!N131)","v":""},null,{"$f":"IF('Erläuterungen Finanzierungsplan'!R131=\"\",\"\",'Erläuterungen Finanzierungsplan'!R131)","v":24},null,null,{"$f":"IF('Erläuterungen Finanzierungsplan'!U131=\"\",\"\",'Erläuterungen Finanzierungsplan'!U131)","v":""},null,null,{"$f":"IF('Erläuterungen Finanzierungsplan'!X131=\"\",\"\",'Erläuterungen Finanzierungsplan'!X131)","v":""},null,null,null,{"$f":"IF('Erläuterungen Finanzierungsplan'!AN131=\"\",\"\",'Erläuterungen Finanzierungsplan'!AN131)","v":""},null,null,null,null,null,null,null,""]
[{"$f":"IF('Erläuterungen Finanzierungsplan'!A132=\"\",\"\",'Erläuterungen Finanzierungsplan'!A132)","v":""},null,null,null,null,{"$f":"IF('Erläuterungen Finanzierungsplan'!F132=\"\",\"\",'Erläuterungen Finanzierungsplan'!F132)","v":""},null,null,null,null,null,{"$f":"IF('Erläuterungen Finanzierungsplan'!AB132=\"\",\"\",'Erläuterungen Finanzierungsplan'!AB132)","v":""},null,null,null,null,{"$f":"IF('Erläuterungen Finanzierungsplan'!L132=\"\",\"\",'Erläuterungen Finanzierungsplan'!L132)","v":""},null,{"$f":"IF('Erläuterungen Finanzierungsplan'!N132=\"\",\"\",'Erläuterungen Finanzierungsplan'!N132)","v":""},null,{"$f":"IF('Erläuterungen Finanzierungsplan'!R132=\"\",\"\",'Erläuterungen Finanzierungsplan'!R132)","v":24},null,null,{"$f":"IF('Erläuterungen Finanzierungsplan'!U132=\"\",\"\",'Erläuterungen Finanzierungsplan'!U132)","v":""},null,null,{"$f":"IF('Erläuterungen Finanzierungsplan'!X132=\"\",\"\",'Erläuterungen Finanzierungsplan'!X132)","v":""},null,null,null,{"$f":"IF('Erläuterungen Finanzierungsplan'!AN132=\"\",\"\",'Erläuterungen Finanzierungsplan'!AN132)","v":""},null,null,null,null,null,null,null,""]
[{"$f":"IF('Erläuterungen Finanzierungsplan'!A133=\"\",\"\",'Erläuterungen Finanzierungsplan'!A133)","v":""},null,null,null,null,{"$f":"IF('Erläuterungen Finanzierungsplan'!F133=\"\",\"\",'Erläuterungen Finanzierungsplan'!F133)","v":""},null,null,null,null,null,{"$f":"IF('Erläuterungen Finanzierungsplan'!AB133=\"\",\"\",'Erläuterungen Finanzierungsplan'!AB133)","v":""},null,null,null,null,{"$f":"IF('Erläuterungen Finanzierungsplan'!L133=\"\",\"\",'Erläuterungen Finanzierungsplan'!L133)","v":""},null,{"$f":"IF('Erläuterungen Finanzierungsplan'!N133=\"\",\"\",'Erläuterungen Finanzierungsplan'!N133)","v":""},null,{"$f":"IF('Erläuterungen Finanzierungsplan'!R133=\"\",\"\",'Erläuterungen Finanzierungsplan'!R133)","v":24},null,null,{"$f":"IF('Erläuterungen Finanzierungsplan'!U133=\"\",\"\",'Erläuterungen Finanzierungsplan'!U133)","v":""},null,null,{"$f":"IF('Erläuterungen Finanzierungsplan'!X133=\"\",\"\",'Erläuterungen Finanzierungsplan'!X133)","v":""},null,null,null,{"$f":"IF('Erläuterungen Finanzierungsplan'!AN133=\"\",\"\",'Erläuterungen Finanzierungsplan'!AN133)","v":""},null,null,null,null,null,null,null,""]
[{"$f":"IF('Erläuterungen Finanzierungsplan'!A134=\"\",\"\",'Erläuterungen Finanzierungsplan'!A134)","v":""},null,null,null,null,{"$f":"IF('Erläuterungen Finanzierungsplan'!F134=\"\",\"\",'Erläuterungen Finanzierungsplan'!F134)","v":""},null,null,null,null,null,{"$f":"IF('Erläuterungen Finanzierungsplan'!AB134=\"\",\"\",'Erläuterungen Finanzierungsplan'!AB134)","v":""},null,null,null,null,{"$f":"IF('Erläuterungen Finanzierungsplan'!L134=\"\",\"\",'Erläuterungen Finanzierungsplan'!L134)","v":""},null,{"$f":"IF('Erläuterungen Finanzierungsplan'!N134=\"\",\"\",'Erläuterungen Finanzierungsplan'!N134)","v":""},null,{"$f":"IF('Erläuterungen Finanzierungsplan'!R134=\"\",\"\",'Erläuterungen Finanzierungsplan'!R134)","v":24},null,null,{"$f":"IF('Erläuterungen Finanzierungsplan'!U134=\"\",\"\",'Erläuterungen Finanzierungsplan'!U134)","v":""},null,null,{"$f":"IF('Erläuterungen Finanzierungsplan'!X134=\"\",\"\",'Erläuterungen Finanzierungsplan'!X134)","v":""},null,null,null,{"$f":"IF('Erläuterungen Finanzierungsplan'!AN134=\"\",\"\",'Erläuterungen Finanzierungsplan'!AN134)","v":""},null,null,null,null,null,null,null,""]
[{"$f":"IF('Erläuterungen Finanzierungsplan'!A135=\"\",\"\",'Erläuterungen Finanzierungsplan'!A135)","v":""},null,null,null,null,{"$f":"IF('Erläuterungen Finanzierungsplan'!F135=\"\",\"\",'Erläuterungen Finanzierungsplan'!F135)","v":""},null,null,null,null,null,{"$f":"IF('Erläuterungen Finanzierungsplan'!AB135=\"\",\"\",'Erläuterungen Finanzierungsplan'!AB135)","v":""},null,null,null,null,{"$f":"IF('Erläuterungen Finanzierungsplan'!L135=\"\",\"\",'Erläuterungen Finanzierungsplan'!L135)","v":""},null,{"$f":"IF('Erläuterungen Finanzierungsplan'!N135=\"\",\"\",'Erläuterungen Finanzierungsplan'!N135)","v":""},null,{"$f":"IF('Erläuterungen Finanzierungsplan'!R135=\"\",\"\",'Erläuterungen Finanzierungsplan'!R135)","v":24},null,null,{"$f":"IF('Erläuterungen Finanzierungsplan'!U135=\"\",\"\",'Erläuterungen Finanzierungsplan'!U135)","v":""},null,null,{"$f":"IF('Erläuterungen Finanzierungsplan'!X135=\"\",\"\",'Erläuterungen Finanzierungsplan'!X135)","v":""},null,null,null,{"$f":"IF('Erläuterungen Finanzierungsplan'!AN135=\"\",\"\",'Erläuterungen Finanzierungsplan'!AN135)","v":""},null,null,null,null,null,null,null,""]
[{"$f":"IF('Erläuterungen Finanzierungsplan'!A136=\"\",\"\",'Erläuterungen Finanzierungsplan'!A136)","v":""},null,null,null,null,{"$f":"IF('Erläuterungen Finanzierungsplan'!F136=\"\",\"\",'Erläuterungen Finanzierungsplan'!F136)","v":""},null,null,null,null,null,{"$f":"IF('Erläuterungen Finanzierungsplan'!AB136=\"\",\"\",'Erläuterungen Finanzierungsplan'!AB136)","v":""},null,null,null,null,{"$f":"IF('Erläuterungen Finanzierungsplan'!L136=\"\",\"\",'Erläuterungen Finanzierungsplan'!L136)","v":""},null,{"$f":"IF('Erläuterungen Finanzierungsplan'!N136=\"\",\"\",'Erläuterungen Finanzierungsplan'!N136)","v":""},null,{"$f":"IF('Erläuterungen Finanzierungsplan'!R136=\"\",\"\",'Erläuterungen Finanzierungsplan'!R136)","v":24},null,null,{"$f":"IF('Erläuterungen Finanzierungsplan'!U136=\"\",\"\",'Erläuterungen Finanzierungsplan'!U136)","v":""},null,null,{"$f":"IF('Erläuterungen Finanzierungsplan'!X136=\"\",\"\",'Erläuterungen Finanzierungsplan'!X136)","v":""},null,null,null,{"$f":"IF('Erläuterungen Finanzierungsplan'!AN136=\"\",\"\",'Erläuterungen Finanzierungsplan'!AN136)","v":""},null,null,null,null,null,null,null,""]
[{"$f":"IF('Erläuterungen Finanzierungsplan'!A137=\"\",\"\",'Erläuterungen Finanzierungsplan'!A137)","v":""},null,null,null,null,{"$f":"IF('Erläuterungen Finanzierungsplan'!F137=\"\",\"\",'Erläuterungen Finanzierungsplan'!F137)","v":""},null,null,null,null,null,{"$f":"IF('Erläuterungen Finanzierungsplan'!AB137=\"\",\"\",'Erläuterungen Finanzierungsplan'!AB137)","v":""},null,null,null,null,{"$f":"IF('Erläuterungen Finanzierungsplan'!L137=\"\",\"\",'Erläuterungen Finanzierungsplan'!L137)","v":""},null,{"$f":"IF('Erläuterungen Finanzierungsplan'!N137=\"\",\"\",'Erläuterungen Finanzierungsplan'!N137)","v":""},null,{"$f":"IF('Erläuterungen Finanzierungsplan'!R137=\"\",\"\",'Erläuterungen Finanzierungsplan'!R137)","v":24},null,null,{"$f":"IF('Erläuterungen Finanzierungsplan'!U137=\"\",\"\",'Erläuterungen Finanzierungsplan'!U137)","v":""},null,null,{"$f":"IF('Erläuterungen Finanzierungsplan'!X137=\"\",\"\",'Erläuterungen Finanzierungsplan'!X137)","v":""},null,null,null,{"$f":"IF('Erläuterungen Finanzierungsplan'!AN137=\"\",\"\",'Erläuterungen Finanzierungsplan'!AN137)","v":""},null,null,null,null,null,null,null,""]
[{"$f":"IF('Erläuterungen Finanzierungsplan'!A138=\"\",\"\",'Erläuterungen Finanzierungsplan'!A138)","v":""},null,null,null,null,{"$f":"IF('Erläuterungen Finanzierungsplan'!F138=\"\",\"\",'Erläuterungen Finanzierungsplan'!F138)","v":""},null,null,null,null,null,{"$f":"IF('Erläuterungen Finanzierungsplan'!AB138=\"\",\"\",'Erläuterungen Finanzierungsplan'!AB138)","v":""},null,null,null,null,{"$f":"IF('Erläuterungen Finanzierungsplan'!L138=\"\",\"\",'Erläuterungen Finanzierungsplan'!L138)","v":""},null,{"$f":"IF('Erläuterungen Finanzierungsplan'!N138=\"\",\"\",'Erläuterungen Finanzierungsplan'!N138)","v":""},null,{"$f":"IF('Erläuterungen Finanzierungsplan'!R138=\"\",\"\",'Erläuterungen Finanzierungsplan'!R138)","v":24},null,null,{"$f":"IF('Erläuterungen Finanzierungsplan'!U138=\"\",\"\",'Erläuterungen Finanzierungsplan'!U138)","v":""},null,null,{"$f":"IF('Erläuterungen Finanzierungsplan'!X138=\"\",\"\",'Erläuterungen Finanzierungsplan'!X138)","v":""},null,null,null,{"$f":"IF('Erläuterungen Finanzierungsplan'!AN138=\"\",\"\",'Erläuterungen Finanzierungsplan'!AN138)","v":""},null,null,null,null,null,null,null,""]
[{"$f":"IF('Erläuterungen Finanzierungsplan'!A139=\"\",\"\",'Erläuterungen Finanzierungsplan'!A139)","v":""},null,null,null,null,{"$f":"IF('Erläuterungen Finanzierungsplan'!F139=\"\",\"\",'Erläuterungen Finanzierungsplan'!F139)","v":""},null,null,null,null,null,{"$f":"IF('Erläuterungen Finanzierungsplan'!AB139=\"\",\"\",'Erläuterungen Finanzierungsplan'!AB139)","v":""},null,null,null,null,{"$f":"IF('Erläuterungen Finanzierungsplan'!L139=\"\",\"\",'Erläuterungen Finanzierungsplan'!L139)","v":""},null,{"$f":"IF('Erläuterungen Finanzierungsplan'!N139=\"\",\"\",'Erläuterungen Finanzierungsplan'!N139)","v":""},null,{"$f":"IF('Erläuterungen Finanzierungsplan'!R139=\"\",\"\",'Erläuterungen Finanzierungsplan'!R139)","v":24},null,null,{"$f":"IF('Erläuterungen Finanzierungsplan'!U139=\"\",\"\",'Erläuterungen Finanzierungsplan'!U139)","v":""},null,null,{"$f":"IF('Erläuterungen Finanzierungsplan'!X139=\"\",\"\",'Erläuterungen Finanzierungsplan'!X139)","v":""},null,null,null,{"$f":"IF('Erläuterungen Finanzierungsplan'!AN139=\"\",\"\",'Erläuterungen Finanzierungsplan'!AN139)","v":""},null,null,null,null,null,null,null,""]
[{"$f":"IF('Erläuterungen Finanzierungsplan'!A140=\"\",\"\",'Erläuterungen Finanzierungsplan'!A140)","v":""},null,null,null,null,{"$f":"IF('Erläuterungen Finanzierungsplan'!F140=\"\",\"\",'Erläuterungen Finanzierungsplan'!F140)","v":""},null,null,null,null,null,{"$f":"IF('Erläuterungen Finanzierungsplan'!AB140=\"\",\"\",'Erläuterungen Finanzierungsplan'!AB140)","v":""},null,null,null,null,{"$f":"IF('Erläuterungen Finanzierungsplan'!L140=\"\",\"\",'Erläuterungen Finanzierungsplan'!L140)","v":""},null,{"$f":"IF('Erläuterungen Finanzierungsplan'!N140=\"\",\"\",'Erläuterungen Finanzierungsplan'!N140)","v":""},null,{"$f":"IF('Erläuterungen Finanzierungsplan'!R140=\"\",\"\",'Erläuterungen Finanzierungsplan'!R140)","v":24},null,null,{"$f":"IF('Erläuterungen Finanzierungsplan'!U140=\"\",\"\",'Erläuterungen Finanzierungsplan'!U140)","v":""},null,null,{"$f":"IF('Erläuterungen Finanzierungsplan'!X140=\"\",\"\",'Erläuterungen Finanzierungsplan'!X140)","v":""},null,null,null,{"$f":"IF('Erläuterungen Finanzierungsplan'!AN140=\"\",\"\",'Erläuterungen Finanzierungsplan'!AN140)","v":""},null,null,null,null,null,null,null,""]
[{"$f":"IF('Erläuterungen Finanzierungsplan'!A141=\"\",\"\",'Erläuterungen Finanzierungsplan'!A141)","v":""},null,null,null,null,{"$f":"IF('Erläuterungen Finanzierungsplan'!F141=\"\",\"\",'Erläuterungen Finanzierungsplan'!F141)","v":""},null,null,null,null,null,{"$f":"IF('Erläuterungen Finanzierungsplan'!AB141=\"\",\"\",'Erläuterungen Finanzierungsplan'!AB141)","v":""},null,null,null,null,{"$f":"IF('Erläuterungen Finanzierungsplan'!L141=\"\",\"\",'Erläuterungen Finanzierungsplan'!L141)","v":""},null,{"$f":"IF('Erläuterungen Finanzierungsplan'!N141=\"\",\"\",'Erläuterungen Finanzierungsplan'!N141)","v":""},null,{"$f":"IF('Erläuterungen Finanzierungsplan'!R141=\"\",\"\",'Erläuterungen Finanzierungsplan'!R141)","v":24},null,null,{"$f":"IF('Erläuterungen Finanzierungsplan'!U141=\"\",\"\",'Erläuterungen Finanzierungsplan'!U141)","v":""},null,null,{"$f":"IF('Erläuterungen Finanzierungsplan'!X141=\"\",\"\",'Erläuterungen Finanzierungsplan'!X141)","v":""},null,null,null,{"$f":"IF('Erläuterungen Finanzierungsplan'!AN141=\"\",\"\",'Erläuterungen Finanzierungsplan'!AN141)","v":""},null,null,null,null,null,null,null,""]
[{"$f":"IF('Erläuterungen Finanzierungsplan'!A142=\"\",\"\",'Erläuterungen Finanzierungsplan'!A142)","v":""},null,null,null,null,{"$f":"IF('Erläuterungen Finanzierungsplan'!F142=\"\",\"\",'Erläuterungen Finanzierungsplan'!F142)","v":""},null,null,null,null,null,{"$f":"IF('Erläuterungen Finanzierungsplan'!AB142=\"\",\"\",'Erläuterungen Finanzierungsplan'!AB142)","v":""},null,null,null,null,{"$f":"IF('Erläuterungen Finanzierungsplan'!L142=\"\",\"\",'Erläuterungen Finanzierungsplan'!L142)","v":""},null,{"$f":"IF('Erläuterungen Finanzierungsplan'!N142=\"\",\"\",'Erläuterungen Finanzierungsplan'!N142)","v":""},null,{"$f":"IF('Erläuterungen Finanzierungsplan'!R142=\"\",\"\",'Erläuterungen Finanzierungsplan'!R142)","v":24},null,null,{"$f":"IF('Erläuterungen Finanzierungsplan'!U142=\"\",\"\",'Erläuterungen Finanzierungsplan'!U142)","v":""},null,null,{"$f":"IF('Erläuterungen Finanzierungsplan'!X142=\"\",\"\",'Erläuterungen Finanzierungsplan'!X142)","v":""},null,null,null,{"$f":"IF('Erläuterungen Finanzierungsplan'!AN142=\"\",\"\",'Erläuterungen Finanzierungsplan'!AN142)","v":""},null,null,null,null,null,null,null,""]
[{"$f":"IF('Erläuterungen Finanzierungsplan'!A143=\"\",\"\",'Erläuterungen Finanzierungsplan'!A143)","v":""},null,null,null,null,{"$f":"IF('Erläuterungen Finanzierungsplan'!F143=\"\",\"\",'Erläuterungen Finanzierungsplan'!F143)","v":""},null,null,null,null,null,{"$f":"IF('Erläuterungen Finanzierungsplan'!AB143=\"\",\"\",'Erläuterungen Finanzierungsplan'!AB143)","v":""},null,null,null,null,{"$f":"IF('Erläuterungen Finanzierungsplan'!L143=\"\",\"\",'Erläuterungen Finanzierungsplan'!L143)","v":""},null,{"$f":"IF('Erläuterungen Finanzierungsplan'!N143=\"\",\"\",'Erläuterungen Finanzierungsplan'!N143)","v":""},null,{"$f":"IF('Erläuterungen Finanzierungsplan'!R143=\"\",\"\",'Erläuterungen Finanzierungsplan'!R143)","v":24},null,null,{"$f":"IF('Erläuterungen Finanzierungsplan'!U143=\"\",\"\",'Erläuterungen Finanzierungsplan'!U143)","v":""},null,null,{"$f":"IF('Erläuterungen Finanzierungsplan'!X143=\"\",\"\",'Erläuterungen Finanzierungsplan'!X143)","v":""},null,null,null,{"$f":"IF('Erläuterungen Finanzierungsplan'!AN143=\"\",\"\",'Erläuterungen Finanzierungsplan'!AN143)","v":""},null,null,null,null,null,null,null,""]
[{"$f":"IF('Erläuterungen Finanzierungsplan'!A144=\"\",\"\",'Erläuterungen Finanzierungsplan'!A144)","v":""},null,null,null,null,{"$f":"IF('Erläuterungen Finanzierungsplan'!F144=\"\",\"\",'Erläuterungen Finanzierungsplan'!F144)","v":""},null,null,null,null,null,{"$f":"IF('Erläuterungen Finanzierungsplan'!AB144=\"\",\"\",'Erläuterungen Finanzierungsplan'!AB144)","v":""},null,null,null,null,{"$f":"IF('Erläuterungen Finanzierungsplan'!L144=\"\",\"\",'Erläuterungen Finanzierungsplan'!L144)","v":""},null,{"$f":"IF('Erläuterungen Finanzierungsplan'!N144=\"\",\"\",'Erläuterungen Finanzierungsplan'!N144)","v":""},null,{"$f":"IF('Erläuterungen Finanzierungsplan'!R144=\"\",\"\",'Erläuterungen Finanzierungsplan'!R144)","v":24},null,null,{"$f":"IF('Erläuterungen Finanzierungsplan'!U144=\"\",\"\",'Erläuterungen Finanzierungsplan'!U144)","v":""},null,null,{"$f":"IF('Erläuterungen Finanzierungsplan'!X144=\"\",\"\",'Erläuterungen Finanzierungsplan'!X144)","v":""},null,null,null,{"$f":"IF('Erläuterungen Finanzierungsplan'!AN144=\"\",\"\",'Erläuterungen Finanzierungsplan'!AN144)","v":""},null,null,null,null,null,null,null,""]
[{"$f":"IF('Erläuterungen Finanzierungsplan'!A145=\"\",\"\",'Erläuterungen Finanzierungsplan'!A145)","v":""},null,null,null,null,{"$f":"IF('Erläuterungen Finanzierungsplan'!F145=\"\",\"\",'Erläuterungen Finanzierungsplan'!F145)","v":""},null,null,null,null,null,{"$f":"IF('Erläuterungen Finanzierungsplan'!AB145=\"\",\"\",'Erläuterungen Finanzierungsplan'!AB145)","v":""},null,null,null,null,{"$f":"IF('Erläuterungen Finanzierungsplan'!L145=\"\",\"\",'Erläuterungen Finanzierungsplan'!L145)","v":""},null,{"$f":"IF('Erläuterungen Finanzierungsplan'!N145=\"\",\"\",'Erläuterungen Finanzierungsplan'!N145)","v":""},null,{"$f":"IF('Erläuterungen Finanzierungsplan'!R145=\"\",\"\",'Erläuterungen Finanzierungsplan'!R145)","v":24},null,null,{"$f":"IF('Erläuterungen Finanzierungsplan'!U145=\"\",\"\",'Erläuterungen Finanzierungsplan'!U145)","v":""},null,null,{"$f":"IF('Erläuterungen Finanzierungsplan'!X145=\"\",\"\",'Erläuterungen Finanzierungsplan'!X145)","v":""},null,null,null,{"$f":"IF('Erläuterungen Finanzierungsplan'!AN145=\"\",\"\",'Erläuterungen Finanzierungsplan'!AN145)","v":""},null,null,null,null,null,null,null,""]
[{"$f":"IF('Erläuterungen Finanzierungsplan'!A146=\"\",\"\",'Erläuterungen Finanzierungsplan'!A146)","v":""},null,null,null,null,{"$f":"IF('Erläuterungen Finanzierungsplan'!F146=\"\",\"\",'Erläuterungen Finanzierungsplan'!F146)","v":""},null,null,null,null,null,{"$f":"IF('Erläuterungen Finanzierungsplan'!AB146=\"\",\"\",'Erläuterungen Finanzierungsplan'!AB146)","v":""},null,null,null,null,{"$f":"IF('Erläuterungen Finanzierungsplan'!L146=\"\",\"\",'Erläuterungen Finanzierungsplan'!L146)","v":""},null,{"$f":"IF('Erläuterungen Finanzierungsplan'!N146=\"\",\"\",'Erläuterungen Finanzierungsplan'!N146)","v":""},null,{"$f":"IF('Erläuterungen Finanzierungsplan'!R146=\"\",\"\",'Erläuterungen Finanzierungsplan'!R146)","v":24},null,null,{"$f":"IF('Erläuterungen Finanzierungsplan'!U146=\"\",\"\",'Erläuterungen Finanzierungsplan'!U146)","v":""},null,null,{"$f":"IF('Erläuterungen Finanzierungsplan'!X146=\"\",\"\",'Erläuterungen Finanzierungsplan'!X146)","v":""},null,null,null,{"$f":"IF('Erläuterungen Finanzierungsplan'!AN146=\"\",\"\",'Erläuterungen Finanzierungsplan'!AN146)","v":""},null,null,null,null,null,null,null,""]
[{"$f":"IF('Erläuterungen Finanzierungsplan'!A147=\"\",\"\",'Erläuterungen Finanzierungsplan'!A147)","v":""},null,null,null,null,{"$f":"IF('Erläuterungen Finanzierungsplan'!F147=\"\",\"\",'Erläuterungen Finanzierungsplan'!F147)","v":""},null,null,null,null,null,{"$f":"IF('Erläuterungen Finanzierungsplan'!AB147=\"\",\"\",'Erläuterungen Finanzierungsplan'!AB147)","v":""},null,null,null,null,{"$f":"IF('Erläuterungen Finanzierungsplan'!L147=\"\",\"\",'Erläuterungen Finanzierungsplan'!L147)","v":""},null,{"$f":"IF('Erläuterungen Finanzierungsplan'!N147=\"\",\"\",'Erläuterungen Finanzierungsplan'!N147)","v":""},null,{"$f":"IF('Erläuterungen Finanzierungsplan'!R147=\"\",\"\",'Erläuterungen Finanzierungsplan'!R147)","v":24},null,null,{"$f":"IF('Erläuterungen Finanzierungsplan'!U147=\"\",\"\",'Erläuterungen Finanzierungsplan'!U147)","v":""},null,null,{"$f":"IF('Erläuterungen Finanzierungsplan'!X147=\"\",\"\",'Erläuterungen Finanzierungsplan'!X147)","v":""},null,null,null,{"$f":"IF('Erläuterungen Finanzierungsplan'!AN147=\"\",\"\",'Erläuterungen Finanzierungsplan'!AN147)","v":""},null,null,null,null,null,null,null,""]
[{"$f":"IF('Erläuterungen Finanzierungsplan'!A148=\"\",\"\",'Erläuterungen Finanzierungsplan'!A148)","v":""},null,null,null,null,{"$f":"IF('Erläuterungen Finanzierungsplan'!F148=\"\",\"\",'Erläuterungen Finanzierungsplan'!F148)","v":""},null,null,null,null,null,{"$f":"IF('Erläuterungen Finanzierungsplan'!AB148=\"\",\"\",'Erläuterungen Finanzierungsplan'!AB148)","v":""},null,null,null,null,{"$f":"IF('Erläuterungen Finanzierungsplan'!L148=\"\",\"\",'Erläuterungen Finanzierungsplan'!L148)","v":""},null,{"$f":"IF('Erläuterungen Finanzierungsplan'!N148=\"\",\"\",'Erläuterungen Finanzierungsplan'!N148)","v":""},null,{"$f":"IF('Erläuterungen Finanzierungsplan'!R148=\"\",\"\",'Erläuterungen Finanzierungsplan'!R148)","v":24},null,null,{"$f":"IF('Erläuterungen Finanzierungsplan'!U148=\"\",\"\",'Erläuterungen Finanzierungsplan'!U148)","v":""},null,null,{"$f":"IF('Erläuterungen Finanzierungsplan'!X148=\"\",\"\",'Erläuterungen Finanzierungsplan'!X148)","v":""},null,null,null,{"$f":"IF('Erläuterungen Finanzierungsplan'!AN148=\"\",\"\",'Erläuterungen Finanzierungsplan'!AN148)","v":""},null,null,null,null,null,null,null,""]
[{"$f":"IF('Erläuterungen Finanzierungsplan'!A149=\"\",\"\",'Erläuterungen Finanzierungsplan'!A149)","v":""},null,null,null,null,{"$f":"IF('Erläuterungen Finanzierungsplan'!F149=\"\",\"\",'Erläuterungen Finanzierungsplan'!F149)","v":""},null,null,null,null,null,{"$f":"IF('Erläuterungen Finanzierungsplan'!AB149=\"\",\"\",'Erläuterungen Finanzierungsplan'!AB149)","v":""},null,null,null,null,{"$f":"IF('Erläuterungen Finanzierungsplan'!L149=\"\",\"\",'Erläuterungen Finanzierungsplan'!L149)","v":""},null,{"$f":"IF('Erläuterungen Finanzierungsplan'!N149=\"\",\"\",'Erläuterungen Finanzierungsplan'!N149)","v":""},null,{"$f":"IF('Erläuterungen Finanzierungsplan'!R149=\"\",\"\",'Erläuterungen Finanzierungsplan'!R149)","v":24},null,null,{"$f":"IF('Erläuterungen Finanzierungsplan'!U149=\"\",\"\",'Erläuterungen Finanzierungsplan'!U149)","v":""},null,null,{"$f":"IF('Erläuterungen Finanzierungsplan'!X149=\"\",\"\",'Erläuterungen Finanzierungsplan'!X149)","v":""},null,null,null,{"$f":"IF('Erläuterungen Finanzierungsplan'!AN149=\"\",\"\",'Erläuterungen Finanzierungsplan'!AN149)","v":""},null,null,null,null,null,null,null,""]
[{"$f":"IF('Erläuterungen Finanzierungsplan'!A150=\"\",\"\",'Erläuterungen Finanzierungsplan'!A150)","v":""},null,null,null,null,{"$f":"IF('Erläuterungen Finanzierungsplan'!F150=\"\",\"\",'Erläuterungen Finanzierungsplan'!F150)","v":""},null,null,null,null,null,{"$f":"IF('Erläuterungen Finanzierungsplan'!AB150=\"\",\"\",'Erläuterungen Finanzierungsplan'!AB150)","v":""},null,null,null,null,{"$f":"IF('Erläuterungen Finanzierungsplan'!L150=\"\",\"\",'Erläuterungen Finanzierungsplan'!L150)","v":""},null,{"$f":"IF('Erläuterungen Finanzierungsplan'!N150=\"\",\"\",'Erläuterungen Finanzierungsplan'!N150)","v":""},null,{"$f":"IF('Erläuterungen Finanzierungsplan'!R150=\"\",\"\",'Erläuterungen Finanzierungsplan'!R150)","v":24},null,null,{"$f":"IF('Erläuterungen Finanzierungsplan'!U150=\"\",\"\",'Erläuterungen Finanzierungsplan'!U150)","v":""},null,null,{"$f":"IF('Erläuterungen Finanzierungsplan'!X150=\"\",\"\",'Erläuterungen Finanzierungsplan'!X150)","v":""},null,null,null,{"$f":"IF('Erläuterungen Finanzierungsplan'!AN150=\"\",\"\",'Erläuterungen Finanzierungsplan'!AN150)","v":""},null,null,null,null,null,null,null,""]
[{"$f":"IF('Erläuterungen Finanzierungsplan'!A151=\"\",\"\",'Erläuterungen Finanzierungsplan'!A151)","v":""},null,null,null,null,{"$f":"IF('Erläuterungen Finanzierungsplan'!F151=\"\",\"\",'Erläuterungen Finanzierungsplan'!F151)","v":""},null,null,null,null,null,{"$f":"IF('Erläuterungen Finanzierungsplan'!AB151=\"\",\"\",'Erläuterungen Finanzierungsplan'!AB151)","v":""},null,null,null,null,{"$f":"IF('Erläuterungen Finanzierungsplan'!L151=\"\",\"\",'Erläuterungen Finanzierungsplan'!L151)","v":""},null,{"$f":"IF('Erläuterungen Finanzierungsplan'!N151=\"\",\"\",'Erläuterungen Finanzierungsplan'!N151)","v":""},null,{"$f":"IF('Erläuterungen Finanzierungsplan'!R151=\"\",\"\",'Erläuterungen Finanzierungsplan'!R151)","v":24},null,null,{"$f":"IF('Erläuterungen Finanzierungsplan'!U151=\"\",\"\",'Erläuterungen Finanzierungsplan'!U151)","v":""},null,null,{"$f":"IF('Erläuterungen Finanzierungsplan'!X151=\"\",\"\",'Erläuterungen Finanzierungsplan'!X151)","v":""},null,null,null,{"$f":"IF('Erläuterungen Finanzierungsplan'!AN151=\"\",\"\",'Erläuterungen Finanzierungsplan'!AN151)","v":""},null,null,null,null,null,null,null,""]
[{"$f":"IF('Erläuterungen Finanzierungsplan'!A152=\"\",\"\",'Erläuterungen Finanzierungsplan'!A152)","v":""},null,null,null,null,{"$f":"IF('Erläuterungen Finanzierungsplan'!F152=\"\",\"\",'Erläuterungen Finanzierungsplan'!F152)","v":""},null,null,null,null,null,{"$f":"IF('Erläuterungen Finanzierungsplan'!AB152=\"\",\"\",'Erläuterungen Finanzierungsplan'!AB152)","v":""},null,null,null,null,{"$f":"IF('Erläuterungen Finanzierungsplan'!L152=\"\",\"\",'Erläuterungen Finanzierungsplan'!L152)","v":""},null,{"$f":"IF('Erläuterungen Finanzierungsplan'!N152=\"\",\"\",'Erläuterungen Finanzierungsplan'!N152)","v":""},null,{"$f":"IF('Erläuterungen Finanzierungsplan'!R152=\"\",\"\",'Erläuterungen Finanzierungsplan'!R152)","v":24},null,null,{"$f":"IF('Erläuterungen Finanzierungsplan'!U152=\"\",\"\",'Erläuterungen Finanzierungsplan'!U152)","v":""},null,null,{"$f":"IF('Erläuterungen Finanzierungsplan'!X152=\"\",\"\",'Erläuterungen Finanzierungsplan'!X152)","v":""},null,null,null,{"$f":"IF('Erläuterungen Finanzierungsplan'!AN152=\"\",\"\",'Erläuterungen Finanzierungsplan'!AN152)","v":""},null,null,null,null,null,null,null,""]
[{"$f":"IF('Erläuterungen Finanzierungsplan'!A153=\"\",\"\",'Erläuterungen Finanzierungsplan'!A153)","v":""},null,null,null,null,{"$f":"IF('Erläuterungen Finanzierungsplan'!F153=\"\",\"\",'Erläuterungen Finanzierungsplan'!F153)","v":""},null,null,null,null,null,{"$f":"IF('Erläuterungen Finanzierungsplan'!AB153=\"\",\"\",'Erläuterungen Finanzierungsplan'!AB153)","v":""},null,null,null,null,{"$f":"IF('Erläuterungen Finanzierungsplan'!L153=\"\",\"\",'Erläuterungen Finanzierungsplan'!L153)","v":""},null,{"$f":"IF('Erläuterungen Finanzierungsplan'!N153=\"\",\"\",'Erläuterungen Finanzierungsplan'!N153)","v":""},null,{"$f":"IF('Erläuterungen Finanzierungsplan'!R153=\"\",\"\",'Erläuterungen Finanzierungsplan'!R153)","v":24},null,null,{"$f":"IF('Erläuterungen Finanzierungsplan'!U153=\"\",\"\",'Erläuterungen Finanzierungsplan'!U153)","v":""},null,null,{"$f":"IF('Erläuterungen Finanzierungsplan'!X153=\"\",\"\",'Erläuterungen Finanzierungsplan'!X153)","v":""},null,null,null,{"$f":"IF('Erläuterungen Finanzierungsplan'!AN153=\"\",\"\",'Erläuterungen Finanzierungsplan'!AN153)","v":""},null,null,null,null,null,null,null,""]
[{"$f":"IF('Erläuterungen Finanzierungsplan'!A154=\"\",\"\",'Erläuterungen Finanzierungsplan'!A154)","v":""},null,null,null,null,{"$f":"IF('Erläuterungen Finanzierungsplan'!F154=\"\",\"\",'Erläuterungen Finanzierungsplan'!F154)","v":""},null,null,null,null,null,{"$f":"IF('Erläuterungen Finanzierungsplan'!AB154=\"\",\"\",'Erläuterungen Finanzierungsplan'!AB154)","v":""},null,null,null,null,{"$f":"IF('Erläuterungen Finanzierungsplan'!L154=\"\",\"\",'Erläuterungen Finanzierungsplan'!L154)","v":""},null,{"$f":"IF('Erläuterungen Finanzierungsplan'!N154=\"\",\"\",'Erläuterungen Finanzierungsplan'!N154)","v":""},null,{"$f":"IF('Erläuterungen Finanzierungsplan'!R154=\"\",\"\",'Erläuterungen Finanzierungsplan'!R154)","v":24},null,null,{"$f":"IF('Erläuterungen Finanzierungsplan'!U154=\"\",\"\",'Erläuterungen Finanzierungsplan'!U154)","v":""},null,null,{"$f":"IF('Erläuterungen Finanzierungsplan'!X154=\"\",\"\",'Erläuterungen Finanzierungsplan'!X154)","v":""},null,null,null,{"$f":"IF('Erläuterungen Finanzierungsplan'!AN154=\"\",\"\",'Erläuterungen Finanzierungsplan'!AN154)","v":""},null,null,null,null,null,null,null,""]
[{"$f":"IF('Erläuterungen Finanzierungsplan'!A155=\"\",\"\",'Erläuterungen Finanzierungsplan'!A155)","v":""},null,null,null,null,{"$f":"IF('Erläuterungen Finanzierungsplan'!F155=\"\",\"\",'Erläuterungen Finanzierungsplan'!F155)","v":""},null,null,null,null,null,{"$f":"IF('Erläuterungen Finanzierungsplan'!AB155=\"\",\"\",'Erläuterungen Finanzierungsplan'!AB155)","v":""},null,null,null,null,{"$f":"IF('Erläuterungen Finanzierungsplan'!L155=\"\",\"\",'Erläuterungen Finanzierungsplan'!L155)","v":""},null,{"$f":"IF('Erläuterungen Finanzierungsplan'!N155=\"\",\"\",'Erläuterungen Finanzierungsplan'!N155)","v":""},null,{"$f":"IF('Erläuterungen Finanzierungsplan'!R155=\"\",\"\",'Erläuterungen Finanzierungsplan'!R155)","v":24},null,null,{"$f":"IF('Erläuterungen Finanzierungsplan'!U155=\"\",\"\",'Erläuterungen Finanzierungsplan'!U155)","v":""},null,null,{"$f":"IF('Erläuterungen Finanzierungsplan'!X155=\"\",\"\",'Erläuterungen Finanzierungsplan'!X155)","v":""},null,null,null,{"$f":"IF('Erläuterungen Finanzierungsplan'!AN155=\"\",\"\",'Erläuterungen Finanzierungsplan'!AN155)","v":""},null,null,null,null,null,null,null,""]
[{"$f":"IF('Erläuterungen Finanzierungsplan'!A156=\"\",\"\",'Erläuterungen Finanzierungsplan'!A156)","v":""},null,null,null,null,{"$f":"IF('Erläuterungen Finanzierungsplan'!F156=\"\",\"\",'Erläuterungen Finanzierungsplan'!F156)","v":""},null,null,null,null,null,{"$f":"IF('Erläuterungen Finanzierungsplan'!AB156=\"\",\"\",'Erläuterungen Finanzierungsplan'!AB156)","v":""},null,null,null,null,{"$f":"IF('Erläuterungen Finanzierungsplan'!L156=\"\",\"\",'Erläuterungen Finanzierungsplan'!L156)","v":""},null,{"$f":"IF('Erläuterungen Finanzierungsplan'!N156=\"\",\"\",'Erläuterungen Finanzierungsplan'!N156)","v":""},null,{"$f":"IF('Erläuterungen Finanzierungsplan'!R156=\"\",\"\",'Erläuterungen Finanzierungsplan'!R156)","v":24},null,null,{"$f":"IF('Erläuterungen Finanzierungsplan'!U156=\"\",\"\",'Erläuterungen Finanzierungsplan'!U156)","v":""},null,null,{"$f":"IF('Erläuterungen Finanzierungsplan'!X156=\"\",\"\",'Erläuterungen Finanzierungsplan'!X156)","v":""},null,null,null,{"$f":"IF('Erläuterungen Finanzierungsplan'!AN156=\"\",\"\",'Erläuterungen Finanzierungsplan'!AN156)","v":""},null,null,null,null,null,null,null,""]
[{"$f":"IF('Erläuterungen Finanzierungsplan'!A157=\"\",\"\",'Erläuterungen Finanzierungsplan'!A157)","v":""},null,null,null,null,{"$f":"IF('Erläuterungen Finanzierungsplan'!F157=\"\",\"\",'Erläuterungen Finanzierungsplan'!F157)","v":""},null,null,null,null,null,{"$f":"IF('Erläuterungen Finanzierungsplan'!AB157=\"\",\"\",'Erläuterungen Finanzierungsplan'!AB157)","v":""},null,null,null,null,{"$f":"IF('Erläuterungen Finanzierungsplan'!L157=\"\",\"\",'Erläuterungen Finanzierungsplan'!L157)","v":""},null,{"$f":"IF('Erläuterungen Finanzierungsplan'!N157=\"\",\"\",'Erläuterungen Finanzierungsplan'!N157)","v":""},null,{"$f":"IF('Erläuterungen Finanzierungsplan'!R157=\"\",\"\",'Erläuterungen Finanzierungsplan'!R157)","v":24},null,null,{"$f":"IF('Erläuterungen Finanzierungsplan'!U157=\"\",\"\",'Erläuterungen Finanzierungsplan'!U157)","v":""},null,null,{"$f":"IF('Erläuterungen Finanzierungsplan'!X157=\"\",\"\",'Erläuterungen Finanzierungsplan'!X157)","v":""},null,null,null,{"$f":"IF('Erläuterungen Finanzierungsplan'!AN157=\"\",\"\",'Erläuterungen Finanzierungsplan'!AN157)","v":""},null,null,null,null,null,null,null,""]
[{"$f":"IF('Erläuterungen Finanzierungsplan'!A158=\"\",\"\",'Erläuterungen Finanzierungsplan'!A158)","v":""},null,null,null,null,{"$f":"IF('Erläuterungen Finanzierungsplan'!F158=\"\",\"\",'Erläuterungen Finanzierungsplan'!F158)","v":""},null,null,null,null,null,{"$f":"IF('Erläuterungen Finanzierungsplan'!AB158=\"\",\"\",'Erläuterungen Finanzierungsplan'!AB158)","v":""},null,null,null,null,{"$f":"IF('Erläuterungen Finanzierungsplan'!L158=\"\",\"\",'Erläuterungen Finanzierungsplan'!L158)","v":""},null,{"$f":"IF('Erläuterungen Finanzierungsplan'!N158=\"\",\"\",'Erläuterungen Finanzierungsplan'!N158)","v":""},null,{"$f":"IF('Erläuterungen Finanzierungsplan'!R158=\"\",\"\",'Erläuterungen Finanzierungsplan'!R158)","v":24},null,null,{"$f":"IF('Erläuterungen Finanzierungsplan'!U158=\"\",\"\",'Erläuterungen Finanzierungsplan'!U158)","v":""},null,null,{"$f":"IF('Erläuterungen Finanzierungsplan'!X158=\"\",\"\",'Erläuterungen Finanzierungsplan'!X158)","v":""},null,null,null,{"$f":"IF('Erläuterungen Finanzierungsplan'!AN158=\"\",\"\",'Erläuterungen Finanzierungsplan'!AN158)","v":""},null,null,null,null,null,null,null,""]
[{"$f":"IF('Erläuterungen Finanzierungsplan'!A159=\"\",\"\",'Erläuterungen Finanzierungsplan'!A159)","v":""},null,null,null,null,{"$f":"IF('Erläuterungen Finanzierungsplan'!F159=\"\",\"\",'Erläuterungen Finanzierungsplan'!F159)","v":""},null,null,null,null,null,{"$f":"IF('Erläuterungen Finanzierungsplan'!AB159=\"\",\"\",'Erläuterungen Finanzierungsplan'!AB159)","v":""},null,null,null,null,{"$f":"IF('Erläuterungen Finanzierungsplan'!L159=\"\",\"\",'Erläuterungen Finanzierungsplan'!L159)","v":""},null,{"$f":"IF('Erläuterungen Finanzierungsplan'!N159=\"\",\"\",'Erläuterungen Finanzierungsplan'!N159)","v":""},null,{"$f":"IF('Erläuterungen Finanzierungsplan'!R159=\"\",\"\",'Erläuterungen Finanzierungsplan'!R159)","v":24},null,null,{"$f":"IF('Erläuterungen Finanzierungsplan'!U159=\"\",\"\",'Erläuterungen Finanzierungsplan'!U159)","v":""},null,null,{"$f":"IF('Erläuterungen Finanzierungsplan'!X159=\"\",\"\",'Erläuterungen Finanzierungsplan'!X159)","v":""},null,null,null,{"$f":"IF('Erläuterungen Finanzierungsplan'!AN159=\"\",\"\",'Erläuterungen Finanzierungsplan'!AN159)","v":""},null,null,null,null,null,null,null,""]
[{"$f":"IF('Erläuterungen Finanzierungsplan'!A160=\"\",\"\",'Erläuterungen Finanzierungsplan'!A160)","v":""},null,null,null,null,{"$f":"IF('Erläuterungen Finanzierungsplan'!F160=\"\",\"\",'Erläuterungen Finanzierungsplan'!F160)","v":""},null,null,null,null,null,{"$f":"IF('Erläuterungen Finanzierungsplan'!AB160=\"\",\"\",'Erläuterungen Finanzierungsplan'!AB160)","v":""},null,null,null,null,{"$f":"IF('Erläuterungen Finanzierungsplan'!L160=\"\",\"\",'Erläuterungen Finanzierungsplan'!L160)","v":""},null,{"$f":"IF('Erläuterungen Finanzierungsplan'!N160=\"\",\"\",'Erläuterungen Finanzierungsplan'!N160)","v":""},null,{"$f":"IF('Erläuterungen Finanzierungsplan'!R160=\"\",\"\",'Erläuterungen Finanzierungsplan'!R160)","v":24},null,null,{"$f":"IF('Erläuterungen Finanzierungsplan'!U160=\"\",\"\",'Erläuterungen Finanzierungsplan'!U160)","v":""},null,null,{"$f":"IF('Erläuterungen Finanzierungsplan'!X160=\"\",\"\",'Erläuterungen Finanzierungsplan'!X160)","v":""},null,null,null,{"$f":"IF('Erläuterungen Finanzierungsplan'!AN160=\"\",\"\",'Erläuterungen Finanzierungsplan'!AN160)","v":""},null,null,null,null,null,null,null,""]
[{"$f":"IF('Erläuterungen Finanzierungsplan'!A161=\"\",\"\",'Erläuterungen Finanzierungsplan'!A161)","v":""},null,null,null,null,{"$f":"IF('Erläuterungen Finanzierungsplan'!F161=\"\",\"\",'Erläuterungen Finanzierungsplan'!F161)","v":""},null,null,null,null,null,{"$f":"IF('Erläuterungen Finanzierungsplan'!AB161=\"\",\"\",'Erläuterungen Finanzierungsplan'!AB161)","v":""},null,null,null,null,{"$f":"IF('Erläuterungen Finanzierungsplan'!L161=\"\",\"\",'Erläuterungen Finanzierungsplan'!L161)","v":""},null,{"$f":"IF('Erläuterungen Finanzierungsplan'!N161=\"\",\"\",'Erläuterungen Finanzierungsplan'!N161)","v":""},null,{"$f":"IF('Erläuterungen Finanzierungsplan'!R161=\"\",\"\",'Erläuterungen Finanzierungsplan'!R161)","v":24},null,null,{"$f":"IF('Erläuterungen Finanzierungsplan'!U161=\"\",\"\",'Erläuterungen Finanzierungsplan'!U161)","v":""},null,null,{"$f":"IF('Erläuterungen Finanzierungsplan'!X161=\"\",\"\",'Erläuterungen Finanzierungsplan'!X161)","v":""},null,null,null,{"$f":"IF('Erläuterungen Finanzierungsplan'!AN161=\"\",\"\",'Erläuterungen Finanzierungsplan'!AN161)","v":""},null,null,null,null,null,null,null,""]
[{"$f":"IF('Erläuterungen Finanzierungsplan'!A162=\"\",\"\",'Erläuterungen Finanzierungsplan'!A162)","v":""},null,null,null,null,{"$f":"IF('Erläuterungen Finanzierungsplan'!F162=\"\",\"\",'Erläuterungen Finanzierungsplan'!F162)","v":""},null,null,null,null,null,{"$f":"IF('Erläuterungen Finanzierungsplan'!AB162=\"\",\"\",'Erläuterungen Finanzierungsplan'!AB162)","v":""},null,null,null,null,{"$f":"IF('Erläuterungen Finanzierungsplan'!L162=\"\",\"\",'Erläuterungen Finanzierungsplan'!L162)","v":""},null,{"$f":"IF('Erläuterungen Finanzierungsplan'!N162=\"\",\"\",'Erläuterungen Finanzierungsplan'!N162)","v":""},null,{"$f":"IF('Erläuterungen Finanzierungsplan'!R162=\"\",\"\",'Erläuterungen Finanzierungsplan'!R162)","v":24},null,null,{"$f":"IF('Erläuterungen Finanzierungsplan'!U162=\"\",\"\",'Erläuterungen Finanzierungsplan'!U162)","v":""},null,null,{"$f":"IF('Erläuterungen Finanzierungsplan'!X162=\"\",\"\",'Erläuterungen Finanzierungsplan'!X162)","v":""},null,null,null,{"$f":"IF('Erläuterungen Finanzierungsplan'!AN162=\"\",\"\",'Erläuterungen Finanzierungsplan'!AN162)","v":""},null,null,null,null,null,null,null,""]
[{"$f":"IF('Erläuterungen Finanzierungsplan'!A163=\"\",\"\",'Erläuterungen Finanzierungsplan'!A163)","v":""},null,null,null,null,{"$f":"IF('Erläuterungen Finanzierungsplan'!F163=\"\",\"\",'Erläuterungen Finanzierungsplan'!F163)","v":""},null,null,null,null,null,{"$f":"IF('Erläuterungen Finanzierungsplan'!AB163=\"\",\"\",'Erläuterungen Finanzierungsplan'!AB163)","v":""},null,null,null,null,{"$f":"IF('Erläuterungen Finanzierungsplan'!L163=\"\",\"\",'Erläuterungen Finanzierungsplan'!L163)","v":""},null,{"$f":"IF('Erläuterungen Finanzierungsplan'!N163=\"\",\"\",'Erläuterungen Finanzierungsplan'!N163)","v":""},null,{"$f":"IF('Erläuterungen Finanzierungsplan'!R163=\"\",\"\",'Erläuterungen Finanzierungsplan'!R163)","v":24},null,null,{"$f":"IF('Erläuterungen Finanzierungsplan'!U163=\"\",\"\",'Erläuterungen Finanzierungsplan'!U163)","v":""},null,null,{"$f":"IF('Erläuterungen Finanzierungsplan'!X163=\"\",\"\",'Erläuterungen Finanzierungsplan'!X163)","v":""},null,null,null,{"$f":"IF('Erläuterungen Finanzierungsplan'!AN163=\"\",\"\",'Erläuterungen Finanzierungsplan'!AN163)","v":""},null,null,null,null,null,null,null,""]
[{"$f":"IF('Erläuterungen Finanzierungsplan'!A164=\"\",\"\",'Erläuterungen Finanzierungsplan'!A164)","v":""},null,null,null,null,{"$f":"IF('Erläuterungen Finanzierungsplan'!F164=\"\",\"\",'Erläuterungen Finanzierungsplan'!F164)","v":""},null,null,null,null,null,{"$f":"IF('Erläuterungen Finanzierungsplan'!AB164=\"\",\"\",'Erläuterungen Finanzierungsplan'!AB164)","v":""},null,null,null,null,{"$f":"IF('Erläuterungen Finanzierungsplan'!L164=\"\",\"\",'Erläuterungen Finanzierungsplan'!L164)","v":""},null,{"$f":"IF('Erläuterungen Finanzierungsplan'!N164=\"\",\"\",'Erläuterungen Finanzierungsplan'!N164)","v":""},null,{"$f":"IF('Erläuterungen Finanzierungsplan'!R164=\"\",\"\",'Erläuterungen Finanzierungsplan'!R164)","v":24},null,null,{"$f":"IF('Erläuterungen Finanzierungsplan'!U164=\"\",\"\",'Erläuterungen Finanzierungsplan'!U164)","v":""},null,null,{"$f":"IF('Erläuterungen Finanzierungsplan'!X164=\"\",\"\",'Erläuterungen Finanzierungsplan'!X164)","v":""},null,null,null,{"$f":"IF('Erläuterungen Finanzierungsplan'!AN164=\"\",\"\",'Erläuterungen Finanzierungsplan'!AN164)","v":""},null,null,null,null,null,null,null,""]
[{"$f":"IF('Erläuterungen Finanzierungsplan'!A165=\"\",\"\",'Erläuterungen Finanzierungsplan'!A165)","v":""},null,null,null,null,{"$f":"IF('Erläuterungen Finanzierungsplan'!F165=\"\",\"\",'Erläuterungen Finanzierungsplan'!F165)","v":""},null,null,null,null,null,{"$f":"IF('Erläuterungen Finanzierungsplan'!AB165=\"\",\"\",'Erläuterungen Finanzierungsplan'!AB165)","v":""},null,null,null,null,{"$f":"IF('Erläuterungen Finanzierungsplan'!L165=\"\",\"\",'Erläuterungen Finanzierungsplan'!L165)","v":""},null,{"$f":"IF('Erläuterungen Finanzierungsplan'!N165=\"\",\"\",'Erläuterungen Finanzierungsplan'!N165)","v":""},null,{"$f":"IF('Erläuterungen Finanzierungsplan'!R165=\"\",\"\",'Erläuterungen Finanzierungsplan'!R165)","v":24},null,null,{"$f":"IF('Erläuterungen Finanzierungsplan'!U165=\"\",\"\",'Erläuterungen Finanzierungsplan'!U165)","v":""},null,null,{"$f":"IF('Erläuterungen Finanzierungsplan'!X165=\"\",\"\",'Erläuterungen Finanzierungsplan'!X165)","v":""},null,null,null,{"$f":"IF('Erläuterungen Finanzierungsplan'!AN165=\"\",\"\",'Erläuterungen Finanzierungsplan'!AN165)","v":""},null,null,null,null,null,null,null,""]
[{"$f":"IF('Erläuterungen Finanzierungsplan'!A166=\"\",\"\",'Erläuterungen Finanzierungsplan'!A166)","v":""},null,null,null,null,{"$f":"IF('Erläuterungen Finanzierungsplan'!F166=\"\",\"\",'Erläuterungen Finanzierungsplan'!F166)","v":""},null,null,null,null,null,{"$f":"IF('Erläuterungen Finanzierungsplan'!AB166=\"\",\"\",'Erläuterungen Finanzierungsplan'!AB166)","v":""},null,null,null,null,{"$f":"IF('Erläuterungen Finanzierungsplan'!L166=\"\",\"\",'Erläuterungen Finanzierungsplan'!L166)","v":""},null,{"$f":"IF('Erläuterungen Finanzierungsplan'!N166=\"\",\"\",'Erläuterungen Finanzierungsplan'!N166)","v":""},null,{"$f":"IF('Erläuterungen Finanzierungsplan'!R166=\"\",\"\",'Erläuterungen Finanzierungsplan'!R166)","v":24},null,null,{"$f":"IF('Erläuterungen Finanzierungsplan'!U166=\"\",\"\",'Erläuterungen Finanzierungsplan'!U166)","v":""},null,null,{"$f":"IF('Erläuterungen Finanzierungsplan'!X166=\"\",\"\",'Erläuterungen Finanzierungsplan'!X166)","v":""},null,null,null,{"$f":"IF('Erläuterungen Finanzierungsplan'!AN166=\"\",\"\",'Erläuterungen Finanzierungsplan'!AN166)","v":""},null,null,null,null,null,null,null,""]
[{"$f":"IF('Erläuterungen Finanzierungsplan'!A167=\"\",\"\",'Erläuterungen Finanzierungsplan'!A167)","v":""},null,null,null,null,{"$f":"IF('Erläuterungen Finanzierungsplan'!F167=\"\",\"\",'Erläuterungen Finanzierungsplan'!F167)","v":""},null,null,null,null,null,{"$f":"IF('Erläuterungen Finanzierungsplan'!AB167=\"\",\"\",'Erläuterungen Finanzierungsplan'!AB167)","v":""},null,null,null,null,{"$f":"IF('Erläuterungen Finanzierungsplan'!L167=\"\",\"\",'Erläuterungen Finanzierungsplan'!L167)","v":""},null,{"$f":"IF('Erläuterungen Finanzierungsplan'!N167=\"\",\"\",'Erläuterungen Finanzierungsplan'!N167)","v":""},null,{"$f":"IF('Erläuterungen Finanzierungsplan'!R167=\"\",\"\",'Erläuterungen Finanzierungsplan'!R167)","v":24},null,null,{"$f":"IF('Erläuterungen Finanzierungsplan'!U167=\"\",\"\",'Erläuterungen Finanzierungsplan'!U167)","v":""},null,null,{"$f":"IF('Erläuterungen Finanzierungsplan'!X167=\"\",\"\",'Erläuterungen Finanzierungsplan'!X167)","v":""},null,null,null,{"$f":"IF('Erläuterungen Finanzierungsplan'!AN167=\"\",\"\",'Erläuterungen Finanzierungsplan'!AN167)","v":""},null,null,null,null,null,null,null,""]
[{"$f":"IF('Erläuterungen Finanzierungsplan'!A168=\"\",\"\",'Erläuterungen Finanzierungsplan'!A168)","v":""},null,null,null,null,{"$f":"IF('Erläuterungen Finanzierungsplan'!F168=\"\",\"\",'Erläuterungen Finanzierungsplan'!F168)","v":""},null,null,null,null,null,{"$f":"IF('Erläuterungen Finanzierungsplan'!AB168=\"\",\"\",'Erläuterungen Finanzierungsplan'!AB168)","v":""},null,null,null,null,{"$f":"IF('Erläuterungen Finanzierungsplan'!L168=\"\",\"\",'Erläuterungen Finanzierungsplan'!L168)","v":""},null,{"$f":"IF('Erläuterungen Finanzierungsplan'!N168=\"\",\"\",'Erläuterungen Finanzierungsplan'!N168)","v":""},null,{"$f":"IF('Erläuterungen Finanzierungsplan'!R168=\"\",\"\",'Erläuterungen Finanzierungsplan'!R168)","v":24},null,null,{"$f":"IF('Erläuterungen Finanzierungsplan'!U168=\"\",\"\",'Erläuterungen Finanzierungsplan'!U168)","v":""},null,null,{"$f":"IF('Erläuterungen Finanzierungsplan'!X168=\"\",\"\",'Erläuterungen Finanzierungsplan'!X168)","v":""},null,null,null,{"$f":"IF('Erläuterungen Finanzierungsplan'!AN168=\"\",\"\",'Erläuterungen Finanzierungsplan'!AN168)","v":""},null,null,null,null,null,null,null,""]
[{"$f":"IF('Erläuterungen Finanzierungsplan'!A169=\"\",\"\",'Erläuterungen Finanzierungsplan'!A169)","v":""},null,null,null,null,{"$f":"IF('Erläuterungen Finanzierungsplan'!F169=\"\",\"\",'Erläuterungen Finanzierungsplan'!F169)","v":""},null,null,null,null,null,{"$f":"IF('Erläuterungen Finanzierungsplan'!AB169=\"\",\"\",'Erläuterungen Finanzierungsplan'!AB169)","v":""},null,null,null,null,{"$f":"IF('Erläuterungen Finanzierungsplan'!L169=\"\",\"\",'Erläuterungen Finanzierungsplan'!L169)","v":""},null,{"$f":"IF('Erläuterungen Finanzierungsplan'!N169=\"\",\"\",'Erläuterungen Finanzierungsplan'!N169)","v":""},null,{"$f":"IF('Erläuterungen Finanzierungsplan'!R169=\"\",\"\",'Erläuterungen Finanzierungsplan'!R169)","v":24},null,null,{"$f":"IF('Erläuterungen Finanzierungsplan'!U169=\"\",\"\",'Erläuterungen Finanzierungsplan'!U169)","v":""},null,null,{"$f":"IF('Erläuterungen Finanzierungsplan'!X169=\"\",\"\",'Erläuterungen Finanzierungsplan'!X169)","v":""},null,null,null,{"$f":"IF('Erläuterungen Finanzierungsplan'!AN169=\"\",\"\",'Erläuterungen Finanzierungsplan'!AN169)","v":""},null,null,null,null,null,null,null,""]
[{"$f":"IF('Erläuterungen Finanzierungsplan'!A170=\"\",\"\",'Erläuterungen Finanzierungsplan'!A170)","v":""},null,null,null,null,{"$f":"IF('Erläuterungen Finanzierungsplan'!F170=\"\",\"\",'Erläuterungen Finanzierungsplan'!F170)","v":""},null,null,null,null,null,{"$f":"IF('Erläuterungen Finanzierungsplan'!AB170=\"\",\"\",'Erläuterungen Finanzierungsplan'!AB170)","v":""},null,null,null,null,{"$f":"IF('Erläuterungen Finanzierungsplan'!L170=\"\",\"\",'Erläuterungen Finanzierungsplan'!L170)","v":""},null,{"$f":"IF('Erläuterungen Finanzierungsplan'!N170=\"\",\"\",'Erläuterungen Finanzierungsplan'!N170)","v":""},null,{"$f":"IF('Erläuterungen Finanzierungsplan'!R170=\"\",\"\",'Erläuterungen Finanzierungsplan'!R170)","v":24},null,null,{"$f":"IF('Erläuterungen Finanzierungsplan'!U170=\"\",\"\",'Erläuterungen Finanzierungsplan'!U170)","v":""},null,null,{"$f":"IF('Erläuterungen Finanzierungsplan'!X170=\"\",\"\",'Erläuterungen Finanzierungsplan'!X170)","v":""},null,null,null,{"$f":"IF('Erläuterungen Finanzierungsplan'!AN170=\"\",\"\",'Erläuterungen Finanzierungsplan'!AN170)","v":""},null,null,null,null,null,null,null,""]
[{"$f":"IF('Erläuterungen Finanzierungsplan'!A171=\"\",\"\",'Erläuterungen Finanzierungsplan'!A171)","v":""},null,null,null,null,{"$f":"IF('Erläuterungen Finanzierungsplan'!F171=\"\",\"\",'Erläuterungen Finanzierungsplan'!F171)","v":""},null,null,null,null,null,{"$f":"IF('Erläuterungen Finanzierungsplan'!AB171=\"\",\"\",'Erläuterungen Finanzierungsplan'!AB171)","v":""},null,null,null,null,{"$f":"IF('Erläuterungen Finanzierungsplan'!L171=\"\",\"\",'Erläuterungen Finanzierungsplan'!L171)","v":""},null,{"$f":"IF('Erläuterungen Finanzierungsplan'!N171=\"\",\"\",'Erläuterungen Finanzierungsplan'!N171)","v":""},null,{"$f":"IF('Erläuterungen Finanzierungsplan'!R171=\"\",\"\",'Erläuterungen Finanzierungsplan'!R171)","v":24},null,null,{"$f":"IF('Erläuterungen Finanzierungsplan'!U171=\"\",\"\",'Erläuterungen Finanzierungsplan'!U171)","v":""},null,null,{"$f":"IF('Erläuterungen Finanzierungsplan'!X171=\"\",\"\",'Erläuterungen Finanzierungsplan'!X171)","v":""},null,null,null,{"$f":"IF('Erläuterungen Finanzierungsplan'!AN171=\"\",\"\",'Erläuterungen Finanzierungsplan'!AN171)","v":""},null,null,null,null,null,null,null,""]
[{"$f":"IF('Erläuterungen Finanzierungsplan'!A172=\"\",\"\",'Erläuterungen Finanzierungsplan'!A172)","v":""},null,null,null,null,{"$f":"IF('Erläuterungen Finanzierungsplan'!F172=\"\",\"\",'Erläuterungen Finanzierungsplan'!F172)","v":""},null,null,null,null,null,{"$f":"IF('Erläuterungen Finanzierungsplan'!AB172=\"\",\"\",'Erläuterungen Finanzierungsplan'!AB172)","v":""},null,null,null,null,{"$f":"IF('Erläuterungen Finanzierungsplan'!L172=\"\",\"\",'Erläuterungen Finanzierungsplan'!L172)","v":""},null,{"$f":"IF('Erläuterungen Finanzierungsplan'!N172=\"\",\"\",'Erläuterungen Finanzierungsplan'!N172)","v":""},null,{"$f":"IF('Erläuterungen Finanzierungsplan'!R172=\"\",\"\",'Erläuterungen Finanzierungsplan'!R172)","v":24},null,null,{"$f":"IF('Erläuterungen Finanzierungsplan'!U172=\"\",\"\",'Erläuterungen Finanzierungsplan'!U172)","v":""},null,null,{"$f":"IF('Erläuterungen Finanzierungsplan'!X172=\"\",\"\",'Erläuterungen Finanzierungsplan'!X172)","v":""},null,null,null,{"$f":"IF('Erläuterungen Finanzierungsplan'!AN172=\"\",\"\",'Erläuterungen Finanzierungsplan'!AN172)","v":""},null,null,null,null,null,null,null,""]
[{"$f":"IF('Erläuterungen Finanzierungsplan'!A173=\"\",\"\",'Erläuterungen Finanzierungsplan'!A173)","v":""},null,null,null,null,{"$f":"IF('Erläuterungen Finanzierungsplan'!F173=\"\",\"\",'Erläuterungen Finanzierungsplan'!F173)","v":""},null,null,null,null,null,{"$f":"IF('Erläuterungen Finanzierungsplan'!AB173=\"\",\"\",'Erläuterungen Finanzierungsplan'!AB173)","v":""},null,null,null,null,{"$f":"IF('Erläuterungen Finanzierungsplan'!L173=\"\",\"\",'Erläuterungen Finanzierungsplan'!L173)","v":""},null,{"$f":"IF('Erläuterungen Finanzierungsplan'!N173=\"\",\"\",'Erläuterungen Finanzierungsplan'!N173)","v":""},null,{"$f":"IF('Erläuterungen Finanzierungsplan'!R173=\"\",\"\",'Erläuterungen Finanzierungsplan'!R173)","v":24},null,null,{"$f":"IF('Erläuterungen Finanzierungsplan'!U173=\"\",\"\",'Erläuterungen Finanzierungsplan'!U173)","v":""},null,null,{"$f":"IF('Erläuterungen Finanzierungsplan'!X173=\"\",\"\",'Erläuterungen Finanzierungsplan'!X173)","v":""},null,null,null,{"$f":"IF('Erläuterungen Finanzierungsplan'!AN173=\"\",\"\",'Erläuterungen Finanzierungsplan'!AN173)","v":""},null,null,null,null,null,null,null,""]
[{"$f":"IF('Erläuterungen Finanzierungsplan'!A174=\"\",\"\",'Erläuterungen Finanzierungsplan'!A174)","v":""},null,null,null,null,{"$f":"IF('Erläuterungen Finanzierungsplan'!F174=\"\",\"\",'Erläuterungen Finanzierungsplan'!F174)","v":""},null,null,null,null,null,{"$f":"IF('Erläuterungen Finanzierungsplan'!AB174=\"\",\"\",'Erläuterungen Finanzierungsplan'!AB174)","v":""},null,null,null,null,{"$f":"IF('Erläuterungen Finanzierungsplan'!L174=\"\",\"\",'Erläuterungen Finanzierungsplan'!L174)","v":""},null,{"$f":"IF('Erläuterungen Finanzierungsplan'!N174=\"\",\"\",'Erläuterungen Finanzierungsplan'!N174)","v":""},null,{"$f":"IF('Erläuterungen Finanzierungsplan'!R174=\"\",\"\",'Erläuterungen Finanzierungsplan'!R174)","v":24},null,null,{"$f":"IF('Erläuterungen Finanzierungsplan'!U174=\"\",\"\",'Erläuterungen Finanzierungsplan'!U174)","v":""},null,null,{"$f":"IF('Erläuterungen Finanzierungsplan'!X174=\"\",\"\",'Erläuterungen Finanzierungsplan'!X174)","v":""},null,null,null,{"$f":"IF('Erläuterungen Finanzierungsplan'!AN174=\"\",\"\",'Erläuterungen Finanzierungsplan'!AN174)","v":""},null,null,null,null,null,null,null,""]
[{"$f":"IF('Erläuterungen Finanzierungsplan'!A175=\"\",\"\",'Erläuterungen Finanzierungsplan'!A175)","v":""},null,null,null,null,{"$f":"IF('Erläuterungen Finanzierungsplan'!F175=\"\",\"\",'Erläuterungen Finanzierungsplan'!F175)","v":""},null,null,null,null,null,{"$f":"IF('Erläuterungen Finanzierungsplan'!AB175=\"\",\"\",'Erläuterungen Finanzierungsplan'!AB175)","v":""},null,null,null,null,{"$f":"IF('Erläuterungen Finanzierungsplan'!L175=\"\",\"\",'Erläuterungen Finanzierungsplan'!L175)","v":""},null,{"$f":"IF('Erläuterungen Finanzierungsplan'!N175=\"\",\"\",'Erläuterungen Finanzierungsplan'!N175)","v":""},null,{"$f":"IF('Erläuterungen Finanzierungsplan'!R175=\"\",\"\",'Erläuterungen Finanzierungsplan'!R175)","v":24},null,null,{"$f":"IF('Erläuterungen Finanzierungsplan'!U175=\"\",\"\",'Erläuterungen Finanzierungsplan'!U175)","v":""},null,null,{"$f":"IF('Erläuterungen Finanzierungsplan'!X175=\"\",\"\",'Erläuterungen Finanzierungsplan'!X175)","v":""},null,null,null,{"$f":"IF('Erläuterungen Finanzierungsplan'!AN175=\"\",\"\",'Erläuterungen Finanzierungsplan'!AN175)","v":""},null,null,null,null,null,null,null,""]
[{"$f":"IF('Erläuterungen Finanzierungsplan'!A176=\"\",\"\",'Erläuterungen Finanzierungsplan'!A176)","v":""},null,null,null,null,{"$f":"IF('Erläuterungen Finanzierungsplan'!F176=\"\",\"\",'Erläuterungen Finanzierungsplan'!F176)","v":""},null,null,null,null,null,{"$f":"IF('Erläuterungen Finanzierungsplan'!AB176=\"\",\"\",'Erläuterungen Finanzierungsplan'!AB176)","v":""},null,null,null,null,{"$f":"IF('Erläuterungen Finanzierungsplan'!L176=\"\",\"\",'Erläuterungen Finanzierungsplan'!L176)","v":""},null,{"$f":"IF('Erläuterungen Finanzierungsplan'!N176=\"\",\"\",'Erläuterungen Finanzierungsplan'!N176)","v":""},null,{"$f":"IF('Erläuterungen Finanzierungsplan'!R176=\"\",\"\",'Erläuterungen Finanzierungsplan'!R176)","v":24},null,null,{"$f":"IF('Erläuterungen Finanzierungsplan'!U176=\"\",\"\",'Erläuterungen Finanzierungsplan'!U176)","v":""},null,null,{"$f":"IF('Erläuterungen Finanzierungsplan'!X176=\"\",\"\",'Erläuterungen Finanzierungsplan'!X176)","v":""},null,null,null,{"$f":"IF('Erläuterungen Finanzierungsplan'!AN176=\"\",\"\",'Erläuterungen Finanzierungsplan'!AN176)","v":""},null,null,null,null,null,null,null,""]
[{"$f":"IF('Erläuterungen Finanzierungsplan'!A177=\"\",\"\",'Erläuterungen Finanzierungsplan'!A177)","v":""},null,null,null,null,{"$f":"IF('Erläuterungen Finanzierungsplan'!F177=\"\",\"\",'Erläuterungen Finanzierungsplan'!F177)","v":""},null,null,null,null,null,{"$f":"IF('Erläuterungen Finanzierungsplan'!AB177=\"\",\"\",'Erläuterungen Finanzierungsplan'!AB177)","v":""},null,null,null,null,{"$f":"IF('Erläuterungen Finanzierungsplan'!L177=\"\",\"\",'Erläuterungen Finanzierungsplan'!L177)","v":""},null,{"$f":"IF('Erläuterungen Finanzierungsplan'!N177=\"\",\"\",'Erläuterungen Finanzierungsplan'!N177)","v":""},null,{"$f":"IF('Erläuterungen Finanzierungsplan'!R177=\"\",\"\",'Erläuterungen Finanzierungsplan'!R177)","v":24},null,null,{"$f":"IF('Erläuterungen Finanzierungsplan'!U177=\"\",\"\",'Erläuterungen Finanzierungsplan'!U177)","v":""},null,null,{"$f":"IF('Erläuterungen Finanzierungsplan'!X177=\"\",\"\",'Erläuterungen Finanzierungsplan'!X177)","v":""},null,null,null,{"$f":"IF('Erläuterungen Finanzierungsplan'!AN177=\"\",\"\",'Erläuterungen Finanzierungsplan'!AN177)","v":""},null,null,null,null,null,null,null,""]
[{"$f":"IF('Erläuterungen Finanzierungsplan'!A178=\"\",\"\",'Erläuterungen Finanzierungsplan'!A178)","v":""},null,null,null,null,{"$f":"IF('Erläuterungen Finanzierungsplan'!F178=\"\",\"\",'Erläuterungen Finanzierungsplan'!F178)","v":""},null,null,null,null,null,{"$f":"IF('Erläuterungen Finanzierungsplan'!AB178=\"\",\"\",'Erläuterungen Finanzierungsplan'!AB178)","v":""},null,null,null,null,{"$f":"IF('Erläuterungen Finanzierungsplan'!L178=\"\",\"\",'Erläuterungen Finanzierungsplan'!L178)","v":""},null,{"$f":"IF('Erläuterungen Finanzierungsplan'!N178=\"\",\"\",'Erläuterungen Finanzierungsplan'!N178)","v":""},null,{"$f":"IF('Erläuterungen Finanzierungsplan'!R178=\"\",\"\",'Erläuterungen Finanzierungsplan'!R178)","v":24},null,null,{"$f":"IF('Erläuterungen Finanzierungsplan'!U178=\"\",\"\",'Erläuterungen Finanzierungsplan'!U178)","v":""},null,null,{"$f":"IF('Erläuterungen Finanzierungsplan'!X178=\"\",\"\",'Erläuterungen Finanzierungsplan'!X178)","v":""},null,null,null,{"$f":"IF('Erläuterungen Finanzierungsplan'!AN178=\"\",\"\",'Erläuterungen Finanzierungsplan'!AN178)","v":""},null,null,null,null,null,null,null,""]
[{"$f":"IF('Erläuterungen Finanzierungsplan'!A179=\"\",\"\",'Erläuterungen Finanzierungsplan'!A179)","v":""},null,null,null,null,{"$f":"IF('Erläuterungen Finanzierungsplan'!F179=\"\",\"\",'Erläuterungen Finanzierungsplan'!F179)","v":""},null,null,null,null,null,{"$f":"IF('Erläuterungen Finanzierungsplan'!AB179=\"\",\"\",'Erläuterungen Finanzierungsplan'!AB179)","v":""},null,null,null,null,{"$f":"IF('Erläuterungen Finanzierungsplan'!L179=\"\",\"\",'Erläuterungen Finanzierungsplan'!L179)","v":""},null,{"$f":"IF('Erläuterungen Finanzierungsplan'!N179=\"\",\"\",'Erläuterungen Finanzierungsplan'!N179)","v":""},null,{"$f":"IF('Erläuterungen Finanzierungsplan'!R179=\"\",\"\",'Erläuterungen Finanzierungsplan'!R179)","v":24},null,null,{"$f":"IF('Erläuterungen Finanzierungsplan'!U179=\"\",\"\",'Erläuterungen Finanzierungsplan'!U179)","v":""},null,null,{"$f":"IF('Erläuterungen Finanzierungsplan'!X179=\"\",\"\",'Erläuterungen Finanzierungsplan'!X179)","v":""},null,null,null,{"$f":"IF('Erläuterungen Finanzierungsplan'!AN179=\"\",\"\",'Erläuterungen Finanzierungsplan'!AN179)","v":""},null,null,null,null,null,null,null,""]
[{"$f":"IF('Erläuterungen Finanzierungsplan'!A180=\"\",\"\",'Erläuterungen Finanzierungsplan'!A180)","v":""},null,null,null,null,{"$f":"IF('Erläuterungen Finanzierungsplan'!F180=\"\",\"\",'Erläuterungen Finanzierungsplan'!F180)","v":""},null,null,null,null,null,{"$f":"IF('Erläuterungen Finanzierungsplan'!AB180=\"\",\"\",'Erläuterungen Finanzierungsplan'!AB180)","v":""},null,null,null,null,{"$f":"IF('Erläuterungen Finanzierungsplan'!L180=\"\",\"\",'Erläuterungen Finanzierungsplan'!L180)","v":""},null,{"$f":"IF('Erläuterungen Finanzierungsplan'!N180=\"\",\"\",'Erläuterungen Finanzierungsplan'!N180)","v":""},null,{"$f":"IF('Erläuterungen Finanzierungsplan'!R180=\"\",\"\",'Erläuterungen Finanzierungsplan'!R180)","v":24},null,null,{"$f":"IF('Erläuterungen Finanzierungsplan'!U180=\"\",\"\",'Erläuterungen Finanzierungsplan'!U180)","v":""},null,null,{"$f":"IF('Erläuterungen Finanzierungsplan'!X180=\"\",\"\",'Erläuterungen Finanzierungsplan'!X180)","v":""},null,null,null,{"$f":"IF('Erläuterungen Finanzierungsplan'!AN180=\"\",\"\",'Erläuterungen Finanzierungsplan'!AN180)","v":""},null,null,null,null,null,null,null,""]
[{"$f":"IF('Erläuterungen Finanzierungsplan'!A181=\"\",\"\",'Erläuterungen Finanzierungsplan'!A181)","v":""},null,null,null,null,{"$f":"IF('Erläuterungen Finanzierungsplan'!F181=\"\",\"\",'Erläuterungen Finanzierungsplan'!F181)","v":""},null,null,null,null,null,{"$f":"IF('Erläuterungen Finanzierungsplan'!AB181=\"\",\"\",'Erläuterungen Finanzierungsplan'!AB181)","v":""},null,null,null,null,{"$f":"IF('Erläuterungen Finanzierungsplan'!L181=\"\",\"\",'Erläuterungen Finanzierungsplan'!L181)","v":""},null,{"$f":"IF('Erläuterungen Finanzierungsplan'!N181=\"\",\"\",'Erläuterungen Finanzierungsplan'!N181)","v":""},null,{"$f":"IF('Erläuterungen Finanzierungsplan'!R181=\"\",\"\",'Erläuterungen Finanzierungsplan'!R181)","v":24},null,null,{"$f":"IF('Erläuterungen Finanzierungsplan'!U181=\"\",\"\",'Erläuterungen Finanzierungsplan'!U181)","v":""},null,null,{"$f":"IF('Erläuterungen Finanzierungsplan'!X181=\"\",\"\",'Erläuterungen Finanzierungsplan'!X181)","v":""},null,null,null,{"$f":"IF('Erläuterungen Finanzierungsplan'!AN181=\"\",\"\",'Erläuterungen Finanzierungsplan'!AN181)","v":""},null,null,null,null,null,null,null,""]
[{"$f":"IF('Erläuterungen Finanzierungsplan'!A182=\"\",\"\",'Erläuterungen Finanzierungsplan'!A182)","v":""},null,null,null,null,{"$f":"IF('Erläuterungen Finanzierungsplan'!F182=\"\",\"\",'Erläuterungen Finanzierungsplan'!F182)","v":""},null,null,null,null,null,{"$f":"IF('Erläuterungen Finanzierungsplan'!AB182=\"\",\"\",'Erläuterungen Finanzierungsplan'!AB182)","v":""},null,null,null,null,{"$f":"IF('Erläuterungen Finanzierungsplan'!L182=\"\",\"\",'Erläuterungen Finanzierungsplan'!L182)","v":""},null,{"$f":"IF('Erläuterungen Finanzierungsplan'!N182=\"\",\"\",'Erläuterungen Finanzierungsplan'!N182)","v":""},null,{"$f":"IF('Erläuterungen Finanzierungsplan'!R182=\"\",\"\",'Erläuterungen Finanzierungsplan'!R182)","v":24},null,null,{"$f":"IF('Erläuterungen Finanzierungsplan'!U182=\"\",\"\",'Erläuterungen Finanzierungsplan'!U182)","v":""},null,null,{"$f":"IF('Erläuterungen Finanzierungsplan'!X182=\"\",\"\",'Erläuterungen Finanzierungsplan'!X182)","v":""},null,null,null,{"$f":"IF('Erläuterungen Finanzierungsplan'!AN182=\"\",\"\",'Erläuterungen Finanzierungsplan'!AN182)","v":""},null,null,null,null,null,null,null,""]
[{"$f":"IF('Erläuterungen Finanzierungsplan'!A183=\"\",\"\",'Erläuterungen Finanzierungsplan'!A183)","v":""},null,null,null,null,{"$f":"IF('Erläuterungen Finanzierungsplan'!F183=\"\",\"\",'Erläuterungen Finanzierungsplan'!F183)","v":""},null,null,null,null,null,{"$f":"IF('Erläuterungen Finanzierungsplan'!AB183=\"\",\"\",'Erläuterungen Finanzierungsplan'!AB183)","v":""},null,null,null,null,{"$f":"IF('Erläuterungen Finanzierungsplan'!L183=\"\",\"\",'Erläuterungen Finanzierungsplan'!L183)","v":""},null,{"$f":"IF('Erläuterungen Finanzierungsplan'!N183=\"\",\"\",'Erläuterungen Finanzierungsplan'!N183)","v":""},null,{"$f":"IF('Erläuterungen Finanzierungsplan'!R183=\"\",\"\",'Erläuterungen Finanzierungsplan'!R183)","v":24},null,null,{"$f":"IF('Erläuterungen Finanzierungsplan'!U183=\"\",\"\",'Erläuterungen Finanzierungsplan'!U183)","v":""},null,null,{"$f":"IF('Erläuterungen Finanzierungsplan'!X183=\"\",\"\",'Erläuterungen Finanzierungsplan'!X183)","v":""},null,null,null,{"$f":"IF('Erläuterungen Finanzierungsplan'!AN183=\"\",\"\",'Erläuterungen Finanzierungsplan'!AN183)","v":""},null,null,null,null,null,null,null,""]
[{"$f":"IF('Erläuterungen Finanzierungsplan'!A184=\"\",\"\",'Erläuterungen Finanzierungsplan'!A184)","v":""},null,null,null,null,{"$f":"IF('Erläuterungen Finanzierungsplan'!F184=\"\",\"\",'Erläuterungen Finanzierungsplan'!F184)","v":""},null,null,null,null,null,{"$f":"IF('Erläuterungen Finanzierungsplan'!AB184=\"\",\"\",'Erläuterungen Finanzierungsplan'!AB184)","v":""},null,null,null,null,{"$f":"IF('Erläuterungen Finanzierungsplan'!L184=\"\",\"\",'Erläuterungen Finanzierungsplan'!L184)","v":""},null,{"$f":"IF('Erläuterungen Finanzierungsplan'!N184=\"\",\"\",'Erläuterungen Finanzierungsplan'!N184)","v":""},null,{"$f":"IF('Erläuterungen Finanzierungsplan'!R184=\"\",\"\",'Erläuterungen Finanzierungsplan'!R184)","v":24},null,null,{"$f":"IF('Erläuterungen Finanzierungsplan'!U184=\"\",\"\",'Erläuterungen Finanzierungsplan'!U184)","v":""},null,null,{"$f":"IF('Erläuterungen Finanzierungsplan'!X184=\"\",\"\",'Erläuterungen Finanzierungsplan'!X184)","v":""},null,null,null,{"$f":"IF('Erläuterungen Finanzierungsplan'!AN184=\"\",\"\",'Erläuterungen Finanzierungsplan'!AN184)","v":""},null,null,null,null,null,null,null,""]
[{"$f":"IF('Erläuterungen Finanzierungsplan'!A185=\"\",\"\",'Erläuterungen Finanzierungsplan'!A185)","v":""},null,null,null,null,{"$f":"IF('Erläuterungen Finanzierungsplan'!F185=\"\",\"\",'Erläuterungen Finanzierungsplan'!F185)","v":""},null,null,null,null,null,{"$f":"IF('Erläuterungen Finanzierungsplan'!AB185=\"\",\"\",'Erläuterungen Finanzierungsplan'!AB185)","v":""},null,null,null,null,{"$f":"IF('Erläuterungen Finanzierungsplan'!L185=\"\",\"\",'Erläuterungen Finanzierungsplan'!L185)","v":""},null,{"$f":"IF('Erläuterungen Finanzierungsplan'!N185=\"\",\"\",'Erläuterungen Finanzierungsplan'!N185)","v":""},null,{"$f":"IF('Erläuterungen Finanzierungsplan'!R185=\"\",\"\",'Erläuterungen Finanzierungsplan'!R185)","v":24},null,null,{"$f":"IF('Erläuterungen Finanzierungsplan'!U185=\"\",\"\",'Erläuterungen Finanzierungsplan'!U185)","v":""},null,null,{"$f":"IF('Erläuterungen Finanzierungsplan'!X185=\"\",\"\",'Erläuterungen Finanzierungsplan'!X185)","v":""},null,null,null,{"$f":"IF('Erläuterungen Finanzierungsplan'!AN185=\"\",\"\",'Erläuterungen Finanzierungsplan'!AN185)","v":""},null,null,null,null,null,null,null,""]
[{"$f":"IF('Erläuterungen Finanzierungsplan'!A186=\"\",\"\",'Erläuterungen Finanzierungsplan'!A186)","v":""},null,null,null,null,{"$f":"IF('Erläuterungen Finanzierungsplan'!F186=\"\",\"\",'Erläuterungen Finanzierungsplan'!F186)","v":""},null,null,null,null,null,{"$f":"IF('Erläuterungen Finanzierungsplan'!AB186=\"\",\"\",'Erläuterungen Finanzierungsplan'!AB186)","v":""},null,null,null,null,{"$f":"IF('Erläuterungen Finanzierungsplan'!L186=\"\",\"\",'Erläuterungen Finanzierungsplan'!L186)","v":""},null,{"$f":"IF('Erläuterungen Finanzierungsplan'!N186=\"\",\"\",'Erläuterungen Finanzierungsplan'!N186)","v":""},null,{"$f":"IF('Erläuterungen Finanzierungsplan'!R186=\"\",\"\",'Erläuterungen Finanzierungsplan'!R186)","v":24},null,null,{"$f":"IF('Erläuterungen Finanzierungsplan'!U186=\"\",\"\",'Erläuterungen Finanzierungsplan'!U186)","v":""},null,null,{"$f":"IF('Erläuterungen Finanzierungsplan'!X186=\"\",\"\",'Erläuterungen Finanzierungsplan'!X186)","v":""},null,null,null,{"$f":"IF('Erläuterungen Finanzierungsplan'!AN186=\"\",\"\",'Erläuterungen Finanzierungsplan'!AN186)","v":""},null,null,null,null,null,null,null,""]
[{"$f":"IF('Erläuterungen Finanzierungsplan'!A187=\"\",\"\",'Erläuterungen Finanzierungsplan'!A187)","v":""},null,null,null,null,{"$f":"IF('Erläuterungen Finanzierungsplan'!F187=\"\",\"\",'Erläuterungen Finanzierungsplan'!F187)","v":""},null,null,null,null,null,{"$f":"IF('Erläuterungen Finanzierungsplan'!AB187=\"\",\"\",'Erläuterungen Finanzierungsplan'!AB187)","v":""},null,null,null,null,{"$f":"IF('Erläuterungen Finanzierungsplan'!L187=\"\",\"\",'Erläuterungen Finanzierungsplan'!L187)","v":""},null,{"$f":"IF('Erläuterungen Finanzierungsplan'!N187=\"\",\"\",'Erläuterungen Finanzierungsplan'!N187)","v":""},null,{"$f":"IF('Erläuterungen Finanzierungsplan'!R187=\"\",\"\",'Erläuterungen Finanzierungsplan'!R187)","v":24},null,null,{"$f":"IF('Erläuterungen Finanzierungsplan'!U187=\"\",\"\",'Erläuterungen Finanzierungsplan'!U187)","v":""},null,null,{"$f":"IF('Erläuterungen Finanzierungsplan'!X187=\"\",\"\",'Erläuterungen Finanzierungsplan'!X187)","v":""},null,null,null,{"$f":"IF('Erläuterungen Finanzierungsplan'!AN187=\"\",\"\",'Erläuterungen Finanzierungsplan'!AN187)","v":""},null,null,null,null,null,null,null,""]
[{"$f":"IF('Erläuterungen Finanzierungsplan'!A188=\"\",\"\",'Erläuterungen Finanzierungsplan'!A188)","v":""},null,null,null,null,{"$f":"IF('Erläuterungen Finanzierungsplan'!F188=\"\",\"\",'Erläuterungen Finanzierungsplan'!F188)","v":""},null,null,null,null,null,{"$f":"IF('Erläuterungen Finanzierungsplan'!AB188=\"\",\"\",'Erläuterungen Finanzierungsplan'!AB188)","v":""},null,null,null,null,{"$f":"IF('Erläuterungen Finanzierungsplan'!L188=\"\",\"\",'Erläuterungen Finanzierungsplan'!L188)","v":""},null,{"$f":"IF('Erläuterungen Finanzierungsplan'!N188=\"\",\"\",'Erläuterungen Finanzierungsplan'!N188)","v":""},null,{"$f":"IF('Erläuterungen Finanzierungsplan'!R188=\"\",\"\",'Erläuterungen Finanzierungsplan'!R188)","v":24},null,null,{"$f":"IF('Erläuterungen Finanzierungsplan'!U188=\"\",\"\",'Erläuterungen Finanzierungsplan'!U188)","v":""},null,null,{"$f":"IF('Erläuterungen Finanzierungsplan'!X188=\"\",\"\",'Erläuterungen Finanzierungsplan'!X188)","v":""},null,null,null,{"$f":"IF('Erläuterungen Finanzierungsplan'!AN188=\"\",\"\",'Erläuterungen Finanzierungsplan'!AN188)","v":""},null,null,null,null,null,null,null,""]
[{"$f":"IF('Erläuterungen Finanzierungsplan'!A189=\"\",\"\",'Erläuterungen Finanzierungsplan'!A189)","v":""},null,null,null,null,{"$f":"IF('Erläuterungen Finanzierungsplan'!F189=\"\",\"\",'Erläuterungen Finanzierungsplan'!F189)","v":""},null,null,null,null,null,{"$f":"IF('Erläuterungen Finanzierungsplan'!AB189=\"\",\"\",'Erläuterungen Finanzierungsplan'!AB189)","v":""},null,null,null,null,{"$f":"IF('Erläuterungen Finanzierungsplan'!L189=\"\",\"\",'Erläuterungen Finanzierungsplan'!L189)","v":""},null,{"$f":"IF('Erläuterungen Finanzierungsplan'!N189=\"\",\"\",'Erläuterungen Finanzierungsplan'!N189)","v":""},null,{"$f":"IF('Erläuterungen Finanzierungsplan'!R189=\"\",\"\",'Erläuterungen Finanzierungsplan'!R189)","v":24},null,null,{"$f":"IF('Erläuterungen Finanzierungsplan'!U189=\"\",\"\",'Erläuterungen Finanzierungsplan'!U189)","v":""},null,null,{"$f":"IF('Erläuterungen Finanzierungsplan'!X189=\"\",\"\",'Erläuterungen Finanzierungsplan'!X189)","v":""},null,null,null,{"$f":"IF('Erläuterungen Finanzierungsplan'!AN189=\"\",\"\",'Erläuterungen Finanzierungsplan'!AN189)","v":""},null,null,null,null,null,null,null,""]
[{"$f":"IF('Erläuterungen Finanzierungsplan'!A190=\"\",\"\",'Erläuterungen Finanzierungsplan'!A190)","v":""},null,null,null,null,{"$f":"IF('Erläuterungen Finanzierungsplan'!F190=\"\",\"\",'Erläuterungen Finanzierungsplan'!F190)","v":""},null,null,null,null,null,{"$f":"IF('Erläuterungen Finanzierungsplan'!AB190=\"\",\"\",'Erläuterungen Finanzierungsplan'!AB190)","v":""},null,null,null,null,{"$f":"IF('Erläuterungen Finanzierungsplan'!L190=\"\",\"\",'Erläuterungen Finanzierungsplan'!L190)","v":""},null,{"$f":"IF('Erläuterungen Finanzierungsplan'!N190=\"\",\"\",'Erläuterungen Finanzierungsplan'!N190)","v":""},null,{"$f":"IF('Erläuterungen Finanzierungsplan'!R190=\"\",\"\",'Erläuterungen Finanzierungsplan'!R190)","v":24},null,null,{"$f":"IF('Erläuterungen Finanzierungsplan'!U190=\"\",\"\",'Erläuterungen Finanzierungsplan'!U190)","v":""},null,null,{"$f":"IF('Erläuterungen Finanzierungsplan'!X190=\"\",\"\",'Erläuterungen Finanzierungsplan'!X190)","v":""},null,null,null,{"$f":"IF('Erläuterungen Finanzierungsplan'!AN190=\"\",\"\",'Erläuterungen Finanzierungsplan'!AN190)","v":""},null,null,null,null,null,null,null,{"$f":"IF(AE297=\"nicht zuwendungsfähig\",0,IF(AE297=\"\",\"\",AE297-AI297))","v":""}]
[{"$f":"IF('Erläuterungen Finanzierungsplan'!A191=\"\",\"\",'Erläuterungen Finanzierungsplan'!A191)","v":""},null,null,null,null,{"$f":"IF('Erläuterungen Finanzierungsplan'!F191=\"\",\"\",'Erläuterungen Finanzierungsplan'!F191)","v":""},null,null,null,null,null,{"$f":"IF('Erläuterungen Finanzierungsplan'!AB191=\"\",\"\",'Erläuterungen Finanzierungsplan'!AB191)","v":""},null,null,null,null,{"$f":"IF('Erläuterungen Finanzierungsplan'!L191=\"\",\"\",'Erläuterungen Finanzierungsplan'!L191)","v":""},null,{"$f":"IF('Erläuterungen Finanzierungsplan'!N191=\"\",\"\",'Erläuterungen Finanzierungsplan'!N191)","v":""},null,{"$f":"IF('Erläuterungen Finanzierungsplan'!R191=\"\",\"\",'Erläuterungen Finanzierungsplan'!R191)","v":24},null,null,{"$f":"IF('Erläuterungen Finanzierungsplan'!U191=\"\",\"\",'Erläuterungen Finanzierungsplan'!U191)","v":""},null,null,{"$f":"IF('Erläuterungen Finanzierungsplan'!X191=\"\",\"\",'Erläuterungen Finanzierungsplan'!X191)","v":""},null,null,null,{"$f":"IF('Erläuterungen Finanzierungsplan'!AN191=\"\",\"\",'Erläuterungen Finanzierungsplan'!AN191)","v":""},null,null,null,null,null,null,null,""]
[{"$f":"IF('Erläuterungen Finanzierungsplan'!A192=\"\",\"\",'Erläuterungen Finanzierungsplan'!A192)","v":""},null,null,null,null,{"$f":"IF('Erläuterungen Finanzierungsplan'!F192=\"\",\"\",'Erläuterungen Finanzierungsplan'!F192)","v":""},null,null,null,null,null,{"$f":"IF('Erläuterungen Finanzierungsplan'!AB192=\"\",\"\",'Erläuterungen Finanzierungsplan'!AB192)","v":""},null,null,null,null,{"$f":"IF('Erläuterungen Finanzierungsplan'!L192=\"\",\"\",'Erläuterungen Finanzierungsplan'!L192)","v":""},null,{"$f":"IF('Erläuterungen Finanzierungsplan'!N192=\"\",\"\",'Erläuterungen Finanzierungsplan'!N192)","v":""},null,{"$f":"IF('Erläuterungen Finanzierungsplan'!R192=\"\",\"\",'Erläuterungen Finanzierungsplan'!R192)","v":24},null,null,{"$f":"IF('Erläuterungen Finanzierungsplan'!U192=\"\",\"\",'Erläuterungen Finanzierungsplan'!U192)","v":""},null,null,{"$f":"IF('Erläuterungen Finanzierungsplan'!X192=\"\",\"\",'Erläuterungen Finanzierungsplan'!X192)","v":""},null,null,null,{"$f":"IF('Erläuterungen Finanzierungsplan'!AN192=\"\",\"\",'Erläuterungen Finanzierungsplan'!AN192)","v":""},null,null,null,null,null,null,null,""]
[{"$f":"IF('Erläuterungen Finanzierungsplan'!A193=\"\",\"\",'Erläuterungen Finanzierungsplan'!A193)","v":""},null,null,null,null,{"$f":"IF('Erläuterungen Finanzierungsplan'!F193=\"\",\"\",'Erläuterungen Finanzierungsplan'!F193)","v":""},null,null,null,null,null,{"$f":"IF('Erläuterungen Finanzierungsplan'!AB193=\"\",\"\",'Erläuterungen Finanzierungsplan'!AB193)","v":""},null,null,null,null,{"$f":"IF('Erläuterungen Finanzierungsplan'!L193=\"\",\"\",'Erläuterungen Finanzierungsplan'!L193)","v":""},null,{"$f":"IF('Erläuterungen Finanzierungsplan'!N193=\"\",\"\",'Erläuterungen Finanzierungsplan'!N193)","v":""},null,{"$f":"IF('Erläuterungen Finanzierungsplan'!R193=\"\",\"\",'Erläuterungen Finanzierungsplan'!R193)","v":24},null,null,{"$f":"IF('Erläuterungen Finanzierungsplan'!U193=\"\",\"\",'Erläuterungen Finanzierungsplan'!U193)","v":""},null,null,{"$f":"IF('Erläuterungen Finanzierungsplan'!X193=\"\",\"\",'Erläuterungen Finanzierungsplan'!X193)","v":""},null,null,null,{"$f":"IF('Erläuterungen Finanzierungsplan'!AN193=\"\",\"\",'Erläuterungen Finanzierungsplan'!AN193)","v":""},null,null,null,null,null,null,null,""]
[{"$f":"IF('Erläuterungen Finanzierungsplan'!A194=\"\",\"\",'Erläuterungen Finanzierungsplan'!A194)","v":""},null,null,null,null,{"$f":"IF('Erläuterungen Finanzierungsplan'!F194=\"\",\"\",'Erläuterungen Finanzierungsplan'!F194)","v":""},null,null,null,null,null,{"$f":"IF('Erläuterungen Finanzierungsplan'!AB194=\"\",\"\",'Erläuterungen Finanzierungsplan'!AB194)","v":""},null,null,null,null,{"$f":"IF('Erläuterungen Finanzierungsplan'!L194=\"\",\"\",'Erläuterungen Finanzierungsplan'!L194)","v":""},null,{"$f":"IF('Erläuterungen Finanzierungsplan'!N194=\"\",\"\",'Erläuterungen Finanzierungsplan'!N194)","v":""},null,{"$f":"IF('Erläuterungen Finanzierungsplan'!R194=\"\",\"\",'Erläuterungen Finanzierungsplan'!R194)","v":24},null,null,{"$f":"IF('Erläuterungen Finanzierungsplan'!U194=\"\",\"\",'Erläuterungen Finanzierungsplan'!U194)","v":""},null,null,{"$f":"IF('Erläuterungen Finanzierungsplan'!X194=\"\",\"\",'Erläuterungen Finanzierungsplan'!X194)","v":""},null,null,null,{"$f":"IF('Erläuterungen Finanzierungsplan'!AN194=\"\",\"\",'Erläuterungen Finanzierungsplan'!AN194)","v":""},null,null,null,null,null,null,null,""]
[{"$f":"IF('Erläuterungen Finanzierungsplan'!A195=\"\",\"\",'Erläuterungen Finanzierungsplan'!A195)","v":""},null,null,null,null,{"$f":"IF('Erläuterungen Finanzierungsplan'!F195=\"\",\"\",'Erläuterungen Finanzierungsplan'!F195)","v":""},null,null,null,null,null,{"$f":"IF('Erläuterungen Finanzierungsplan'!AB195=\"\",\"\",'Erläuterungen Finanzierungsplan'!AB195)","v":""},null,null,null,null,{"$f":"IF('Erläuterungen Finanzierungsplan'!L195=\"\",\"\",'Erläuterungen Finanzierungsplan'!L195)","v":""},null,{"$f":"IF('Erläuterungen Finanzierungsplan'!N195=\"\",\"\",'Erläuterungen Finanzierungsplan'!N195)","v":""},null,{"$f":"IF('Erläuterungen Finanzierungsplan'!R195=\"\",\"\",'Erläuterungen Finanzierungsplan'!R195)","v":24},null,null,{"$f":"IF('Erläuterungen Finanzierungsplan'!U195=\"\",\"\",'Erläuterungen Finanzierungsplan'!U195)","v":""},null,null,{"$f":"IF('Erläuterungen Finanzierungsplan'!X195=\"\",\"\",'Erläuterungen Finanzierungsplan'!X195)","v":""},null,null,null,{"$f":"IF('Erläuterungen Finanzierungsplan'!AN195=\"\",\"\",'Erläuterungen Finanzierungsplan'!AN195)","v":""},null,null,null,null,null,null,null,""]
[{"$f":"IF('Erläuterungen Finanzierungsplan'!A196=\"\",\"\",'Erläuterungen Finanzierungsplan'!A196)","v":""},null,null,null,null,{"$f":"IF('Erläuterungen Finanzierungsplan'!F196=\"\",\"\",'Erläuterungen Finanzierungsplan'!F196)","v":""},null,null,null,null,null,{"$f":"IF('Erläuterungen Finanzierungsplan'!AB196=\"\",\"\",'Erläuterungen Finanzierungsplan'!AB196)","v":""},null,null,null,null,{"$f":"IF('Erläuterungen Finanzierungsplan'!L196=\"\",\"\",'Erläuterungen Finanzierungsplan'!L196)","v":""},null,{"$f":"IF('Erläuterungen Finanzierungsplan'!N196=\"\",\"\",'Erläuterungen Finanzierungsplan'!N196)","v":""},null,{"$f":"IF('Erläuterungen Finanzierungsplan'!R196=\"\",\"\",'Erläuterungen Finanzierungsplan'!R196)","v":24},null,null,{"$f":"IF('Erläuterungen Finanzierungsplan'!U196=\"\",\"\",'Erläuterungen Finanzierungsplan'!U196)","v":""},null,null,{"$f":"IF('Erläuterungen Finanzierungsplan'!X196=\"\",\"\",'Erläuterungen Finanzierungsplan'!X196)","v":""},null,null,null,{"$f":"IF('Erläuterungen Finanzierungsplan'!AN196=\"\",\"\",'Erläuterungen Finanzierungsplan'!AN196)","v":""},null,null,null,null,null,null,null,""]
[{"$f":"IF('Erläuterungen Finanzierungsplan'!A197=\"\",\"\",'Erläuterungen Finanzierungsplan'!A197)","v":""},null,null,null,null,{"$f":"IF('Erläuterungen Finanzierungsplan'!F197=\"\",\"\",'Erläuterungen Finanzierungsplan'!F197)","v":""},null,null,null,null,null,{"$f":"IF('Erläuterungen Finanzierungsplan'!AB197=\"\",\"\",'Erläuterungen Finanzierungsplan'!AB197)","v":""},null,null,null,null,{"$f":"IF('Erläuterungen Finanzierungsplan'!L197=\"\",\"\",'Erläuterungen Finanzierungsplan'!L197)","v":""},null,{"$f":"IF('Erläuterungen Finanzierungsplan'!N197=\"\",\"\",'Erläuterungen Finanzierungsplan'!N197)","v":""},null,{"$f":"IF('Erläuterungen Finanzierungsplan'!R197=\"\",\"\",'Erläuterungen Finanzierungsplan'!R197)","v":24},null,null,{"$f":"IF('Erläuterungen Finanzierungsplan'!U197=\"\",\"\",'Erläuterungen Finanzierungsplan'!U197)","v":""},null,null,{"$f":"IF('Erläuterungen Finanzierungsplan'!X197=\"\",\"\",'Erläuterungen Finanzierungsplan'!X197)","v":""},null,null,null,{"$f":"IF('Erläuterungen Finanzierungsplan'!AN197=\"\",\"\",'Erläuterungen Finanzierungsplan'!AN197)","v":""},null,null,null,null,null,null,null,""]
[{"$f":"IF('Erläuterungen Finanzierungsplan'!A198=\"\",\"\",'Erläuterungen Finanzierungsplan'!A198)","v":""},null,null,null,null,{"$f":"IF('Erläuterungen Finanzierungsplan'!F198=\"\",\"\",'Erläuterungen Finanzierungsplan'!F198)","v":""},null,null,null,null,null,{"$f":"IF('Erläuterungen Finanzierungsplan'!AB198=\"\",\"\",'Erläuterungen Finanzierungsplan'!AB198)","v":""},null,null,null,null,{"$f":"IF('Erläuterungen Finanzierungsplan'!L198=\"\",\"\",'Erläuterungen Finanzierungsplan'!L198)","v":""},null,{"$f":"IF('Erläuterungen Finanzierungsplan'!N198=\"\",\"\",'Erläuterungen Finanzierungsplan'!N198)","v":""},null,{"$f":"IF('Erläuterungen Finanzierungsplan'!R198=\"\",\"\",'Erläuterungen Finanzierungsplan'!R198)","v":24},null,null,{"$f":"IF('Erläuterungen Finanzierungsplan'!U198=\"\",\"\",'Erläuterungen Finanzierungsplan'!U198)","v":""},null,null,{"$f":"IF('Erläuterungen Finanzierungsplan'!X198=\"\",\"\",'Erläuterungen Finanzierungsplan'!X198)","v":""},null,null,null,{"$f":"IF('Erläuterungen Finanzierungsplan'!AN198=\"\",\"\",'Erläuterungen Finanzierungsplan'!AN198)","v":""},null,null,null,null,null,null,null,""]
[null,null,null,null,null,null,null,null,null,null,null,null,null,null,null,null,null,null,null,null,null,null,null,null,null,null,null,null,null,null,{"$f":"SUM(AE231:AH305)","v":0},null,null,null,{"$f":"SUM(AI231:AL305)","v":0},null,null,null,{"$f":"SUM(AM231:AP305)","v":0}]
[]
[null,"weitere Anmerkungen / Begründungen / Hinweise",null,null,null,null,null,null,null,null,null,null,{"$f":"IF(AN306=0,\"\",A778)","v":""}]
[null,"Hilfstext (wenn zutreffend den Antragsinhalten anpassen/ansonsten löschen):\nDer Zuwendungsempfänger hat Ausgaben für Personalunterstützung durch Dritte in Höhe von 0,00 Euro beantragt. \n\nEs handelt sich hier um Personalunterstützung unter Anwendung des Erlasses „Anerkennung pauschalierter Ausgaben im Rahmen von Personalunterstützung in Projekten der Richtlinie über die Gewährung von Zuwendungen zur Förderung von Maßnahmen im Rahmen des Programms Soziale Innovation“ vom 06.07.2016.\nDemnach können pauschalierte Ausgaben i. H. v. 24,00 Euro pro Stunde als Personalunterstützung anerkannt werden.\nDer Träger kalkuliert für eine unterschiedliche Anzahl von Veranstaltungen (welche ausführen) mit insgesamt ? Stunden.\nZum Zeitpunkt der Bewilligung liegen keine Anhaltspunkte vor, dass die vom Träger geplanten Veranstaltungen nicht unter den Erlass zur Personalunterstützung gefasst werden können. Die Angaben des Antragsstellers zum erwarteten Umfang der Personalunterstützung erscheinen mit Bezug auf die übrigen Antragsunterlagen plausibel. Es werden daher Ausgaben in veranschlagter Höhe als zuwendungsfähig anerkannt bzw. in Höhe von Euro in Kürzung gebracht, weil...\n"]
[]
[]
[]
[]
[]
[]
[]
[]
[]
[]
[]
[]
[]
[]
[]
[]
[]
[]
[null,"Ergebnis Ausgabenpositionen 1.4"]
[]
[null,"beantragte Beträge",null,null,null,null,null,null,{"$f":"AE306","v":0}]
[null,"Kürzungen",null,null,null,null,null,null,{"$f":"AI306","v":0}]
[null,"anerkannte Beträge",null,null,null,null,null,null,{"$f":"AM306","v":0}]
[]
[]
[]
[]
[]
["     2. Restkostenpauschale"]
[]
[]
["Summe Ausgabenpositionen 1.1 - 1.4",null,null,null,null,null,null,null,null,null,{"$f":"I106+I155+I223+I332","v":0}]
["Restkostenpauschale",null,null,null,null,null,null,null,null,null,{"$f":"ROUND(K341*0.25,2)","v":0},null,null,null,null,null,null,null,null,null,"Beantragte Restkostenpauschale",null,null,null,null,null,null,null,null,{"$f":"IF('Erläuterungen Finanzierungsplan'!I247=\"\",\"\",'Erläuterungen Finanzierungsplan'!I247)","v":0}]
[null,null,null,null,null,null,null,null,null,null,null,null,null,null,null,null,null,null,null,null,"Kürzungen ",null,null,null,null,null,null,null,null,{"$f":"IF(AD342>K342,AD342-K342,0)","v":0}]
[]
[]
[]
[null,null,null,null,null,null,null,null,"Mit der Restkostenpauschale werden folgende Ausgaben abgedeckt:  Reise- und Dienstreisekosten des Bildungspersonals, Ausgaben für Lehrgänge externer Einrichtungen, Verbrauchsgüter und Ausstattungsgegenstände, Bezüge der Vorstandsmitglieder/Geschäftsführer und Gesellschafter, ausbildungsgebundene Reise- und Dienstreiskosten des Verwaltunsgpersonals sowie der Vorstandsmitglieder, Geschäftsführer und Gesellschafter, Werbung für Lehrgänge, Büromaterial, allg. Dokumentationsmaterial, Post- und Fernsprechgebühren, Wasser, Gas und Strom, Steuern, Versicherungen, Ausgaben für Kinderbetreuungseinrichtungen, sonstige Verwaltungsausgaben, Mieten und Leasing für Gebäude"]
[]
[]
[]
[]
[]
[]
["Ergebnis"]
[]
["Zuwendungsfähige Gesamtausgaben",null,null,null,null,null,null,null,null,{"$f":"K341+K342","v":0}]
[]
[]
["     Einnahmen"]
[]
["Die zuwendungsfähigen Gesamtausgaben eines Projektes sind grundsätzlich um aus dem Projekt erzielte Verkaufserlöse und Erlöse zu mindern und können nicht auf die Kofinanzierung angerechnet werden. D.h. sofern in einem Projekt aus dem Verkauf im Projekt hergestellter Produkte oder aus der Erbringung entgeltlicher Dienst- oder Werkleistungen der Projektteilnehmer Erlöse erzielt werden, sind die zuwendungsfähigen Gesamtausgaben eines Projektes um eben diesen Betrag zu bereinigen."]
[]
[]
[]
[]
["abzgl. Verkaufserlöse und Erlöse aus entgeltlichen Dienst- oder Werkleistungen",null,null,null,null,null,null,null,null,{"$f":"IF('Erläuterungen Finanzierungsplan'!I265=\"\",0,'Erläuterungen Finanzierungsplan'!I265)","v":0}]
[]
["ggf. Korrektur der Erlöse"]
[]
["um o.g. Erlöse bereinigte zuwendungsfähige Ausgaben ",null,null,null,null,null,null,null,null,{"$f":"IF(J368=\"\",J356-J366,J356-J368)","v":0},null,null,null,null,null,null,null,null,{"$f":"IF(J370>750000,\"Beachte: Überschreitung der Obergrenze von 750.000€!\",\"\")","v":""}]
[]
[]
[]
["Erläuterungen zu der Zusammensetzung der Einnahmen (ggf. auf einem separaten Blatt weiter auszuführen):\n(Angaben zur Zusammensetzung und Herkunft der Beträge sind zwingend zu machen. Insbesondere sind hier Zweckbindung, prozentuale Ansätze, Festbeträge, etc. anzugeben (vgl. Nachrangigkeitsprinzip).)"]
[]
[]
[{"$f":"IF('Erläuterungen Finanzierungsplan'!AB274=\"\",\"\",'Erläuterungen Finanzierungsplan'!AB274)","v":""}]
[]
[]
[]
[]
[]
[]
[null,"Einnahmen:",null,null,null,null,null,null,null,null,null,null,null,null,null,null,null,null,null,null,null,null,null,null,"anteilige Reduzierung der Einnahmen:"]
[null,"A - Kofinanzierung",null,null,null,null,null,null,null,null,null,null,null,null,"Betrag",null,null,null,"Finanzierungsquote",null,null,null,null,null,"Finanzierung",null,null,null,null,null,null,null,"beantragt",null,null,null,"Kürzung/\nErhöhung\n(negatives Vorzeichen!!!)",null,null,null,"verbleiben",null,null,null,"Anmerkungen"]
[null,"1.","Summe der privaten Kofinanzierung",null,null,null,null,null,null,null,null,null,null,null,{"$f":"SUM(O388:R391)","v":0},null,null,null,{"$f":"SUM(S388:V391)","v":0}]
[]
[null,"1.1","Freistellungsausgaben / Personalunterstützung durch Dritte",null,null,null,null,null,null,null,null,null,null,null,{"$f":"AO388","v":0},null,null,null,{"$f":"IF(O388=0,0,O388/J370)","v":0},null,null,null,null,null,"Eigenmittel",null,null,null,null,null,null,null,{"$f":"'Erläuterungen Finanzierungsplan'!L274","v":0},null,null,null,null,null,null,null,{"$f":"AG388-AK388","v":0}]
[null,"1.2","Direktbeiträge",null,null,null,null,null,null,null,null,null,null,null,{"$f":"AO389","v":0},null,null,null,{"$f":"IF(O389=0,0,O389/J370)","v":0},null,null,null,null,null,"Direktbeiträge",null,null,null,null,null,null,null,{"$f":"'Erläuterungen Finanzierungsplan'!L275","v":0},null,null,null,null,null,null,null,{"$f":"AG389-AK389","v":0}]
[null,"1.3","Teilnehmerbeiträge",null,null,null,null,null,null,null,null,null,null,null,{"$f":"AO390","v":0},null,null,null,{"$f":"IF(O390=0,0,O390/J370)","v":0},null,null,null,null,null,"Teilnehmerbeiträge",null,null,null,null,null,null,null,{"$f":"'Erläuterungen Finanzierungsplan'!L276","v":0},null,null,null,null,null,null,null,{"$f":"AG390-AK390","v":0}]
[null,"1.4","sonstige private Mittel (z.B. Eigenmittel )",null,null,null,null,null,null,null,null,null,null,null,{"$f":"AO391","v":0},null,null,null,{"$f":"IF(O391=0,0,O391/J370)","v":0},null,null,null,null,null,"sonstige private Mittel",null,null,null,null,null,null,null,{"$f":"'Erläuterungen Finanzierungsplan'!L277","v":0},null,null,null,null,null,null,null,{"$f":"AG391-AK391","v":0}]
[]
[null,"2.","Summe der öffentlichen Kofinanzierung",null,null,null,null,null,null,null,null,null,null,null,{"$f":"SUM(O395:R399)","v":0},null,null,null,{"$f":"SUM(S395:V399)","v":0},null,null,null,null,null,{"$f":"C395","v":"Bundesmittel, einschließlich BA"},null,null,null,null,null,null,null,{"$f":"'Erläuterungen Finanzierungsplan'!L281","v":0},null,null,null,null,null,null,null,{"$f":"AG393-AK393","v":0}]
[null,null,null,null,null,null,null,null,null,null,null,null,null,null,null,null,null,null,null,null,null,null,null,null,{"$f":"C396","v":"Landesmittel"},null,null,null,null,null,null,null,{"$f":"'Erläuterungen Finanzierungsplan'!L282","v":0},null,null,null,null,null,null,null,{"$f":"AG394-AK394","v":0}]
[null,"2.1","Bundesmittel, einschließlich BA",null,null,null,null,null,null,null,null,null,null,null,{"$f":"AO393","v":0},null,null,null,{"$f":"IF(O395=0,0,O395/J370)","v":0},null,null,null,null,null,{"$f":"C397","v":"Kommunale Mittel"},null,null,null,null,null,null,null,{"$f":"'Erläuterungen Finanzierungsplan'!L283","v":0},null,null,null,null,null,null,null,{"$f":"AG395-AK395","v":0}]
[null,"2.2","Landesmittel",null,null,null,null,null,null,null,null,null,null,null,{"$f":"AO394","v":0},null,null,null,{"$f":"IF(O396=0,0,O396/J370)","v":0},null,null,null,null,null,"sonstige öffentliche Mittel",null,null,null,null,null,null,null,{"$f":"'Erläuterungen Finanzierungsplan'!L284","v":0},null,null,null,null,null,null,null,{"$f":"AG396-AK396","v":0}]
[null,"2.3","Kommunale Mittel",null,null,null,null,null,null,null,null,null,null,null,{"$f":"AO395","v":0},null,null,null,{"$f":"IF(O397=0,0,O397/J370)","v":0},null,null,null,null,null,"Gesamt",null,null,null,null,null,null,null,{"$f":"AG388+AG389+AG390+AG391+AG393+AG394+AG395+AG396","v":0},null,null,null,{"$f":"AK388+AK389+AK390+AK391+AK393+AK394+AK395+AK396","v":0},null,null,null,{"$f":"AO388+AO389+AO390+AO391+AO393+AO394+AO395+AO396","v":0}]
[null,"2.4","sonstige öffentl. Mittel (z. B. Kammern, Kirchen oder sonstiger öffentl. Träger)",null,null,null,null,null,null,null,null,null,null,null,{"$f":"AO396","v":0},null,null,null,{"$f":"IF(O398=0,0,O398/J370)","v":0}]
[]
[]
[null,"B - Bewilligte Zuschüsse"]
[null,"3.","ESF-Mittel",null,null,null,null,null,null,null,null,null,null,null,{"$f":"J370-O386-O393","v":0},null,null,null,{"$f":"IF(O402=0,0,O402/J370)","v":0}]
[null,null,null,null,null,null,null,null,null,null,null,null,null,null,null,null,null,null,null,null,null,null,null,null,{"$f":"IF(S402=0,\"\",IF(S402>60%,\"Max. Förderquote von 60%! Nur im ÜR-Gebiet 70% möglich!\",\"\"))","v":""}]
[]
[null,"Summe der Einnahmen",null,null,null,null,null,null,null,null,null,null,null,null,{"$f":"O393+O386+O402","v":0}]
[]
[]
[]
[null,"Bemessungsgrenzen",null,null,null,null,null,null,null,null,null,null,null,null,null,"Wert",null,null,null,"Prüfung"]
[null,"RL 5.2.1 / 5.2.2 (max. Anteil an ESF-Mitteln 60%)",null,null,null,null,null,null,null,null,null,null,null,null,null,{"$f":"S402","v":0},null,null,null,{"$f":"IF(P410>50%,\"Fehler !!!\", \"OK\")","v":"OK"},null,null,null,{"$f":"IF(T410=\"Fehler !!!\", \"Ausnahmegenehmigung erforderlich !!!\", \"\")","v":""}]
[null,"RL 5.6 (max. 9 Euro pro Teilnehmerstunde)",null,null,null,null,null,null,null,null,null,null,null,null,null,{"$f":"IF(ISBLANK(#REF!),\"\",(J370-#REF!)/#REF!)","v":{"$error":"#REF!"}},null,null,null,{"$f":"IF(P411=\"\",\"\",IF(OR(P411=0,P411<=9),\"OK\", \"Fehler !!!\"))","v":{"$error":"#REF!"}},null,null,null,{"$f":"IF(T411=\"Fehler !!!\", \"Ausnahmegenehmigung erforderlich !!!\", \"\")","v":{"$error":"#REF!"}}]
[]
[]
[]
["Zusammensetzung Kofinanzierung (Benennung Kofinanzierer, rechnerische Zusammensetzung, Zweckbindung, Prüfung) und\nsonstige Bemerkungen zur Prüfung (Dokumentation bei Veränderung eines bewilligten Förder- bzw. Interventionssatz, etc.)"]
[]
["Hilfstext (wenn zutreffend den Antragsinhalten anpassen/ansonsten löschen):\nDer Höchstbetrag von 750.000,00 Euro Gesamtausgaben pro Projekt und die maximale Förderhöhe von 60 % im SER-Gebiet/ 70 % im ÜR-Gebiet lt. RL-Änderung vom 22.05.2019 werden eingehalten.\n\nFolgende Ausführungen hat der ZE zur Kofinanzierung angeführt: ….\nDamit ist die Gesamtprojektfinanzierung gesichert."]
[]
[]
[]
[]
[]
[]
[]
[]
["Auflagen"]
["Zutreffende Auflagen auswählen:\n1. Das noch nicht bekannte Projektpersonal ist spätestens bei der ersten Geltendmachung der Personalausgaben unter Vorlage von aussagekräftigen Qualifikationsnachweisen, Lebensläufen, Arbeitsverträgen sowie eines einmaligen Nachweises des tatsächlichen Arbeitnehmerbruttos namentlich zu benennen.  \n\n2. Zur Prüfung der Angemessenheit der angesetzten Honorarausgaben benötigen wir von Ihnen folgende Informationen bei Geltendmachung der Ausgaben (Mittelanforderungen):\n- Fortlaufende Übersicht aller im Projekt eingesetzter Honorarkräfte mit Angabe der Qualifikationen, die für die Ausübung der Projekttätigkeit ausschlaggebend/ erforderlich sind \n- Zuordnung der Honorarkräfte zu den verschiedenen Tätigkeiten im Projekt \n- Stunden- oder Tagessatz für die Projekttätigkeit \n- Umfang der zu leistenden Honorarstunden oder Tagewerke\n- Begründung der Angemessenheit der angesetzten Honorare ab einem Stundensatz von 35 Euro durch Vorlage von drei Vergleichsangeboten.\n\n3. Die Anerkennung der Ausgaben für Personalunterstützung durch Dritte erfolgt unter Berücksichtigung und Einhaltung der Vorgaben des Sondererlasses zur Anerkennung pauschalierter Ausgaben im Rahmen von Personalunterstützung in Projekten der Sozialen Innovation vom 06.07.2016.\n\n4. Grundsätzlich ist bei jeder Mittelanforderung eine Bestätigung der entsendenden Stelle über den Umfang der Personalunterstützung einzureichen.  Die aktuellen Dokumente zur Abrechnung von Personalunterstützung Dritter finden Sie  im Kundenportal und auf unserer Internetseite im Downloadbereich unter „Formulare Mittelanforderung“ .\n\n5. Gemäß Ihrem Antrag Punkt 5.11 „Vorsteuerabzug“ haben Sie erklärt nicht vorsteuerabzugsberechtigt zu sein. Wir bitten Sie, sofern Sie nicht vorsteuerabzugsberechtigt sind und somit die Ausgaben brutto, also mit MwSt. ansetzen, eine Umsatzsteuererklärung einreichen. Dieser Vordruck steht Ihnen  im Kundenportal oder auf der Homepage der NBank zur Verfügung. Die Erklärung ist spätestens mit der ersten Mittelanforderung, in der Umsatzsteuerbeträge abgerechnet werden sollen, vorzulegen.\n\n\n\n"]
[]
[]
[]
[]
[]
[]
[]
[]
[]
[]
[]
[]
[]
[]
["Die Ausgaben sind nachvollziehbar kalkuliert und erscheinen der Höhe nach notwendig und angemessen."]
[]
[]
[]
[]
[{"$f":"TODAY()","v":"2019-09-02"}]
[]
["Prüfer:",null,null,null,null,null,null,null,null,null,null,null,null,null,null,null,null,null,null,"Freigeber:"]
[]
[]
[]
[]
[]
[]
[]
[]
[]
[]
[]
[]
[]
[]
[]
[]
[]
["Hilfstabelle"]
[]
[]
[]
[]
[]
[]
[]
[]
[]
[]
[]
[]
["Zuwendungsbescheid"]
["1. Änderungsbescheid"]
["2. Änderungsbescheid"]
["3. Änderungsbescheid"]
["4. Änderungsbescheid"]
["5. Änderungsbescheid"]
["6. Änderungsbescheid"]
["7. Änderungsbescheid"]
["8. Änderungsbescheid"]
["9. Änderungsbescheid"]
["10. Änderungsbescheid"]
[]
[]
[]
["ja"]
["nein"]
["entfällt"]
[]
[]
["Erhöhung der Mobilität"]
["Wohnraum, Miete und Verpflegung"]
["Stabilisierung und Motivation im sozialen Umfeld"]
["Arbeits- und Ausbildungsaufnahme"]
["Berufliche Orientierung"]
["Personal- und Personalnebenkosten"]
["Sonstige Sachkosten"]
["Fortbildungs- und Reisekosten"]
[]
[]
[]
[{"$f":"COUNTA(O388,O389,O390,O391,O392,O395,O396,O397,O398,O399,O404,O5234,#REF!)","v":9}]
[]
[]
[]
["TV-L",null,{"$f":"#REF!","v":{"$error":"#REF!"}},null,{"$f":"#REF!","v":{"$error":"#REF!"}},null,{"$f":"#REF!","v":{"$error":"#REF!"}},null,{"$f":"#REF!","v":{"$error":"#REF!"}},null,{"$f":"#REF!","v":{"$error":"#REF!"}}]
[{"$f":"#REF!","v":{"$error":"#REF!"}},null,{"$f":"#REF!","v":{"$error":"#REF!"}},null,{"$f":"#REF!","v":{"$error":"#REF!"}},null,{"$f":"#REF!","v":{"$error":"#REF!"}},null,{"$f":"#REF!","v":{"$error":"#REF!"}},null,{"$f":"#REF!","v":{"$error":"#REF!"}}]
[{"$f":"#REF!","v":{"$error":"#REF!"}},null,{"$f":"#REF!","v":{"$error":"#REF!"}},null,{"$f":"#REF!","v":{"$error":"#REF!"}},null,{"$f":"#REF!","v":{"$error":"#REF!"}},null,{"$f":"#REF!","v":{"$error":"#REF!"}},null,{"$f":"#REF!","v":{"$error":"#REF!"}}]
[{"$f":"#REF!","v":{"$error":"#REF!"}},null,{"$f":"#REF!","v":{"$error":"#REF!"}},null,{"$f":"#REF!","v":{"$error":"#REF!"}},null,{"$f":"#REF!","v":{"$error":"#REF!"}},null,{"$f":"#REF!","v":{"$error":"#REF!"}},null,{"$f":"#REF!","v":{"$error":"#REF!"}}]
[{"$f":"#REF!","v":{"$error":"#REF!"}},null,{"$f":"#REF!","v":{"$error":"#REF!"}},null,{"$f":"#REF!","v":{"$error":"#REF!"}},null,{"$f":"#REF!","v":{"$error":"#REF!"}},null,{"$f":"#REF!","v":{"$error":"#REF!"}},null,{"$f":"#REF!","v":{"$error":"#REF!"}}]
[{"$f":"#REF!","v":{"$error":"#REF!"}},null,{"$f":"#REF!","v":{"$error":"#REF!"}},null,{"$f":"#REF!","v":{"$error":"#REF!"}},null,{"$f":"#REF!","v":{"$error":"#REF!"}},null,{"$f":"#REF!","v":{"$error":"#REF!"}},null,{"$f":"#REF!","v":{"$error":"#REF!"}}]
[{"$f":"#REF!","v":{"$error":"#REF!"}},null,{"$f":"#REF!","v":{"$error":"#REF!"}},null,{"$f":"#REF!","v":{"$error":"#REF!"}},null,{"$f":"#REF!","v":{"$error":"#REF!"}},null,{"$f":"#REF!","v":{"$error":"#REF!"}},null,{"$f":"#REF!","v":{"$error":"#REF!"}}]
[{"$f":"#REF!","v":{"$error":"#REF!"}},null,{"$f":"#REF!","v":{"$error":"#REF!"}},null,{"$f":"#REF!","v":{"$error":"#REF!"}},null,{"$f":"#REF!","v":{"$error":"#REF!"}},null,{"$f":"#REF!","v":{"$error":"#REF!"}},null,{"$f":"#REF!","v":{"$error":"#REF!"}}]
[{"$f":"#REF!","v":{"$error":"#REF!"}},null,{"$f":"#REF!","v":{"$error":"#REF!"}},null,{"$f":"#REF!","v":{"$error":"#REF!"}},null,{"$f":"#REF!","v":{"$error":"#REF!"}},null,{"$f":"#REF!","v":{"$error":"#REF!"}},null,{"$f":"#REF!","v":{"$error":"#REF!"}}]
[{"$f":"#REF!","v":{"$error":"#REF!"}},null,{"$f":"#REF!","v":{"$error":"#REF!"}},null,{"$f":"#REF!","v":{"$error":"#REF!"}},null,{"$f":"#REF!","v":{"$error":"#REF!"}},null,{"$f":"#REF!","v":{"$error":"#REF!"}},null,{"$f":"#REF!","v":{"$error":"#REF!"}}]
[{"$f":"#REF!","v":{"$error":"#REF!"}},null,{"$f":"#REF!","v":{"$error":"#REF!"}},null,{"$f":"#REF!","v":{"$error":"#REF!"}},null,{"$f":"#REF!","v":{"$error":"#REF!"}},null,{"$f":"#REF!","v":{"$error":"#REF!"}},null,{"$f":"#REF!","v":{"$error":"#REF!"}}]
[{"$f":"#REF!","v":{"$error":"#REF!"}},null,{"$f":"#REF!","v":{"$error":"#REF!"}},null,{"$f":"#REF!","v":{"$error":"#REF!"}},null,{"$f":"#REF!","v":{"$error":"#REF!"}},null,{"$f":"#REF!","v":{"$error":"#REF!"}},null,{"$f":"#REF!","v":{"$error":"#REF!"}}]
[{"$f":"#REF!","v":{"$error":"#REF!"}},null,{"$f":"#REF!","v":{"$error":"#REF!"}},null,{"$f":"#REF!","v":{"$error":"#REF!"}},null,{"$f":"#REF!","v":{"$error":"#REF!"}},null,{"$f":"#REF!","v":{"$error":"#REF!"}},null,{"$f":"#REF!","v":{"$error":"#REF!"}}]
[{"$f":"#REF!","v":{"$error":"#REF!"}},null,{"$f":"#REF!","v":{"$error":"#REF!"}},null,{"$f":"#REF!","v":{"$error":"#REF!"}},null,{"$f":"#REF!","v":{"$error":"#REF!"}},null,{"$f":"#REF!","v":{"$error":"#REF!"}},null,{"$f":"#REF!","v":{"$error":"#REF!"}}]
[{"$f":"#REF!","v":{"$error":"#REF!"}},null,{"$f":"#REF!","v":{"$error":"#REF!"}},null,{"$f":"#REF!","v":{"$error":"#REF!"}},null,{"$f":"#REF!","v":{"$error":"#REF!"}},null,{"$f":"#REF!","v":{"$error":"#REF!"}},null,{"$f":"#REF!","v":{"$error":"#REF!"}}]
[{"$f":"#REF!","v":{"$error":"#REF!"}},null,{"$f":"#REF!","v":{"$error":"#REF!"}},null,{"$f":"#REF!","v":{"$error":"#REF!"}},null,{"$f":"#REF!","v":{"$error":"#REF!"}},null,{"$f":"#REF!","v":{"$error":"#REF!"}},null,{"$f":"#REF!","v":{"$error":"#REF!"}}]
[{"$f":"#REF!","v":{"$error":"#REF!"}},null,{"$f":"#REF!","v":{"$error":"#REF!"}},null,{"$f":"#REF!","v":{"$error":"#REF!"}},null,{"$f":"#REF!","v":{"$error":"#REF!"}},null,{"$f":"#REF!","v":{"$error":"#REF!"}},null,{"$f":"#REF!","v":{"$error":"#REF!"}}]
[{"$f":"#REF!","v":{"$error":"#REF!"}},null,{"$f":"#REF!","v":{"$error":"#REF!"}},null,{"$f":"#REF!","v":{"$error":"#REF!"}},null,{"$f":"#REF!","v":{"$error":"#REF!"}},null,{"$f":"#REF!","v":{"$error":"#REF!"}},null,{"$f":"#REF!","v":{"$error":"#REF!"}}]
[]
[]
[]
["nein"]
["ja, weitere Prüfung siehe unten"]
[]
[]
[]
["Da der Kunde eine Gebietskörperschaft ist, ist das Besserstellungsverbot nicht zu prüfen (1.3 ANBest-EFRE-ESF). Der Kunde muss den TV-L / TVöD direkt anwenden. Lediglich die Angemessenheit der Eingruppierung wird überprüft."]
["Gemäß Ziffer 1.3 der ANBest-EFRE/ESF wird zur Prüfung der Angemessenheit der Personalausgaben des Kunden das Besserstellungsverbot herangezogen, da der Kunde seinen Gesamthaushalt überwiegend aus öffentlichen Zuwendungen bestreitet und sein Personal unter Anwendung des TV-L vergütet. Es wird daher lediglich die Angemessenheit der Eingruppierung überprüft."]
["Gemäß Ziffer 1.3 der ANBest-EFRE/ESF wird zur Prüfung der Angemessenheit der Personalausgaben des Kunden das Besserstellungsverbot herangezogen, da der Kunde seinen Gesamthaushalt überwiegend aus öffentlichen Zuwendungen bestreitet und sein Personal tarifgebunden ohne Direktanwendung des TV-L vergütet (z.B. TVöD, Haustarif)."]
["Gemäß Ziffer 1.3 der ANBest-EFRE/ESF wird zur Prüfung der Angemessenheit der Personalausgaben des Kunden das Besserstellungsverbot herangezogen, da der Kunde seinen Gesamthaushalt überwiegend aus öffentlichen Zuwendungen bestreitet und sein Personal ohne Direktanwendung des TV-L vergütet (z.B. Haustarif)."]
["Der Antragsteller bestreitet seinen Gesamthaushalt überwiegend aus Entgelten und vergütet sein Personal unter Anwendung des TV-L. Es wird daher lediglich die Angemessenheit der Eingruppierung überprüft."]
["Der Antragsteller bestreitet seinen Gesamthaushalt überwiegend aus Entgelten und vergütet sein Personal tarifgebunden ohne Direktanwendung des TV-L (z.B. TVöD, Haustarif). Zur Sicherstellung der Wirtschaftlichkeit und Sparsamkeit der Ausgaben im Sinne der LHO wird daher eine Vergleichsberechnung hilfsweise anhand der Durchschnittssätze des TV-L durchgeführt."]
["Der Antragsteller bestreitet seinen Gesamthaushalt überwiegend aus Entgelten und vergütet sein Personal ohne Direktanwendung des TV-L (z.B. Haustarif). Zur Sicherstellung der Wirtschaftlichkeit und Sparsamkeit der Ausgaben im Sinne der LHO wird daher eine Vergleichsberechnung hilfsweise anhand der Durchschnittssätze des TV-L durchgeführt."]
[]
[]
[null,null,null,null,"Arbeitstage",null,"Std/Tag",null,"Jahresstunden"]
[null,null,{"$f":"#REF!","v":{"$error":"#REF!"}},null,{"$f":"#REF!","v":{"$error":"#REF!"}},null,7.96,null,{"$f":"#REF!","v":{"$error":"#REF!"}}]
[null,null,{"$f":"#REF!","v":{"$error":"#REF!"}},null,{"$f":"#REF!","v":{"$error":"#REF!"}},null,8.9600000000000009,null,{"$f":"#REF!","v":{"$error":"#REF!"}}]
[null,null,{"$f":"#REF!","v":{"$error":"#REF!"}},null,{"$f":"#REF!","v":{"$error":"#REF!"}},null,9.9600000000000009,null,{"$f":"#REF!","v":{"$error":"#REF!"}}]
[null,null,{"$f":"#REF!","v":{"$error":"#REF!"}},null,{"$f":"#REF!","v":{"$error":"#REF!"}},null,10.96,null,{"$f":"#REF!","v":{"$error":"#REF!"}}]
[null,null,{"$f":"#REF!","v":{"$error":"#REF!"}},null,{"$f":"#REF!","v":{"$error":"#REF!"}},null,11.96,null,{"$f":"#REF!","v":{"$error":"#REF!"}}]
[null,null,{"$f":"#REF!","v":{"$error":"#REF!"}},null,{"$f":"#REF!","v":{"$error":"#REF!"}},null,12.96,null,{"$f":"#REF!","v":{"$error":"#REF!"}}]
[null,null,{"$f":"#REF!","v":{"$error":"#REF!"}},null,{"$f":"#REF!","v":{"$error":"#REF!"}},null,13.96,null,{"$f":"#REF!","v":{"$error":"#REF!"}}]
[null,null,{"$f":"#REF!","v":{"$error":"#REF!"}},null,{"$f":"#REF!","v":{"$error":"#REF!"}},null,14.96,null,{"$f":"#REF!","v":{"$error":"#REF!"}}]
[]
[]
[]
["Vergabe ist ggf. zu prüfen"]
[]
[]
[]
["Kaufmännische- /Verwaltungstätigkeit"]
["Anleitung/Ausbildung"]
["Beratungstätigkeit"]
["Hilfstätigkeit"]
["Nicht projektbezogen"]
["Pädagogische Mitarbeit"]
["Pädagogische Leistung"]
["Projektleitung"]
["Projektmitarbeit"]
["Sozialpädagogische Betreuung"]
["Sozialpädagogische Leitung"]
["Wissenschaftliche Tätigkeit"]
["Nachbetreuung"]

{"sheet":"F-Plan geprüft","index":3,"n_rows":59,"n_cols":4,"rows_kept":59,"cut":false,"hidden":true,"merged":[[58,2,59,3],[18,1,18,3],[2,2,2,3],[3,2,3,3],[4,2,4,3],[5,2,5,3],[6,2,6,3],[9,1,9,3],[24,1,24,3],[7,2,7,3]]}
[null,"Finanzierungsplan Soziale Innovation (Projekte)",null,{"$f":"TODAY()","v":"2019-09-02"}]
[]
[null,"Programmgebiet",{"$f":"IF('Erläuterungen Finanzierungsplan'!G5=\"\",\"\",'Erläuterungen Finanzierungsplan'!G5)","v":""}]
[null,"Antragsteller/in",{"$f":"IF('Erläuterungen Finanzierungsplan'!G6=\"\",\"\",'Erläuterungen Finanzierungsplan'!G6)","v":""}]
[null,"Projekttitel",{"$f":"IF('Erläuterungen Finanzierungsplan'!G7=\"\",\"\",'Erläuterungen Finanzierungsplan'!G7)","v":""}]
[null,"Version"]
[null,"Antragsnummer",{"$f":"IF('Erläuterungen Finanzierungsplan'!G9=\"\",\"\",'Erläuterungen Finanzierungsplan'!G9)","v":""}]
[null,"Projektzeitraum"]
[]
[null,"Ausgaben"]
[null,"1.","Bildungs- und Beratungspersonal"]
[null,"1.1","Bezüge für eigenes und Fremdpersonal einschließlich Sozialabgaben",{"$f":"Prüfung!I106","v":0}]
[null,"1.2","Ausgaben für Honorarkräfte",{"$f":"Prüfung!I155","v":0}]
[null,"1.3","Arbeitsentgeld des Verwaltungspersonals inkl. Sozialabgaben",{"$f":"Prüfung!I223","v":0}]
[null,"1.4","Personalunterstützung durch Dritte",{"$f":"Prüfung!I332","v":0}]
[null,null,"Summe 1.1 bis 1.4",{"$f":"Prüfung!K341","v":0}]
[null,"2.","Restkostenpauschale"]
[null,null,"Pauschal 25 % der direkten Ausgaben (Ziffern 1.1 + 1.2 + 1.3 + 1.4)",{"$f":"Prüfung!K342","v":0}]
[null,"Mit der Restkostenpauschale werden folgende Ausgaben abgedeckt:  Reise- und Dienstreisekosten des Bildungspersonals, Ausgaben für Lehrgänge externer Einrichtungen, Verbrauchsgüter und Ausstattungsgegenstände, Bezüge der Vorstandsmitglieder/Geschäftsführer und Gesellschafter, ausbildungsgebundene Reise- und Dienstreisekosten des Verwaltunsgpersonals sowie der Vorstandsmitglieder, Geschäftsführer und Gesellschafter, Werbung für Lehrgänge, Büromaterial, allg. Dokumentationsmaterial, Post- und Fernsprechgebühren, Wasser, Gas und Strom, Steuern, Versicherungen, Ausgaben für Kinderbetreuungseinrichtungen, sonstige Verwaltungsausgaben, Mieten und Leasing für Gebäude"]
[null,"Summe der Ausgaben",null,{"$f":"Prüfung!J356","v":0}]
[null,null,"Erlöse",{"$f":"IF(Prüfung!J368=\"\",Prüfung!J366,Prüfung!J368)","v":0}]
[null,"Summe der reduzierten Ausgaben",null,{"$f":"D20-D21","v":0}]
[]
[]
[null,"Einnahmen"]
[null,"A) Kofinanzierung"]
[null,"1.","Summe der privaten Kofinanzierung",{"$f":"Prüfung!O386","v":0}]
[null,"1.1","Freistellungsausgaben / Personalunterstützung durch Dritte",{"$f":"Prüfung!O388","v":0}]
[null,"1.2","Direktbeiträge (z.B. von Unternehmen)",{"$f":"Prüfung!O389","v":0}]
[null,"1.3","Teilnehmerbeiträge",{"$f":"Prüfung!O390","v":0}]
[null,"1.4","sonstige private Mittel (z.B. Eigenmittel privater Träger)",{"$f":"Prüfung!O391","v":0}]
[null,"2.","Summe der öffentlichen Kofinanzierung",{"$f":"Prüfung!O393","v":0}]
[null,"2.1","Bundesmittel, einschließlich BA",{"$f":"Prüfung!O395","v":0}]
[null,"2.2","Landesmittel",{"$f":"Prüfung!O396","v":0}]
[null,"2.3","Kommunale Mittel",{"$f":"Prüfung!O397","v":0}]
[null,"2.4","sonstige öffentliche Mittel (z. B. Kammern, Kirchen oder Eigenmittel öffentl. Träger )",{"$f":"Prüfung!O398","v":0}]
[null,"Gesamt",null,{"$f":"D27+D32","v":0}]
[]
[null,"B) Bewilligte Zuschüsse"]
[null,"3.","ESF-Mittel",{"$f":"D22-D37","v":0}]
[]
[null,"Summe der Einnahmen",null,{"$f":"D27+D32+D40","v":0}]
[]
[null,null,"II. Finanzierungsquoten"]
[null,null,"a) private Kofinanzierung ",{"$f":"Prüfung!S386","v":0}]
[null,null," - Eigenmittel",{"$f":"Prüfung!S388","v":0}]
[null,null," - Direktbeiträge",{"$f":"Prüfung!S389","v":0}]
[null,null," - Teilnehmerbeiträge",{"$f":"Prüfung!S390","v":0}]
[null,null," - sonstige private Mittel (z.B. Eigenmittel )",{"$f":"Prüfung!S391","v":0}]
[null,null,"b) öffentliche Kofinanzierung",{"$f":"Prüfung!S393","v":0}]
[null,null," - Bundesmittel, einschließlich BA",{"$f":"Prüfung!S395","v":0}]
[null,null," - Landesmittel",{"$f":"Prüfung!S396","v":0}]
[null,null," - Kommunale Mittel",{"$f":"Prüfung!S397","v":0}]
[null,null," - sonstige öffentliche Mittel inkl. Einnahmen",{"$f":"Prüfung!S398","v":0}]
[null,null,"GESAMT",{"$f":"Prüfung!S405","v":0}]
[null,null,"III. Bemessungsgrenzen"]
[null,null,"Förderquote ESF max. (60 % SER / 70 % ÜR)",{"$f":"D40/D22","v":{"$error":"#DIV/0!"}}]
[]
[null,null,{"$f":"IF(D57>60%,\"Max. Förderquote von 60% überschritten!\",\"\")","v":{"$error":"#DIV/0!"}}]

{"sheet":"Hilfstabellen","index":4,"n_rows":62,"n_cols":22,"rows_kept":62,"cut":false,"hidden":false,"merged":[[81,1,81,3],[82,1,82,3],[83,1,83,3],[84,1,84,3],[85,1,85,3],[76,1,76,3],[77,1,77,3],[78,1,78,3],[79,1,79,3],[80,1,80,3],[71,1,71,3],[72,1,72,3],[73,1,73,3],[74,1,74,3],[75,1,75,3],[66,1,66,3],[67,1,67,3],[68,1,68,3],[69,1,69,3],[70,1,70,3],[61,1,61,3],[62,1,62,3],[63,1,63,3],[64,1,64,3],[65,1,65,3],[56,1,56,3],[57,1,57,3],[58,1,58,3],[59,1,59,3],[60,1,60,3],[51,1,51,3],[52,1,52,3],[53,1,53,3],[54,1,54,3],[55,1,55,3],[20,12,25,13],[5,12,10,13],[19,1,25,6],[4,10,4,11],[4,12,4,13]]}
[null,"Durchschnittssätze der einzelnen Vergütungsgruppen (Stand:01.10.2016)"]
[]
[]
[]
[null,"Tarifgruppe","Tarifgruppe-Text","Arbeitnehmer-bruttoverdienst pro Jahr \n(95% der Stufe 1)\n(EUR)","Arbeitnehmer-bruttoverdienst pro Jahr \n(Stufe 3)\n(EUR)","Standardeinheits-kostensatz 1\n\n(EUR)","Standardeinheits-kostensatz 2\n\n(EUR)","Standardeinheits-kostensatz 2\n\n(EUR)","Standardeinheits-kostensatz 2\n\n(EUR)","Standardeinheits-kostensatz 2\n\n(EUR)","Standardeinheits-kostensatz \nBeamteInnen\n\n(EUR)",null,"Standardeinheits-kostensatz\nLehrkräfte\n\n(EUR)",null,null,null,null,null,null,null,null,"E 2"]
[null,"E 2","Beschäftigte/r TV-L E 2",23115.29,27570.81,19.329999999999998,22.5,22.5,22.5,22.5,"A 5",18.84,null,null,null,null,null,null,null,null,null,"E 3"]
[null,"E 3","Beschäftigte/r TV-L E 3",24975.67,29754.959999999999,20.91,23.61,35210,35458,35458,"A 6",19.62,null,null,null,null,null,null,null,null,null,"E 4"]
[null,"E 4","Beschäftigte/r TV-L E 4",25333.43,31336.67,21.24,24.78,37395,37408,37408,"A 6 (2)",17.399999999999999,null,null,null,null,null,null,null,null,null,"E 5"]
[null,"E 5","Beschäftigte/r TV-L E 5",26621.38,32391.19,22.27,26.57,40131,39680,39680,"A 7",19.89,null,null,null,null,null,null,null,null,null,"E 6"]
[null,"E 6","Beschäftigte/r TV-L E 6",27766.37,33746.92,23.25,28.46,42005,42025,42025,"A 8",22.06,null,null,null,null,null,null,null,null,null,"E 7"]
[null,"E 7","Beschäftigte/r TV-L E 7",28267.21,34876.68,23.68,28.66,43837,44738,44738,"A 9",24.1,null,null,null,null,null,null,null,null,null,"E 8"]
[null,"E 8","Beschäftigte/r TV-L E 8",30127.59,36533.629999999997,25.26,30.49,44404,45214,45214,"A 9 (2)",20.47,"A 9",24.07,null,null,null,null,null,null,null,"E 9"]
[null,"E 9","Beschäftigte/r TV-L E 9",31758.880000000001,38716.29,26.63,33.18,50654,49709,49709,"A 10",25.17,"A 10",27.16,null,null,null,null,null,null,null,"E 10"]
[null,"E 10","Beschäftigte/r TV-L E 10",35790.410000000003,44793.599999999999,30.06,37.659999999999997,56270,57569,57569,"A 11",28.92,"A 11",29.65,null,null,null,null,null,null,null,"E 11"]
[null,"E 11","Beschäftigte/r TV-L E 11",37134.089999999997,46316.67,31.14,40.89,61341,62809,62809,"A 12",31.99,"A 12",29.64,null,null,null,null,null,null,null,"E 12"]
[null,"E 12","Beschäftigte/r TV-L E 12",37506.949999999997,49842.38,31.54,45.59,68790,70131,70131,"A 13",35.89,"A 13",34.39,null,null,null,null,null,null,null,"E 13"]
[null,"E 13","Beschäftigte/r TV-L E 13",41768.65,51404.38,35.19,38.700000000000003,54699,56146,56146,"A 13 (2)",33.380000000000003,"A 13 (2)",33.32,null,null,null,null,null,null,null,"E 14"]
[null,"E 14","Beschäftigte/r TV-L E 14",44757.84,55269.83,37.68,47.69,73156,74297,74297,"A 14",38.4,"A 14",38.770000000000003,null,null,null,null,null,null,null,"E 15"]
[null,"E 15","Beschäftigte/r TV-L E 15",49434.65,59825.75,41.6,53.37,78399,78535,78535,"A 15",43.58,"A 15",43.79,null,null,null,null,null,null,null,"A 5"]
[null,null,null,null,null,null,null,null,null,null,"A 16",48.97,"A 16",49.16,null,null,null,null,null,null,null,"A 6"]
[null,null,null,null,null,null,null,null,null,null,"C 2",43.87,null,null,null,null,null,null,null,null,null,"A 6 (2)"]
[null,null,null,null,null,null,null,null,null,null,"C 3",48.73,null,null,null,null,null,null,null,null,null,"A 7"]
[null,null,null,null,null,null,null,null,null,null,"C 4",58.78,null,null,null,null,null,null,null,null,null,"A 8"]
[null,null,null,null,null,null,null,null,null,null,"W 1",32.119999999999997,null,null,null,null,null,null,null,null,null,"A 9"]
[null,null,null,null,null,null,null,null,null,null,"W 2",45.07,null,null,null,null,null,null,null,null,null,"A 9 (2)"]
[null,null,null,null,null,null,null,null,null,null,"W 3",57.42,null,null,null,null,null,null,null,null,null,"A 10"]
[null,null,null,null,null,null,null,null,null,null,null,null,null,null,null,null,null,null,null,null,null,"A 11"]
[null,null,null,null,null,null,null,null,null,null,null,null,null,null,null,null,null,null,null,null,null,"A 12"]
[null,null,null,"Produktivstunden/Jahr",null,null,null,null,null,null,null,null,null,null,null,null,null,null,null,null,null,"A 13"]
[null,null,null,null,null,null,null,null,null,null,null,null,null,null,null,null,null,null,null,null,null,"A 13 (2)"]
[null,null,null,"Std./Woche","Jahresstunden",null,null,null,null,null,null,null,null,null,null,null,null,null,null,null,null,"A 14"]
[null,null,null,39.799999999999997,1664,null,null,null,null,null,null,null,null,null,null,null,null,null,null,null,null,"A 15"]
[null,null,null,40,1664,null,null,null,null,null,null,null,null,null,null,null,null,null,null,null,null,"A 16"]
[null,null,null,39,{"$f":"ROUND(($E$33/$D$32)*D34,2)","v":1630.55},null,null,null,null,null,null,null,null,null,null,null,null,null,null,null,null,"C 2"]
[null,null,null,38.5,1609.65,null,null,null,null,null,null,null,null,null,null,null,null,null,null,null,null,"C 3"]
[null,null,null,38,1588.74,null,null,null,null,null,null,null,null,null,null,null,null,null,null,null,null,"C 4"]
[null,null,null,35,1463.32,null,null,null,null,null,null,null,null,null,null,null,null,null,null,null,null,"W 1"]
[null,null,null,30,1254.27,null,null,null,null,null,null,null,null,null,null,null,null,null,null,null,null,"W 2"]
[null,null,null,20,836.18,null,null,null,null,null,null,null,null,null,null,null,null,null,null,null,null,"W 3"]
[null,null,null,19.5,815.28]
[]
[]
[]
[]
[]
[]
[]
[]
[]
[]
[]
[null,"Anleitung / Ausbildung"]
[null,"Beratungstätigkeit"]
[null,"Hilfstätigkeit"]
[null,"Kaufmännische- / Verwaltungstätigkeit"]
[null,"Pädagogische Mitarbeit"]
[null,"Pädagogische Leitung"]
[null,"Projektleitung"]
[null,"Projektmitarbeit"]
[null,"Sozialpädagogische Betreuung"]
[null,"Sozialpädagogische Leitung"]
[null,"Wissenschaftliche Tätigkeit"]